Workbook

Sheet CRM
E1: начало | F1: окончание | H1: цена, шт. | I1: кол-во | J1: скидка, % | K1: цена, всего | L1: скидка за ед., руб | M1: цена за ед. со скидкой | N1: цена всего со скидкой
A2: текущие | B2: Абонентские услуги | C2: 1 | D2: Публичный IPv4 адрес шт. | E2: 2025-05-01 | G2: Публичный IPv4 адрес | H2: 290 | I2: 6 | J2: 0.00000000 | K2: =H2*I2 -> 1740 | L2: =H2*J2/100 -> 0 | M2: =H2-L2 -> 290 | N2: =K2 - (K2*J2/100) -> 1740 | O2: =M2*I2 -> 1740 | P2: ИТОГО | Q2: =O2 -> 1740
A3: текущие | B3: Абонентские услуги | C3: 2.1 | D3: Резервное копирование Veeam | E3: 2025-05-01 | G3: Резервное копирование Veeam на 1 ВМ: (агент) - шт. (bk.veeam.0.vma-f) | H3: 1200 | I3: 4 | J3: 0.00000000 | K3: =H3*I3 -> 4800 | L3: =H3*J3/100 -> 0 | M3: =H3-L3 -> 1200 | N3: 4800 | O3: =M3*I3 -> 4800
A4: текущие | B4: Абонентские услуги | C4: 2.2 | D4: Резервное копирование Veeam | E4: 2025-05-01 | G4: Резервное копирование Veeam на 1 ВМ: (снапшот) - шт. (bk.veeam.0.vms-f) | H4: 1200 | I4: 0 | J4: 0.00000000 | K4: 0 | L4: 0 | M4: 1200 | N4: 0 | O4: 0
A5: текущие | B5: Абонентские услуги | C5: 2.3 | D5: Резервное копирование Veeam | E5: 2025-05-01 | G5: Дисковое пространство: Объем диска - ГБайт (bk.veeam.0.vol-f) | H5: 2.26 | I5: 1000 | J5: 0.00000000 | K5: 2260 | L5: 0 | M5: 2.26 | N5: 2260 | O5: 2260 | P5: ИТОГО | Q5: =O3+O4+O5 -> 7060
A6: текущие | B6: Абонентские услуги | C6: 3.1 | D6: Next Generation Cloud (Intel 2.9 ГГц) | E6: 2025-05-01 | G6: Количество vCPU: гарантированная доля 50% - шт. (iaas.ngc.i29.vcpu50-f) | H6: 450 | I6: 0 | J6: 0.00000000 | K6: 0 | L6: 0 | M6: 450 | N6: 0 | O6: 0
A7: текущие | B7: Абонентские услуги | C7: 3.2 | D7: Next Generation Cloud (Intel 2.9 ГГц) | E7: 2025-05-01 | G7: Количество vCPU: гарантированная доля 80% - шт. (iaas.ngc.i29.vcpu80-f) | H7: 750 | I7: 0 | J7: 0.00000000 | K7: 0 | L7: 0 | M7: 750 | N7: 0 | O7: 0
A8: текущие | B8: Абонентские услуги | C8: 3.3 | D8: Next Generation Cloud (Intel 2.9 ГГц) | E8: 2025-05-01 | G8: Количество vCPU - шт. (iaas.ngc.i29.vcpu-f) | H8: 360 | I8: 44 | J8: 25.00000000 | K8: 15840 | L8: 90 | M8: 270 | N8: =K8 - (K8*J8/100) -> 11880 | O8: 11880
A9: текущие | B9: Абонентские услуги | C9: 3.4 | D9: Next Generation Cloud (Intel 2.9 ГГц) | E9: 2025-05-01 | G9: Объем vRAM - ГБайт (iaas.ngc.i29.ram-f) | H9: 228 | I9: 156 | J9: 10.08771900 | K9: 35568 | L9: 22.99999932 | M9: 205.0000007 | N9: =K9 - (K9*J9/100) -> 31980.00011 | O9: 31980.00011
A10: текущие | B10: Абонентские услуги | C10: 3.5 | D10: Next Generation Cloud (Intel 2.9 ГГц) | E10: 2025-05-01 | G10: Дисковое пространство: SSD - ГБайт (iaas.ngc.i29.ssd-f) | H10: 8.9 | I10: 600 | J10: 10.11236000 | K10: 5340 | L10: 0.90000004 | M10: 7.99999996 | N10: 4799.999976 | O10: 4799.999976
A11: текущие | B11: Абонентские услуги | C11: 3.6 | D11: Next Generation Cloud (Intel 2.9 ГГц) | E11: 2025-05-01 | G11: Дисковое пространство: SATA - ГБайт (iaas.ngc.i29.sata-f) | H11: 2.8 | I11: 600 | J11: 10.00000000 | K11: 1680 | L11: 0.28 | M11: 2.52 | N11: 1512 | O11: 1512
A12: текущие | B12: Абонентские услуги | C12: 3.7 | D12: Next Generation Cloud (Intel 2.9 ГГц) | E12: 2025-05-01 | G12: Дисковое пространство: Fast SSD - ГБайт (iaas.ngc.i29.fstssd-f) | H12: 17.9 | I12: 0 | J12: 0.00000000 | K12: 0 | L12: 0 | M12: 17.9 | N12: 0 | O12: 0
A13: текущие | B13: Абонентские услуги | C13: 3.8 | D13: Next Generation Cloud (Intel 2.9 ГГц) | E13: 2025-05-01 | G13: GPU: A16 2GB RAM - шт. (iaas.ngc.i29.gpu2-f) | H13: 5100 | I13: 0 | J13: 0.00000000 | K13: 0 | L13: 0 | M13: 5100 | N13: 0 | O13: 0
A14: текущие | B14: Абонентские услуги | C14: 3.9 | D14: Next Generation Cloud (Intel 2.9 ГГц) | E14: 2025-05-01 | G14: GPU: A16 4GB RAM - шт. (iaas.ngc.i29.gpu4-f) | H14: 10200 | I14: 0 | J14: 0.00000000 | K14: 0 | L14: 0 | M14: 10200 | N14: 0 | O14: 0
A15: текущие | B15: Абонентские услуги | C15: 3.10 | D15: Next Generation Cloud (Intel 2.9 ГГц) | E15: 2025-05-01 | G15: GPU: A16 8GB RAM - шт. (iaas.ngc.i29.gpu8-f) | H15: 20400 | I15: 0 | J15: 0.00000000 | K15: 0 | L15: 0 | M15: 20400 | N15: 0 | O15: 0
A16: текущие | B16: Абонентские услуги | C16: 3.11 | D16: Next Generation Cloud (Intel 2.9 ГГц) | E16: 2025-05-01 | G16: GPU: A16 16GB RAM - шт. (iaas.ngc.i29.gpu16-f) | H16: 40800 | I16: 0 | J16: 0.00000000 | K16: 0 | L16: 0 | M16: 40800 | N16: 0 | O16: 0 | P16: ИТОГО | Q16: =SUM(O6:O16) -> 50172.00008
A17: текущие | B17: Абонентские услуги | C17: 4.1 | D17: Выделенный облачный пул (4.5 ГГц AMD Ryzen 9 7950X 16 ядер 164 ГБ RAM) | E17: 2025-05-01 | G17: Хост - шт. (iaas.dcp.a45.h-f) | H17: 45000 | I17: 1 | J17: 42.20783100 | K17: 45000 | L17: 18993.52395 | M17: 26006.47605 | N17: 26006.47605 | O17: 26006.47605
A18: текущие | B18: Абонентские услуги | C18: 4.2 | D18: Выделенный облачный пул (4.5 ГГц AMD Ryzen 9 7950X 16 ядер 164 ГБ RAM) | E18: 2025-05-01 | G18: Дисковое пространство: SATA - ГБайт (iaas.dcp.a45.sata-f) | H18: 2.8 | I18: 0 | J18: 42.20783100 | K18: 0 | L18: 1.181819268 | M18: 1.618180732 | N18: 0 | O18: 0
A19: текущие | B19: Абонентские услуги | C19: 4.3 | D19: Выделенный облачный пул (4.5 ГГц AMD Ryzen 9 7950X 16 ядер 164 ГБ RAM) | E19: 2025-05-01 | G19: Дисковое пространство: SSD - ГБайт (iaas.dcp.a45.ssd-f) | H19: 8.9 | I19: 0 | J19: 42.20783100 | K19: 0 | L19: 3.756496959 | M19: 5.143503041 | N19: 0 | O19: 0
A20: текущие | B20: Абонентские услуги | C20: 4.4 | D20: Выделенный облачный пул (4.5 ГГц AMD Ryzen 9 7950X 16 ядер 164 ГБ RAM) | E20: 2025-05-01 | G20: Дисковое пространство: Fast SSD - ГБайт (iaas.dcp.a45.fstssd-f) | H20: 17.9 | I20: 300 | J20: 42.20783100 | K20: 5370 | L20: 7.555201749 | M20: 10.34479825 | N20: 3103.439475 | O20: 3103.439475
A21: текущие | B21: Абонентские услуги | C21: 4.5 | D21: Выделенный облачный пул (4.5 ГГц AMD Ryzen 9 7950X 16 ядер 164 ГБ RAM) | E21: 2025-05-01 | G21: GPU: RTX 4090 - шт. (iaas.dcp.a45.gpu4090-f) | H21: 50000 | I21: 1 | J21: 42.20783100 | K21: 50000 | L21: 21103.9155 | M21: 28896.0845 | N21: 28896.0845 | O21: 28896.0845
A22: текущие | B22: Абонентские услуги | C22: 4.6 | D22: Выделенный облачный пул (4.5 ГГц AMD Ryzen 9 7950X 16 ядер 164 ГБ RAM) | E22: 2025-05-01 | G22: GPU: RTX 5090 - шт. (iaas.dcp.a45.gpu5090-f) | H22: 70000 | I22: 0 | J22: 42.20783100 | K22: 0 | L22: 29545.4817 | M22: 40454.5183 | N22: 0 | O22: 0 | P22: ИТОГО | Q22: =SUM(O17:O22) -> 58006.00003 | V22: "Не по договору": | W22: =SUM(Q2:Q16) -> 58972.00008
A23: текущие | B23: Абонентские услуги | C23: 5 | D23: Публичный IPv4 адрес шт. | E23: 2025-05-01 | G23: Публичный IPv4 адрес | H23: 290 | I23: 1 | J23: 70.00000000 | K23: 290 | L23: 203 | M23: 87 | N23: 87 | O23: 87 | P23: ИТОГО | Q23: =O23 -> 87 | S23: Текущие | T23: =SUM(Q2:Q23) -> 117065.0001 | V23: По договору | W23: =SUM(Q22:Q23) -> 58093.00003
A24: архив | B24: Абонентские услуги | C24: 1.1 | D24: Next Generation Cloud (Intel 3.1 ГГц) | E24: 2025-03-15 | F24: 2025-03-15 | G24: Количество vCPU - шт. (iaas.ngc.i31.vcpu-f) | H24: 380 | I24: 8 | J24: 16.84210500 | K24: 3040 | L24: 63.999999 | M24: 316.000001 | N24: 2528.000008 | O24: 2528.000008
A25: архив | B25: Абонентские услуги | C25: 1.2 | D25: Next Generation Cloud (Intel 3.1 ГГц) | E25: 2025-03-15 | F25: 2025-03-15 | G25: Объем vRAM - ГБайт (iaas.ngc.i31.ram-f) | H25: 228 | I25: 32 | J25: 55.26315800 | K25: 7296 | L25: 126.0000002 | M25: 101.9999998 | N25: 3263.999992 | O25: 3263.999992
A26: архив | B26: Абонентские услуги | C26: 1.3 | D26: Next Generation Cloud (Intel 3.1 ГГц) | E26: 2025-03-15 | F26: 2025-03-15 | G26: Дисковое пространство: SSD - ГБайт (iaas.ngc.i31.ssd-f) | H26: 8.9 | I26: 300 | J26: 19.10112400 | K26: 2670 | L26: 1.700000036 | M26: 7.199999964 | N26: 2159.999989 | O26: 2159.999989
A27: архив | B27: Абонентские услуги | C27: 1.4 | D27: Next Generation Cloud (Intel 3.1 ГГц) | E27: 2025-03-15 | F27: 2025-03-15 | G27: Дисковое пространство: SATA - ГБайт (iaas.ngc.i31.sata-f) | H27: 2.8 | I27: 0 | J27: 0.00000000 | K27: 0 | L27: 0 | M27: 2.8 | N27: 0 | O27: 0
A28: архив | B28: Абонентские услуги | C28: 1.5 | D28: Next Generation Cloud (Intel 3.1 ГГц) | E28: 2025-03-15 | F28: 2025-03-15 | G28: Дисковое пространство: Fast SSD - ГБайт (iaas.ngc.i31.fstssd-f) | H28: 17.9 | I28: 0 | J28: 0.00000000 | K28: 0 | L28: 0 | M28: 17.9 | N28: 0 | O28: 0
A29: архив | B29: Абонентские услуги | C29: 1.6 | D29: Next Generation Cloud (Intel 3.1 ГГц) | E29: 2025-03-15 | F29: 2025-03-15 | G29: GPU: A100 80GB RAM - шт. (iaas.ngc.i31.gpu80-f) | H29: 250000 | I29: 0 | J29: 0.00000000 | K29: 0 | L29: 0 | M29: 250000 | N29: 0 | O29: 0 | P29: ИТОГО | Q29: =SUM(O24:O29) -> 7951.99999 | R29: Архив
A30: архив | B30: Абонентские услуги | C30: 2 | D30: Прочее шт. | E30: 2025-03-15 | F30: 2025-03-15 | G30: GPU: RTX4090 24GB RAM | H30: 50054 | I30: 1 | J30: 0.00000000 | K30: 50054 | L30: 0 | M30: 50054 | N30: 50054 | O30: 50054 | P30: ИТОГО | Q30: =O30 -> 50054
P31: Архив всего | Q31: =Q29+Q30 -> 58005.99999

Sheet 2291 - Акцент
A1: dt | B1: siv_uid | C1: discount | D1: line_pricing_model_id | E1: line_key | F1: user_description | G1: siv_is_actual | H1: line_version | I1: dt_from | J1: dt_to | K1: is_simple | L1: quantity | M1: agreement_uid | N1: contract_uid | O1: agreement_is_actual | P1: deal_uid | Q1: agreement_version | R1: _plannedDueDate | S1: deal | T1: deal_status_id | U1: contract | V1: probability_pc | W1: cost | X1: running_min_dt | Y1: dt_next | Z1: discount_base | AA1: quantity_base | AB1: dt_from_base | AC1: dt_to_base | AD1: cost_base | AE1: bounded
A2: 2025-05-01 | B2: 01967cbf-3eed-7ada-90fa-c68dc8363fc8 | C2: 0.0 | D2: 2 | E2: 26151c48-4e77-4c11-9765-fba37dacebdf | F2: Next Generation Cloud: Intel 3.1 ГГц | G2: true | H2: 24 | I2: 2025-05-01 | J2: 2025-03-15 00:00:00.000 | K2: false | L2: 1 | M2: 01963353-3219-736a-9da3-ea11c2c374cc | N2: 0193302d-2e8f-7840-bcd4-ce01ca97c757 | O2: true | P2: 01963352-e68f-7258-b961-8410cd46b757 | Q2: 2 | R2: 2025-05-01 03:00:00.000 +0300 | S2: №2291 Акцент (Iambulant) - Миграция с Яндекса | T2: 6 | U2: 02509_1 | V2: 100 | W2: 7951.99999 | X2: 2025-05-01 | Y2: 2025-12-01 00:00:00.000 | AE2: 0.0000000000
A3: 2025-05-01 | B3: 01967cbf-3e9d-7ada-b7ae-9da195c89d61 | C3: 70.0 | D3: 2 | E3: 2af66cc8-e22e-489e-b9db-52e7fe5daa60 | G3: true | H3: 24 | I3: 2025-05-01 | J3: 2025-12-01 00:00:00.000 | K3: true | L3: 1 | M3: 01963353-3219-736a-9da3-ea11c2c374cc | N3: 0193302d-2e8f-7840-bcd4-ce01ca97c757 | O3: true | P3: 01963352-e68f-7258-b961-8410cd46b757 | Q3: 2 | R3: 2025-05-01 03:00:00.000 +0300 | S3: №2291 Акцент (Iambulant) - Миграция с Яндекса | T3: 6 | U3: 02509_1 | V3: 100 | W3: 290 | X3: 2025-05-01 | Y3: 2025-12-01 00:00:00.000 | AE3: 2.8064516129
A4: 2025-05-01 | B4: 01967cbf-3e5a-7ada-8c40-0e613f2440bd | C4: 42.207831 | D4: 2 | E4: 6298e714-7e74-4f57-b5f7-bfbc85ea7add | F4: Выделенный облачный пул: 4.5 ГГц AMD Ryzen 9 7950X 16 ядер 164 ГБ RAM | G4: true | H4: 24 | I4: 2025-05-01 | J4: 2025-12-01 00:00:00.000 | K4: false | L4: 1 | M4: 01963353-3219-736a-9da3-ea11c2c374cc | N4: 0193302d-2e8f-7840-bcd4-ce01ca97c757 | O4: true | P4: 01963352-e68f-7258-b961-8410cd46b757 | Q4: 2 | R4: 2025-05-01 03:00:00.000 +0300 | S4: №2291 Акцент (Iambulant) - Миграция с Яндекса | T4: 6 | U4: 02509_1 | V4: 100 | W4: 100370 | X4: 2025-05-01 | Y4: 2025-12-01 00:00:00.000 | AE4: 1,871.1612911387
A5: 2025-05-01 | B5: 01967cbf-3e16-7ada-b761-7199663e630f | C5: 0.0 | D5: 2 | E5: a67aa5fa-d4bb-4ffa-ad2e-60cc790b2a8b | G5: true | H5: 24 | I5: 2025-05-01 | J5: 2025-12-01 00:00:00.000 | K5: false | L5: 1 | M5: 01963353-3219-736a-9da3-ea11c2c374cc | N5: 0193302d-2e8f-7840-bcd4-ce01ca97c757 | O5: true | P5: 01963352-e68f-7258-b961-8410cd46b757 | Q5: 2 | R5: 2025-05-01 03:00:00.000 +0300 | S5: №2291 Акцент (Iambulant) - Миграция с Яндекса | T5: 6 | U5: 02509_1 | V5: 100 | W5: 50172.00008 | X5: 2025-05-01 | Y5: 2025-12-01 00:00:00.000 | AE5: 1,618.4516155510
A6: 2025-05-01 | B6: 01967cbf-3f39-7adb-afba-c1cd5660d910 | C6: 0.0 | D6: 2 | E6: b23d08e4-8457-47b2-88f8-e098be2e5f43 | F6: GPU: RTX4090 24GB RAM | G6: true | H6: 24 | I6: 2025-05-01 | J6: 2025-03-15 00:00:00.000 | K6: true | L6: 1 | M6: 01963353-3219-736a-9da3-ea11c2c374cc | N6: 0193302d-2e8f-7840-bcd4-ce01ca97c757 | O6: true | P6: 01963352-e68f-7258-b961-8410cd46b757 | Q6: 2 | R6: 2025-05-01 03:00:00.000 +0300 | S6: №2291 Акцент (Iambulant) - Миграция с Яндекса | T6: 6 | U6: 02509_1 | V6: 100 | W6: 50054 | X6: 2025-05-01 | Y6: 2025-12-01 00:00:00.000 | AE6: 0.0000000000
A7: 2025-05-01 | B7: 01967cbf-3d9e-7ad6-b9a8-71174cefcba8 | C7: 0.0 | D7: 2 | E7: c1f995e3-227c-4181-8e57-4f4f4470a08d | F7: Резервное копирование Veeam | G7: true | H7: 24 | I7: 2025-05-01 | J7: 2025-12-01 00:00:00.000 | K7: false | L7: 1 | M7: 01963353-3219-736a-9da3-ea11c2c374cc | N7: 0193302d-2e8f-7840-bcd4-ce01ca97c757 | O7: true | P7: 01963352-e68f-7258-b961-8410cd46b757 | Q7: 2 | R7: 2025-05-01 03:00:00.000 +0300 | S7: №2291 Акцент (Iambulant) - Миграция с Яндекса | T7: 6 | U7: 02509_1 | V7: 100 | W7: 7060 | X7: 2025-05-01 | Y7: 2025-12-01 00:00:00.000 | AE7: 227.7419354839
A8: 2025-05-01 | B8: 01967cbf-3d5d-7ad6-80fa-8fbc5fea192e | C8: 0 | D8: 2 | E8: c97a0102-2f06-4417-966d-8c6b61ff845f | F8: Публичный IPv4 адрес | G8: true | H8: 24 | I8: 2025-05-01 | J8: 2025-12-01 00:00:00.000 | K8: true | L8: 6 | M8: 01963353-3219-736a-9da3-ea11c2c374cc | N8: 0193302d-2e8f-7840-bcd4-ce01ca97c757 | O8: true | P8: 01963352-e68f-7258-b961-8410cd46b757 | Q8: 2 | R8: 2025-05-01 03:00:00.000 +0300 | S8: №2291 Акцент (Iambulant) - Миграция с Яндекса | T8: 6 | U8: 02509_1 | V8: 100 | W8: 290 | X8: 2025-05-01 | Y8: 2025-12-01 00:00:00.000 | AE8: 56.1290322581 | AF8: =W8*L8 -> 1740 | AG8: ежемес
A9: 2025-05-02 | B9: 01967cbf-3eed-7ada-90fa-c68dc8363fc8 | C9: 0.0 | D9: 2 | E9: 26151c48-4e77-4c11-9765-fba37dacebdf | F9: Next Generation Cloud: Intel 3.1 ГГц | G9: true | H9: 24 | I9: 2025-05-01 | J9: 2025-03-15 00:00:00.000 | K9: false | L9: 1 | M9: 01963353-3219-736a-9da3-ea11c2c374cc | N9: 0193302d-2e8f-7840-bcd4-ce01ca97c757 | O9: true | P9: 01963352-e68f-7258-b961-8410cd46b757 | Q9: 2 | R9: 2025-05-01 03:00:00.000 +0300 | S9: №2291 Акцент (Iambulant) - Миграция с Яндекса | T9: 6 | U9: 02509_1 | V9: 100 | W9: 7951.99999 | X9: 2025-05-01 | Y9: 2025-12-01 00:00:00.000 | AE9: 0.0000000000
A10: 2025-05-02 | B10: 01967cbf-3e9d-7ada-b7ae-9da195c89d61 | C10: 70.0 | D10: 2 | E10: 2af66cc8-e22e-489e-b9db-52e7fe5daa60 | G10: true | H10: 24 | I10: 2025-05-01 | J10: 2025-12-01 00:00:00.000 | K10: true | L10: 1 | M10: 01963353-3219-736a-9da3-ea11c2c374cc | N10: 0193302d-2e8f-7840-bcd4-ce01ca97c757 | O10: true | P10: 01963352-e68f-7258-b961-8410cd46b757 | Q10: 2 | R10: 2025-05-01 03:00:00.000 +0300 | S10: №2291 Акцент (Iambulant) - Миграция с Яндекса | T10: 6 | U10: 02509_1 | V10: 100 | W10: 290 | X10: 2025-05-01 | Y10: 2025-12-01 00:00:00.000 | AE10: 2.8064516129
A11: 2025-05-02 | B11: 01967cbf-3e5a-7ada-8c40-0e613f2440bd | C11: 42.207831 | D11: 2 | E11: 6298e714-7e74-4f57-b5f7-bfbc85ea7add | F11: Выделенный облачный пул: 4.5 ГГц AMD Ryzen 9 7950X 16 ядер 164 ГБ RAM | G11: true | H11: 24 | I11: 2025-05-01 | J11: 2025-12-01 00:00:00.000 | K11: false | L11: 1 | M11: 01963353-3219-736a-9da3-ea11c2c374cc | N11: 0193302d-2e8f-7840-bcd4-ce01ca97c757 | O11: true | P11: 01963352-e68f-7258-b961-8410cd46b757 | Q11: 2 | R11: 2025-05-01 03:00:00.000 +0300 | S11: №2291 Акцент (Iambulant) - Миграция с Яндекса | T11: 6 | U11: 02509_1 | V11: 100 | W11: 100370 | X11: 2025-05-01 | Y11: 2025-12-01 00:00:00.000 | AE11: 1,871.1612911387
A12: 2025-05-02 | B12: 01967cbf-3e16-7ada-b761-7199663e630f | C12: 0.0 | D12: 2 | E12: a67aa5fa-d4bb-4ffa-ad2e-60cc790b2a8b | G12: true | H12: 24 | I12: 2025-05-01 | J12: 2025-12-01 00:00:00.000 | K12: false | L12: 1 | M12: 01963353-3219-736a-9da3-ea11c2c374cc | N12: 0193302d-2e8f-7840-bcd4-ce01ca97c757 | O12: true | P12: 01963352-e68f-7258-b961-8410cd46b757 | Q12: 2 | R12: 2025-05-01 03:00:00.000 +0300 | S12: №2291 Акцент (Iambulant) - Миграция с Яндекса | T12: 6 | U12: 02509_1 | V12: 100 | W12: 50172.00008 | X12: 2025-05-01 | Y12: 2025-12-01 00:00:00.000 | AE12: 1,618.4516155510
A13: 2025-05-02 | B13: 01967cbf-3f39-7adb-afba-c1cd5660d910 | C13: 0.0 | D13: 2 | E13: b23d08e4-8457-47b2-88f8-e098be2e5f43 | F13: GPU: RTX4090 24GB RAM | G13: true | H13: 24 | I13: 2025-05-01 | J13: 2025-03-15 00:00:00.000 | K13: true | L13: 1 | M13: 01963353-3219-736a-9da3-ea11c2c374cc | N13: 0193302d-2e8f-7840-bcd4-ce01ca97c757 | O13: true | P13: 01963352-e68f-7258-b961-8410cd46b757 | Q13: 2 | R13: 2025-05-01 03:00:00.000 +0300 | S13: №2291 Акцент (Iambulant) - Миграция с Яндекса | T13: 6 | U13: 02509_1 | V13: 100 | W13: 50054 | X13: 2025-05-01 | Y13: 2025-12-01 00:00:00.000 | AE13: 0.0000000000
A14: 2025-05-02 | B14: 01967cbf-3d9e-7ad6-b9a8-71174cefcba8 | C14: 0.0 | D14: 2 | E14: c1f995e3-227c-4181-8e57-4f4f4470a08d | F14: Резервное копирование Veeam | G14: true | H14: 24 | I14: 2025-05-01 | J14: 2025-12-01 00:00:00.000 | K14: false | L14: 1 | M14: 01963353-3219-736a-9da3-ea11c2c374cc | N14: 0193302d-2e8f-7840-bcd4-ce01ca97c757 | O14: true | P14: 01963352-e68f-7258-b961-8410cd46b757 | Q14: 2 | R14: 2025-05-01 03:00:00.000 +0300 | S14: №2291 Акцент (Iambulant) - Миграция с Яндекса | T14: 6 | U14: 02509_1 | V14: 100 | W14: 7060 | X14: 2025-05-01 | Y14: 2025-12-01 00:00:00.000 | AE14: 227.7419354839
A15: 2025-05-02 | B15: 01967cbf-3d5d-7ad6-80fa-8fbc5fea192e | C15: 0 | D15: 2 | E15: c97a0102-2f06-4417-966d-8c6b61ff845f | F15: Публичный IPv4 адрес | G15: true | H15: 24 | I15: 2025-05-01 | J15: 2025-12-01 00:00:00.000 | K15: true | L15: 6 | M15: 01963353-3219-736a-9da3-ea11c2c374cc | N15: 0193302d-2e8f-7840-bcd4-ce01ca97c757 | O15: true | P15: 01963352-e68f-7258-b961-8410cd46b757 | Q15: 2 | R15: 2025-05-01 03:00:00.000 +0300 | S15: №2291 Акцент (Iambulant) - Миграция с Яндекса | T15: 6 | U15: 02509_1 | V15: 100 | W15: 290 | X15: 2025-05-01 | Y15: 2025-12-01 00:00:00.000 | AE15: 56.1290322581 | AF15: =W15*L15 -> 1740 | AG15: ежемес
A16: 2025-05-03 | B16: 01967cbf-3eed-7ada-90fa-c68dc8363fc8 | C16: 0.0 | D16: 2 | E16: 26151c48-4e77-4c11-9765-fba37dacebdf | F16: Next Generation Cloud: Intel 3.1 ГГц | G16: true | H16: 24 | I16: 2025-05-01 | J16: 2025-03-15 00:00:00.000 | K16: false | L16: 1 | M16: 01963353-3219-736a-9da3-ea11c2c374cc | N16: 0193302d-2e8f-7840-bcd4-ce01ca97c757 | O16: true | P16: 01963352-e68f-7258-b961-8410cd46b757 | Q16: 2 | R16: 2025-05-01 03:00:00.000 +0300 | S16: №2291 Акцент (Iambulant) - Миграция с Яндекса | T16: 6 | U16: 02509_1 | V16: 100 | W16: 7951.99999 | X16: 2025-05-01 | Y16: 2025-12-01 00:00:00.000 | AE16: 0.0000000000
A17: 2025-05-03 | B17: 01967cbf-3e9d-7ada-b7ae-9da195c89d61 | C17: 70.0 | D17: 2 | E17: 2af66cc8-e22e-489e-b9db-52e7fe5daa60 | G17: true | H17: 24 | I17: 2025-05-01 | J17: 2025-12-01 00:00:00.000 | K17: true | L17: 1 | M17: 01963353-3219-736a-9da3-ea11c2c374cc | N17: 0193302d-2e8f-7840-bcd4-ce01ca97c757 | O17: true | P17: 01963352-e68f-7258-b961-8410cd46b757 | Q17: 2 | R17: 2025-05-01 03:00:00.000 +0300 | S17: №2291 Акцент (Iambulant) - Миграция с Яндекса | T17: 6 | U17: 02509_1 | V17: 100 | W17: 290 | X17: 2025-05-01 | Y17: 2025-12-01 00:00:00.000 | AE17: 2.8064516129
A18: 2025-05-03 | B18: 01967cbf-3e5a-7ada-8c40-0e613f2440bd | C18: 42.207831 | D18: 2 | E18: 6298e714-7e74-4f57-b5f7-bfbc85ea7add | F18: Выделенный облачный пул: 4.5 ГГц AMD Ryzen 9 7950X 16 ядер 164 ГБ RAM | G18: true | H18: 24 | I18: 2025-05-01 | J18: 2025-12-01 00:00:00.000 | K18: false | L18: 1 | M18: 01963353-3219-736a-9da3-ea11c2c374cc | N18: 0193302d-2e8f-7840-bcd4-ce01ca97c757 | O18: true | P18: 01963352-e68f-7258-b961-8410cd46b757 | Q18: 2 | R18: 2025-05-01 03:00:00.000 +0300 | S18: №2291 Акцент (Iambulant) - Миграция с Яндекса | T18: 6 | U18: 02509_1 | V18: 100 | W18: 100370 | X18: 2025-05-01 | Y18: 2025-12-01 00:00:00.000 | AE18: 1,871.1612911387
A19: 2025-05-03 | B19: 01967cbf-3e16-7ada-b761-7199663e630f | C19: 0.0 | D19: 2 | E19: a67aa5fa-d4bb-4ffa-ad2e-60cc790b2a8b | G19: true | H19: 24 | I19: 2025-05-01 | J19: 2025-12-01 00:00:00.000 | K19: false | L19: 1 | M19: 01963353-3219-736a-9da3-ea11c2c374cc | N19: 0193302d-2e8f-7840-bcd4-ce01ca97c757 | O19: true | P19: 01963352-e68f-7258-b961-8410cd46b757 | Q19: 2 | R19: 2025-05-01 03:00:00.000 +0300 | S19: №2291 Акцент (Iambulant) - Миграция с Яндекса | T19: 6 | U19: 02509_1 | V19: 100 | W19: 50172.00008 | X19: 2025-05-01 | Y19: 2025-12-01 00:00:00.000 | AE19: 1,618.4516155510
A20: 2025-05-03 | B20: 01967cbf-3f39-7adb-afba-c1cd5660d910 | C20: 0.0 | D20: 2 | E20: b23d08e4-8457-47b2-88f8-e098be2e5f43 | F20: GPU: RTX4090 24GB RAM | G20: true | H20: 24 | I20: 2025-05-01 | J20: 2025-03-15 00:00:00.000 | K20: true | L20: 1 | M20: 01963353-3219-736a-9da3-ea11c2c374cc | N20: 0193302d-2e8f-7840-bcd4-ce01ca97c757 | O20: true | P20: 01963352-e68f-7258-b961-8410cd46b757 | Q20: 2 | R20: 2025-05-01 03:00:00.000 +0300 | S20: №2291 Акцент (Iambulant) - Миграция с Яндекса | T20: 6 | U20: 02509_1 | V20: 100 | W20: 50054 | X20: 2025-05-01 | Y20: 2025-12-01 00:00:00.000 | AE20: 0.0000000000
A21: 2025-05-03 | B21: 01967cbf-3d9e-7ad6-b9a8-71174cefcba8 | C21: 0.0 | D21: 2 | E21: c1f995e3-227c-4181-8e57-4f4f4470a08d | F21: Резервное копирование Veeam | G21: true | H21: 24 | I21: 2025-05-01 | J21: 2025-12-01 00:00:00.000 | K21: false | L21: 1 | M21: 01963353-3219-736a-9da3-ea11c2c374cc | N21: 0193302d-2e8f-7840-bcd4-ce01ca97c757 | O21: true | P21: 01963352-e68f-7258-b961-8410cd46b757 | Q21: 2 | R21: 2025-05-01 03:00:00.000 +0300 | S21: №2291 Акцент (Iambulant) - Миграция с Яндекса | T21: 6 | U21: 02509_1 | V21: 100 | W21: 7060 | X21: 2025-05-01 | Y21: 2025-12-01 00:00:00.000 | AE21: 227.7419354839
A22: 2025-05-03 | B22: 01967cbf-3d5d-7ad6-80fa-8fbc5fea192e | C22: 0 | D22: 2 | E22: c97a0102-2f06-4417-966d-8c6b61ff845f | F22: Публичный IPv4 адрес | G22: true | H22: 24 | I22: 2025-05-01 | J22: 2025-12-01 00:00:00.000 | K22: true | L22: 6 | M22: 01963353-3219-736a-9da3-ea11c2c374cc | N22: 0193302d-2e8f-7840-bcd4-ce01ca97c757 | O22: true | P22: 01963352-e68f-7258-b961-8410cd46b757 | Q22: 2 | R22: 2025-05-01 03:00:00.000 +0300 | S22: №2291 Акцент (Iambulant) - Миграция с Яндекса | T22: 6 | U22: 02509_1 | V22: 100 | W22: 290 | X22: 2025-05-01 | Y22: 2025-12-01 00:00:00.000 | AE22: 56.1290322581 | AF22: =W22*L22 -> 1740 | AG22: ежемес
A23: 2025-05-04 | B23: 01967cbf-3eed-7ada-90fa-c68dc8363fc8 | C23: 0.0 | D23: 2 | E23: 26151c48-4e77-4c11-9765-fba37dacebdf | F23: Next Generation Cloud: Intel 3.1 ГГц | G23: true | H23: 24 | I23: 2025-05-01 | J23: 2025-03-15 00:00:00.000 | K23: false | L23: 1 | M23: 01963353-3219-736a-9da3-ea11c2c374cc | N23: 0193302d-2e8f-7840-bcd4-ce01ca97c757 | O23: true | P23: 01963352-e68f-7258-b961-8410cd46b757 | Q23: 2 | R23: 2025-05-01 03:00:00.000 +0300 | S23: №2291 Акцент (Iambulant) - Миграция с Яндекса | T23: 6 | U23: 02509_1 | V23: 100 | W23: 7951.99999 | X23: 2025-05-01 | Y23: 2025-12-01 00:00:00.000 | AE23: 0.0000000000
A24: 2025-05-04 | B24: 01967cbf-3e9d-7ada-b7ae-9da195c89d61 | C24: 70.0 | D24: 2 | E24: 2af66cc8-e22e-489e-b9db-52e7fe5daa60 | G24: true | H24: 24 | I24: 2025-05-01 | J24: 2025-12-01 00:00:00.000 | K24: true | L24: 1 | M24: 01963353-3219-736a-9da3-ea11c2c374cc | N24: 0193302d-2e8f-7840-bcd4-ce01ca97c757 | O24: true | P24: 01963352-e68f-7258-b961-8410cd46b757 | Q24: 2 | R24: 2025-05-01 03:00:00.000 +0300 | S24: №2291 Акцент (Iambulant) - Миграция с Яндекса | T24: 6 | U24: 02509_1 | V24: 100 | W24: 290 | X24: 2025-05-01 | Y24: 2025-12-01 00:00:00.000 | AE24: 2.8064516129
A25: 2025-05-04 | B25: 01967cbf-3e5a-7ada-8c40-0e613f2440bd | C25: 42.207831 | D25: 2 | E25: 6298e714-7e74-4f57-b5f7-bfbc85ea7add | F25: Выделенный облачный пул: 4.5 ГГц AMD Ryzen 9 7950X 16 ядер 164 ГБ RAM | G25: true | H25: 24 | I25: 2025-05-01 | J25: 2025-12-01 00:00:00.000 | K25: false | L25: 1 | M25: 01963353-3219-736a-9da3-ea11c2c374cc | N25: 0193302d-2e8f-7840-bcd4-ce01ca97c757 | O25: true | P25: 01963352-e68f-7258-b961-8410cd46b757 | Q25: 2 | R25: 2025-05-01 03:00:00.000 +0300 | S25: №2291 Акцент (Iambulant) - Миграция с Яндекса | T25: 6 | U25: 02509_1 | V25: 100 | W25: 100370 | X25: 2025-05-01 | Y25: 2025-12-01 00:00:00.000 | AE25: 1,871.1612911387
A26: 2025-05-04 | B26: 01967cbf-3e16-7ada-b761-7199663e630f | C26: 0.0 | D26: 2 | E26: a67aa5fa-d4bb-4ffa-ad2e-60cc790b2a8b | G26: true | H26: 24 | I26: 2025-05-01 | J26: 2025-12-01 00:00:00.000 | K26: false | L26: 1 | M26: 01963353-3219-736a-9da3-ea11c2c374cc | N26: 0193302d-2e8f-7840-bcd4-ce01ca97c757 | O26: true | P26: 01963352-e68f-7258-b961-8410cd46b757 | Q26: 2 | R26: 2025-05-01 03:00:00.000 +0300 | S26: №2291 Акцент (Iambulant) - Миграция с Яндекса | T26: 6 | U26: 02509_1 | V26: 100 | W26: 50172.00008 | X26: 2025-05-01 | Y26: 2025-12-01 00:00:00.000 | AE26: 1,618.4516155510
A27: 2025-05-04 | B27: 01967cbf-3f39-7adb-afba-c1cd5660d910 | C27: 0.0 | D27: 2 | E27: b23d08e4-8457-47b2-88f8-e098be2e5f43 | F27: GPU: RTX4090 24GB RAM | G27: true | H27: 24 | I27: 2025-05-01 | J27: 2025-03-15 00:00:00.000 | K27: true | L27: 1 | M27: 01963353-3219-736a-9da3-ea11c2c374cc | N27: 0193302d-2e8f-7840-bcd4-ce01ca97c757 | O27: true | P27: 01963352-e68f-7258-b961-8410cd46b757 | Q27: 2 | R27: 2025-05-01 03:00:00.000 +0300 | S27: №2291 Акцент (Iambulant) - Миграция с Яндекса | T27: 6 | U27: 02509_1 | V27: 100 | W27: 50054 | X27: 2025-05-01 | Y27: 2025-12-01 00:00:00.000 | AE27: 0.0000000000
A28: 2025-05-04 | B28: 01967cbf-3d9e-7ad6-b9a8-71174cefcba8 | C28: 0.0 | D28: 2 | E28: c1f995e3-227c-4181-8e57-4f4f4470a08d | F28: Резервное копирование Veeam | G28: true | H28: 24 | I28: 2025-05-01 | J28: 2025-12-01 00:00:00.000 | K28: false | L28: 1 | M28: 01963353-3219-736a-9da3-ea11c2c374cc | N28: 0193302d-2e8f-7840-bcd4-ce01ca97c757 | O28: true | P28: 01963352-e68f-7258-b961-8410cd46b757 | Q28: 2 | R28: 2025-05-01 03:00:00.000 +0300 | S28: №2291 Акцент (Iambulant) - Миграция с Яндекса | T28: 6 | U28: 02509_1 | V28: 100 | W28: 7060 | X28: 2025-05-01 | Y28: 2025-12-01 00:00:00.000 | AE28: 227.7419354839
A29: 2025-05-04 | B29: 01967cbf-3d5d-7ad6-80fa-8fbc5fea192e | C29: 0 | D29: 2 | E29: c97a0102-2f06-4417-966d-8c6b61ff845f | F29: Публичный IPv4 адрес | G29: true | H29: 24 | I29: 2025-05-01 | J29: 2025-12-01 00:00:00.000 | K29: true | L29: 6 | M29: 01963353-3219-736a-9da3-ea11c2c374cc | N29: 0193302d-2e8f-7840-bcd4-ce01ca97c757 | O29: true | P29: 01963352-e68f-7258-b961-8410cd46b757 | Q29: 2 | R29: 2025-05-01 03:00:00.000 +0300 | S29: №2291 Акцент (Iambulant) - Миграция с Яндекса | T29: 6 | U29: 02509_1 | V29: 100 | W29: 290 | X29: 2025-05-01 | Y29: 2025-12-01 00:00:00.000 | AE29: 56.1290322581 | AF29: =W29*L29 -> 1740 | AG29: ежемес
A30: 2025-05-05 | B30: 01967cbf-3eed-7ada-90fa-c68dc8363fc8 | C30: 0.0 | D30: 2 | E30: 26151c48-4e77-4c11-9765-fba37dacebdf | F30: Next Generation Cloud: Intel 3.1 ГГц | G30: true | H30: 24 | I30: 2025-05-01 | J30: 2025-03-15 00:00:00.000 | K30: false | L30: 1 | M30: 01963353-3219-736a-9da3-ea11c2c374cc | N30: 0193302d-2e8f-7840-bcd4-ce01ca97c757 | O30: true | P30: 01963352-e68f-7258-b961-8410cd46b757 | Q30: 2 | R30: 2025-05-01 03:00:00.000 +0300 | S30: №2291 Акцент (Iambulant) - Миграция с Яндекса | T30: 6 | U30: 02509_1 | V30: 100 | W30: 7951.99999 | X30: 2025-05-01 | Y30: 2025-12-01 00:00:00.000 | AE30: 0.0000000000
A31: 2025-05-05 | B31: 01967cbf-3e9d-7ada-b7ae-9da195c89d61 | C31: 70.0 | D31: 2 | E31: 2af66cc8-e22e-489e-b9db-52e7fe5daa60 | G31: true | H31: 24 | I31: 2025-05-01 | J31: 2025-12-01 00:00:00.000 | K31: true | L31: 1 | M31: 01963353-3219-736a-9da3-ea11c2c374cc | N31: 0193302d-2e8f-7840-bcd4-ce01ca97c757 | O31: true | P31: 01963352-e68f-7258-b961-8410cd46b757 | Q31: 2 | R31: 2025-05-01 03:00:00.000 +0300 | S31: №2291 Акцент (Iambulant) - Миграция с Яндекса | T31: 6 | U31: 02509_1 | V31: 100 | W31: 290 | X31: 2025-05-01 | Y31: 2025-12-01 00:00:00.000 | AE31: 2.8064516129
A32: 2025-05-05 | B32: 01967cbf-3e5a-7ada-8c40-0e613f2440bd | C32: 42.207831 | D32: 2 | E32: 6298e714-7e74-4f57-b5f7-bfbc85ea7add | F32: Выделенный облачный пул: 4.5 ГГц AMD Ryzen 9 7950X 16 ядер 164 ГБ RAM | G32: true | H32: 24 | I32: 2025-05-01 | J32: 2025-12-01 00:00:00.000 | K32: false | L32: 1 | M32: 01963353-3219-736a-9da3-ea11c2c374cc | N32: 0193302d-2e8f-7840-bcd4-ce01ca97c757 | O32: true | P32: 01963352-e68f-7258-b961-8410cd46b757 | Q32: 2 | R32: 2025-05-01 03:00:00.000 +0300 | S32: №2291 Акцент (Iambulant) - Миграция с Яндекса | T32: 6 | U32: 02509_1 | V32: 100 | W32: 100370 | X32: 2025-05-01 | Y32: 2025-12-01 00:00:00.000 | AE32: 1,871.1612911387
A33: 2025-05-05 | B33: 01967cbf-3e16-7ada-b761-7199663e630f | C33: 0.0 | D33: 2 | E33: a67aa5fa-d4bb-4ffa-ad2e-60cc790b2a8b | G33: true | H33: 24 | I33: 2025-05-01 | J33: 2025-12-01 00:00:00.000 | K33: false | L33: 1 | M33: 01963353-3219-736a-9da3-ea11c2c374cc | N33: 0193302d-2e8f-7840-bcd4-ce01ca97c757 | O33: true | P33: 01963352-e68f-7258-b961-8410cd46b757 | Q33: 2 | R33: 2025-05-01 03:00:00.000 +0300 | S33: №2291 Акцент (Iambulant) - Миграция с Яндекса | T33: 6 | U33: 02509_1 | V33: 100 | W33: 50172.00008 | X33: 2025-05-01 | Y33: 2025-12-01 00:00:00.000 | AE33: 1,618.4516155510
A34: 2025-05-05 | B34: 01967cbf-3f39-7adb-afba-c1cd5660d910 | C34: 0.0 | D34: 2 | E34: b23d08e4-8457-47b2-88f8-e098be2e5f43 | F34: GPU: RTX4090 24GB RAM | G34: true | H34: 24 | I34: 2025-05-01 | J34: 2025-03-15 00:00:00.000 | K34: true | L34: 1 | M34: 01963353-3219-736a-9da3-ea11c2c374cc | N34: 0193302d-2e8f-7840-bcd4-ce01ca97c757 | O34: true | P34: 01963352-e68f-7258-b961-8410cd46b757 | Q34: 2 | R34: 2025-05-01 03:00:00.000 +0300 | S34: №2291 Акцент (Iambulant) - Миграция с Яндекса | T34: 6 | U34: 02509_1 | V34: 100 | W34: 50054 | X34: 2025-05-01 | Y34: 2025-12-01 00:00:00.000 | AE34: 0.0000000000
A35: 2025-05-05 | B35: 01967cbf-3d9e-7ad6-b9a8-71174cefcba8 | C35: 0.0 | D35: 2 | E35: c1f995e3-227c-4181-8e57-4f4f4470a08d | F35: Резервное копирование Veeam | G35: true | H35: 24 | I35: 2025-05-01 | J35: 2025-12-01 00:00:00.000 | K35: false | L35: 1 | M35: 01963353-3219-736a-9da3-ea11c2c374cc | N35: 0193302d-2e8f-7840-bcd4-ce01ca97c757 | O35: true | P35: 01963352-e68f-7258-b961-8410cd46b757 | Q35: 2 | R35: 2025-05-01 03:00:00.000 +0300 | S35: №2291 Акцент (Iambulant) - Миграция с Яндекса | T35: 6 | U35: 02509_1 | V35: 100 | W35: 7060 | X35: 2025-05-01 | Y35: 2025-12-01 00:00:00.000 | AE35: 227.7419354839
A36: 2025-05-05 | B36: 01967cbf-3d5d-7ad6-80fa-8fbc5fea192e | C36: 0 | D36: 2 | E36: c97a0102-2f06-4417-966d-8c6b61ff845f | F36: Публичный IPv4 адрес | G36: true | H36: 24 | I36: 2025-05-01 | J36: 2025-12-01 00:00:00.000 | K36: true | L36: 6 | M36: 01963353-3219-736a-9da3-ea11c2c374cc | N36: 0193302d-2e8f-7840-bcd4-ce01ca97c757 | O36: true | P36: 01963352-e68f-7258-b961-8410cd46b757 | Q36: 2 | R36: 2025-05-01 03:00:00.000 +0300 | S36: №2291 Акцент (Iambulant) - Миграция с Яндекса | T36: 6 | U36: 02509_1 | V36: 100 | W36: 290 | X36: 2025-05-01 | Y36: 2025-12-01 00:00:00.000 | AE36: 56.1290322581 | AF36: =W36*L36 -> 1740 | AG36: ежемес
A37: 2025-05-06 | B37: 01967cbf-3eed-7ada-90fa-c68dc8363fc8 | C37: 0.0 | D37: 2 | E37: 26151c48-4e77-4c11-9765-fba37dacebdf | F37: Next Generation Cloud: Intel 3.1 ГГц | G37: true | H37: 24 | I37: 2025-05-01 | J37: 2025-03-15 00:00:00.000 | K37: false | L37: 1 | M37: 01963353-3219-736a-9da3-ea11c2c374cc | N37: 0193302d-2e8f-7840-bcd4-ce01ca97c757 | O37: true | P37: 01963352-e68f-7258-b961-8410cd46b757 | Q37: 2 | R37: 2025-05-01 03:00:00.000 +0300 | S37: №2291 Акцент (Iambulant) - Миграция с Яндекса | T37: 6 | U37: 02509_1 | V37: 100 | W37: 7951.99999 | X37: 2025-05-01 | Y37: 2025-12-01 00:00:00.000 | AE37: 0.0000000000
A38: 2025-05-06 | B38: 01967cbf-3e9d-7ada-b7ae-9da195c89d61 | C38: 70.0 | D38: 2 | E38: 2af66cc8-e22e-489e-b9db-52e7fe5daa60 | G38: true | H38: 24 | I38: 2025-05-01 | J38: 2025-12-01 00:00:00.000 | K38: true | L38: 1 | M38: 01963353-3219-736a-9da3-ea11c2c374cc | N38: 0193302d-2e8f-7840-bcd4-ce01ca97c757 | O38: true | P38: 01963352-e68f-7258-b961-8410cd46b757 | Q38: 2 | R38: 2025-05-01 03:00:00.000 +0300 | S38: №2291 Акцент (Iambulant) - Миграция с Яндекса | T38: 6 | U38: 02509_1 | V38: 100 | W38: 290 | X38: 2025-05-01 | Y38: 2025-12-01 00:00:00.000 | AE38: 2.8064516129
A39: 2025-05-06 | B39: 01967cbf-3e5a-7ada-8c40-0e613f2440bd | C39: 42.207831 | D39: 2 | E39: 6298e714-7e74-4f57-b5f7-bfbc85ea7add | F39: Выделенный облачный пул: 4.5 ГГц AMD Ryzen 9 7950X 16 ядер 164 ГБ RAM | G39: true | H39: 24 | I39: 2025-05-01 | J39: 2025-12-01 00:00:00.000 | K39: false | L39: 1 | M39: 01963353-3219-736a-9da3-ea11c2c374cc | N39: 0193302d-2e8f-7840-bcd4-ce01ca97c757 | O39: true | P39: 01963352-e68f-7258-b961-8410cd46b757 | Q39: 2 | R39: 2025-05-01 03:00:00.000 +0300 | S39: №2291 Акцент (Iambulant) - Миграция с Яндекса | T39: 6 | U39: 02509_1 | V39: 100 | W39: 100370 | X39: 2025-05-01 | Y39: 2025-12-01 00:00:00.000 | AE39: 1,871.1612911387
A40: 2025-05-06 | B40: 01967cbf-3e16-7ada-b761-7199663e630f | C40: 0.0 | D40: 2 | E40: a67aa5fa-d4bb-4ffa-ad2e-60cc790b2a8b | G40: true | H40: 24 | I40: 2025-05-01 | J40: 2025-12-01 00:00:00.000 | K40: false | L40: 1 | M40: 01963353-3219-736a-9da3-ea11c2c374cc | N40: 0193302d-2e8f-7840-bcd4-ce01ca97c757 | O40: true | P40: 01963352-e68f-7258-b961-8410cd46b757 | Q40: 2 | R40: 2025-05-01 03:00:00.000 +0300 | S40: №2291 Акцент (Iambulant) - Миграция с Яндекса | T40: 6 | U40: 02509_1 | V40: 100 | W40: 50172.00008 | X40: 2025-05-01 | Y40: 2025-12-01 00:00:00.000 | AE40: 1,618.4516155510
A41: 2025-05-06 | B41: 01967cbf-3f39-7adb-afba-c1cd5660d910 | C41: 0.0 | D41: 2 | E41: b23d08e4-8457-47b2-88f8-e098be2e5f43 | F41: GPU: RTX4090 24GB RAM | G41: true | H41: 24 | I41: 2025-05-01 | J41: 2025-03-15 00:00:00.000 | K41: true | L41: 1 | M41: 01963353-3219-736a-9da3-ea11c2c374cc | N41: 0193302d-2e8f-7840-bcd4-ce01ca97c757 | O41: true | P41: 01963352-e68f-7258-b961-8410cd46b757 | Q41: 2 | R41: 2025-05-01 03:00:00.000 +0300 | S41: №2291 Акцент (Iambulant) - Миграция с Яндекса | T41: 6 | U41: 02509_1 | V41: 100 | W41: 50054 | X41: 2025-05-01 | Y41: 2025-12-01 00:00:00.000 | AE41: 0.0000000000
A42: 2025-05-06 | B42: 01967cbf-3d9e-7ad6-b9a8-71174cefcba8 | C42: 0.0 | D42: 2 | E42: c1f995e3-227c-4181-8e57-4f4f4470a08d | F42: Резервное копирование Veeam | G42: true | H42: 24 | I42: 2025-05-01 | J42: 2025-12-01 00:00:00.000 | K42: false | L42: 1 | M42: 01963353-3219-736a-9da3-ea11c2c374cc | N42: 0193302d-2e8f-7840-bcd4-ce01ca97c757 | O42: true | P42: 01963352-e68f-7258-b961-8410cd46b757 | Q42: 2 | R42: 2025-05-01 03:00:00.000 +0300 | S42: №2291 Акцент (Iambulant) - Миграция с Яндекса | T42: 6 | U42: 02509_1 | V42: 100 | W42: 7060 | X42: 2025-05-01 | Y42: 2025-12-01 00:00:00.000 | AE42: 227.7419354839
A43: 2025-05-06 | B43: 01967cbf-3d5d-7ad6-80fa-8fbc5fea192e | C43: 0 | D43: 2 | E43: c97a0102-2f06-4417-966d-8c6b61ff845f | F43: Публичный IPv4 адрес | G43: true | H43: 24 | I43: 2025-05-01 | J43: 2025-12-01 00:00:00.000 | K43: true | L43: 6 | M43: 01963353-3219-736a-9da3-ea11c2c374cc | N43: 0193302d-2e8f-7840-bcd4-ce01ca97c757 | O43: true | P43: 01963352-e68f-7258-b961-8410cd46b757 | Q43: 2 | R43: 2025-05-01 03:00:00.000 +0300 | S43: №2291 Акцент (Iambulant) - Миграция с Яндекса | T43: 6 | U43: 02509_1 | V43: 100 | W43: 290 | X43: 2025-05-01 | Y43: 2025-12-01 00:00:00.000 | AE43: 56.1290322581 | AF43: =W43*L43 -> 1740 | AG43: ежемес
A44: 2025-05-07 | B44: 01967cbf-3eed-7ada-90fa-c68dc8363fc8 | C44: 0.0 | D44: 2 | E44: 26151c48-4e77-4c11-9765-fba37dacebdf | F44: Next Generation Cloud: Intel 3.1 ГГц | G44: true | H44: 24 | I44: 2025-05-01 | J44: 2025-03-15 00:00:00.000 | K44: false | L44: 1 | M44: 01963353-3219-736a-9da3-ea11c2c374cc | N44: 0193302d-2e8f-7840-bcd4-ce01ca97c757 | O44: true | P44: 01963352-e68f-7258-b961-8410cd46b757 | Q44: 2 | R44: 2025-05-01 03:00:00.000 +0300 | S44: №2291 Акцент (Iambulant) - Миграция с Яндекса | T44: 6 | U44: 02509_1 | V44: 100 | W44: 7951.99999 | X44: 2025-05-01 | Y44: 2025-12-01 00:00:00.000 | AE44: 0.0000000000
A45: 2025-05-07 | B45: 01967cbf-3e9d-7ada-b7ae-9da195c89d61 | C45: 70.0 | D45: 2 | E45: 2af66cc8-e22e-489e-b9db-52e7fe5daa60 | G45: true | H45: 24 | I45: 2025-05-01 | J45: 2025-12-01 00:00:00.000 | K45: true | L45: 1 | M45: 01963353-3219-736a-9da3-ea11c2c374cc | N45: 0193302d-2e8f-7840-bcd4-ce01ca97c757 | O45: true | P45: 01963352-e68f-7258-b961-8410cd46b757 | Q45: 2 | R45: 2025-05-01 03:00:00.000 +0300 | S45: №2291 Акцент (Iambulant) - Миграция с Яндекса | T45: 6 | U45: 02509_1 | V45: 100 | W45: 290 | X45: 2025-05-01 | Y45: 2025-12-01 00:00:00.000 | AE45: 2.8064516129
A46: 2025-05-07 | B46: 01967cbf-3e5a-7ada-8c40-0e613f2440bd | C46: 42.207831 | D46: 2 | E46: 6298e714-7e74-4f57-b5f7-bfbc85ea7add | F46: Выделенный облачный пул: 4.5 ГГц AMD Ryzen 9 7950X 16 ядер 164 ГБ RAM | G46: true | H46: 24 | I46: 2025-05-01 | J46: 2025-12-01 00:00:00.000 | K46: false | L46: 1 | M46: 01963353-3219-736a-9da3-ea11c2c374cc | N46: 0193302d-2e8f-7840-bcd4-ce01ca97c757 | O46: true | P46: 01963352-e68f-7258-b961-8410cd46b757 | Q46: 2 | R46: 2025-05-01 03:00:00.000 +0300 | S46: №2291 Акцент (Iambulant) - Миграция с Яндекса | T46: 6 | U46: 02509_1 | V46: 100 | W46: 100370 | X46: 2025-05-01 | Y46: 2025-12-01 00:00:00.000 | AE46: 1,871.1612911387
A47: 2025-05-07 | B47: 01967cbf-3e16-7ada-b761-7199663e630f | C47: 0.0 | D47: 2 | E47: a67aa5fa-d4bb-4ffa-ad2e-60cc790b2a8b | G47: true | H47: 24 | I47: 2025-05-01 | J47: 2025-12-01 00:00:00.000 | K47: false | L47: 1 | M47: 01963353-3219-736a-9da3-ea11c2c374cc | N47: 0193302d-2e8f-7840-bcd4-ce01ca97c757 | O47: true | P47: 01963352-e68f-7258-b961-8410cd46b757 | Q47: 2 | R47: 2025-05-01 03:00:00.000 +0300 | S47: №2291 Акцент (Iambulant) - Миграция с Яндекса | T47: 6 | U47: 02509_1 | V47: 100 | W47: 50172.00008 | X47: 2025-05-01 | Y47: 2025-12-01 00:00:00.000 | AE47: 1,618.4516155510
A48: 2025-05-07 | B48: 01967cbf-3f39-7adb-afba-c1cd5660d910 | C48: 0.0 | D48: 2 | E48: b23d08e4-8457-47b2-88f8-e098be2e5f43 | F48: GPU: RTX4090 24GB RAM | G48: true | H48: 24 | I48: 2025-05-01 | J48: 2025-03-15 00:00:00.000 | K48: true | L48: 1 | M48: 01963353-3219-736a-9da3-ea11c2c374cc | N48: 0193302d-2e8f-7840-bcd4-ce01ca97c757 | O48: true | P48: 01963352-e68f-7258-b961-8410cd46b757 | Q48: 2 | R48: 2025-05-01 03:00:00.000 +0300 | S48: №2291 Акцент (Iambulant) - Миграция с Яндекса | T48: 6 | U48: 02509_1 | V48: 100 | W48: 50054 | X48: 2025-05-01 | Y48: 2025-12-01 00:00:00.000 | AE48: 0.0000000000
A49: 2025-05-07 | B49: 01967cbf-3d9e-7ad6-b9a8-71174cefcba8 | C49: 0.0 | D49: 2 | E49: c1f995e3-227c-4181-8e57-4f4f4470a08d | F49: Резервное копирование Veeam | G49: true | H49: 24 | I49: 2025-05-01 | J49: 2025-12-01 00:00:00.000 | K49: false | L49: 1 | M49: 01963353-3219-736a-9da3-ea11c2c374cc | N49: 0193302d-2e8f-7840-bcd4-ce01ca97c757 | O49: true | P49: 01963352-e68f-7258-b961-8410cd46b757 | Q49: 2 | R49: 2025-05-01 03:00:00.000 +0300 | S49: №2291 Акцент (Iambulant) - Миграция с Яндекса | T49: 6 | U49: 02509_1 | V49: 100 | W49: 7060 | X49: 2025-05-01 | Y49: 2025-12-01 00:00:00.000 | AE49: 227.7419354839
A50: 2025-05-07 | B50: 01967cbf-3d5d-7ad6-80fa-8fbc5fea192e | C50: 0 | D50: 2 | E50: c97a0102-2f06-4417-966d-8c6b61ff845f | F50: Публичный IPv4 адрес | G50: true | H50: 24 | I50: 2025-05-01 | J50: 2025-12-01 00:00:00.000 | K50: true | L50: 6 | M50: 01963353-3219-736a-9da3-ea11c2c374cc | N50: 0193302d-2e8f-7840-bcd4-ce01ca97c757 | O50: true | P50: 01963352-e68f-7258-b961-8410cd46b757 | Q50: 2 | R50: 2025-05-01 03:00:00.000 +0300 | S50: №2291 Акцент (Iambulant) - Миграция с Яндекса | T50: 6 | U50: 02509_1 | V50: 100 | W50: 290 | X50: 2025-05-01 | Y50: 2025-12-01 00:00:00.000 | AE50: 56.1290322581 | AF50: =W50*L50 -> 1740 | AG50: ежемес
A51: 2025-05-08 | B51: 01967cbf-3eed-7ada-90fa-c68dc8363fc8 | C51: 0.0 | D51: 2 | E51: 26151c48-4e77-4c11-9765-fba37dacebdf | F51: Next Generation Cloud: Intel 3.1 ГГц | G51: true | H51: 24 | I51: 2025-05-01 | J51: 2025-03-15 00:00:00.000 | K51: false | L51: 1 | M51: 01963353-3219-736a-9da3-ea11c2c374cc | N51: 0193302d-2e8f-7840-bcd4-ce01ca97c757 | O51: true | P51: 01963352-e68f-7258-b961-8410cd46b757 | Q51: 2 | R51: 2025-05-01 03:00:00.000 +0300 | S51: №2291 Акцент (Iambulant) - Миграция с Яндекса | T51: 6 | U51: 02509_1 | V51: 100 | W51: 7951.99999 | X51: 2025-05-01 | Y51: 2025-12-01 00:00:00.000 | AE51: 0.0000000000
A52: 2025-05-08 | B52: 01967cbf-3e9d-7ada-b7ae-9da195c89d61 | C52: 70.0 | D52: 2 | E52: 2af66cc8-e22e-489e-b9db-52e7fe5daa60 | G52: true | H52: 24 | I52: 2025-05-01 | J52: 2025-12-01 00:00:00.000 | K52: true | L52: 1 | M52: 01963353-3219-736a-9da3-ea11c2c374cc | N52: 0193302d-2e8f-7840-bcd4-ce01ca97c757 | O52: true | P52: 01963352-e68f-7258-b961-8410cd46b757 | Q52: 2 | R52: 2025-05-01 03:00:00.000 +0300 | S52: №2291 Акцент (Iambulant) - Миграция с Яндекса | T52: 6 | U52: 02509_1 | V52: 100 | W52: 290 | X52: 2025-05-01 | Y52: 2025-12-01 00:00:00.000 | AE52: 2.8064516129
A53: 2025-05-08 | B53: 01967cbf-3e5a-7ada-8c40-0e613f2440bd | C53: 42.207831 | D53: 2 | E53: 6298e714-7e74-4f57-b5f7-bfbc85ea7add | F53: Выделенный облачный пул: 4.5 ГГц AMD Ryzen 9 7950X 16 ядер 164 ГБ RAM | G53: true | H53: 24 | I53: 2025-05-01 | J53: 2025-12-01 00:00:00.000 | K53: false | L53: 1 | M53: 01963353-3219-736a-9da3-ea11c2c374cc | N53: 0193302d-2e8f-7840-bcd4-ce01ca97c757 | O53: true | P53: 01963352-e68f-7258-b961-8410cd46b757 | Q53: 2 | R53: 2025-05-01 03:00:00.000 +0300 | S53: №2291 Акцент (Iambulant) - Миграция с Яндекса | T53: 6 | U53: 02509_1 | V53: 100 | W53: 100370 | X53: 2025-05-01 | Y53: 2025-12-01 00:00:00.000 | AE53: 1,871.1612911387
A54: 2025-05-08 | B54: 01967cbf-3e16-7ada-b761-7199663e630f | C54: 0.0 | D54: 2 | E54: a67aa5fa-d4bb-4ffa-ad2e-60cc790b2a8b | G54: true | H54: 24 | I54: 2025-05-01 | J54: 2025-12-01 00:00:00.000 | K54: false | L54: 1 | M54: 01963353-3219-736a-9da3-ea11c2c374cc | N54: 0193302d-2e8f-7840-bcd4-ce01ca97c757 | O54: true | P54: 01963352-e68f-7258-b961-8410cd46b757 | Q54: 2 | R54: 2025-05-01 03:00:00.000 +0300 | S54: №2291 Акцент (Iambulant) - Миграция с Яндекса | T54: 6 | U54: 02509_1 | V54: 100 | W54: 50172.00008 | X54: 2025-05-01 | Y54: 2025-12-01 00:00:00.000 | AE54: 1,618.4516155510
A55: 2025-05-08 | B55: 01967cbf-3f39-7adb-afba-c1cd5660d910 | C55: 0.0 | D55: 2 | E55: b23d08e4-8457-47b2-88f8-e098be2e5f43 | F55: GPU: RTX4090 24GB RAM | G55: true | H55: 24 | I55: 2025-05-01 | J55: 2025-03-15 00:00:00.000 | K55: true | L55: 1 | M55: 01963353-3219-736a-9da3-ea11c2c374cc | N55: 0193302d-2e8f-7840-bcd4-ce01ca97c757 | O55: true | P55: 01963352-e68f-7258-b961-8410cd46b757 | Q55: 2 | R55: 2025-05-01 03:00:00.000 +0300 | S55: №2291 Акцент (Iambulant) - Миграция с Яндекса | T55: 6 | U55: 02509_1 | V55: 100 | W55: 50054 | X55: 2025-05-01 | Y55: 2025-12-01 00:00:00.000 | AE55: 0.0000000000
A56: 2025-05-08 | B56: 01967cbf-3d9e-7ad6-b9a8-71174cefcba8 | C56: 0.0 | D56: 2 | E56: c1f995e3-227c-4181-8e57-4f4f4470a08d | F56: Резервное копирование Veeam | G56: true | H56: 24 | I56: 2025-05-01 | J56: 2025-12-01 00:00:00.000 | K56: false | L56: 1 | M56: 01963353-3219-736a-9da3-ea11c2c374cc | N56: 0193302d-2e8f-7840-bcd4-ce01ca97c757 | O56: true | P56: 01963352-e68f-7258-b961-8410cd46b757 | Q56: 2 | R56: 2025-05-01 03:00:00.000 +0300 | S56: №2291 Акцент (Iambulant) - Миграция с Яндекса | T56: 6 | U56: 02509_1 | V56: 100 | W56: 7060 | X56: 2025-05-01 | Y56: 2025-12-01 00:00:00.000 | AE56: 227.7419354839
A57: 2025-05-08 | B57: 01967cbf-3d5d-7ad6-80fa-8fbc5fea192e | C57: 0 | D57: 2 | E57: c97a0102-2f06-4417-966d-8c6b61ff845f | F57: Публичный IPv4 адрес | G57: true | H57: 24 | I57: 2025-05-01 | J57: 2025-12-01 00:00:00.000 | K57: true | L57: 6 | M57: 01963353-3219-736a-9da3-ea11c2c374cc | N57: 0193302d-2e8f-7840-bcd4-ce01ca97c757 | O57: true | P57: 01963352-e68f-7258-b961-8410cd46b757 | Q57: 2 | R57: 2025-05-01 03:00:00.000 +0300 | S57: №2291 Акцент (Iambulant) - Миграция с Яндекса | T57: 6 | U57: 02509_1 | V57: 100 | W57: 290 | X57: 2025-05-01 | Y57: 2025-12-01 00:00:00.000 | AE57: 56.1290322581 | AF57: =W57*L57 -> 1740 | AG57: ежемес
A58: 2025-05-09 | B58: 01967cbf-3eed-7ada-90fa-c68dc8363fc8 | C58: 0.0 | D58: 2 | E58: 26151c48-4e77-4c11-9765-fba37dacebdf | F58: Next Generation Cloud: Intel 3.1 ГГц | G58: true | H58: 24 | I58: 2025-05-01 | J58: 2025-03-15 00:00:00.000 | K58: false | L58: 1 | M58: 01963353-3219-736a-9da3-ea11c2c374cc | N58: 0193302d-2e8f-7840-bcd4-ce01ca97c757 | O58: true | P58: 01963352-e68f-7258-b961-8410cd46b757 | Q58: 2 | R58: 2025-05-01 03:00:00.000 +0300 | S58: №2291 Акцент (Iambulant) - Миграция с Яндекса | T58: 6 | U58: 02509_1 | V58: 100 | W58: 7951.99999 | X58: 2025-05-01 | Y58: 2025-12-01 00:00:00.000 | AE58: 0.0000000000
A59: 2025-05-09 | B59: 01967cbf-3e9d-7ada-b7ae-9da195c89d61 | C59: 70.0 | D59: 2 | E59: 2af66cc8-e22e-489e-b9db-52e7fe5daa60 | G59: true | H59: 24 | I59: 2025-05-01 | J59: 2025-12-01 00:00:00.000 | K59: true | L59: 1 | M59: 01963353-3219-736a-9da3-ea11c2c374cc | N59: 0193302d-2e8f-7840-bcd4-ce01ca97c757 | O59: true | P59: 01963352-e68f-7258-b961-8410cd46b757 | Q59: 2 | R59: 2025-05-01 03:00:00.000 +0300 | S59: №2291 Акцент (Iambulant) - Миграция с Яндекса | T59: 6 | U59: 02509_1 | V59: 100 | W59: 290 | X59: 2025-05-01 | Y59: 2025-12-01 00:00:00.000 | AE59: 2.8064516129
A60: 2025-05-09 | B60: 01967cbf-3e5a-7ada-8c40-0e613f2440bd | C60: 42.207831 | D60: 2 | E60: 6298e714-7e74-4f57-b5f7-bfbc85ea7add | F60: Выделенный облачный пул: 4.5 ГГц AMD Ryzen 9 7950X 16 ядер 164 ГБ RAM | G60: true | H60: 24 | I60: 2025-05-01 | J60: 2025-12-01 00:00:00.000 | K60: false | L60: 1 | M60: 01963353-3219-736a-9da3-ea11c2c374cc | N60: 0193302d-2e8f-7840-bcd4-ce01ca97c757 | O60: true | P60: 01963352-e68f-7258-b961-8410cd46b757 | Q60: 2 | R60: 2025-05-01 03:00:00.000 +0300 | S60: №2291 Акцент (Iambulant) - Миграция с Яндекса | T60: 6 | U60: 02509_1 | V60: 100 | W60: 100370 | X60: 2025-05-01 | Y60: 2025-12-01 00:00:00.000 | AE60: 1,871.1612911387
A61: 2025-05-09 | B61: 01967cbf-3e16-7ada-b761-7199663e630f | C61: 0.0 | D61: 2 | E61: a67aa5fa-d4bb-4ffa-ad2e-60cc790b2a8b | G61: true | H61: 24 | I61: 2025-05-01 | J61: 2025-12-01 00:00:00.000 | K61: false | L61: 1 | M61: 01963353-3219-736a-9da3-ea11c2c374cc | N61: 0193302d-2e8f-7840-bcd4-ce01ca97c757 | O61: true | P61: 01963352-e68f-7258-b961-8410cd46b757 | Q61: 2 | R61: 2025-05-01 03:00:00.000 +0300 | S61: №2291 Акцент (Iambulant) - Миграция с Яндекса | T61: 6 | U61: 02509_1 | V61: 100 | W61: 50172.00008 | X61: 2025-05-01 | Y61: 2025-12-01 00:00:00.000 | AE61: 1,618.4516155510
A62: 2025-05-09 | B62: 01967cbf-3f39-7adb-afba-c1cd5660d910 | C62: 0.0 | D62: 2 | E62: b23d08e4-8457-47b2-88f8-e098be2e5f43 | F62: GPU: RTX4090 24GB RAM | G62: true | H62: 24 | I62: 2025-05-01 | J62: 2025-03-15 00:00:00.000 | K62: true | L62: 1 | M62: 01963353-3219-736a-9da3-ea11c2c374cc | N62: 0193302d-2e8f-7840-bcd4-ce01ca97c757 | O62: true | P62: 01963352-e68f-7258-b961-8410cd46b757 | Q62: 2 | R62: 2025-05-01 03:00:00.000 +0300 | S62: №2291 Акцент (Iambulant) - Миграция с Яндекса | T62: 6 | U62: 02509_1 | V62: 100 | W62: 50054 | X62: 2025-05-01 | Y62: 2025-12-01 00:00:00.000 | AE62: 0.0000000000
A63: 2025-05-09 | B63: 01967cbf-3d9e-7ad6-b9a8-71174cefcba8 | C63: 0.0 | D63: 2 | E63: c1f995e3-227c-4181-8e57-4f4f4470a08d | F63: Резервное копирование Veeam | G63: true | H63: 24 | I63: 2025-05-01 | J63: 2025-12-01 00:00:00.000 | K63: false | L63: 1 | M63: 01963353-3219-736a-9da3-ea11c2c374cc | N63: 0193302d-2e8f-7840-bcd4-ce01ca97c757 | O63: true | P63: 01963352-e68f-7258-b961-8410cd46b757 | Q63: 2 | R63: 2025-05-01 03:00:00.000 +0300 | S63: №2291 Акцент (Iambulant) - Миграция с Яндекса | T63: 6 | U63: 02509_1 | V63: 100 | W63: 7060 | X63: 2025-05-01 | Y63: 2025-12-01 00:00:00.000 | AE63: 227.7419354839
A64: 2025-05-09 | B64: 01967cbf-3d5d-7ad6-80fa-8fbc5fea192e | C64: 0 | D64: 2 | E64: c97a0102-2f06-4417-966d-8c6b61ff845f | F64: Публичный IPv4 адрес | G64: true | H64: 24 | I64: 2025-05-01 | J64: 2025-12-01 00:00:00.000 | K64: true | L64: 6 | M64: 01963353-3219-736a-9da3-ea11c2c374cc | N64: 0193302d-2e8f-7840-bcd4-ce01ca97c757 | O64: true | P64: 01963352-e68f-7258-b961-8410cd46b757 | Q64: 2 | R64: 2025-05-01 03:00:00.000 +0300 | S64: №2291 Акцент (Iambulant) - Миграция с Яндекса | T64: 6 | U64: 02509_1 | V64: 100 | W64: 290 | X64: 2025-05-01 | Y64: 2025-12-01 00:00:00.000 | AE64: 56.1290322581 | AF64: =W64*L64 -> 1740 | AG64: ежемес
A65: 2025-05-10 | B65: 01967cbf-3eed-7ada-90fa-c68dc8363fc8 | C65: 0.0 | D65: 2 | E65: 26151c48-4e77-4c11-9765-fba37dacebdf | F65: Next Generation Cloud: Intel 3.1 ГГц | G65: true | H65: 24 | I65: 2025-05-01 | J65: 2025-03-15 00:00:00.000 | K65: false | L65: 1 | M65: 01963353-3219-736a-9da3-ea11c2c374cc | N65: 0193302d-2e8f-7840-bcd4-ce01ca97c757 | O65: true | P65: 01963352-e68f-7258-b961-8410cd46b757 | Q65: 2 | R65: 2025-05-01 03:00:00.000 +0300 | S65: №2291 Акцент (Iambulant) - Миграция с Яндекса | T65: 6 | U65: 02509_1 | V65: 100 | W65: 7951.99999 | X65: 2025-05-01 | Y65: 2025-12-01 00:00:00.000 | AE65: 0.0000000000
A66: 2025-05-10 | B66: 01967cbf-3e9d-7ada-b7ae-9da195c89d61 | C66: 70.0 | D66: 2 | E66: 2af66cc8-e22e-489e-b9db-52e7fe5daa60 | G66: true | H66: 24 | I66: 2025-05-01 | J66: 2025-12-01 00:00:00.000 | K66: true | L66: 1 | M66: 01963353-3219-736a-9da3-ea11c2c374cc | N66: 0193302d-2e8f-7840-bcd4-ce01ca97c757 | O66: true | P66: 01963352-e68f-7258-b961-8410cd46b757 | Q66: 2 | R66: 2025-05-01 03:00:00.000 +0300 | S66: №2291 Акцент (Iambulant) - Миграция с Яндекса | T66: 6 | U66: 02509_1 | V66: 100 | W66: 290 | X66: 2025-05-01 | Y66: 2025-12-01 00:00:00.000 | AE66: 2.8064516129
A67: 2025-05-10 | B67: 01967cbf-3e5a-7ada-8c40-0e613f2440bd | C67: 42.207831 | D67: 2 | E67: 6298e714-7e74-4f57-b5f7-bfbc85ea7add | F67: Выделенный облачный пул: 4.5 ГГц AMD Ryzen 9 7950X 16 ядер 164 ГБ RAM | G67: true | H67: 24 | I67: 2025-05-01 | J67: 2025-12-01 00:00:00.000 | K67: false | L67: 1 | M67: 01963353-3219-736a-9da3-ea11c2c374cc | N67: 0193302d-2e8f-7840-bcd4-ce01ca97c757 | O67: true | P67: 01963352-e68f-7258-b961-8410cd46b757 | Q67: 2 | R67: 2025-05-01 03:00:00.000 +0300 | S67: №2291 Акцент (Iambulant) - Миграция с Яндекса | T67: 6 | U67: 02509_1 | V67: 100 | W67: 100370 | X67: 2025-05-01 | Y67: 2025-12-01 00:00:00.000 | AE67: 1,871.1612911387
A68: 2025-05-10 | B68: 01967cbf-3e16-7ada-b761-7199663e630f | C68: 0.0 | D68: 2 | E68: a67aa5fa-d4bb-4ffa-ad2e-60cc790b2a8b | G68: true | H68: 24 | I68: 2025-05-01 | J68: 2025-12-01 00:00:00.000 | K68: false | L68: 1 | M68: 01963353-3219-736a-9da3-ea11c2c374cc | N68: 0193302d-2e8f-7840-bcd4-ce01ca97c757 | O68: true | P68: 01963352-e68f-7258-b961-8410cd46b757 | Q68: 2 | R68: 2025-05-01 03:00:00.000 +0300 | S68: №2291 Акцент (Iambulant) - Миграция с Яндекса | T68: 6 | U68: 02509_1 | V68: 100 | W68: 50172.00008 | X68: 2025-05-01 | Y68: 2025-12-01 00:00:00.000 | AE68: 1,618.4516155510
A69: 2025-05-10 | B69: 01967cbf-3f39-7adb-afba-c1cd5660d910 | C69: 0.0 | D69: 2 | E69: b23d08e4-8457-47b2-88f8-e098be2e5f43 | F69: GPU: RTX4090 24GB RAM | G69: true | H69: 24 | I69: 2025-05-01 | J69: 2025-03-15 00:00:00.000 | K69: true | L69: 1 | M69: 01963353-3219-736a-9da3-ea11c2c374cc | N69: 0193302d-2e8f-7840-bcd4-ce01ca97c757 | O69: true | P69: 01963352-e68f-7258-b961-8410cd46b757 | Q69: 2 | R69: 2025-05-01 03:00:00.000 +0300 | S69: №2291 Акцент (Iambulant) - Миграция с Яндекса | T69: 6 | U69: 02509_1 | V69: 100 | W69: 50054 | X69: 2025-05-01 | Y69: 2025-12-01 00:00:00.000 | AE69: 0.0000000000
A70: 2025-05-10 | B70: 01967cbf-3d9e-7ad6-b9a8-71174cefcba8 | C70: 0.0 | D70: 2 | E70: c1f995e3-227c-4181-8e57-4f4f4470a08d | F70: Резервное копирование Veeam | G70: true | H70: 24 | I70: 2025-05-01 | J70: 2025-12-01 00:00:00.000 | K70: false | L70: 1 | M70: 01963353-3219-736a-9da3-ea11c2c374cc | N70: 0193302d-2e8f-7840-bcd4-ce01ca97c757 | O70: true | P70: 01963352-e68f-7258-b961-8410cd46b757 | Q70: 2 | R70: 2025-05-01 03:00:00.000 +0300 | S70: №2291 Акцент (Iambulant) - Миграция с Яндекса | T70: 6 | U70: 02509_1 | V70: 100 | W70: 7060 | X70: 2025-05-01 | Y70: 2025-12-01 00:00:00.000 | AE70: 227.7419354839
A71: 2025-05-10 | B71: 01967cbf-3d5d-7ad6-80fa-8fbc5fea192e | C71: 0 | D71: 2 | E71: c97a0102-2f06-4417-966d-8c6b61ff845f | F71: Публичный IPv4 адрес | G71: true | H71: 24 | I71: 2025-05-01 | J71: 2025-12-01 00:00:00.000 | K71: true | L71: 6 | M71: 01963353-3219-736a-9da3-ea11c2c374cc | N71: 0193302d-2e8f-7840-bcd4-ce01ca97c757 | O71: true | P71: 01963352-e68f-7258-b961-8410cd46b757 | Q71: 2 | R71: 2025-05-01 03:00:00.000 +0300 | S71: №2291 Акцент (Iambulant) - Миграция с Яндекса | T71: 6 | U71: 02509_1 | V71: 100 | W71: 290 | X71: 2025-05-01 | Y71: 2025-12-01 00:00:00.000 | AE71: 56.1290322581 | AF71: =W71*L71 -> 1740 | AG71: ежемес
A72: 2025-05-11 | B72: 01967cbf-3eed-7ada-90fa-c68dc8363fc8 | C72: 0.0 | D72: 2 | E72: 26151c48-4e77-4c11-9765-fba37dacebdf | F72: Next Generation Cloud: Intel 3.1 ГГц | G72: true | H72: 24 | I72: 2025-05-01 | J72: 2025-03-15 00:00:00.000 | K72: false | L72: 1 | M72: 01963353-3219-736a-9da3-ea11c2c374cc | N72: 0193302d-2e8f-7840-bcd4-ce01ca97c757 | O72: true | P72: 01963352-e68f-7258-b961-8410cd46b757 | Q72: 2 | R72: 2025-05-01 03:00:00.000 +0300 | S72: №2291 Акцент (Iambulant) - Миграция с Яндекса | T72: 6 | U72: 02509_1 | V72: 100 | W72: 7951.99999 | X72: 2025-05-01 | Y72: 2025-12-01 00:00:00.000 | AE72: 0.0000000000
A73: 2025-05-11 | B73: 01967cbf-3e9d-7ada-b7ae-9da195c89d61 | C73: 70.0 | D73: 2 | E73: 2af66cc8-e22e-489e-b9db-52e7fe5daa60 | G73: true | H73: 24 | I73: 2025-05-01 | J73: 2025-12-01 00:00:00.000 | K73: true | L73: 1 | M73: 01963353-3219-736a-9da3-ea11c2c374cc | N73: 0193302d-2e8f-7840-bcd4-ce01ca97c757 | O73: true | P73: 01963352-e68f-7258-b961-8410cd46b757 | Q73: 2 | R73: 2025-05-01 03:00:00.000 +0300 | S73: №2291 Акцент (Iambulant) - Миграция с Яндекса | T73: 6 | U73: 02509_1 | V73: 100 | W73: 290 | X73: 2025-05-01 | Y73: 2025-12-01 00:00:00.000 | AE73: 2.8064516129
A74: 2025-05-11 | B74: 01967cbf-3e5a-7ada-8c40-0e613f2440bd | C74: 42.207831 | D74: 2 | E74: 6298e714-7e74-4f57-b5f7-bfbc85ea7add | F74: Выделенный облачный пул: 4.5 ГГц AMD Ryzen 9 7950X 16 ядер 164 ГБ RAM | G74: true | H74: 24 | I74: 2025-05-01 | J74: 2025-12-01 00:00:00.000 | K74: false | L74: 1 | M74: 01963353-3219-736a-9da3-ea11c2c374cc | N74: 0193302d-2e8f-7840-bcd4-ce01ca97c757 | O74: true | P74: 01963352-e68f-7258-b961-8410cd46b757 | Q74: 2 | R74: 2025-05-01 03:00:00.000 +0300 | S74: №2291 Акцент (Iambulant) - Миграция с Яндекса | T74: 6 | U74: 02509_1 | V74: 100 | W74: 100370 | X74: 2025-05-01 | Y74: 2025-12-01 00:00:00.000 | AE74: 1,871.1612911387
A75: 2025-05-11 | B75: 01967cbf-3e16-7ada-b761-7199663e630f | C75: 0.0 | D75: 2 | E75: a67aa5fa-d4bb-4ffa-ad2e-60cc790b2a8b | G75: true | H75: 24 | I75: 2025-05-01 | J75: 2025-12-01 00:00:00.000 | K75: false | L75: 1 | M75: 01963353-3219-736a-9da3-ea11c2c374cc | N75: 0193302d-2e8f-7840-bcd4-ce01ca97c757 | O75: true | P75: 01963352-e68f-7258-b961-8410cd46b757 | Q75: 2 | R75: 2025-05-01 03:00:00.000 +0300 | S75: №2291 Акцент (Iambulant) - Миграция с Яндекса | T75: 6 | U75: 02509_1 | V75: 100 | W75: 50172.00008 | X75: 2025-05-01 | Y75: 2025-12-01 00:00:00.000 | AE75: 1,618.4516155510
A76: 2025-05-11 | B76: 01967cbf-3f39-7adb-afba-c1cd5660d910 | C76: 0.0 | D76: 2 | E76: b23d08e4-8457-47b2-88f8-e098be2e5f43 | F76: GPU: RTX4090 24GB RAM | G76: true | H76: 24 | I76: 2025-05-01 | J76: 2025-03-15 00:00:00.000 | K76: true | L76: 1 | M76: 01963353-3219-736a-9da3-ea11c2c374cc | N76: 0193302d-2e8f-7840-bcd4-ce01ca97c757 | O76: true | P76: 01963352-e68f-7258-b961-8410cd46b757 | Q76: 2 | R76: 2025-05-01 03:00:00.000 +0300 | S76: №2291 Акцент (Iambulant) - Миграция с Яндекса | T76: 6 | U76: 02509_1 | V76: 100 | W76: 50054 | X76: 2025-05-01 | Y76: 2025-12-01 00:00:00.000 | AE76: 0.0000000000
A77: 2025-05-11 | B77: 01967cbf-3d9e-7ad6-b9a8-71174cefcba8 | C77: 0.0 | D77: 2 | E77: c1f995e3-227c-4181-8e57-4f4f4470a08d | F77: Резервное копирование Veeam | G77: true | H77: 24 | I77: 2025-05-01 | J77: 2025-12-01 00:00:00.000 | K77: false | L77: 1 | M77: 01963353-3219-736a-9da3-ea11c2c374cc | N77: 0193302d-2e8f-7840-bcd4-ce01ca97c757 | O77: true | P77: 01963352-e68f-7258-b961-8410cd46b757 | Q77: 2 | R77: 2025-05-01 03:00:00.000 +0300 | S77: №2291 Акцент (Iambulant) - Миграция с Яндекса | T77: 6 | U77: 02509_1 | V77: 100 | W77: 7060 | X77: 2025-05-01 | Y77: 2025-12-01 00:00:00.000 | AE77: 227.7419354839
A78: 2025-05-11 | B78: 01967cbf-3d5d-7ad6-80fa-8fbc5fea192e | C78: 0 | D78: 2 | E78: c97a0102-2f06-4417-966d-8c6b61ff845f | F78: Публичный IPv4 адрес | G78: true | H78: 24 | I78: 2025-05-01 | J78: 2025-12-01 00:00:00.000 | K78: true | L78: 6 | M78: 01963353-3219-736a-9da3-ea11c2c374cc | N78: 0193302d-2e8f-7840-bcd4-ce01ca97c757 | O78: true | P78: 01963352-e68f-7258-b961-8410cd46b757 | Q78: 2 | R78: 2025-05-01 03:00:00.000 +0300 | S78: №2291 Акцент (Iambulant) - Миграция с Яндекса | T78: 6 | U78: 02509_1 | V78: 100 | W78: 290 | X78: 2025-05-01 | Y78: 2025-12-01 00:00:00.000 | AE78: 56.1290322581 | AF78: =W78*L78 -> 1740 | AG78: ежемес
A79: 2025-05-12 | B79: 01967cbf-3eed-7ada-90fa-c68dc8363fc8 | C79: 0.0 | D79: 2 | E79: 26151c48-4e77-4c11-9765-fba37dacebdf | F79: Next Generation Cloud: Intel 3.1 ГГц | G79: true | H79: 24 | I79: 2025-05-01 | J79: 2025-03-15 00:00:00.000 | K79: false | L79: 1 | M79: 01963353-3219-736a-9da3-ea11c2c374cc | N79: 0193302d-2e8f-7840-bcd4-ce01ca97c757 | O79: true | P79: 01963352-e68f-7258-b961-8410cd46b757 | Q79: 2 | R79: 2025-05-01 03:00:00.000 +0300 | S79: №2291 Акцент (Iambulant) - Миграция с Яндекса | T79: 6 | U79: 02509_1 | V79: 100 | W79: 7951.99999 | X79: 2025-05-01 | Y79: 2025-12-01 00:00:00.000 | AE79: 0.0000000000
A80: 2025-05-12 | B80: 01967cbf-3e9d-7ada-b7ae-9da195c89d61 | C80: 70.0 | D80: 2 | E80: 2af66cc8-e22e-489e-b9db-52e7fe5daa60 | G80: true | H80: 24 | I80: 2025-05-01 | J80: 2025-12-01 00:00:00.000 | K80: true | L80: 1 | M80: 01963353-3219-736a-9da3-ea11c2c374cc | N80: 0193302d-2e8f-7840-bcd4-ce01ca97c757 | O80: true | P80: 01963352-e68f-7258-b961-8410cd46b757 | Q80: 2 | R80: 2025-05-01 03:00:00.000 +0300 | S80: №2291 Акцент (Iambulant) - Миграция с Яндекса | T80: 6 | U80: 02509_1 | V80: 100 | W80: 290 | X80: 2025-05-01 | Y80: 2025-12-01 00:00:00.000 | AE80: 2.8064516129
A81: 2025-05-12 | B81: 01967cbf-3e5a-7ada-8c40-0e613f2440bd | C81: 42.207831 | D81: 2 | E81: 6298e714-7e74-4f57-b5f7-bfbc85ea7add | F81: Выделенный облачный пул: 4.5 ГГц AMD Ryzen 9 7950X 16 ядер 164 ГБ RAM | G81: true | H81: 24 | I81: 2025-05-01 | J81: 2025-12-01 00:00:00.000 | K81: false | L81: 1 | M81: 01963353-3219-736a-9da3-ea11c2c374cc | N81: 0193302d-2e8f-7840-bcd4-ce01ca97c757 | O81: true | P81: 01963352-e68f-7258-b961-8410cd46b757 | Q81: 2 | R81: 2025-05-01 03:00:00.000 +0300 | S81: №2291 Акцент (Iambulant) - Миграция с Яндекса | T81: 6 | U81: 02509_1 | V81: 100 | W81: 100370 | X81: 2025-05-01 | Y81: 2025-12-01 00:00:00.000 | AE81: 1,871.1612911387
A82: 2025-05-12 | B82: 01967cbf-3e16-7ada-b761-7199663e630f | C82: 0.0 | D82: 2 | E82: a67aa5fa-d4bb-4ffa-ad2e-60cc790b2a8b | G82: true | H82: 24 | I82: 2025-05-01 | J82: 2025-12-01 00:00:00.000 | K82: false | L82: 1 | M82: 01963353-3219-736a-9da3-ea11c2c374cc | N82: 0193302d-2e8f-7840-bcd4-ce01ca97c757 | O82: true | P82: 01963352-e68f-7258-b961-8410cd46b757 | Q82: 2 | R82: 2025-05-01 03:00:00.000 +0300 | S82: №2291 Акцент (Iambulant) - Миграция с Яндекса | T82: 6 | U82: 02509_1 | V82: 100 | W82: 50172.00008 | X82: 2025-05-01 | Y82: 2025-12-01 00:00:00.000 | AE82: 1,618.4516155510
A83: 2025-05-12 | B83: 01967cbf-3f39-7adb-afba-c1cd5660d910 | C83: 0.0 | D83: 2 | E83: b23d08e4-8457-47b2-88f8-e098be2e5f43 | F83: GPU: RTX4090 24GB RAM | G83: true | H83: 24 | I83: 2025-05-01 | J83: 2025-03-15 00:00:00.000 | K83: true | L83: 1 | M83: 01963353-3219-736a-9da3-ea11c2c374cc | N83: 0193302d-2e8f-7840-bcd4-ce01ca97c757 | O83: true | P83: 01963352-e68f-7258-b961-8410cd46b757 | Q83: 2 | R83: 2025-05-01 03:00:00.000 +0300 | S83: №2291 Акцент (Iambulant) - Миграция с Яндекса | T83: 6 | U83: 02509_1 | V83: 100 | W83: 50054 | X83: 2025-05-01 | Y83: 2025-12-01 00:00:00.000 | AE83: 0.0000000000
A84: 2025-05-12 | B84: 01967cbf-3d9e-7ad6-b9a8-71174cefcba8 | C84: 0.0 | D84: 2 | E84: c1f995e3-227c-4181-8e57-4f4f4470a08d | F84: Резервное копирование Veeam | G84: true | H84: 24 | I84: 2025-05-01 | J84: 2025-12-01 00:00:00.000 | K84: false | L84: 1 | M84: 01963353-3219-736a-9da3-ea11c2c374cc | N84: 0193302d-2e8f-7840-bcd4-ce01ca97c757 | O84: true | P84: 01963352-e68f-7258-b961-8410cd46b757 | Q84: 2 | R84: 2025-05-01 03:00:00.000 +0300 | S84: №2291 Акцент (Iambulant) - Миграция с Яндекса | T84: 6 | U84: 02509_1 | V84: 100 | W84: 7060 | X84: 2025-05-01 | Y84: 2025-12-01 00:00:00.000 | AE84: 227.7419354839
A85: 2025-05-12 | B85: 01967cbf-3d5d-7ad6-80fa-8fbc5fea192e | C85: 0 | D85: 2 | E85: c97a0102-2f06-4417-966d-8c6b61ff845f | F85: Публичный IPv4 адрес | G85: true | H85: 24 | I85: 2025-05-01 | J85: 2025-12-01 00:00:00.000 | K85: true | L85: 6 | M85: 01963353-3219-736a-9da3-ea11c2c374cc | N85: 0193302d-2e8f-7840-bcd4-ce01ca97c757 | O85: true | P85: 01963352-e68f-7258-b961-8410cd46b757 | Q85: 2 | R85: 2025-05-01 03:00:00.000 +0300 | S85: №2291 Акцент (Iambulant) - Миграция с Яндекса | T85: 6 | U85: 02509_1 | V85: 100 | W85: 290 | X85: 2025-05-01 | Y85: 2025-12-01 00:00:00.000 | AE85: 56.1290322581 | AF85: =W85*L85 -> 1740 | AG85: ежемес
A86: 2025-05-13 | B86: 01967cbf-3eed-7ada-90fa-c68dc8363fc8 | C86: 0.0 | D86: 2 | E86: 26151c48-4e77-4c11-9765-fba37dacebdf | F86: Next Generation Cloud: Intel 3.1 ГГц | G86: true | H86: 24 | I86: 2025-05-01 | J86: 2025-03-15 00:00:00.000 | K86: false | L86: 1 | M86: 01963353-3219-736a-9da3-ea11c2c374cc | N86: 0193302d-2e8f-7840-bcd4-ce01ca97c757 | O86: true | P86: 01963352-e68f-7258-b961-8410cd46b757 | Q86: 2 | R86: 2025-05-01 03:00:00.000 +0300 | S86: №2291 Акцент (Iambulant) - Миграция с Яндекса | T86: 6 | U86: 02509_1 | V86: 100 | W86: 7951.99999 | X86: 2025-05-01 | Y86: 2025-12-01 00:00:00.000 | AE86: 0.0000000000
A87: 2025-05-13 | B87: 01967cbf-3e9d-7ada-b7ae-9da195c89d61 | C87: 70.0 | D87: 2 | E87: 2af66cc8-e22e-489e-b9db-52e7fe5daa60 | G87: true | H87: 24 | I87: 2025-05-01 | J87: 2025-12-01 00:00:00.000 | K87: true | L87: 1 | M87: 01963353-3219-736a-9da3-ea11c2c374cc | N87: 0193302d-2e8f-7840-bcd4-ce01ca97c757 | O87: true | P87: 01963352-e68f-7258-b961-8410cd46b757 | Q87: 2 | R87: 2025-05-01 03:00:00.000 +0300 | S87: №2291 Акцент (Iambulant) - Миграция с Яндекса | T87: 6 | U87: 02509_1 | V87: 100 | W87: 290 | X87: 2025-05-01 | Y87: 2025-12-01 00:00:00.000 | AE87: 2.8064516129
A88: 2025-05-13 | B88: 01967cbf-3e5a-7ada-8c40-0e613f2440bd | C88: 42.207831 | D88: 2 | E88: 6298e714-7e74-4f57-b5f7-bfbc85ea7add | F88: Выделенный облачный пул: 4.5 ГГц AMD Ryzen 9 7950X 16 ядер 164 ГБ RAM | G88: true | H88: 24 | I88: 2025-05-01 | J88: 2025-12-01 00:00:00.000 | K88: false | L88: 1 | M88: 01963353-3219-736a-9da3-ea11c2c374cc | N88: 0193302d-2e8f-7840-bcd4-ce01ca97c757 | O88: true | P88: 01963352-e68f-7258-b961-8410cd46b757 | Q88: 2 | R88: 2025-05-01 03:00:00.000 +0300 | S88: №2291 Акцент (Iambulant) - Миграция с Яндекса | T88: 6 | U88: 02509_1 | V88: 100 | W88: 100370 | X88: 2025-05-01 | Y88: 2025-12-01 00:00:00.000 | AE88: 1,871.1612911387
A89: 2025-05-13 | B89: 01967cbf-3e16-7ada-b761-7199663e630f | C89: 0.0 | D89: 2 | E89: a67aa5fa-d4bb-4ffa-ad2e-60cc790b2a8b | G89: true | H89: 24 | I89: 2025-05-01 | J89: 2025-12-01 00:00:00.000 | K89: false | L89: 1 | M89: 01963353-3219-736a-9da3-ea11c2c374cc | N89: 0193302d-2e8f-7840-bcd4-ce01ca97c757 | O89: true | P89: 01963352-e68f-7258-b961-8410cd46b757 | Q89: 2 | R89: 2025-05-01 03:00:00.000 +0300 | S89: №2291 Акцент (Iambulant) - Миграция с Яндекса | T89: 6 | U89: 02509_1 | V89: 100 | W89: 50172.00008 | X89: 2025-05-01 | Y89: 2025-12-01 00:00:00.000 | AE89: 1,618.4516155510
A90: 2025-05-13 | B90: 01967cbf-3f39-7adb-afba-c1cd5660d910 | C90: 0.0 | D90: 2 | E90: b23d08e4-8457-47b2-88f8-e098be2e5f43 | F90: GPU: RTX4090 24GB RAM | G90: true | H90: 24 | I90: 2025-05-01 | J90: 2025-03-15 00:00:00.000 | K90: true | L90: 1 | M90: 01963353-3219-736a-9da3-ea11c2c374cc | N90: 0193302d-2e8f-7840-bcd4-ce01ca97c757 | O90: true | P90: 01963352-e68f-7258-b961-8410cd46b757 | Q90: 2 | R90: 2025-05-01 03:00:00.000 +0300 | S90: №2291 Акцент (Iambulant) - Миграция с Яндекса | T90: 6 | U90: 02509_1 | V90: 100 | W90: 50054 | X90: 2025-05-01 | Y90: 2025-12-01 00:00:00.000 | AE90: 0.0000000000
A91: 2025-05-13 | B91: 01967cbf-3d9e-7ad6-b9a8-71174cefcba8 | C91: 0.0 | D91: 2 | E91: c1f995e3-227c-4181-8e57-4f4f4470a08d | F91: Резервное копирование Veeam | G91: true | H91: 24 | I91: 2025-05-01 | J91: 2025-12-01 00:00:00.000 | K91: false | L91: 1 | M91: 01963353-3219-736a-9da3-ea11c2c374cc | N91: 0193302d-2e8f-7840-bcd4-ce01ca97c757 | O91: true | P91: 01963352-e68f-7258-b961-8410cd46b757 | Q91: 2 | R91: 2025-05-01 03:00:00.000 +0300 | S91: №2291 Акцент (Iambulant) - Миграция с Яндекса | T91: 6 | U91: 02509_1 | V91: 100 | W91: 7060 | X91: 2025-05-01 | Y91: 2025-12-01 00:00:00.000 | AE91: 227.7419354839
A92: 2025-05-13 | B92: 01967cbf-3d5d-7ad6-80fa-8fbc5fea192e | C92: 0 | D92: 2 | E92: c97a0102-2f06-4417-966d-8c6b61ff845f | F92: Публичный IPv4 адрес | G92: true | H92: 24 | I92: 2025-05-01 | J92: 2025-12-01 00:00:00.000 | K92: true | L92: 6 | M92: 01963353-3219-736a-9da3-ea11c2c374cc | N92: 0193302d-2e8f-7840-bcd4-ce01ca97c757 | O92: true | P92: 01963352-e68f-7258-b961-8410cd46b757 | Q92: 2 | R92: 2025-05-01 03:00:00.000 +0300 | S92: №2291 Акцент (Iambulant) - Миграция с Яндекса | T92: 6 | U92: 02509_1 | V92: 100 | W92: 290 | X92: 2025-05-01 | Y92: 2025-12-01 00:00:00.000 | AE92: 56.1290322581 | AF92: =W92*L92 -> 1740 | AG92: ежемес
A93: 2025-05-14 | B93: 01967cbf-3eed-7ada-90fa-c68dc8363fc8 | C93: 0.0 | D93: 2 | E93: 26151c48-4e77-4c11-9765-fba37dacebdf | F93: Next Generation Cloud: Intel 3.1 ГГц | G93: true | H93: 24 | I93: 2025-05-01 | J93: 2025-03-15 00:00:00.000 | K93: false | L93: 1 | M93: 01963353-3219-736a-9da3-ea11c2c374cc | N93: 0193302d-2e8f-7840-bcd4-ce01ca97c757 | O93: true | P93: 01963352-e68f-7258-b961-8410cd46b757 | Q93: 2 | R93: 2025-05-01 03:00:00.000 +0300 | S93: №2291 Акцент (Iambulant) - Миграция с Яндекса | T93: 6 | U93: 02509_1 | V93: 100 | W93: 7951.99999 | X93: 2025-05-01 | Y93: 2025-12-01 00:00:00.000 | AE93: 0.0000000000
A94: 2025-05-14 | B94: 01967cbf-3e9d-7ada-b7ae-9da195c89d61 | C94: 70.0 | D94: 2 | E94: 2af66cc8-e22e-489e-b9db-52e7fe5daa60 | G94: true | H94: 24 | I94: 2025-05-01 | J94: 2025-12-01 00:00:00.000 | K94: true | L94: 1 | M94: 01963353-3219-736a-9da3-ea11c2c374cc | N94: 0193302d-2e8f-7840-bcd4-ce01ca97c757 | O94: true | P94: 01963352-e68f-7258-b961-8410cd46b757 | Q94: 2 | R94: 2025-05-01 03:00:00.000 +0300 | S94: №2291 Акцент (Iambulant) - Миграция с Яндекса | T94: 6 | U94: 02509_1 | V94: 100 | W94: 290 | X94: 2025-05-01 | Y94: 2025-12-01 00:00:00.000 | AE94: 2.8064516129
A95: 2025-05-14 | B95: 01967cbf-3e5a-7ada-8c40-0e613f2440bd | C95: 42.207831 | D95: 2 | E95: 6298e714-7e74-4f57-b5f7-bfbc85ea7add | F95: Выделенный облачный пул: 4.5 ГГц AMD Ryzen 9 7950X 16 ядер 164 ГБ RAM | G95: true | H95: 24 | I95: 2025-05-01 | J95: 2025-12-01 00:00:00.000 | K95: false | L95: 1 | M95: 01963353-3219-736a-9da3-ea11c2c374cc | N95: 0193302d-2e8f-7840-bcd4-ce01ca97c757 | O95: true | P95: 01963352-e68f-7258-b961-8410cd46b757 | Q95: 2 | R95: 2025-05-01 03:00:00.000 +0300 | S95: №2291 Акцент (Iambulant) - Миграция с Яндекса | T95: 6 | U95: 02509_1 | V95: 100 | W95: 100370 | X95: 2025-05-01 | Y95: 2025-12-01 00:00:00.000 | AE95: 1,871.1612911387
A96: 2025-05-14 | B96: 01967cbf-3e16-7ada-b761-7199663e630f | C96: 0.0 | D96: 2 | E96: a67aa5fa-d4bb-4ffa-ad2e-60cc790b2a8b | G96: true | H96: 24 | I96: 2025-05-01 | J96: 2025-12-01 00:00:00.000 | K96: false | L96: 1 | M96: 01963353-3219-736a-9da3-ea11c2c374cc | N96: 0193302d-2e8f-7840-bcd4-ce01ca97c757 | O96: true | P96: 01963352-e68f-7258-b961-8410cd46b757 | Q96: 2 | R96: 2025-05-01 03:00:00.000 +0300 | S96: №2291 Акцент (Iambulant) - Миграция с Яндекса | T96: 6 | U96: 02509_1 | V96: 100 | W96: 50172.00008 | X96: 2025-05-01 | Y96: 2025-12-01 00:00:00.000 | AE96: 1,618.4516155510
A97: 2025-05-14 | B97: 01967cbf-3f39-7adb-afba-c1cd5660d910 | C97: 0.0 | D97: 2 | E97: b23d08e4-8457-47b2-88f8-e098be2e5f43 | F97: GPU: RTX4090 24GB RAM | G97: true | H97: 24 | I97: 2025-05-01 | J97: 2025-03-15 00:00:00.000 | K97: true | L97: 1 | M97: 01963353-3219-736a-9da3-ea11c2c374cc | N97: 0193302d-2e8f-7840-bcd4-ce01ca97c757 | O97: true | P97: 01963352-e68f-7258-b961-8410cd46b757 | Q97: 2 | R97: 2025-05-01 03:00:00.000 +0300 | S97: №2291 Акцент (Iambulant) - Миграция с Яндекса | T97: 6 | U97: 02509_1 | V97: 100 | W97: 50054 | X97: 2025-05-01 | Y97: 2025-12-01 00:00:00.000 | AE97: 0.0000000000
A98: 2025-05-14 | B98: 01967cbf-3d9e-7ad6-b9a8-71174cefcba8 | C98: 0.0 | D98: 2 | E98: c1f995e3-227c-4181-8e57-4f4f4470a08d | F98: Резервное копирование Veeam | G98: true | H98: 24 | I98: 2025-05-01 | J98: 2025-12-01 00:00:00.000 | K98: false | L98: 1 | M98: 01963353-3219-736a-9da3-ea11c2c374cc | N98: 0193302d-2e8f-7840-bcd4-ce01ca97c757 | O98: true | P98: 01963352-e68f-7258-b961-8410cd46b757 | Q98: 2 | R98: 2025-05-01 03:00:00.000 +0300 | S98: №2291 Акцент (Iambulant) - Миграция с Яндекса | T98: 6 | U98: 02509_1 | V98: 100 | W98: 7060 | X98: 2025-05-01 | Y98: 2025-12-01 00:00:00.000 | AE98: 227.7419354839
A99: 2025-05-14 | B99: 01967cbf-3d5d-7ad6-80fa-8fbc5fea192e | C99: 0 | D99: 2 | E99: c97a0102-2f06-4417-966d-8c6b61ff845f | F99: Публичный IPv4 адрес | G99: true | H99: 24 | I99: 2025-05-01 | J99: 2025-12-01 00:00:00.000 | K99: true | L99: 6 | M99: 01963353-3219-736a-9da3-ea11c2c374cc | N99: 0193302d-2e8f-7840-bcd4-ce01ca97c757 | O99: true | P99: 01963352-e68f-7258-b961-8410cd46b757 | Q99: 2 | R99: 2025-05-01 03:00:00.000 +0300 | S99: №2291 Акцент (Iambulant) - Миграция с Яндекса | T99: 6 | U99: 02509_1 | V99: 100 | W99: 290 | X99: 2025-05-01 | Y99: 2025-12-01 00:00:00.000 | AE99: 56.1290322581 | AF99: =W99*L99 -> 1740 | AG99: ежемес
A100: 2025-05-15 | B100: 01967cbf-3eed-7ada-90fa-c68dc8363fc8 | C100: 0.0 | D100: 2 | E100: 26151c48-4e77-4c11-9765-fba37dacebdf | F100: Next Generation Cloud: Intel 3.1 ГГц | G100: true | H100: 24 | I100: 2025-05-01 | J100: 2025-03-15 00:00:00.000 | K100: false | L100: 1 | M100: 01963353-3219-736a-9da3-ea11c2c374cc | N100: 0193302d-2e8f-7840-bcd4-ce01ca97c757 | O100: true | P100: 01963352-e68f-7258-b961-8410cd46b757 | Q100: 2 | R100: 2025-05-01 03:00:00.000 +0300 | S100: №2291 Акцент (Iambulant) - Миграция с Яндекса | T100: 6 | U100: 02509_1 | V100: 100 | W100: 7951.99999 | X100: 2025-05-01 | Y100: 2025-12-01 00:00:00.000 | AE100: 0.0000000000
A101: 2025-05-15 | B101: 01967cbf-3e9d-7ada-b7ae-9da195c89d61 | C101: 70.0 | D101: 2 | E101: 2af66cc8-e22e-489e-b9db-52e7fe5daa60 | G101: true | H101: 24 | I101: 2025-05-01 | J101: 2025-12-01 00:00:00.000 | K101: true | L101: 1 | M101: 01963353-3219-736a-9da3-ea11c2c374cc | N101: 0193302d-2e8f-7840-bcd4-ce01ca97c757 | O101: true | P101: 01963352-e68f-7258-b961-8410cd46b757 | Q101: 2 | R101: 2025-05-01 03:00:00.000 +0300 | S101: №2291 Акцент (Iambulant) - Миграция с Яндекса | T101: 6 | U101: 02509_1 | V101: 100 | W101: 290 | X101: 2025-05-01 | Y101: 2025-12-01 00:00:00.000 | AE101: 2.8064516129
A102: 2025-05-15 | B102: 01967cbf-3e5a-7ada-8c40-0e613f2440bd | C102: 42.207831 | D102: 2 | E102: 6298e714-7e74-4f57-b5f7-bfbc85ea7add | F102: Выделенный облачный пул: 4.5 ГГц AMD Ryzen 9 7950X 16 ядер 164 ГБ RAM | G102: true | H102: 24 | I102: 2025-05-01 | J102: 2025-12-01 00:00:00.000 | K102: false | L102: 1 | M102: 01963353-3219-736a-9da3-ea11c2c374cc | N102: 0193302d-2e8f-7840-bcd4-ce01ca97c757 | O102: true | P102: 01963352-e68f-7258-b961-8410cd46b757 | Q102: 2 | R102: 2025-05-01 03:00:00.000 +0300 | S102: №2291 Акцент (Iambulant) - Миграция с Яндекса | T102: 6 | U102: 02509_1 | V102: 100 | W102: 100370 | X102: 2025-05-01 | Y102: 2025-12-01 00:00:00.000 | AE102: 1,871.1612911387
A103: 2025-05-15 | B103: 01967cbf-3e16-7ada-b761-7199663e630f | C103: 0.0 | D103: 2 | E103: a67aa5fa-d4bb-4ffa-ad2e-60cc790b2a8b | G103: true | H103: 24 | I103: 2025-05-01 | J103: 2025-12-01 00:00:00.000 | K103: false | L103: 1 | M103: 01963353-3219-736a-9da3-ea11c2c374cc | N103: 0193302d-2e8f-7840-bcd4-ce01ca97c757 | O103: true | P103: 01963352-e68f-7258-b961-8410cd46b757 | Q103: 2 | R103: 2025-05-01 03:00:00.000 +0300 | S103: №2291 Акцент (Iambulant) - Миграция с Яндекса | T103: 6 | U103: 02509_1 | V103: 100 | W103: 50172.00008 | X103: 2025-05-01 | Y103: 2025-12-01 00:00:00.000 | AE103: 1,618.4516155510
A104: 2025-05-15 | B104: 01967cbf-3f39-7adb-afba-c1cd5660d910 | C104: 0.0 | D104: 2 | E104: b23d08e4-8457-47b2-88f8-e098be2e5f43 | F104: GPU: RTX4090 24GB RAM | G104: true | H104: 24 | I104: 2025-05-01 | J104: 2025-03-15 00:00:00.000 | K104: true | L104: 1 | M104: 01963353-3219-736a-9da3-ea11c2c374cc | N104: 0193302d-2e8f-7840-bcd4-ce01ca97c757 | O104: true | P104: 01963352-e68f-7258-b961-8410cd46b757 | Q104: 2 | R104: 2025-05-01 03:00:00.000 +0300 | S104: №2291 Акцент (Iambulant) - Миграция с Яндекса | T104: 6 | U104: 02509_1 | V104: 100 | W104: 50054 | X104: 2025-05-01 | Y104: 2025-12-01 00:00:00.000 | AE104: 0.0000000000
A105: 2025-05-15 | B105: 01967cbf-3d9e-7ad6-b9a8-71174cefcba8 | C105: 0.0 | D105: 2 | E105: c1f995e3-227c-4181-8e57-4f4f4470a08d | F105: Резервное копирование Veeam | G105: true | H105: 24 | I105: 2025-05-01 | J105: 2025-12-01 00:00:00.000 | K105: false | L105: 1 | M105: 01963353-3219-736a-9da3-ea11c2c374cc | N105: 0193302d-2e8f-7840-bcd4-ce01ca97c757 | O105: true | P105: 01963352-e68f-7258-b961-8410cd46b757 | Q105: 2 | R105: 2025-05-01 03:00:00.000 +0300 | S105: №2291 Акцент (Iambulant) - Миграция с Яндекса | T105: 6 | U105: 02509_1 | V105: 100 | W105: 7060 | X105: 2025-05-01 | Y105: 2025-12-01 00:00:00.000 | AE105: 227.7419354839
A106: 2025-05-15 | B106: 01967cbf-3d5d-7ad6-80fa-8fbc5fea192e | C106: 0 | D106: 2 | E106: c97a0102-2f06-4417-966d-8c6b61ff845f | F106: Публичный IPv4 адрес | G106: true | H106: 24 | I106: 2025-05-01 | J106: 2025-12-01 00:00:00.000 | K106: true | L106: 6 | M106: 01963353-3219-736a-9da3-ea11c2c374cc | N106: 0193302d-2e8f-7840-bcd4-ce01ca97c757 | O106: true | P106: 01963352-e68f-7258-b961-8410cd46b757 | Q106: 2 | R106: 2025-05-01 03:00:00.000 +0300 | S106: №2291 Акцент (Iambulant) - Миграция с Яндекса | T106: 6 | U106: 02509_1 | V106: 100 | W106: 290 | X106: 2025-05-01 | Y106: 2025-12-01 00:00:00.000 | AE106: 56.1290322581 | AF106: =W106*L106 -> 1740 | AG106: ежемес
A107: 2025-05-16 | B107: 01967cbf-3eed-7ada-90fa-c68dc8363fc8 | C107: 0.0 | D107: 2 | E107: 26151c48-4e77-4c11-9765-fba37dacebdf | F107: Next Generation Cloud: Intel 3.1 ГГц | G107: true | H107: 24 | I107: 2025-05-01 | J107: 2025-03-15 00:00:00.000 | K107: false | L107: 1 | M107: 01963353-3219-736a-9da3-ea11c2c374cc | N107: 0193302d-2e8f-7840-bcd4-ce01ca97c757 | O107: true | P107: 01963352-e68f-7258-b961-8410cd46b757 | Q107: 2 | R107: 2025-05-01 03:00:00.000 +0300 | S107: №2291 Акцент (Iambulant) - Миграция с Яндекса | T107: 6 | U107: 02509_1 | V107: 100 | W107: 7951.99999 | X107: 2025-05-01 | Y107: 2025-12-01 00:00:00.000 | AE107: 0.0000000000
A108: 2025-05-16 | B108: 01967cbf-3e9d-7ada-b7ae-9da195c89d61 | C108: 70.0 | D108: 2 | E108: 2af66cc8-e22e-489e-b9db-52e7fe5daa60 | G108: true | H108: 24 | I108: 2025-05-01 | J108: 2025-12-01 00:00:00.000 | K108: true | L108: 1 | M108: 01963353-3219-736a-9da3-ea11c2c374cc | N108: 0193302d-2e8f-7840-bcd4-ce01ca97c757 | O108: true | P108: 01963352-e68f-7258-b961-8410cd46b757 | Q108: 2 | R108: 2025-05-01 03:00:00.000 +0300 | S108: №2291 Акцент (Iambulant) - Миграция с Яндекса | T108: 6 | U108: 02509_1 | V108: 100 | W108: 290 | X108: 2025-05-01 | Y108: 2025-12-01 00:00:00.000 | AE108: 2.8064516129
A109: 2025-05-16 | B109: 01967cbf-3e5a-7ada-8c40-0e613f2440bd | C109: 42.207831 | D109: 2 | E109: 6298e714-7e74-4f57-b5f7-bfbc85ea7add | F109: Выделенный облачный пул: 4.5 ГГц AMD Ryzen 9 7950X 16 ядер 164 ГБ RAM | G109: true | H109: 24 | I109: 2025-05-01 | J109: 2025-12-01 00:00:00.000 | K109: false | L109: 1 | M109: 01963353-3219-736a-9da3-ea11c2c374cc | N109: 0193302d-2e8f-7840-bcd4-ce01ca97c757 | O109: true | P109: 01963352-e68f-7258-b961-8410cd46b757 | Q109: 2 | R109: 2025-05-01 03:00:00.000 +0300 | S109: №2291 Акцент (Iambulant) - Миграция с Яндекса | T109: 6 | U109: 02509_1 | V109: 100 | W109: 100370 | X109: 2025-05-01 | Y109: 2025-12-01 00:00:00.000 | AE109: 1,871.1612911387
A110: 2025-05-16 | B110: 01967cbf-3e16-7ada-b761-7199663e630f | C110: 0.0 | D110: 2 | E110: a67aa5fa-d4bb-4ffa-ad2e-60cc790b2a8b | G110: true | H110: 24 | I110: 2025-05-01 | J110: 2025-12-01 00:00:00.000 | K110: false | L110: 1 | M110: 01963353-3219-736a-9da3-ea11c2c374cc | N110: 0193302d-2e8f-7840-bcd4-ce01ca97c757 | O110: true | P110: 01963352-e68f-7258-b961-8410cd46b757 | Q110: 2 | R110: 2025-05-01 03:00:00.000 +0300 | S110: №2291 Акцент (Iambulant) - Миграция с Яндекса | T110: 6 | U110: 02509_1 | V110: 100 | W110: 50172.00008 | X110: 2025-05-01 | Y110: 2025-12-01 00:00:00.000 | AE110: 1,618.4516155510
A111: 2025-05-16 | B111: 01967cbf-3f39-7adb-afba-c1cd5660d910 | C111: 0.0 | D111: 2 | E111: b23d08e4-8457-47b2-88f8-e098be2e5f43 | F111: GPU: RTX4090 24GB RAM | G111: true | H111: 24 | I111: 2025-05-01 | J111: 2025-03-15 00:00:00.000 | K111: true | L111: 1 | M111: 01963353-3219-736a-9da3-ea11c2c374cc | N111: 0193302d-2e8f-7840-bcd4-ce01ca97c757 | O111: true | P111: 01963352-e68f-7258-b961-8410cd46b757 | Q111: 2 | R111: 2025-05-01 03:00:00.000 +0300 | S111: №2291 Акцент (Iambulant) - Миграция с Яндекса | T111: 6 | U111: 02509_1 | V111: 100 | W111: 50054 | X111: 2025-05-01 | Y111: 2025-12-01 00:00:00.000 | AE111: 0.0000000000
A112: 2025-05-16 | B112: 01967cbf-3d9e-7ad6-b9a8-71174cefcba8 | C112: 0.0 | D112: 2 | E112: c1f995e3-227c-4181-8e57-4f4f4470a08d | F112: Резервное копирование Veeam | G112: true | H112: 24 | I112: 2025-05-01 | J112: 2025-12-01 00:00:00.000 | K112: false | L112: 1 | M112: 01963353-3219-736a-9da3-ea11c2c374cc | N112: 0193302d-2e8f-7840-bcd4-ce01ca97c757 | O112: true | P112: 01963352-e68f-7258-b961-8410cd46b757 | Q112: 2 | R112: 2025-05-01 03:00:00.000 +0300 | S112: №2291 Акцент (Iambulant) - Миграция с Яндекса | T112: 6 | U112: 02509_1 | V112: 100 | W112: 7060 | X112: 2025-05-01 | Y112: 2025-12-01 00:00:00.000 | AE112: 227.7419354839
A113: 2025-05-16 | B113: 01967cbf-3d5d-7ad6-80fa-8fbc5fea192e | C113: 0 | D113: 2 | E113: c97a0102-2f06-4417-966d-8c6b61ff845f | F113: Публичный IPv4 адрес | G113: true | H113: 24 | I113: 2025-05-01 | J113: 2025-12-01 00:00:00.000 | K113: true | L113: 6 | M113: 01963353-3219-736a-9da3-ea11c2c374cc | N113: 0193302d-2e8f-7840-bcd4-ce01ca97c757 | O113: true | P113: 01963352-e68f-7258-b961-8410cd46b757 | Q113: 2 | R113: 2025-05-01 03:00:00.000 +0300 | S113: №2291 Акцент (Iambulant) - Миграция с Яндекса | T113: 6 | U113: 02509_1 | V113: 100 | W113: 290 | X113: 2025-05-01 | Y113: 2025-12-01 00:00:00.000 | AE113: 56.1290322581 | AF113: =W113*L113 -> 1740 | AG113: ежемес
A114: 2025-05-17 | B114: 01967cbf-3eed-7ada-90fa-c68dc8363fc8 | C114: 0.0 | D114: 2 | E114: 26151c48-4e77-4c11-9765-fba37dacebdf | F114: Next Generation Cloud: Intel 3.1 ГГц | G114: true | H114: 24 | I114: 2025-05-01 | J114: 2025-03-15 00:00:00.000 | K114: false | L114: 1 | M114: 01963353-3219-736a-9da3-ea11c2c374cc | N114: 0193302d-2e8f-7840-bcd4-ce01ca97c757 | O114: true | P114: 01963352-e68f-7258-b961-8410cd46b757 | Q114: 2 | R114: 2025-05-01 03:00:00.000 +0300 | S114: №2291 Акцент (Iambulant) - Миграция с Яндекса | T114: 6 | U114: 02509_1 | V114: 100 | W114: 7951.99999 | X114: 2025-05-01 | Y114: 2025-12-01 00:00:00.000 | AE114: 0.0000000000
A115: 2025-05-17 | B115: 01967cbf-3e9d-7ada-b7ae-9da195c89d61 | C115: 70.0 | D115: 2 | E115: 2af66cc8-e22e-489e-b9db-52e7fe5daa60 | G115: true | H115: 24 | I115: 2025-05-01 | J115: 2025-12-01 00:00:00.000 | K115: true | L115: 1 | M115: 01963353-3219-736a-9da3-ea11c2c374cc | N115: 0193302d-2e8f-7840-bcd4-ce01ca97c757 | O115: true | P115: 01963352-e68f-7258-b961-8410cd46b757 | Q115: 2 | R115: 2025-05-01 03:00:00.000 +0300 | S115: №2291 Акцент (Iambulant) - Миграция с Яндекса | T115: 6 | U115: 02509_1 | V115: 100 | W115: 290 | X115: 2025-05-01 | Y115: 2025-12-01 00:00:00.000 | AE115: 2.8064516129
A116: 2025-05-17 | B116: 01967cbf-3e5a-7ada-8c40-0e613f2440bd | C116: 42.207831 | D116: 2 | E116: 6298e714-7e74-4f57-b5f7-bfbc85ea7add | F116: Выделенный облачный пул: 4.5 ГГц AMD Ryzen 9 7950X 16 ядер 164 ГБ RAM | G116: true | H116: 24 | I116: 2025-05-01 | J116: 2025-12-01 00:00:00.000 | K116: false | L116: 1 | M116: 01963353-3219-736a-9da3-ea11c2c374cc | N116: 0193302d-2e8f-7840-bcd4-ce01ca97c757 | O116: true | P116: 01963352-e68f-7258-b961-8410cd46b757 | Q116: 2 | R116: 2025-05-01 03:00:00.000 +0300 | S116: №2291 Акцент (Iambulant) - Миграция с Яндекса | T116: 6 | U116: 02509_1 | V116: 100 | W116: 100370 | X116: 2025-05-01 | Y116: 2025-12-01 00:00:00.000 | AE116: 1,871.1612911387
A117: 2025-05-17 | B117: 01967cbf-3e16-7ada-b761-7199663e630f | C117: 0.0 | D117: 2 | E117: a67aa5fa-d4bb-4ffa-ad2e-60cc790b2a8b | G117: true | H117: 24 | I117: 2025-05-01 | J117: 2025-12-01 00:00:00.000 | K117: false | L117: 1 | M117: 01963353-3219-736a-9da3-ea11c2c374cc | N117: 0193302d-2e8f-7840-bcd4-ce01ca97c757 | O117: true | P117: 01963352-e68f-7258-b961-8410cd46b757 | Q117: 2 | R117: 2025-05-01 03:00:00.000 +0300 | S117: №2291 Акцент (Iambulant) - Миграция с Яндекса | T117: 6 | U117: 02509_1 | V117: 100 | W117: 50172.00008 | X117: 2025-05-01 | Y117: 2025-12-01 00:00:00.000 | AE117: 1,618.4516155510
A118: 2025-05-17 | B118: 01967cbf-3f39-7adb-afba-c1cd5660d910 | C118: 0.0 | D118: 2 | E118: b23d08e4-8457-47b2-88f8-e098be2e5f43 | F118: GPU: RTX4090 24GB RAM | G118: true | H118: 24 | I118: 2025-05-01 | J118: 2025-03-15 00:00:00.000 | K118: true | L118: 1 | M118: 01963353-3219-736a-9da3-ea11c2c374cc | N118: 0193302d-2e8f-7840-bcd4-ce01ca97c757 | O118: true | P118: 01963352-e68f-7258-b961-8410cd46b757 | Q118: 2 | R118: 2025-05-01 03:00:00.000 +0300 | S118: №2291 Акцент (Iambulant) - Миграция с Яндекса | T118: 6 | U118: 02509_1 | V118: 100 | W118: 50054 | X118: 2025-05-01 | Y118: 2025-12-01 00:00:00.000 | AE118: 0.0000000000
A119: 2025-05-17 | B119: 01967cbf-3d9e-7ad6-b9a8-71174cefcba8 | C119: 0.0 | D119: 2 | E119: c1f995e3-227c-4181-8e57-4f4f4470a08d | F119: Резервное копирование Veeam | G119: true | H119: 24 | I119: 2025-05-01 | J119: 2025-12-01 00:00:00.000 | K119: false | L119: 1 | M119: 01963353-3219-736a-9da3-ea11c2c374cc | N119: 0193302d-2e8f-7840-bcd4-ce01ca97c757 | O119: true | P119: 01963352-e68f-7258-b961-8410cd46b757 | Q119: 2 | R119: 2025-05-01 03:00:00.000 +0300 | S119: №2291 Акцент (Iambulant) - Миграция с Яндекса | T119: 6 | U119: 02509_1 | V119: 100 | W119: 7060 | X119: 2025-05-01 | Y119: 2025-12-01 00:00:00.000 | AE119: 227.7419354839
A120: 2025-05-17 | B120: 01967cbf-3d5d-7ad6-80fa-8fbc5fea192e | C120: 0 | D120: 2 | E120: c97a0102-2f06-4417-966d-8c6b61ff845f | F120: Публичный IPv4 адрес | G120: true | H120: 24 | I120: 2025-05-01 | J120: 2025-12-01 00:00:00.000 | K120: true | L120: 6 | M120: 01963353-3219-736a-9da3-ea11c2c374cc | N120: 0193302d-2e8f-7840-bcd4-ce01ca97c757 | O120: true | P120: 01963352-e68f-7258-b961-8410cd46b757 | Q120: 2 | R120: 2025-05-01 03:00:00.000 +0300 | S120: №2291 Акцент (Iambulant) - Миграция с Яндекса | T120: 6 | U120: 02509_1 | V120: 100 | W120: 290 | X120: 2025-05-01 | Y120: 2025-12-01 00:00:00.000 | AE120: 56.1290322581 | AF120: =W120*L120 -> 1740 | AG120: ежемес
A121: 2025-05-18 | B121: 01967cbf-3eed-7ada-90fa-c68dc8363fc8 | C121: 0.0 | D121: 2 | E121: 26151c48-4e77-4c11-9765-fba37dacebdf | F121: Next Generation Cloud: Intel 3.1 ГГц | G121: true | H121: 24 | I121: 2025-05-01 | J121: 2025-03-15 00:00:00.000 | K121: false | L121: 1 | M121: 01963353-3219-736a-9da3-ea11c2c374cc | N121: 0193302d-2e8f-7840-bcd4-ce01ca97c757 | O121: true | P121: 01963352-e68f-7258-b961-8410cd46b757 | Q121: 2 | R121: 2025-05-01 03:00:00.000 +0300 | S121: №2291 Акцент (Iambulant) - Миграция с Яндекса | T121: 6 | U121: 02509_1 | V121: 100 | W121: 7951.99999 | X121: 2025-05-01 | Y121: 2025-12-01 00:00:00.000 | AE121: 0.0000000000
A122: 2025-05-18 | B122: 01967cbf-3e9d-7ada-b7ae-9da195c89d61 | C122: 70.0 | D122: 2 | E122: 2af66cc8-e22e-489e-b9db-52e7fe5daa60 | G122: true | H122: 24 | I122: 2025-05-01 | J122: 2025-12-01 00:00:00.000 | K122: true | L122: 1 | M122: 01963353-3219-736a-9da3-ea11c2c374cc | N122: 0193302d-2e8f-7840-bcd4-ce01ca97c757 | O122: true | P122: 01963352-e68f-7258-b961-8410cd46b757 | Q122: 2 | R122: 2025-05-01 03:00:00.000 +0300 | S122: №2291 Акцент (Iambulant) - Миграция с Яндекса | T122: 6 | U122: 02509_1 | V122: 100 | W122: 290 | X122: 2025-05-01 | Y122: 2025-12-01 00:00:00.000 | AE122: 2.8064516129
A123: 2025-05-18 | B123: 01967cbf-3e5a-7ada-8c40-0e613f2440bd | C123: 42.207831 | D123: 2 | E123: 6298e714-7e74-4f57-b5f7-bfbc85ea7add | F123: Выделенный облачный пул: 4.5 ГГц AMD Ryzen 9 7950X 16 ядер 164 ГБ RAM | G123: true | H123: 24 | I123: 2025-05-01 | J123: 2025-12-01 00:00:00.000 | K123: false | L123: 1 | M123: 01963353-3219-736a-9da3-ea11c2c374cc | N123: 0193302d-2e8f-7840-bcd4-ce01ca97c757 | O123: true | P123: 01963352-e68f-7258-b961-8410cd46b757 | Q123: 2 | R123: 2025-05-01 03:00:00.000 +0300 | S123: №2291 Акцент (Iambulant) - Миграция с Яндекса | T123: 6 | U123: 02509_1 | V123: 100 | W123: 100370 | X123: 2025-05-01 | Y123: 2025-12-01 00:00:00.000 | AE123: 1,871.1612911387
A124: 2025-05-18 | B124: 01967cbf-3e16-7ada-b761-7199663e630f | C124: 0.0 | D124: 2 | E124: a67aa5fa-d4bb-4ffa-ad2e-60cc790b2a8b | G124: true | H124: 24 | I124: 2025-05-01 | J124: 2025-12-01 00:00:00.000 | K124: false | L124: 1 | M124: 01963353-3219-736a-9da3-ea11c2c374cc | N124: 0193302d-2e8f-7840-bcd4-ce01ca97c757 | O124: true | P124: 01963352-e68f-7258-b961-8410cd46b757 | Q124: 2 | R124: 2025-05-01 03:00:00.000 +0300 | S124: №2291 Акцент (Iambulant) - Миграция с Яндекса | T124: 6 | U124: 02509_1 | V124: 100 | W124: 50172.00008 | X124: 2025-05-01 | Y124: 2025-12-01 00:00:00.000 | AE124: 1,618.4516155510
A125: 2025-05-18 | B125: 01967cbf-3f39-7adb-afba-c1cd5660d910 | C125: 0.0 | D125: 2 | E125: b23d08e4-8457-47b2-88f8-e098be2e5f43 | F125: GPU: RTX4090 24GB RAM | G125: true | H125: 24 | I125: 2025-05-01 | J125: 2025-03-15 00:00:00.000 | K125: true | L125: 1 | M125: 01963353-3219-736a-9da3-ea11c2c374cc | N125: 0193302d-2e8f-7840-bcd4-ce01ca97c757 | O125: true | P125: 01963352-e68f-7258-b961-8410cd46b757 | Q125: 2 | R125: 2025-05-01 03:00:00.000 +0300 | S125: №2291 Акцент (Iambulant) - Миграция с Яндекса | T125: 6 | U125: 02509_1 | V125: 100 | W125: 50054 | X125: 2025-05-01 | Y125: 2025-12-01 00:00:00.000 | AE125: 0.0000000000
A126: 2025-05-18 | B126: 01967cbf-3d9e-7ad6-b9a8-71174cefcba8 | C126: 0.0 | D126: 2 | E126: c1f995e3-227c-4181-8e57-4f4f4470a08d | F126: Резервное копирование Veeam | G126: true | H126: 24 | I126: 2025-05-01 | J126: 2025-12-01 00:00:00.000 | K126: false | L126: 1 | M126: 01963353-3219-736a-9da3-ea11c2c374cc | N126: 0193302d-2e8f-7840-bcd4-ce01ca97c757 | O126: true | P126: 01963352-e68f-7258-b961-8410cd46b757 | Q126: 2 | R126: 2025-05-01 03:00:00.000 +0300 | S126: №2291 Акцент (Iambulant) - Миграция с Яндекса | T126: 6 | U126: 02509_1 | V126: 100 | W126: 7060 | X126: 2025-05-01 | Y126: 2025-12-01 00:00:00.000 | AE126: 227.7419354839
A127: 2025-05-18 | B127: 01967cbf-3d5d-7ad6-80fa-8fbc5fea192e | C127: 0 | D127: 2 | E127: c97a0102-2f06-4417-966d-8c6b61ff845f | F127: Публичный IPv4 адрес | G127: true | H127: 24 | I127: 2025-05-01 | J127: 2025-12-01 00:00:00.000 | K127: true | L127: 6 | M127: 01963353-3219-736a-9da3-ea11c2c374cc | N127: 0193302d-2e8f-7840-bcd4-ce01ca97c757 | O127: true | P127: 01963352-e68f-7258-b961-8410cd46b757 | Q127: 2 | R127: 2025-05-01 03:00:00.000 +0300 | S127: №2291 Акцент (Iambulant) - Миграция с Яндекса | T127: 6 | U127: 02509_1 | V127: 100 | W127: 290 | X127: 2025-05-01 | Y127: 2025-12-01 00:00:00.000 | AE127: 56.1290322581 | AF127: =W127*L127 -> 1740 | AG127: ежемес
A128: 2025-05-19 | B128: 01967cbf-3eed-7ada-90fa-c68dc8363fc8 | C128: 0.0 | D128: 2 | E128: 26151c48-4e77-4c11-9765-fba37dacebdf | F128: Next Generation Cloud: Intel 3.1 ГГц | G128: true | H128: 24 | I128: 2025-05-01 | J128: 2025-03-15 00:00:00.000 | K128: false | L128: 1 | M128: 01963353-3219-736a-9da3-ea11c2c374cc | N128: 0193302d-2e8f-7840-bcd4-ce01ca97c757 | O128: true | P128: 01963352-e68f-7258-b961-8410cd46b757 | Q128: 2 | R128: 2025-05-01 03:00:00.000 +0300 | S128: №2291 Акцент (Iambulant) - Миграция с Яндекса | T128: 6 | U128: 02509_1 | V128: 100 | W128: 7951.99999 | X128: 2025-05-01 | Y128: 2025-12-01 00:00:00.000 | AE128: 0.0000000000
A129: 2025-05-19 | B129: 01967cbf-3e9d-7ada-b7ae-9da195c89d61 | C129: 70.0 | D129: 2 | E129: 2af66cc8-e22e-489e-b9db-52e7fe5daa60 | G129: true | H129: 24 | I129: 2025-05-01 | J129: 2025-12-01 00:00:00.000 | K129: true | L129: 1 | M129: 01963353-3219-736a-9da3-ea11c2c374cc | N129: 0193302d-2e8f-7840-bcd4-ce01ca97c757 | O129: true | P129: 01963352-e68f-7258-b961-8410cd46b757 | Q129: 2 | R129: 2025-05-01 03:00:00.000 +0300 | S129: №2291 Акцент (Iambulant) - Миграция с Яндекса | T129: 6 | U129: 02509_1 | V129: 100 | W129: 290 | X129: 2025-05-01 | Y129: 2025-12-01 00:00:00.000 | AE129: 2.8064516129
A130: 2025-05-19 | B130: 01967cbf-3e5a-7ada-8c40-0e613f2440bd | C130: 42.207831 | D130: 2 | E130: 6298e714-7e74-4f57-b5f7-bfbc85ea7add | F130: Выделенный облачный пул: 4.5 ГГц AMD Ryzen 9 7950X 16 ядер 164 ГБ RAM | G130: true | H130: 24 | I130: 2025-05-01 | J130: 2025-12-01 00:00:00.000 | K130: false | L130: 1 | M130: 01963353-3219-736a-9da3-ea11c2c374cc | N130: 0193302d-2e8f-7840-bcd4-ce01ca97c757 | O130: true | P130: 01963352-e68f-7258-b961-8410cd46b757 | Q130: 2 | R130: 2025-05-01 03:00:00.000 +0300 | S130: №2291 Акцент (Iambulant) - Миграция с Яндекса | T130: 6 | U130: 02509_1 | V130: 100 | W130: 100370 | X130: 2025-05-01 | Y130: 2025-12-01 00:00:00.000 | AE130: 1,871.1612911387
A131: 2025-05-19 | B131: 01967cbf-3e16-7ada-b761-7199663e630f | C131: 0.0 | D131: 2 | E131: a67aa5fa-d4bb-4ffa-ad2e-60cc790b2a8b | G131: true | H131: 24 | I131: 2025-05-01 | J131: 2025-12-01 00:00:00.000 | K131: false | L131: 1 | M131: 01963353-3219-736a-9da3-ea11c2c374cc | N131: 0193302d-2e8f-7840-bcd4-ce01ca97c757 | O131: true | P131: 01963352-e68f-7258-b961-8410cd46b757 | Q131: 2 | R131: 2025-05-01 03:00:00.000 +0300 | S131: №2291 Акцент (Iambulant) - Миграция с Яндекса | T131: 6 | U131: 02509_1 | V131: 100 | W131: 50172.00008 | X131: 2025-05-01 | Y131: 2025-12-01 00:00:00.000 | AE131: 1,618.4516155510
A132: 2025-05-19 | B132: 01967cbf-3f39-7adb-afba-c1cd5660d910 | C132: 0.0 | D132: 2 | E132: b23d08e4-8457-47b2-88f8-e098be2e5f43 | F132: GPU: RTX4090 24GB RAM | G132: true | H132: 24 | I132: 2025-05-01 | J132: 2025-03-15 00:00:00.000 | K132: true | L132: 1 | M132: 01963353-3219-736a-9da3-ea11c2c374cc | N132: 0193302d-2e8f-7840-bcd4-ce01ca97c757 | O132: true | P132: 01963352-e68f-7258-b961-8410cd46b757 | Q132: 2 | R132: 2025-05-01 03:00:00.000 +0300 | S132: №2291 Акцент (Iambulant) - Миграция с Яндекса | T132: 6 | U132: 02509_1 | V132: 100 | W132: 50054 | X132: 2025-05-01 | Y132: 2025-12-01 00:00:00.000 | AE132: 0.0000000000
A133: 2025-05-19 | B133: 01967cbf-3d9e-7ad6-b9a8-71174cefcba8 | C133: 0.0 | D133: 2 | E133: c1f995e3-227c-4181-8e57-4f4f4470a08d | F133: Резервное копирование Veeam | G133: true | H133: 24 | I133: 2025-05-01 | J133: 2025-12-01 00:00:00.000 | K133: false | L133: 1 | M133: 01963353-3219-736a-9da3-ea11c2c374cc | N133: 0193302d-2e8f-7840-bcd4-ce01ca97c757 | O133: true | P133: 01963352-e68f-7258-b961-8410cd46b757 | Q133: 2 | R133: 2025-05-01 03:00:00.000 +0300 | S133: №2291 Акцент (Iambulant) - Миграция с Яндекса | T133: 6 | U133: 02509_1 | V133: 100 | W133: 7060 | X133: 2025-05-01 | Y133: 2025-12-01 00:00:00.000 | AE133: 227.7419354839
A134: 2025-05-19 | B134: 01967cbf-3d5d-7ad6-80fa-8fbc5fea192e | C134: 0 | D134: 2 | E134: c97a0102-2f06-4417-966d-8c6b61ff845f | F134: Публичный IPv4 адрес | G134: true | H134: 24 | I134: 2025-05-01 | J134: 2025-12-01 00:00:00.000 | K134: true | L134: 6 | M134: 01963353-3219-736a-9da3-ea11c2c374cc | N134: 0193302d-2e8f-7840-bcd4-ce01ca97c757 | O134: true | P134: 01963352-e68f-7258-b961-8410cd46b757 | Q134: 2 | R134: 2025-05-01 03:00:00.000 +0300 | S134: №2291 Акцент (Iambulant) - Миграция с Яндекса | T134: 6 | U134: 02509_1 | V134: 100 | W134: 290 | X134: 2025-05-01 | Y134: 2025-12-01 00:00:00.000 | AE134: 56.1290322581 | AF134: =W134*L134 -> 1740 | AG134: ежемес
A135: 2025-05-20 | B135: 01967cbf-3eed-7ada-90fa-c68dc8363fc8 | C135: 0.0 | D135: 2 | E135: 26151c48-4e77-4c11-9765-fba37dacebdf | F135: Next Generation Cloud: Intel 3.1 ГГц | G135: true | H135: 24 | I135: 2025-05-01 | J135: 2025-03-15 00:00:00.000 | K135: false | L135: 1 | M135: 01963353-3219-736a-9da3-ea11c2c374cc | N135: 0193302d-2e8f-7840-bcd4-ce01ca97c757 | O135: true | P135: 01963352-e68f-7258-b961-8410cd46b757 | Q135: 2 | R135: 2025-05-01 03:00:00.000 +0300 | S135: №2291 Акцент (Iambulant) - Миграция с Яндекса | T135: 6 | U135: 02509_1 | V135: 100 | W135: 7951.99999 | X135: 2025-05-01 | Y135: 2025-12-01 00:00:00.000 | AE135: 0.0000000000
A136: 2025-05-20 | B136: 01967cbf-3e9d-7ada-b7ae-9da195c89d61 | C136: 70.0 | D136: 2 | E136: 2af66cc8-e22e-489e-b9db-52e7fe5daa60 | G136: true | H136: 24 | I136: 2025-05-01 | J136: 2025-12-01 00:00:00.000 | K136: true | L136: 1 | M136: 01963353-3219-736a-9da3-ea11c2c374cc | N136: 0193302d-2e8f-7840-bcd4-ce01ca97c757 | O136: true | P136: 01963352-e68f-7258-b961-8410cd46b757 | Q136: 2 | R136: 2025-05-01 03:00:00.000 +0300 | S136: №2291 Акцент (Iambulant) - Миграция с Яндекса | T136: 6 | U136: 02509_1 | V136: 100 | W136: 290 | X136: 2025-05-01 | Y136: 2025-12-01 00:00:00.000 | AE136: 2.8064516129
A137: 2025-05-20 | B137: 01967cbf-3e5a-7ada-8c40-0e613f2440bd | C137: 42.207831 | D137: 2 | E137: 6298e714-7e74-4f57-b5f7-bfbc85ea7add | F137: Выделенный облачный пул: 4.5 ГГц AMD Ryzen 9 7950X 16 ядер 164 ГБ RAM | G137: true | H137: 24 | I137: 2025-05-01 | J137: 2025-12-01 00:00:00.000 | K137: false | L137: 1 | M137: 01963353-3219-736a-9da3-ea11c2c374cc | N137: 0193302d-2e8f-7840-bcd4-ce01ca97c757 | O137: true | P137: 01963352-e68f-7258-b961-8410cd46b757 | Q137: 2 | R137: 2025-05-01 03:00:00.000 +0300 | S137: №2291 Акцент (Iambulant) - Миграция с Яндекса | T137: 6 | U137: 02509_1 | V137: 100 | W137: 100370 | X137: 2025-05-01 | Y137: 2025-12-01 00:00:00.000 | AE137: 1,871.1612911387
A138: 2025-05-20 | B138: 01967cbf-3e16-7ada-b761-7199663e630f | C138: 0.0 | D138: 2 | E138: a67aa5fa-d4bb-4ffa-ad2e-60cc790b2a8b | G138: true | H138: 24 | I138: 2025-05-01 | J138: 2025-12-01 00:00:00.000 | K138: false | L138: 1 | M138: 01963353-3219-736a-9da3-ea11c2c374cc | N138: 0193302d-2e8f-7840-bcd4-ce01ca97c757 | O138: true | P138: 01963352-e68f-7258-b961-8410cd46b757 | Q138: 2 | R138: 2025-05-01 03:00:00.000 +0300 | S138: №2291 Акцент (Iambulant) - Миграция с Яндекса | T138: 6 | U138: 02509_1 | V138: 100 | W138: 50172.00008 | X138: 2025-05-01 | Y138: 2025-12-01 00:00:00.000 | AE138: 1,618.4516155510
A139: 2025-05-20 | B139: 01967cbf-3f39-7adb-afba-c1cd5660d910 | C139: 0.0 | D139: 2 | E139: b23d08e4-8457-47b2-88f8-e098be2e5f43 | F139: GPU: RTX4090 24GB RAM | G139: true | H139: 24 | I139: 2025-05-01 | J139: 2025-03-15 00:00:00.000 | K139: true | L139: 1 | M139: 01963353-3219-736a-9da3-ea11c2c374cc | N139: 0193302d-2e8f-7840-bcd4-ce01ca97c757 | O139: true | P139: 01963352-e68f-7258-b961-8410cd46b757 | Q139: 2 | R139: 2025-05-01 03:00:00.000 +0300 | S139: №2291 Акцент (Iambulant) - Миграция с Яндекса | T139: 6 | U139: 02509_1 | V139: 100 | W139: 50054 | X139: 2025-05-01 | Y139: 2025-12-01 00:00:00.000 | AE139: 0.0000000000
A140: 2025-05-20 | B140: 01967cbf-3d9e-7ad6-b9a8-71174cefcba8 | C140: 0.0 | D140: 2 | E140: c1f995e3-227c-4181-8e57-4f4f4470a08d | F140: Резервное копирование Veeam | G140: true | H140: 24 | I140: 2025-05-01 | J140: 2025-12-01 00:00:00.000 | K140: false | L140: 1 | M140: 01963353-3219-736a-9da3-ea11c2c374cc | N140: 0193302d-2e8f-7840-bcd4-ce01ca97c757 | O140: true | P140: 01963352-e68f-7258-b961-8410cd46b757 | Q140: 2 | R140: 2025-05-01 03:00:00.000 +0300 | S140: №2291 Акцент (Iambulant) - Миграция с Яндекса | T140: 6 | U140: 02509_1 | V140: 100 | W140: 7060 | X140: 2025-05-01 | Y140: 2025-12-01 00:00:00.000 | AE140: 227.7419354839
A141: 2025-05-20 | B141: 01967cbf-3d5d-7ad6-80fa-8fbc5fea192e | C141: 0 | D141: 2 | E141: c97a0102-2f06-4417-966d-8c6b61ff845f | F141: Публичный IPv4 адрес | G141: true | H141: 24 | I141: 2025-05-01 | J141: 2025-12-01 00:00:00.000 | K141: true | L141: 6 | M141: 01963353-3219-736a-9da3-ea11c2c374cc | N141: 0193302d-2e8f-7840-bcd4-ce01ca97c757 | O141: true | P141: 01963352-e68f-7258-b961-8410cd46b757 | Q141: 2 | R141: 2025-05-01 03:00:00.000 +0300 | S141: №2291 Акцент (Iambulant) - Миграция с Яндекса | T141: 6 | U141: 02509_1 | V141: 100 | W141: 290 | X141: 2025-05-01 | Y141: 2025-12-01 00:00:00.000 | AE141: 56.1290322581 | AF141: =W141*L141 -> 1740 | AG141: ежемес
A142: 2025-05-21 | B142: 01967cbf-3eed-7ada-90fa-c68dc8363fc8 | C142: 0.0 | D142: 2 | E142: 26151c48-4e77-4c11-9765-fba37dacebdf | F142: Next Generation Cloud: Intel 3.1 ГГц | G142: true | H142: 24 | I142: 2025-05-01 | J142: 2025-03-15 00:00:00.000 | K142: false | L142: 1 | M142: 01963353-3219-736a-9da3-ea11c2c374cc | N142: 0193302d-2e8f-7840-bcd4-ce01ca97c757 | O142: true | P142: 01963352-e68f-7258-b961-8410cd46b757 | Q142: 2 | R142: 2025-05-01 03:00:00.000 +0300 | S142: №2291 Акцент (Iambulant) - Миграция с Яндекса | T142: 6 | U142: 02509_1 | V142: 100 | W142: 7951.99999 | X142: 2025-05-01 | Y142: 2025-12-01 00:00:00.000 | AE142: 0.0000000000
A143: 2025-05-21 | B143: 01967cbf-3e9d-7ada-b7ae-9da195c89d61 | C143: 70.0 | D143: 2 | E143: 2af66cc8-e22e-489e-b9db-52e7fe5daa60 | G143: true | H143: 24 | I143: 2025-05-01 | J143: 2025-12-01 00:00:00.000 | K143: true | L143: 1 | M143: 01963353-3219-736a-9da3-ea11c2c374cc | N143: 0193302d-2e8f-7840-bcd4-ce01ca97c757 | O143: true | P143: 01963352-e68f-7258-b961-8410cd46b757 | Q143: 2 | R143: 2025-05-01 03:00:00.000 +0300 | S143: №2291 Акцент (Iambulant) - Миграция с Яндекса | T143: 6 | U143: 02509_1 | V143: 100 | W143: 290 | X143: 2025-05-01 | Y143: 2025-12-01 00:00:00.000 | AE143: 2.8064516129
A144: 2025-05-21 | B144: 01967cbf-3e5a-7ada-8c40-0e613f2440bd | C144: 42.207831 | D144: 2 | E144: 6298e714-7e74-4f57-b5f7-bfbc85ea7add | F144: Выделенный облачный пул: 4.5 ГГц AMD Ryzen 9 7950X 16 ядер 164 ГБ RAM | G144: true | H144: 24 | I144: 2025-05-01 | J144: 2025-12-01 00:00:00.000 | K144: false | L144: 1 | M144: 01963353-3219-736a-9da3-ea11c2c374cc | N144: 0193302d-2e8f-7840-bcd4-ce01ca97c757 | O144: true | P144: 01963352-e68f-7258-b961-8410cd46b757 | Q144: 2 | R144: 2025-05-01 03:00:00.000 +0300 | S144: №2291 Акцент (Iambulant) - Миграция с Яндекса | T144: 6 | U144: 02509_1 | V144: 100 | W144: 100370 | X144: 2025-05-01 | Y144: 2025-12-01 00:00:00.000 | AE144: 1,871.1612911387
A145: 2025-05-21 | B145: 01967cbf-3e16-7ada-b761-7199663e630f | C145: 0.0 | D145: 2 | E145: a67aa5fa-d4bb-4ffa-ad2e-60cc790b2a8b | G145: true | H145: 24 | I145: 2025-05-01 | J145: 2025-12-01 00:00:00.000 | K145: false | L145: 1 | M145: 01963353-3219-736a-9da3-ea11c2c374cc | N145: 0193302d-2e8f-7840-bcd4-ce01ca97c757 | O145: true | P145: 01963352-e68f-7258-b961-8410cd46b757 | Q145: 2 | R145: 2025-05-01 03:00:00.000 +0300 | S145: №2291 Акцент (Iambulant) - Миграция с Яндекса | T145: 6 | U145: 02509_1 | V145: 100 | W145: 50172.00008 | X145: 2025-05-01 | Y145: 2025-12-01 00:00:00.000 | AE145: 1,618.4516155510
A146: 2025-05-21 | B146: 01967cbf-3f39-7adb-afba-c1cd5660d910 | C146: 0.0 | D146: 2 | E146: b23d08e4-8457-47b2-88f8-e098be2e5f43 | F146: GPU: RTX4090 24GB RAM | G146: true | H146: 24 | I146: 2025-05-01 | J146: 2025-03-15 00:00:00.000 | K146: true | L146: 1 | M146: 01963353-3219-736a-9da3-ea11c2c374cc | N146: 0193302d-2e8f-7840-bcd4-ce01ca97c757 | O146: true | P146: 01963352-e68f-7258-b961-8410cd46b757 | Q146: 2 | R146: 2025-05-01 03:00:00.000 +0300 | S146: №2291 Акцент (Iambulant) - Миграция с Яндекса | T146: 6 | U146: 02509_1 | V146: 100 | W146: 50054 | X146: 2025-05-01 | Y146: 2025-12-01 00:00:00.000 | AE146: 0.0000000000
A147: 2025-05-21 | B147: 01967cbf-3d9e-7ad6-b9a8-71174cefcba8 | C147: 0.0 | D147: 2 | E147: c1f995e3-227c-4181-8e57-4f4f4470a08d | F147: Резервное копирование Veeam | G147: true | H147: 24 | I147: 2025-05-01 | J147: 2025-12-01 00:00:00.000 | K147: false | L147: 1 | M147: 01963353-3219-736a-9da3-ea11c2c374cc | N147: 0193302d-2e8f-7840-bcd4-ce01ca97c757 | O147: true | P147: 01963352-e68f-7258-b961-8410cd46b757 | Q147: 2 | R147: 2025-05-01 03:00:00.000 +0300 | S147: №2291 Акцент (Iambulant) - Миграция с Яндекса | T147: 6 | U147: 02509_1 | V147: 100 | W147: 7060 | X147: 2025-05-01 | Y147: 2025-12-01 00:00:00.000 | AE147: 227.7419354839
A148: 2025-05-21 | B148: 01967cbf-3d5d-7ad6-80fa-8fbc5fea192e | C148: 0 | D148: 2 | E148: c97a0102-2f06-4417-966d-8c6b61ff845f | F148: Публичный IPv4 адрес | G148: true | H148: 24 | I148: 2025-05-01 | J148: 2025-12-01 00:00:00.000 | K148: true | L148: 6 | M148: 01963353-3219-736a-9da3-ea11c2c374cc | N148: 0193302d-2e8f-7840-bcd4-ce01ca97c757 | O148: true | P148: 01963352-e68f-7258-b961-8410cd46b757 | Q148: 2 | R148: 2025-05-01 03:00:00.000 +0300 | S148: №2291 Акцент (Iambulant) - Миграция с Яндекса | T148: 6 | U148: 02509_1 | V148: 100 | W148: 290 | X148: 2025-05-01 | Y148: 2025-12-01 00:00:00.000 | AE148: 56.1290322581 | AF148: =W148*L148 -> 1740 | AG148: ежемес
A149: 2025-05-22 | B149: 01967cbf-3eed-7ada-90fa-c68dc8363fc8 | C149: 0.0 | D149: 2 | E149: 26151c48-4e77-4c11-9765-fba37dacebdf | F149: Next Generation Cloud: Intel 3.1 ГГц | G149: true | H149: 24 | I149: 2025-05-01 | J149: 2025-03-15 00:00:00.000 | K149: false | L149: 1 | M149: 01963353-3219-736a-9da3-ea11c2c374cc | N149: 0193302d-2e8f-7840-bcd4-ce01ca97c757 | O149: true | P149: 01963352-e68f-7258-b961-8410cd46b757 | Q149: 2 | R149: 2025-05-01 03:00:00.000 +0300 | S149: №2291 Акцент (Iambulant) - Миграция с Яндекса | T149: 6 | U149: 02509_1 | V149: 100 | W149: 7951.99999 | X149: 2025-05-01 | Y149: 2025-12-01 00:00:00.000 | AE149: 0.0000000000
A150: 2025-05-22 | B150: 01967cbf-3e9d-7ada-b7ae-9da195c89d61 | C150: 70.0 | D150: 2 | E150: 2af66cc8-e22e-489e-b9db-52e7fe5daa60 | G150: true | H150: 24 | I150: 2025-05-01 | J150: 2025-12-01 00:00:00.000 | K150: true | L150: 1 | M150: 01963353-3219-736a-9da3-ea11c2c374cc | N150: 0193302d-2e8f-7840-bcd4-ce01ca97c757 | O150: true | P150: 01963352-e68f-7258-b961-8410cd46b757 | Q150: 2 | R150: 2025-05-01 03:00:00.000 +0300 | S150: №2291 Акцент (Iambulant) - Миграция с Яндекса | T150: 6 | U150: 02509_1 | V150: 100 | W150: 290 | X150: 2025-05-01 | Y150: 2025-12-01 00:00:00.000 | AE150: 2.8064516129
A151: 2025-05-22 | B151: 01967cbf-3e5a-7ada-8c40-0e613f2440bd | C151: 42.207831 | D151: 2 | E151: 6298e714-7e74-4f57-b5f7-bfbc85ea7add | F151: Выделенный облачный пул: 4.5 ГГц AMD Ryzen 9 7950X 16 ядер 164 ГБ RAM | G151: true | H151: 24 | I151: 2025-05-01 | J151: 2025-12-01 00:00:00.000 | K151: false | L151: 1 | M151: 01963353-3219-736a-9da3-ea11c2c374cc | N151: 0193302d-2e8f-7840-bcd4-ce01ca97c757 | O151: true | P151: 01963352-e68f-7258-b961-8410cd46b757 | Q151: 2 | R151: 2025-05-01 03:00:00.000 +0300 | S151: №2291 Акцент (Iambulant) - Миграция с Яндекса | T151: 6 | U151: 02509_1 | V151: 100 | W151: 100370 | X151: 2025-05-01 | Y151: 2025-12-01 00:00:00.000 | AE151: 1,871.1612911387
A152: 2025-05-22 | B152: 01967cbf-3e16-7ada-b761-7199663e630f | C152: 0.0 | D152: 2 | E152: a67aa5fa-d4bb-4ffa-ad2e-60cc790b2a8b | G152: true | H152: 24 | I152: 2025-05-01 | J152: 2025-12-01 00:00:00.000 | K152: false | L152: 1 | M152: 01963353-3219-736a-9da3-ea11c2c374cc | N152: 0193302d-2e8f-7840-bcd4-ce01ca97c757 | O152: true | P152: 01963352-e68f-7258-b961-8410cd46b757 | Q152: 2 | R152: 2025-05-01 03:00:00.000 +0300 | S152: №2291 Акцент (Iambulant) - Миграция с Яндекса | T152: 6 | U152: 02509_1 | V152: 100 | W152: 50172.00008 | X152: 2025-05-01 | Y152: 2025-12-01 00:00:00.000 | AE152: 1,618.4516155510
A153: 2025-05-22 | B153: 01967cbf-3f39-7adb-afba-c1cd5660d910 | C153: 0.0 | D153: 2 | E153: b23d08e4-8457-47b2-88f8-e098be2e5f43 | F153: GPU: RTX4090 24GB RAM | G153: true | H153: 24 | I153: 2025-05-01 | J153: 2025-03-15 00:00:00.000 | K153: true | L153: 1 | M153: 01963353-3219-736a-9da3-ea11c2c374cc | N153: 0193302d-2e8f-7840-bcd4-ce01ca97c757 | O153: true | P153: 01963352-e68f-7258-b961-8410cd46b757 | Q153: 2 | R153: 2025-05-01 03:00:00.000 +0300 | S153: №2291 Акцент (Iambulant) - Миграция с Яндекса | T153: 6 | U153: 02509_1 | V153: 100 | W153: 50054 | X153: 2025-05-01 | Y153: 2025-12-01 00:00:00.000 | AE153: 0.0000000000
A154: 2025-05-22 | B154: 01967cbf-3d9e-7ad6-b9a8-71174cefcba8 | C154: 0.0 | D154: 2 | E154: c1f995e3-227c-4181-8e57-4f4f4470a08d | F154: Резервное копирование Veeam | G154: true | H154: 24 | I154: 2025-05-01 | J154: 2025-12-01 00:00:00.000 | K154: false | L154: 1 | M154: 01963353-3219-736a-9da3-ea11c2c374cc | N154: 0193302d-2e8f-7840-bcd4-ce01ca97c757 | O154: true | P154: 01963352-e68f-7258-b961-8410cd46b757 | Q154: 2 | R154: 2025-05-01 03:00:00.000 +0300 | S154: №2291 Акцент (Iambulant) - Миграция с Яндекса | T154: 6 | U154: 02509_1 | V154: 100 | W154: 7060 | X154: 2025-05-01 | Y154: 2025-12-01 00:00:00.000 | AE154: 227.7419354839
A155: 2025-05-22 | B155: 01967cbf-3d5d-7ad6-80fa-8fbc5fea192e | C155: 0 | D155: 2 | E155: c97a0102-2f06-4417-966d-8c6b61ff845f | F155: Публичный IPv4 адрес | G155: true | H155: 24 | I155: 2025-05-01 | J155: 2025-12-01 00:00:00.000 | K155: true | L155: 6 | M155: 01963353-3219-736a-9da3-ea11c2c374cc | N155: 0193302d-2e8f-7840-bcd4-ce01ca97c757 | O155: true | P155: 01963352-e68f-7258-b961-8410cd46b757 | Q155: 2 | R155: 2025-05-01 03:00:00.000 +0300 | S155: №2291 Акцент (Iambulant) - Миграция с Яндекса | T155: 6 | U155: 02509_1 | V155: 100 | W155: 290 | X155: 2025-05-01 | Y155: 2025-12-01 00:00:00.000 | AE155: 56.1290322581 | AF155: =W155*L155 -> 1740 | AG155: ежемес
A156: 2025-05-23 | B156: 01967cbf-3eed-7ada-90fa-c68dc8363fc8 | C156: 0.0 | D156: 2 | E156: 26151c48-4e77-4c11-9765-fba37dacebdf | F156: Next Generation Cloud: Intel 3.1 ГГц | G156: true | H156: 24 | I156: 2025-05-01 | J156: 2025-03-15 00:00:00.000 | K156: false | L156: 1 | M156: 01963353-3219-736a-9da3-ea11c2c374cc | N156: 0193302d-2e8f-7840-bcd4-ce01ca97c757 | O156: true | P156: 01963352-e68f-7258-b961-8410cd46b757 | Q156: 2 | R156: 2025-05-01 03:00:00.000 +0300 | S156: №2291 Акцент (Iambulant) - Миграция с Яндекса | T156: 6 | U156: 02509_1 | V156: 100 | W156: 7951.99999 | X156: 2025-05-01 | Y156: 2025-12-01 00:00:00.000 | AE156: 0.0000000000
A157: 2025-05-23 | B157: 01967cbf-3e9d-7ada-b7ae-9da195c89d61 | C157: 70.0 | D157: 2 | E157: 2af66cc8-e22e-489e-b9db-52e7fe5daa60 | G157: true | H157: 24 | I157: 2025-05-01 | J157: 2025-12-01 00:00:00.000 | K157: true | L157: 1 | M157: 01963353-3219-736a-9da3-ea11c2c374cc | N157: 0193302d-2e8f-7840-bcd4-ce01ca97c757 | O157: true | P157: 01963352-e68f-7258-b961-8410cd46b757 | Q157: 2 | R157: 2025-05-01 03:00:00.000 +0300 | S157: №2291 Акцент (Iambulant) - Миграция с Яндекса | T157: 6 | U157: 02509_1 | V157: 100 | W157: 290 | X157: 2025-05-01 | Y157: 2025-12-01 00:00:00.000 | AE157: 2.8064516129
A158: 2025-05-23 | B158: 01967cbf-3e5a-7ada-8c40-0e613f2440bd | C158: 42.207831 | D158: 2 | E158: 6298e714-7e74-4f57-b5f7-bfbc85ea7add | F158: Выделенный облачный пул: 4.5 ГГц AMD Ryzen 9 7950X 16 ядер 164 ГБ RAM | G158: true | H158: 24 | I158: 2025-05-01 | J158: 2025-12-01 00:00:00.000 | K158: false | L158: 1 | M158: 01963353-3219-736a-9da3-ea11c2c374cc | N158: 0193302d-2e8f-7840-bcd4-ce01ca97c757 | O158: true | P158: 01963352-e68f-7258-b961-8410cd46b757 | Q158: 2 | R158: 2025-05-01 03:00:00.000 +0300 | S158: №2291 Акцент (Iambulant) - Миграция с Яндекса | T158: 6 | U158: 02509_1 | V158: 100 | W158: 100370 | X158: 2025-05-01 | Y158: 2025-12-01 00:00:00.000 | AE158: 1,871.1612911387
A159: 2025-05-23 | B159: 01967cbf-3e16-7ada-b761-7199663e630f | C159: 0.0 | D159: 2 | E159: a67aa5fa-d4bb-4ffa-ad2e-60cc790b2a8b | G159: true | H159: 24 | I159: 2025-05-01 | J159: 2025-12-01 00:00:00.000 | K159: false | L159: 1 | M159: 01963353-3219-736a-9da3-ea11c2c374cc | N159: 0193302d-2e8f-7840-bcd4-ce01ca97c757 | O159: true | P159: 01963352-e68f-7258-b961-8410cd46b757 | Q159: 2 | R159: 2025-05-01 03:00:00.000 +0300 | S159: №2291 Акцент (Iambulant) - Миграция с Яндекса | T159: 6 | U159: 02509_1 | V159: 100 | W159: 50172.00008 | X159: 2025-05-01 | Y159: 2025-12-01 00:00:00.000 | AE159: 1,618.4516155510
A160: 2025-05-23 | B160: 01967cbf-3f39-7adb-afba-c1cd5660d910 | C160: 0.0 | D160: 2 | E160: b23d08e4-8457-47b2-88f8-e098be2e5f43 | F160: GPU: RTX4090 24GB RAM | G160: true | H160: 24 | I160: 2025-05-01 | J160: 2025-03-15 00:00:00.000 | K160: true | L160: 1 | M160: 01963353-3219-736a-9da3-ea11c2c374cc | N160: 0193302d-2e8f-7840-bcd4-ce01ca97c757 | O160: true | P160: 01963352-e68f-7258-b961-8410cd46b757 | Q160: 2 | R160: 2025-05-01 03:00:00.000 +0300 | S160: №2291 Акцент (Iambulant) - Миграция с Яндекса | T160: 6 | U160: 02509_1 | V160: 100 | W160: 50054 | X160: 2025-05-01 | Y160: 2025-12-01 00:00:00.000 | AE160: 0.0000000000
A161: 2025-05-23 | B161: 01967cbf-3d9e-7ad6-b9a8-71174cefcba8 | C161: 0.0 | D161: 2 | E161: c1f995e3-227c-4181-8e57-4f4f4470a08d | F161: Резервное копирование Veeam | G161: true | H161: 24 | I161: 2025-05-01 | J161: 2025-12-01 00:00:00.000 | K161: false | L161: 1 | M161: 01963353-3219-736a-9da3-ea11c2c374cc | N161: 0193302d-2e8f-7840-bcd4-ce01ca97c757 | O161: true | P161: 01963352-e68f-7258-b961-8410cd46b757 | Q161: 2 | R161: 2025-05-01 03:00:00.000 +0300 | S161: №2291 Акцент (Iambulant) - Миграция с Яндекса | T161: 6 | U161: 02509_1 | V161: 100 | W161: 7060 | X161: 2025-05-01 | Y161: 2025-12-01 00:00:00.000 | AE161: 227.7419354839
A162: 2025-05-23 | B162: 01967cbf-3d5d-7ad6-80fa-8fbc5fea192e | C162: 0 | D162: 2 | E162: c97a0102-2f06-4417-966d-8c6b61ff845f | F162: Публичный IPv4 адрес | G162: true | H162: 24 | I162: 2025-05-01 | J162: 2025-12-01 00:00:00.000 | K162: true | L162: 6 | M162: 01963353-3219-736a-9da3-ea11c2c374cc | N162: 0193302d-2e8f-7840-bcd4-ce01ca97c757 | O162: true | P162: 01963352-e68f-7258-b961-8410cd46b757 | Q162: 2 | R162: 2025-05-01 03:00:00.000 +0300 | S162: №2291 Акцент (Iambulant) - Миграция с Яндекса | T162: 6 | U162: 02509_1 | V162: 100 | W162: 290 | X162: 2025-05-01 | Y162: 2025-12-01 00:00:00.000 | AE162: 56.1290322581 | AF162: =W162*L162 -> 1740 | AG162: ежемес
A163: 2025-05-24 | B163: 01967cbf-3eed-7ada-90fa-c68dc8363fc8 | C163: 0.0 | D163: 2 | E163: 26151c48-4e77-4c11-9765-fba37dacebdf | F163: Next Generation Cloud: Intel 3.1 ГГц | G163: true | H163: 24 | I163: 2025-05-01 | J163: 2025-03-15 00:00:00.000 | K163: false | L163: 1 | M163: 01963353-3219-736a-9da3-ea11c2c374cc | N163: 0193302d-2e8f-7840-bcd4-ce01ca97c757 | O163: true | P163: 01963352-e68f-7258-b961-8410cd46b757 | Q163: 2 | R163: 2025-05-01 03:00:00.000 +0300 | S163: №2291 Акцент (Iambulant) - Миграция с Яндекса | T163: 6 | U163: 02509_1 | V163: 100 | W163: 7951.99999 | X163: 2025-05-01 | Y163: 2025-12-01 00:00:00.000 | AE163: 0.0000000000
A164: 2025-05-24 | B164: 01967cbf-3e9d-7ada-b7ae-9da195c89d61 | C164: 70.0 | D164: 2 | E164: 2af66cc8-e22e-489e-b9db-52e7fe5daa60 | G164: true | H164: 24 | I164: 2025-05-01 | J164: 2025-12-01 00:00:00.000 | K164: true | L164: 1 | M164: 01963353-3219-736a-9da3-ea11c2c374cc | N164: 0193302d-2e8f-7840-bcd4-ce01ca97c757 | O164: true | P164: 01963352-e68f-7258-b961-8410cd46b757 | Q164: 2 | R164: 2025-05-01 03:00:00.000 +0300 | S164: №2291 Акцент (Iambulant) - Миграция с Яндекса | T164: 6 | U164: 02509_1 | V164: 100 | W164: 290 | X164: 2025-05-01 | Y164: 2025-12-01 00:00:00.000 | AE164: 2.8064516129
A165: 2025-05-24 | B165: 01967cbf-3e5a-7ada-8c40-0e613f2440bd | C165: 42.207831 | D165: 2 | E165: 6298e714-7e74-4f57-b5f7-bfbc85ea7add | F165: Выделенный облачный пул: 4.5 ГГц AMD Ryzen 9 7950X 16 ядер 164 ГБ RAM | G165: true | H165: 24 | I165: 2025-05-01 | J165: 2025-12-01 00:00:00.000 | K165: false | L165: 1 | M165: 01963353-3219-736a-9da3-ea11c2c374cc | N165: 0193302d-2e8f-7840-bcd4-ce01ca97c757 | O165: true | P165: 01963352-e68f-7258-b961-8410cd46b757 | Q165: 2 | R165: 2025-05-01 03:00:00.000 +0300 | S165: №2291 Акцент (Iambulant) - Миграция с Яндекса | T165: 6 | U165: 02509_1 | V165: 100 | W165: 100370 | X165: 2025-05-01 | Y165: 2025-12-01 00:00:00.000 | AE165: 1,871.1612911387
A166: 2025-05-24 | B166: 01967cbf-3e16-7ada-b761-7199663e630f | C166: 0.0 | D166: 2 | E166: a67aa5fa-d4bb-4ffa-ad2e-60cc790b2a8b | G166: true | H166: 24 | I166: 2025-05-01 | J166: 2025-12-01 00:00:00.000 | K166: false | L166: 1 | M166: 01963353-3219-736a-9da3-ea11c2c374cc | N166: 0193302d-2e8f-7840-bcd4-ce01ca97c757 | O166: true | P166: 01963352-e68f-7258-b961-8410cd46b757 | Q166: 2 | R166: 2025-05-01 03:00:00.000 +0300 | S166: №2291 Акцент (Iambulant) - Миграция с Яндекса | T166: 6 | U166: 02509_1 | V166: 100 | W166: 50172.00008 | X166: 2025-05-01 | Y166: 2025-12-01 00:00:00.000 | AE166: 1,618.4516155510
A167: 2025-05-24 | B167: 01967cbf-3f39-7adb-afba-c1cd5660d910 | C167: 0.0 | D167: 2 | E167: b23d08e4-8457-47b2-88f8-e098be2e5f43 | F167: GPU: RTX4090 24GB RAM | G167: true | H167: 24 | I167: 2025-05-01 | J167: 2025-03-15 00:00:00.000 | K167: true | L167: 1 | M167: 01963353-3219-736a-9da3-ea11c2c374cc | N167: 0193302d-2e8f-7840-bcd4-ce01ca97c757 | O167: true | P167: 01963352-e68f-7258-b961-8410cd46b757 | Q167: 2 | R167: 2025-05-01 03:00:00.000 +0300 | S167: №2291 Акцент (Iambulant) - Миграция с Яндекса | T167: 6 | U167: 02509_1 | V167: 100 | W167: 50054 | X167: 2025-05-01 | Y167: 2025-12-01 00:00:00.000 | AE167: 0.0000000000
A168: 2025-05-24 | B168: 01967cbf-3d9e-7ad6-b9a8-71174cefcba8 | C168: 0.0 | D168: 2 | E168: c1f995e3-227c-4181-8e57-4f4f4470a08d | F168: Резервное копирование Veeam | G168: true | H168: 24 | I168: 2025-05-01 | J168: 2025-12-01 00:00:00.000 | K168: false | L168: 1 | M168: 01963353-3219-736a-9da3-ea11c2c374cc | N168: 0193302d-2e8f-7840-bcd4-ce01ca97c757 | O168: true | P168: 01963352-e68f-7258-b961-8410cd46b757 | Q168: 2 | R168: 2025-05-01 03:00:00.000 +0300 | S168: №2291 Акцент (Iambulant) - Миграция с Яндекса | T168: 6 | U168: 02509_1 | V168: 100 | W168: 7060 | X168: 2025-05-01 | Y168: 2025-12-01 00:00:00.000 | AE168: 227.7419354839
A169: 2025-05-24 | B169: 01967cbf-3d5d-7ad6-80fa-8fbc5fea192e | C169: 0 | D169: 2 | E169: c97a0102-2f06-4417-966d-8c6b61ff845f | F169: Публичный IPv4 адрес | G169: true | H169: 24 | I169: 2025-05-01 | J169: 2025-12-01 00:00:00.000 | K169: true | L169: 6 | M169: 01963353-3219-736a-9da3-ea11c2c374cc | N169: 0193302d-2e8f-7840-bcd4-ce01ca97c757 | O169: true | P169: 01963352-e68f-7258-b961-8410cd46b757 | Q169: 2 | R169: 2025-05-01 03:00:00.000 +0300 | S169: №2291 Акцент (Iambulant) - Миграция с Яндекса | T169: 6 | U169: 02509_1 | V169: 100 | W169: 290 | X169: 2025-05-01 | Y169: 2025-12-01 00:00:00.000 | AE169: 56.1290322581 | AF169: =W169*L169 -> 1740 | AG169: ежемес
A170: 2025-05-25 | B170: 01967cbf-3eed-7ada-90fa-c68dc8363fc8 | C170: 0.0 | D170: 2 | E170: 26151c48-4e77-4c11-9765-fba37dacebdf | F170: Next Generation Cloud: Intel 3.1 ГГц | G170: true | H170: 24 | I170: 2025-05-01 | J170: 2025-03-15 00:00:00.000 | K170: false | L170: 1 | M170: 01963353-3219-736a-9da3-ea11c2c374cc | N170: 0193302d-2e8f-7840-bcd4-ce01ca97c757 | O170: true | P170: 01963352-e68f-7258-b961-8410cd46b757 | Q170: 2 | R170: 2025-05-01 03:00:00.000 +0300 | S170: №2291 Акцент (Iambulant) - Миграция с Яндекса | T170: 6 | U170: 02509_1 | V170: 100 | W170: 7951.99999 | X170: 2025-05-01 | Y170: 2025-12-01 00:00:00.000 | AE170: 0.0000000000
A171: 2025-05-25 | B171: 01967cbf-3e9d-7ada-b7ae-9da195c89d61 | C171: 70.0 | D171: 2 | E171: 2af66cc8-e22e-489e-b9db-52e7fe5daa60 | G171: true | H171: 24 | I171: 2025-05-01 | J171: 2025-12-01 00:00:00.000 | K171: true | L171: 1 | M171: 01963353-3219-736a-9da3-ea11c2c374cc | N171: 0193302d-2e8f-7840-bcd4-ce01ca97c757 | O171: true | P171: 01963352-e68f-7258-b961-8410cd46b757 | Q171: 2 | R171: 2025-05-01 03:00:00.000 +0300 | S171: №2291 Акцент (Iambulant) - Миграция с Яндекса | T171: 6 | U171: 02509_1 | V171: 100 | W171: 290 | X171: 2025-05-01 | Y171: 2025-12-01 00:00:00.000 | AE171: 2.8064516129
A172: 2025-05-25 | B172: 01967cbf-3e5a-7ada-8c40-0e613f2440bd | C172: 42.207831 | D172: 2 | E172: 6298e714-7e74-4f57-b5f7-bfbc85ea7add | F172: Выделенный облачный пул: 4.5 ГГц AMD Ryzen 9 7950X 16 ядер 164 ГБ RAM | G172: true | H172: 24 | I172: 2025-05-01 | J172: 2025-12-01 00:00:00.000 | K172: false | L172: 1 | M172: 01963353-3219-736a-9da3-ea11c2c374cc | N172: 0193302d-2e8f-7840-bcd4-ce01ca97c757 | O172: true | P172: 01963352-e68f-7258-b961-8410cd46b757 | Q172: 2 | R172: 2025-05-01 03:00:00.000 +0300 | S172: №2291 Акцент (Iambulant) - Миграция с Яндекса | T172: 6 | U172: 02509_1 | V172: 100 | W172: 100370 | X172: 2025-05-01 | Y172: 2025-12-01 00:00:00.000 | AE172: 1,871.1612911387
A173: 2025-05-25 | B173: 01967cbf-3e16-7ada-b761-7199663e630f | C173: 0.0 | D173: 2 | E173: a67aa5fa-d4bb-4ffa-ad2e-60cc790b2a8b | G173: true | H173: 24 | I173: 2025-05-01 | J173: 2025-12-01 00:00:00.000 | K173: false | L173: 1 | M173: 01963353-3219-736a-9da3-ea11c2c374cc | N173: 0193302d-2e8f-7840-bcd4-ce01ca97c757 | O173: true | P173: 01963352-e68f-7258-b961-8410cd46b757 | Q173: 2 | R173: 2025-05-01 03:00:00.000 +0300 | S173: №2291 Акцент (Iambulant) - Миграция с Яндекса | T173: 6 | U173: 02509_1 | V173: 100 | W173: 50172.00008 | X173: 2025-05-01 | Y173: 2025-12-01 00:00:00.000 | AE173: 1,618.4516155510
A174: 2025-05-25 | B174: 01967cbf-3f39-7adb-afba-c1cd5660d910 | C174: 0.0 | D174: 2 | E174: b23d08e4-8457-47b2-88f8-e098be2e5f43 | F174: GPU: RTX4090 24GB RAM | G174: true | H174: 24 | I174: 2025-05-01 | J174: 2025-03-15 00:00:00.000 | K174: true | L174: 1 | M174: 01963353-3219-736a-9da3-ea11c2c374cc | N174: 0193302d-2e8f-7840-bcd4-ce01ca97c757 | O174: true | P174: 01963352-e68f-7258-b961-8410cd46b757 | Q174: 2 | R174: 2025-05-01 03:00:00.000 +0300 | S174: №2291 Акцент (Iambulant) - Миграция с Яндекса | T174: 6 | U174: 02509_1 | V174: 100 | W174: 50054 | X174: 2025-05-01 | Y174: 2025-12-01 00:00:00.000 | AE174: 0.0000000000
A175: 2025-05-25 | B175: 01967cbf-3d9e-7ad6-b9a8-71174cefcba8 | C175: 0.0 | D175: 2 | E175: c1f995e3-227c-4181-8e57-4f4f4470a08d | F175: Резервное копирование Veeam | G175: true | H175: 24 | I175: 2025-05-01 | J175: 2025-12-01 00:00:00.000 | K175: false | L175: 1 | M175: 01963353-3219-736a-9da3-ea11c2c374cc | N175: 0193302d-2e8f-7840-bcd4-ce01ca97c757 | O175: true | P175: 01963352-e68f-7258-b961-8410cd46b757 | Q175: 2 | R175: 2025-05-01 03:00:00.000 +0300 | S175: №2291 Акцент (Iambulant) - Миграция с Яндекса | T175: 6 | U175: 02509_1 | V175: 100 | W175: 7060 | X175: 2025-05-01 | Y175: 2025-12-01 00:00:00.000 | AE175: 227.7419354839
A176: 2025-05-25 | B176: 01967cbf-3d5d-7ad6-80fa-8fbc5fea192e | C176: 0 | D176: 2 | E176: c97a0102-2f06-4417-966d-8c6b61ff845f | F176: Публичный IPv4 адрес | G176: true | H176: 24 | I176: 2025-05-01 | J176: 2025-12-01 00:00:00.000 | K176: true | L176: 6 | M176: 01963353-3219-736a-9da3-ea11c2c374cc | N176: 0193302d-2e8f-7840-bcd4-ce01ca97c757 | O176: true | P176: 01963352-e68f-7258-b961-8410cd46b757 | Q176: 2 | R176: 2025-05-01 03:00:00.000 +0300 | S176: №2291 Акцент (Iambulant) - Миграция с Яндекса | T176: 6 | U176: 02509_1 | V176: 100 | W176: 290 | X176: 2025-05-01 | Y176: 2025-12-01 00:00:00.000 | AE176: 56.1290322581 | AF176: =W176*L176 -> 1740 | AG176: ежемес
A177: 2025-05-26 | B177: 01967cbf-3eed-7ada-90fa-c68dc8363fc8 | C177: 0.0 | D177: 2 | E177: 26151c48-4e77-4c11-9765-fba37dacebdf | F177: Next Generation Cloud: Intel 3.1 ГГц | G177: true | H177: 24 | I177: 2025-05-01 | J177: 2025-03-15 00:00:00.000 | K177: false | L177: 1 | M177: 01963353-3219-736a-9da3-ea11c2c374cc | N177: 0193302d-2e8f-7840-bcd4-ce01ca97c757 | O177: true | P177: 01963352-e68f-7258-b961-8410cd46b757 | Q177: 2 | R177: 2025-05-01 03:00:00.000 +0300 | S177: №2291 Акцент (Iambulant) - Миграция с Яндекса | T177: 6 | U177: 02509_1 | V177: 100 | W177: 7951.99999 | X177: 2025-05-01 | Y177: 2025-12-01 00:00:00.000 | AE177: 0.0000000000
A178: 2025-05-26 | B178: 01967cbf-3e9d-7ada-b7ae-9da195c89d61 | C178: 70.0 | D178: 2 | E178: 2af66cc8-e22e-489e-b9db-52e7fe5daa60 | G178: true | H178: 24 | I178: 2025-05-01 | J178: 2025-12-01 00:00:00.000 | K178: true | L178: 1 | M178: 01963353-3219-736a-9da3-ea11c2c374cc | N178: 0193302d-2e8f-7840-bcd4-ce01ca97c757 | O178: true | P178: 01963352-e68f-7258-b961-8410cd46b757 | Q178: 2 | R178: 2025-05-01 03:00:00.000 +0300 | S178: №2291 Акцент (Iambulant) - Миграция с Яндекса | T178: 6 | U178: 02509_1 | V178: 100 | W178: 290 | X178: 2025-05-01 | Y178: 2025-12-01 00:00:00.000 | AE178: 2.8064516129
A179: 2025-05-26 | B179: 01967cbf-3e5a-7ada-8c40-0e613f2440bd | C179: 42.207831 | D179: 2 | E179: 6298e714-7e74-4f57-b5f7-bfbc85ea7add | F179: Выделенный облачный пул: 4.5 ГГц AMD Ryzen 9 7950X 16 ядер 164 ГБ RAM | G179: true | H179: 24 | I179: 2025-05-01 | J179: 2025-12-01 00:00:00.000 | K179: false | L179: 1 | M179: 01963353-3219-736a-9da3-ea11c2c374cc | N179: 0193302d-2e8f-7840-bcd4-ce01ca97c757 | O179: true | P179: 01963352-e68f-7258-b961-8410cd46b757 | Q179: 2 | R179: 2025-05-01 03:00:00.000 +0300 | S179: №2291 Акцент (Iambulant) - Миграция с Яндекса | T179: 6 | U179: 02509_1 | V179: 100 | W179: 100370 | X179: 2025-05-01 | Y179: 2025-12-01 00:00:00.000 | AE179: 1,871.1612911387
A180: 2025-05-26 | B180: 01967cbf-3e16-7ada-b761-7199663e630f | C180: 0.0 | D180: 2 | E180: a67aa5fa-d4bb-4ffa-ad2e-60cc790b2a8b | G180: true | H180: 24 | I180: 2025-05-01 | J180: 2025-12-01 00:00:00.000 | K180: false | L180: 1 | M180: 01963353-3219-736a-9da3-ea11c2c374cc | N180: 0193302d-2e8f-7840-bcd4-ce01ca97c757 | O180: true | P180: 01963352-e68f-7258-b961-8410cd46b757 | Q180: 2 | R180: 2025-05-01 03:00:00.000 +0300 | S180: №2291 Акцент (Iambulant) - Миграция с Яндекса | T180: 6 | U180: 02509_1 | V180: 100 | W180: 50172.00008 | X180: 2025-05-01 | Y180: 2025-12-01 00:00:00.000 | AE180: 1,618.4516155510
A181: 2025-05-26 | B181: 01967cbf-3f39-7adb-afba-c1cd5660d910 | C181: 0.0 | D181: 2 | E181: b23d08e4-8457-47b2-88f8-e098be2e5f43 | F181: GPU: RTX4090 24GB RAM | G181: true | H181: 24 | I181: 2025-05-01 | J181: 2025-03-15 00:00:00.000 | K181: true | L181: 1 | M181: 01963353-3219-736a-9da3-ea11c2c374cc | N181: 0193302d-2e8f-7840-bcd4-ce01ca97c757 | O181: true | P181: 01963352-e68f-7258-b961-8410cd46b757 | Q181: 2 | R181: 2025-05-01 03:00:00.000 +0300 | S181: №2291 Акцент (Iambulant) - Миграция с Яндекса | T181: 6 | U181: 02509_1 | V181: 100 | W181: 50054 | X181: 2025-05-01 | Y181: 2025-12-01 00:00:00.000 | AE181: 0.0000000000
A182: 2025-05-26 | B182: 01967cbf-3d9e-7ad6-b9a8-71174cefcba8 | C182: 0.0 | D182: 2 | E182: c1f995e3-227c-4181-8e57-4f4f4470a08d | F182: Резервное копирование Veeam | G182: true | H182: 24 | I182: 2025-05-01 | J182: 2025-12-01 00:00:00.000 | K182: false | L182: 1 | M182: 01963353-3219-736a-9da3-ea11c2c374cc | N182: 0193302d-2e8f-7840-bcd4-ce01ca97c757 | O182: true | P182: 01963352-e68f-7258-b961-8410cd46b757 | Q182: 2 | R182: 2025-05-01 03:00:00.000 +0300 | S182: №2291 Акцент (Iambulant) - Миграция с Яндекса | T182: 6 | U182: 02509_1 | V182: 100 | W182: 7060 | X182: 2025-05-01 | Y182: 2025-12-01 00:00:00.000 | AE182: 227.7419354839
A183: 2025-05-26 | B183: 01967cbf-3d5d-7ad6-80fa-8fbc5fea192e | C183: 0 | D183: 2 | E183: c97a0102-2f06-4417-966d-8c6b61ff845f | F183: Публичный IPv4 адрес | G183: true | H183: 24 | I183: 2025-05-01 | J183: 2025-12-01 00:00:00.000 | K183: true | L183: 6 | M183: 01963353-3219-736a-9da3-ea11c2c374cc | N183: 0193302d-2e8f-7840-bcd4-ce01ca97c757 | O183: true | P183: 01963352-e68f-7258-b961-8410cd46b757 | Q183: 2 | R183: 2025-05-01 03:00:00.000 +0300 | S183: №2291 Акцент (Iambulant) - Миграция с Яндекса | T183: 6 | U183: 02509_1 | V183: 100 | W183: 290 | X183: 2025-05-01 | Y183: 2025-12-01 00:00:00.000 | AE183: 56.1290322581 | AF183: =W183*L183 -> 1740 | AG183: ежемес
A184: 2025-05-27 | B184: 01967cbf-3eed-7ada-90fa-c68dc8363fc8 | C184: 0.0 | D184: 2 | E184: 26151c48-4e77-4c11-9765-fba37dacebdf | F184: Next Generation Cloud: Intel 3.1 ГГц | G184: true | H184: 24 | I184: 2025-05-01 | J184: 2025-03-15 00:00:00.000 | K184: false | L184: 1 | M184: 01963353-3219-736a-9da3-ea11c2c374cc | N184: 0193302d-2e8f-7840-bcd4-ce01ca97c757 | O184: true | P184: 01963352-e68f-7258-b961-8410cd46b757 | Q184: 2 | R184: 2025-05-01 03:00:00.000 +0300 | S184: №2291 Акцент (Iambulant) - Миграция с Яндекса | T184: 6 | U184: 02509_1 | V184: 100 | W184: 7951.99999 | X184: 2025-05-01 | Y184: 2025-12-01 00:00:00.000 | AE184: 0.0000000000
A185: 2025-05-27 | B185: 01967cbf-3e9d-7ada-b7ae-9da195c89d61 | C185: 70.0 | D185: 2 | E185: 2af66cc8-e22e-489e-b9db-52e7fe5daa60 | G185: true | H185: 24 | I185: 2025-05-01 | J185: 2025-12-01 00:00:00.000 | K185: true | L185: 1 | M185: 01963353-3219-736a-9da3-ea11c2c374cc | N185: 0193302d-2e8f-7840-bcd4-ce01ca97c757 | O185: true | P185: 01963352-e68f-7258-b961-8410cd46b757 | Q185: 2 | R185: 2025-05-01 03:00:00.000 +0300 | S185: №2291 Акцент (Iambulant) - Миграция с Яндекса | T185: 6 | U185: 02509_1 | V185: 100 | W185: 290 | X185: 2025-05-01 | Y185: 2025-12-01 00:00:00.000 | AE185: 2.8064516129
A186: 2025-05-27 | B186: 01967cbf-3e5a-7ada-8c40-0e613f2440bd | C186: 42.207831 | D186: 2 | E186: 6298e714-7e74-4f57-b5f7-bfbc85ea7add | F186: Выделенный облачный пул: 4.5 ГГц AMD Ryzen 9 7950X 16 ядер 164 ГБ RAM | G186: true | H186: 24 | I186: 2025-05-01 | J186: 2025-12-01 00:00:00.000 | K186: false | L186: 1 | M186: 01963353-3219-736a-9da3-ea11c2c374cc | N186: 0193302d-2e8f-7840-bcd4-ce01ca97c757 | O186: true | P186: 01963352-e68f-7258-b961-8410cd46b757 | Q186: 2 | R186: 2025-05-01 03:00:00.000 +0300 | S186: №2291 Акцент (Iambulant) - Миграция с Яндекса | T186: 6 | U186: 02509_1 | V186: 100 | W186: 100370 | X186: 2025-05-01 | Y186: 2025-12-01 00:00:00.000 | AE186: 1,871.1612911387
A187: 2025-05-27 | B187: 01967cbf-3e16-7ada-b761-7199663e630f | C187: 0.0 | D187: 2 | E187: a67aa5fa-d4bb-4ffa-ad2e-60cc790b2a8b | G187: true | H187: 24 | I187: 2025-05-01 | J187: 2025-12-01 00:00:00.000 | K187: false | L187: 1 | M187: 01963353-3219-736a-9da3-ea11c2c374cc | N187: 0193302d-2e8f-7840-bcd4-ce01ca97c757 | O187: true | P187: 01963352-e68f-7258-b961-8410cd46b757 | Q187: 2 | R187: 2025-05-01 03:00:00.000 +0300 | S187: №2291 Акцент (Iambulant) - Миграция с Яндекса | T187: 6 | U187: 02509_1 | V187: 100 | W187: 50172.00008 | X187: 2025-05-01 | Y187: 2025-12-01 00:00:00.000 | AE187: 1,618.4516155510
A188: 2025-05-27 | B188: 01967cbf-3f39-7adb-afba-c1cd5660d910 | C188: 0.0 | D188: 2 | E188: b23d08e4-8457-47b2-88f8-e098be2e5f43 | F188: GPU: RTX4090 24GB RAM | G188: true | H188: 24 | I188: 2025-05-01 | J188: 2025-03-15 00:00:00.000 | K188: true | L188: 1 | M188: 01963353-3219-736a-9da3-ea11c2c374cc | N188: 0193302d-2e8f-7840-bcd4-ce01ca97c757 | O188: true | P188: 01963352-e68f-7258-b961-8410cd46b757 | Q188: 2 | R188: 2025-05-01 03:00:00.000 +0300 | S188: №2291 Акцент (Iambulant) - Миграция с Яндекса | T188: 6 | U188: 02509_1 | V188: 100 | W188: 50054 | X188: 2025-05-01 | Y188: 2025-12-01 00:00:00.000 | AE188: 0.0000000000
A189: 2025-05-27 | B189: 01967cbf-3d9e-7ad6-b9a8-71174cefcba8 | C189: 0.0 | D189: 2 | E189: c1f995e3-227c-4181-8e57-4f4f4470a08d | F189: Резервное копирование Veeam | G189: true | H189: 24 | I189: 2025-05-01 | J189: 2025-12-01 00:00:00.000 | K189: false | L189: 1 | M189: 01963353-3219-736a-9da3-ea11c2c374cc | N189: 0193302d-2e8f-7840-bcd4-ce01ca97c757 | O189: true | P189: 01963352-e68f-7258-b961-8410cd46b757 | Q189: 2 | R189: 2025-05-01 03:00:00.000 +0300 | S189: №2291 Акцент (Iambulant) - Миграция с Яндекса | T189: 6 | U189: 02509_1 | V189: 100 | W189: 7060 | X189: 2025-05-01 | Y189: 2025-12-01 00:00:00.000 | AE189: 227.7419354839
A190: 2025-05-27 | B190: 01967cbf-3d5d-7ad6-80fa-8fbc5fea192e | C190: 0 | D190: 2 | E190: c97a0102-2f06-4417-966d-8c6b61ff845f | F190: Публичный IPv4 адрес | G190: true | H190: 24 | I190: 2025-05-01 | J190: 2025-12-01 00:00:00.000 | K190: true | L190: 6 | M190: 01963353-3219-736a-9da3-ea11c2c374cc | N190: 0193302d-2e8f-7840-bcd4-ce01ca97c757 | O190: true | P190: 01963352-e68f-7258-b961-8410cd46b757 | Q190: 2 | R190: 2025-05-01 03:00:00.000 +0300 | S190: №2291 Акцент (Iambulant) - Миграция с Яндекса | T190: 6 | U190: 02509_1 | V190: 100 | W190: 290 | X190: 2025-05-01 | Y190: 2025-12-01 00:00:00.000 | AE190: 56.1290322581 | AF190: =W190*L190 -> 1740 | AG190: ежемес
A191: 2025-05-28 | B191: 01967cbf-3eed-7ada-90fa-c68dc8363fc8 | C191: 0.0 | D191: 2 | E191: 26151c48-4e77-4c11-9765-fba37dacebdf | F191: Next Generation Cloud: Intel 3.1 ГГц | G191: true | H191: 24 | I191: 2025-05-01 | J191: 2025-03-15 00:00:00.000 | K191: false | L191: 1 | M191: 01963353-3219-736a-9da3-ea11c2c374cc | N191: 0193302d-2e8f-7840-bcd4-ce01ca97c757 | O191: true | P191: 01963352-e68f-7258-b961-8410cd46b757 | Q191: 2 | R191: 2025-05-01 03:00:00.000 +0300 | S191: №2291 Акцент (Iambulant) - Миграция с Яндекса | T191: 6 | U191: 02509_1 | V191: 100 | W191: 7951.99999 | X191: 2025-05-01 | Y191: 2025-12-01 00:00:00.000 | AE191: 0.0000000000
A192: 2025-05-28 | B192: 01967cbf-3e9d-7ada-b7ae-9da195c89d61 | C192: 70.0 | D192: 2 | E192: 2af66cc8-e22e-489e-b9db-52e7fe5daa60 | G192: true | H192: 24 | I192: 2025-05-01 | J192: 2025-12-01 00:00:00.000 | K192: true | L192: 1 | M192: 01963353-3219-736a-9da3-ea11c2c374cc | N192: 0193302d-2e8f-7840-bcd4-ce01ca97c757 | O192: true | P192: 01963352-e68f-7258-b961-8410cd46b757 | Q192: 2 | R192: 2025-05-01 03:00:00.000 +0300 | S192: №2291 Акцент (Iambulant) - Миграция с Яндекса | T192: 6 | U192: 02509_1 | V192: 100 | W192: 290 | X192: 2025-05-01 | Y192: 2025-12-01 00:00:00.000 | AE192: 2.8064516129
A193: 2025-05-28 | B193: 01967cbf-3e5a-7ada-8c40-0e613f2440bd | C193: 42.207831 | D193: 2 | E193: 6298e714-7e74-4f57-b5f7-bfbc85ea7add | F193: Выделенный облачный пул: 4.5 ГГц AMD Ryzen 9 7950X 16 ядер 164 ГБ RAM | G193: true | H193: 24 | I193: 2025-05-01 | J193: 2025-12-01 00:00:00.000 | K193: false | L193: 1 | M193: 01963353-3219-736a-9da3-ea11c2c374cc | N193: 0193302d-2e8f-7840-bcd4-ce01ca97c757 | O193: true | P193: 01963352-e68f-7258-b961-8410cd46b757 | Q193: 2 | R193: 2025-05-01 03:00:00.000 +0300 | S193: №2291 Акцент (Iambulant) - Миграция с Яндекса | T193: 6 | U193: 02509_1 | V193: 100 | W193: 100370 | X193: 2025-05-01 | Y193: 2025-12-01 00:00:00.000 | AE193: 1,871.1612911387
A194: 2025-05-28 | B194: 01967cbf-3e16-7ada-b761-7199663e630f | C194: 0.0 | D194: 2 | E194: a67aa5fa-d4bb-4ffa-ad2e-60cc790b2a8b | G194: true | H194: 24 | I194: 2025-05-01 | J194: 2025-12-01 00:00:00.000 | K194: false | L194: 1 | M194: 01963353-3219-736a-9da3-ea11c2c374cc | N194: 0193302d-2e8f-7840-bcd4-ce01ca97c757 | O194: true | P194: 01963352-e68f-7258-b961-8410cd46b757 | Q194: 2 | R194: 2025-05-01 03:00:00.000 +0300 | S194: №2291 Акцент (Iambulant) - Миграция с Яндекса | T194: 6 | U194: 02509_1 | V194: 100 | W194: 50172.00008 | X194: 2025-05-01 | Y194: 2025-12-01 00:00:00.000 | AE194: 1,618.4516155510
A195: 2025-05-28 | B195: 01967cbf-3f39-7adb-afba-c1cd5660d910 | C195: 0.0 | D195: 2 | E195: b23d08e4-8457-47b2-88f8-e098be2e5f43 | F195: GPU: RTX4090 24GB RAM | G195: true | H195: 24 | I195: 2025-05-01 | J195: 2025-03-15 00:00:00.000 | K195: true | L195: 1 | M195: 01963353-3219-736a-9da3-ea11c2c374cc | N195: 0193302d-2e8f-7840-bcd4-ce01ca97c757 | O195: true | P195: 01963352-e68f-7258-b961-8410cd46b757 | Q195: 2 | R195: 2025-05-01 03:00:00.000 +0300 | S195: №2291 Акцент (Iambulant) - Миграция с Яндекса | T195: 6 | U195: 02509_1 | V195: 100 | W195: 50054 | X195: 2025-05-01 | Y195: 2025-12-01 00:00:00.000 | AE195: 0.0000000000
A196: 2025-05-28 | B196: 01967cbf-3d9e-7ad6-b9a8-71174cefcba8 | C196: 0.0 | D196: 2 | E196: c1f995e3-227c-4181-8e57-4f4f4470a08d | F196: Резервное копирование Veeam | G196: true | H196: 24 | I196: 2025-05-01 | J196: 2025-12-01 00:00:00.000 | K196: false | L196: 1 | M196: 01963353-3219-736a-9da3-ea11c2c374cc | N196: 0193302d-2e8f-7840-bcd4-ce01ca97c757 | O196: true | P196: 01963352-e68f-7258-b961-8410cd46b757 | Q196: 2 | R196: 2025-05-01 03:00:00.000 +0300 | S196: №2291 Акцент (Iambulant) - Миграция с Яндекса | T196: 6 | U196: 02509_1 | V196: 100 | W196: 7060 | X196: 2025-05-01 | Y196: 2025-12-01 00:00:00.000 | AE196: 227.7419354839
A197: 2025-05-28 | B197: 01967cbf-3d5d-7ad6-80fa-8fbc5fea192e | C197: 0 | D197: 2 | E197: c97a0102-2f06-4417-966d-8c6b61ff845f | F197: Публичный IPv4 адрес | G197: true | H197: 24 | I197: 2025-05-01 | J197: 2025-12-01 00:00:00.000 | K197: true | L197: 6 | M197: 01963353-3219-736a-9da3-ea11c2c374cc | N197: 0193302d-2e8f-7840-bcd4-ce01ca97c757 | O197: true | P197: 01963352-e68f-7258-b961-8410cd46b757 | Q197: 2 | R197: 2025-05-01 03:00:00.000 +0300 | S197: №2291 Акцент (Iambulant) - Миграция с Яндекса | T197: 6 | U197: 02509_1 | V197: 100 | W197: 290 | X197: 2025-05-01 | Y197: 2025-12-01 00:00:00.000 | AE197: 56.1290322581 | AF197: =W197*L197 -> 1740 | AG197: ежемес
A198: 2025-05-29 | B198: 01967cbf-3eed-7ada-90fa-c68dc8363fc8 | C198: 0.0 | D198: 2 | E198: 26151c48-4e77-4c11-9765-fba37dacebdf | F198: Next Generation Cloud: Intel 3.1 ГГц | G198: true | H198: 24 | I198: 2025-05-01 | J198: 2025-03-15 00:00:00.000 | K198: false | L198: 1 | M198: 01963353-3219-736a-9da3-ea11c2c374cc | N198: 0193302d-2e8f-7840-bcd4-ce01ca97c757 | O198: true | P198: 01963352-e68f-7258-b961-8410cd46b757 | Q198: 2 | R198: 2025-05-01 03:00:00.000 +0300 | S198: №2291 Акцент (Iambulant) - Миграция с Яндекса | T198: 6 | U198: 02509_1 | V198: 100 | W198: 7951.99999 | X198: 2025-05-01 | Y198: 2025-12-01 00:00:00.000 | AE198: 0.0000000000
A199: 2025-05-29 | B199: 01967cbf-3e9d-7ada-b7ae-9da195c89d61 | C199: 70.0 | D199: 2 | E199: 2af66cc8-e22e-489e-b9db-52e7fe5daa60 | G199: true | H199: 24 | I199: 2025-05-01 | J199: 2025-12-01 00:00:00.000 | K199: true | L199: 1 | M199: 01963353-3219-736a-9da3-ea11c2c374cc | N199: 0193302d-2e8f-7840-bcd4-ce01ca97c757 | O199: true | P199: 01963352-e68f-7258-b961-8410cd46b757 | Q199: 2 | R199: 2025-05-01 03:00:00.000 +0300 | S199: №2291 Акцент (Iambulant) - Миграция с Яндекса | T199: 6 | U199: 02509_1 | V199: 100 | W199: 290 | X199: 2025-05-01 | Y199: 2025-12-01 00:00:00.000 | AE199: 2.8064516129
A200: 2025-05-29 | B200: 01967cbf-3e5a-7ada-8c40-0e613f2440bd | C200: 42.207831 | D200: 2 | E200: 6298e714-7e74-4f57-b5f7-bfbc85ea7add | F200: Выделенный облачный пул: 4.5 ГГц AMD Ryzen 9 7950X 16 ядер 164 ГБ RAM | G200: true | H200: 24 | I200: 2025-05-01 | J200: 2025-12-01 00:00:00.000 | K200: false | L200: 1 | M200: 01963353-3219-736a-9da3-ea11c2c374cc | N200: 0193302d-2e8f-7840-bcd4-ce01ca97c757 | O200: true | P200: 01963352-e68f-7258-b961-8410cd46b757 | Q200: 2 | R200: 2025-05-01 03:00:00.000 +0300 | S200: №2291 Акцент (Iambulant) - Миграция с Яндекса | T200: 6 | U200: 02509_1 | V200: 100 | W200: 100370 | X200: 2025-05-01 | Y200: 2025-12-01 00:00:00.000 | AE200: 1,871.1612911387
... 1300 more rows

Sheet bounded по дню
A1: dt | B1: siv_uid | C1: discount | D1: line_pricing_model_id | E1: line_key | F1: user_description | G1: siv_is_actual | H1: line_version | I1: dt_from | J1: dt_to | K1: is_simple | L1: quantity | M1: agreement_uid | N1: contract_uid | O1: agreement_is_actual | P1: deal_uid | Q1: agreement_version | R1: _plannedDueDate | S1: deal | T1: deal_status_id | U1: contract | V1: probability_pc | W1: cost | X1: running_min_dt | Y1: dt_next | Z1: discount_base | AA1: quantity_base | AB1: dt_from_base | AC1: dt_to_base | AD1: cost_base | AE1: bounded
A2: 2025-05-19 | B2: 01967cbf-3eed-7ada-90fa-c68dc8363fc8 | C2: 0 | D2: 2 | E2: 26151c48-4e77-4c11-9765-fba37dacebdf | F2: Next Generation Cloud: Intel 3.1 ГГц | G2: true | H2: 24 | I2: 2025-05-01 | J2: 2025-03-15 00:00:00.000 | K2: false | L2: 1 | M2: 01963353-3219-736a-9da3-ea11c2c374cc | N2: 0193302d-2e8f-7840-bcd4-ce01ca97c757 | O2: true | P2: 01963352-e68f-7258-b961-8410cd46b757 | Q2: 2 | R2: 2025-05-01 03:00:00.000 +0300 | S2: №2291 Акцент (Iambulant) - Миграция с Яндекса | T2: 6 | U2: 02509_1 | V2: 100 | W2: 7951.99999 | X2: 2025-05-01 | Y2: 2025-12-01 00:00:00.000 | AE2: 0 | AF2: =AE2*31 -> 0
A3: 2025-05-19 | B3: 01967cbf-3e9d-7ada-b7ae-9da195c89d61 | C3: 70 | D3: 2 | E3: 2af66cc8-e22e-489e-b9db-52e7fe5daa60 | G3: true | H3: 24 | I3: 2025-05-01 | J3: 2025-12-01 00:00:00.000 | K3: true | L3: 1 | M3: 01963353-3219-736a-9da3-ea11c2c374cc | N3: 0193302d-2e8f-7840-bcd4-ce01ca97c757 | O3: true | P3: 01963352-e68f-7258-b961-8410cd46b757 | Q3: 2 | R3: 2025-05-01 03:00:00.000 +0300 | S3: №2291 Акцент (Iambulant) - Миграция с Яндекса | T3: 6 | U3: 02509_1 | V3: 100 | W3: 290 | X3: 2025-05-01 | Y3: 2025-12-01 00:00:00.000 | AE3: 2.806451613 | AF3: =AE3*31 -> 87
A4: 2025-05-19 | B4: 01967cbf-3e5a-7ada-8c40-0e613f2440bd | C4: 42.207831 | D4: 2 | E4: 6298e714-7e74-4f57-b5f7-bfbc85ea7add | F4: Выделенный облачный пул: 4.5 ГГц AMD Ryzen 9 7950X 16 ядер 164 ГБ RAM | G4: true | H4: 24 | I4: 2025-05-01 | J4: 2025-12-01 00:00:00.000 | K4: false | L4: 1 | M4: 01963353-3219-736a-9da3-ea11c2c374cc | N4: 0193302d-2e8f-7840-bcd4-ce01ca97c757 | O4: true | P4: 01963352-e68f-7258-b961-8410cd46b757 | Q4: 2 | R4: 2025-05-01 03:00:00.000 +0300 | S4: №2291 Акцент (Iambulant) - Миграция с Яндекса | T4: 6 | U4: 02509_1 | V4: 100 | W4: 100370 | X4: 2025-05-01 | Y4: 2025-12-01 00:00:00.000 | AE4: 1871.161291 | AF4: 58006.00003
A5: 2025-05-19 | B5: 01967cbf-3e16-7ada-b761-7199663e630f | C5: 0 | D5: 2 | E5: a67aa5fa-d4bb-4ffa-ad2e-60cc790b2a8b | G5: true | H5: 24 | I5: 2025-05-01 | J5: 2025-12-01 00:00:00.000 | K5: false | L5: 1 | M5: 01963353-3219-736a-9da3-ea11c2c374cc | N5: 0193302d-2e8f-7840-bcd4-ce01ca97c757 | O5: true | P5: 01963352-e68f-7258-b961-8410cd46b757 | Q5: 2 | R5: 2025-05-01 03:00:00.000 +0300 | S5: №2291 Акцент (Iambulant) - Миграция с Яндекса | T5: 6 | U5: 02509_1 | V5: 100 | W5: 50172.00008 | X5: 2025-05-01 | Y5: 2025-12-01 00:00:00.000 | AE5: 1618.451616 | AF5: 50172.00008
A6: 2025-05-19 | B6: 01967cbf-3f39-7adb-afba-c1cd5660d910 | C6: 0 | D6: 2 | E6: b23d08e4-8457-47b2-88f8-e098be2e5f43 | F6: GPU: RTX4090 24GB RAM | G6: true | H6: 24 | I6: 2025-05-01 | J6: 2025-03-15 00:00:00.000 | K6: true | L6: 1 | M6: 01963353-3219-736a-9da3-ea11c2c374cc | N6: 0193302d-2e8f-7840-bcd4-ce01ca97c757 | O6: true | P6: 01963352-e68f-7258-b961-8410cd46b757 | Q6: 2 | R6: 2025-05-01 03:00:00.000 +0300 | S6: №2291 Акцент (Iambulant) - Миграция с Яндекса | T6: 6 | U6: 02509_1 | V6: 100 | W6: 50054 | X6: 2025-05-01 | Y6: 2025-12-01 00:00:00.000 | AE6: 0 | AF6: 0
A7: 2025-05-19 | B7: 01967cbf-3d9e-7ad6-b9a8-71174cefcba8 | C7: 0 | D7: 2 | E7: c1f995e3-227c-4181-8e57-4f4f4470a08d | F7: Резервное копирование Veeam | G7: true | H7: 24 | I7: 2025-05-01 | J7: 2025-12-01 00:00:00.000 | K7: false | L7: 1 | M7: 01963353-3219-736a-9da3-ea11c2c374cc | N7: 0193302d-2e8f-7840-bcd4-ce01ca97c757 | O7: true | P7: 01963352-e68f-7258-b961-8410cd46b757 | Q7: 2 | R7: 2025-05-01 03:00:00.000 +0300 | S7: №2291 Акцент (Iambulant) - Миграция с Яндекса | T7: 6 | U7: 02509_1 | V7: 100 | W7: 7060 | X7: 2025-05-01 | Y7: 2025-12-01 00:00:00.000 | AE7: 227.7419355 | AF7: 7060
A8: 2025-05-19 | B8: 01967cbf-3d5d-7ad6-80fa-8fbc5fea192e | C8: 0 | D8: 2 | E8: c97a0102-2f06-4417-966d-8c6b61ff845f | F8: Публичный IPv4 адрес | G8: true | H8: 24 | I8: 2025-05-01 | J8: 2025-12-01 00:00:00.000 | K8: true | L8: 6 | M8: 01963353-3219-736a-9da3-ea11c2c374cc | N8: 0193302d-2e8f-7840-bcd4-ce01ca97c757 | O8: true | P8: 01963352-e68f-7258-b961-8410cd46b757 | Q8: 2 | R8: 2025-05-01 03:00:00.000 +0300 | S8: №2291 Акцент (Iambulant) - Миграция с Яндекса | T8: 6 | U8: 02509_1 | V8: 100 | W8: 290 | X8: 2025-05-01 | Y8: 2025-12-01 00:00:00.000 | AE8: 56.12903226 | AF8: 1740
F10: цена за единицу | G10: =W8 -> 290
F11: кол-во | G11: =L8 -> 6
F12: скидка | G12: =C8 -> 0
F13: bounded | G13: =AE8 -> 56.12903226
F14: правильно | G14: =G10*G11 -> 1740 | H14: =G14/31 -> 56.12903226 | I14: 31 день
F28: цена за единицу | G28: =W4 -> 100370
F29: кол-во | G29: =L4 -> 1
F30: скидка | G30: =C4 -> 42.207831
F31: bounded | G31: =AE4 -> 1871.161291
F32: правильно | G32: =G28-(G28*G30/100) -> 58006.00003 | H32: =G32/31 -> 1871.161291 | I32: 31 день

Sheet 2471
A1: ds_id | B1: ds_name | C1: ds_created_at | D1: ds_created_by | E1: ds_updated_at | F1: ds_updated_by | G1: ds_deleted_at | H1: user_description | I1: modifier | J1: ds_cnt | K1: modifier_code | L1: abstractive_service_code | M1: date | N1: area_code | O1: area_name | P1: area_id | Q1: abstractive_service | R1: is_actual | S1: ds_type | T1: ds_hash | U1: ds_area | V1: ds_discount | W1: ds_version | X1: name_version | Y1: who_accept | Z1: date_accept | AA1: discount_approve | AB1: ds_index | AC1: date_nop | AD1: date_end | AE1: additional_agreement | AF1: is_easy | AG1: sp_dt_load | AH1: sp_param_uuid | AI1: sp_name | AJ1: sp_created_at | AK1: sp_created_by | AL1: sp_updated_at | AM1: sp_updated_by | AN1: sp_deleted_at | AO1: sp_type | AP1: sp_price | AQ1: sp_code | AR1: sp_cnt | AS1: sp_name | AT1: sp_measure | AU1: sp_discount | AV1: discount_approve | AW1: who_accept | AX1: date_accept | AY1: sp_deal_uuid_array | AZ1: deal_uuid | BA1: deal_index | BB1: status_code | BC1: discount_value | BD1: sp_index | BE1: вер | BF1: номер в CRM | BG1: архив | BH1: строка в архиве - CRM | BI1: hash
A2: 0199098e-9607-7f27-ab33-55a375d0ee9f | B2: 7e1f894f-b527-4133-800d-f912839d719e | C2: 2025-09-02 11:32:43.000 +0300 | D2: 97997c4a-cf68-41cd-8f79-e418f1942a60 | E2: 2025-09-02 11:45:41.000 +0300 | F2: 2ceecf51-2d10-41da-862b-e9f52106afb9 | J2: 2 | L2: tc.ipv4 | M2: 2025-09-02 11:32:44.730 +0300 | P2: 3 | Q2: Публичный IPv4 адрес | R2: true | S2: 2 | T2: 7e1f894f-b527-4133-800d-f912839d719e | V2: 0 | W2: 19 | Y2: {2ceecf51-2d10-41da-862b-e9f52106afb9} | AA2: true | AB2: 36265 | AC2: 2025-08-01 03:00:00.000 +0300 | AE2: {0197e302-c0a3-732d-bb95-75af7d5a988e} | AF2: true | AG2: 2025-09-30 17:11:27.624 +0300 | AH2: 0199098e-95e0-7f26-af5b-d02e9df16898 | AI2: 7e1f894f-b527-4133-800d-f912839d719e | AJ2: 2025-09-02 11:32:43.000 +0300 | AK2: 97997c4a-cf68-41cd-8f79-e418f1942a60 | AL2: 2025-09-02 11:45:42.000 +0300 | AM2: 2ceecf51-2d10-41da-862b-e9f52106afb9 | AO2: 2 | AP2: 290.00 | AQ2: tc.ipv4.0-f | AR2: 1 | AS2: Публичный IPv4 адрес | AT2: шт. | AU2: 0.000000 | AV2: true | AW2: {2ceecf51-2d10-41da-862b-e9f52106afb9} | AY2: {0196f71c-a403-75ff-8216-298c37ab3c37} | AZ2: 0196f71c-a403-75ff-8216-298c37ab3c37 | BA2: 2471 | BB2: 4 | BC2: 0.000000 | BD2: 97504 | BE2: с вер. | BF2: 3
A3: 0199098e-96af-7f28-a2d5-aa9d3be7b228 | B3: 962323f0-3814-40f9-ac44-7636d7494b43 | C3: 2025-09-02 11:32:43.000 +0300 | D3: 97997c4a-cf68-41cd-8f79-e418f1942a60 | E3: 2025-09-04 13:52:02.000 +0300 | F3: 6765ade6-7890-4c45-aac0-028256da1e2f | H3: Next Generation Cloud: AMD 2.8 ГГц | I3: AMD 2.8 ГГц | J3: 1 | K3: a28 | L3: iaas.ngc | M3: 2025-09-02 11:32:44.730 +0300 | P3: 4 | Q3: Next Generation Cloud | R3: true | S3: 2 | T3: 962323f0-3814-40f9-ac44-7636d7494b43 | V3: 0 | W3: 19 | Y3: {2ceecf51-2d10-41da-862b-e9f52106afb9} | AA3: true | AB3: 36269 | AC3: 2025-08-01 03:00:00.000 +0300 | AE3: {0197e302-c0a3-732d-bb95-75af7d5a988e} | AF3: false | AG3: 2025-09-30 17:11:27.624 +0300 | AH3: 0199098e-9679-7f27-8c07-f24c7cd1b8c1 | AI3: 962323f0-3814-40f9-ac44-7636d7494b43 | AJ3: 2025-09-02 11:32:43.000 +0300 | AK3: 97997c4a-cf68-41cd-8f79-e418f1942a60 | AL3: 2025-09-02 11:45:42.000 +0300 | AM3: 2ceecf51-2d10-41da-862b-e9f52106afb9 | AO3: 2 | AP3: 375.00 | AQ3: iaas.ngc.a28.vcpu50-f | AR3: 0 | AS3: Количество vCPU: гарантированная доля 50% | AT3: шт. | AU3: 0.000000 | AV3: true | AW3: {2ceecf51-2d10-41da-862b-e9f52106afb9} | AY3: {0196f71c-a403-75ff-8216-298c37ab3c37} | AZ3: 0196f71c-a403-75ff-8216-298c37ab3c37 | BA3: 2471 | BB3: 4 | BC3: 0.000000 | BD3: 97510 | BE3: без | BF3: 5.2 | BI3: 962323f0-3814-40f9-ac44-7636d7494b43
A4: 0199098e-96af-7f28-a2d5-aa9d3be7b228 | B4: 962323f0-3814-40f9-ac44-7636d7494b43 | C4: 2025-09-02 11:32:43.000 +0300 | D4: 97997c4a-cf68-41cd-8f79-e418f1942a60 | E4: 2025-09-04 13:52:02.000 +0300 | F4: 6765ade6-7890-4c45-aac0-028256da1e2f | H4: Next Generation Cloud: AMD 2.8 ГГц | I4: AMD 2.8 ГГц | J4: 1 | K4: a28 | L4: iaas.ngc | M4: 2025-09-02 11:32:44.730 +0300 | P4: 4 | Q4: Next Generation Cloud | R4: true | S4: 2 | T4: 962323f0-3814-40f9-ac44-7636d7494b43 | V4: 0 | W4: 19 | Y4: {2ceecf51-2d10-41da-862b-e9f52106afb9} | AA4: true | AB4: 36269 | AC4: 2025-08-01 03:00:00.000 +0300 | AE4: {0197e302-c0a3-732d-bb95-75af7d5a988e} | AF4: false | AG4: 2025-09-30 17:11:27.624 +0300 | AH4: 0199098e-967a-7f27-942e-fabf877286d2 | AI4: 962323f0-3814-40f9-ac44-7636d7494b43 | AJ4: 2025-09-02 11:32:43.000 +0300 | AK4: 97997c4a-cf68-41cd-8f79-e418f1942a60 | AL4: 2025-09-02 11:45:42.000 +0300 | AM4: 2ceecf51-2d10-41da-862b-e9f52106afb9 | AO4: 2 | AP4: 625.00 | AQ4: iaas.ngc.a28.vcpu80-f | AR4: 0 | AS4: Количество vCPU: гарантированная доля 80% | AT4: шт. | AU4: 0.000000 | AV4: true | AW4: {2ceecf51-2d10-41da-862b-e9f52106afb9} | AY4: {0196f71c-a403-75ff-8216-298c37ab3c37} | AZ4: 0196f71c-a403-75ff-8216-298c37ab3c37 | BA4: 2471 | BB4: 4 | BC4: 0.000000 | BD4: 97511 | BE4: без | BF4: 5.1 | BI4: 962323f0-3814-40f9-ac44-7636d7494b43
A5: 0199098e-96af-7f28-a2d5-aa9d3be7b228 | B5: 962323f0-3814-40f9-ac44-7636d7494b43 | C5: 2025-09-02 11:32:43.000 +0300 | D5: 97997c4a-cf68-41cd-8f79-e418f1942a60 | E5: 2025-09-04 13:52:02.000 +0300 | F5: 6765ade6-7890-4c45-aac0-028256da1e2f | H5: Next Generation Cloud: AMD 2.8 ГГц | I5: AMD 2.8 ГГц | J5: 1 | K5: a28 | L5: iaas.ngc | M5: 2025-09-02 11:32:44.730 +0300 | P5: 4 | Q5: Next Generation Cloud | R5: true | S5: 2 | T5: 962323f0-3814-40f9-ac44-7636d7494b43 | V5: 0 | W5: 19 | Y5: {2ceecf51-2d10-41da-862b-e9f52106afb9} | AA5: true | AB5: 36269 | AC5: 2025-08-01 03:00:00.000 +0300 | AE5: {0197e302-c0a3-732d-bb95-75af7d5a988e} | AF5: false | AG5: 2025-09-30 17:11:27.624 +0300 | AH5: 0199098e-967d-7f27-9be4-c96362c6f52c | AI5: 962323f0-3814-40f9-ac44-7636d7494b43 | AJ5: 2025-09-02 11:32:43.000 +0300 | AK5: 97997c4a-cf68-41cd-8f79-e418f1942a60 | AL5: 2025-09-02 11:45:42.000 +0300 | AM5: 2ceecf51-2d10-41da-862b-e9f52106afb9 | AO5: 2 | AP5: 228.00 | AQ5: iaas.ngc.a28.ram-f | AR5: 0 | AS5: Объем vRAM | AT5: ГБайт | AU5: 0.000000 | AV5: true | AW5: {2ceecf51-2d10-41da-862b-e9f52106afb9} | AY5: {0196f71c-a403-75ff-8216-298c37ab3c37} | AZ5: 0196f71c-a403-75ff-8216-298c37ab3c37 | BA5: 2471 | BB5: 4 | BC5: 0.000000 | BD5: 97512 | BE5: без | BF5: 5.4 | BI5: 962323f0-3814-40f9-ac44-7636d7494b43
A6: 0199098e-96af-7f28-a2d5-aa9d3be7b228 | B6: 962323f0-3814-40f9-ac44-7636d7494b43 | C6: 2025-09-02 11:32:43.000 +0300 | D6: 97997c4a-cf68-41cd-8f79-e418f1942a60 | E6: 2025-09-04 13:52:02.000 +0300 | F6: 6765ade6-7890-4c45-aac0-028256da1e2f | H6: Next Generation Cloud: AMD 2.8 ГГц | I6: AMD 2.8 ГГц | J6: 1 | K6: a28 | L6: iaas.ngc | M6: 2025-09-02 11:32:44.730 +0300 | P6: 4 | Q6: Next Generation Cloud | R6: true | S6: 2 | T6: 962323f0-3814-40f9-ac44-7636d7494b43 | V6: 0 | W6: 19 | Y6: {2ceecf51-2d10-41da-862b-e9f52106afb9} | AA6: true | AB6: 36269 | AC6: 2025-08-01 03:00:00.000 +0300 | AE6: {0197e302-c0a3-732d-bb95-75af7d5a988e} | AF6: false | AG6: 2025-09-30 17:11:27.624 +0300 | AH6: 0199098e-9680-7f27-90c2-7d0d69adf0fe | AI6: 962323f0-3814-40f9-ac44-7636d7494b43 | AJ6: 2025-09-02 11:32:43.000 +0300 | AK6: 97997c4a-cf68-41cd-8f79-e418f1942a60 | AL6: 2025-09-02 11:45:42.000 +0300 | AM6: 2ceecf51-2d10-41da-862b-e9f52106afb9 | AO6: 2 | AP6: 300.00 | AQ6: iaas.ngc.a28.vcpu-f | AR6: 0 | AS6: Количество vCPU | AT6: шт. | AU6: 0.000000 | AV6: true | AW6: {2ceecf51-2d10-41da-862b-e9f52106afb9} | AY6: {0196f71c-a403-75ff-8216-298c37ab3c37} | AZ6: 0196f71c-a403-75ff-8216-298c37ab3c37 | BA6: 2471 | BB6: 4 | BC6: 0.000000 | BD6: 97513 | BE6: без | BF6: 5.3 | BI6: 962323f0-3814-40f9-ac44-7636d7494b43
A7: 0199098e-96af-7f28-a2d5-aa9d3be7b228 | B7: 962323f0-3814-40f9-ac44-7636d7494b43 | C7: 2025-09-02 11:32:43.000 +0300 | D7: 97997c4a-cf68-41cd-8f79-e418f1942a60 | E7: 2025-09-04 13:52:02.000 +0300 | F7: 6765ade6-7890-4c45-aac0-028256da1e2f | H7: Next Generation Cloud: AMD 2.8 ГГц | I7: AMD 2.8 ГГц | J7: 1 | K7: a28 | L7: iaas.ngc | M7: 2025-09-02 11:32:44.730 +0300 | P7: 4 | Q7: Next Generation Cloud | R7: true | S7: 2 | T7: 962323f0-3814-40f9-ac44-7636d7494b43 | V7: 0 | W7: 19 | Y7: {2ceecf51-2d10-41da-862b-e9f52106afb9} | AA7: true | AB7: 36269 | AC7: 2025-08-01 03:00:00.000 +0300 | AE7: {0197e302-c0a3-732d-bb95-75af7d5a988e} | AF7: false | AG7: 2025-09-30 17:11:27.624 +0300 | AH7: 0199098e-9681-7f27-b4d1-9547593c285c | AI7: 962323f0-3814-40f9-ac44-7636d7494b43 | AJ7: 2025-09-02 11:32:43.000 +0300 | AK7: 97997c4a-cf68-41cd-8f79-e418f1942a60 | AL7: 2025-09-02 11:45:42.000 +0300 | AM7: 2ceecf51-2d10-41da-862b-e9f52106afb9 | AO7: 2 | AP7: 17.90 | AQ7: iaas.ngc.a28.fstssd-f | AR7: 4200 | AS7: Дисковое пространство: Fast SSD | AT7: ГБайт | AU7: 28.491620 | AV7: true | AW7: {2ceecf51-2d10-41da-862b-e9f52106afb9} | AY7: {0196f71c-a403-75ff-8216-298c37ab3c37} | AZ7: 0196f71c-a403-75ff-8216-298c37ab3c37 | BA7: 2471 | BB7: 4 | BC7: 28.491620 | BD7: 97514 | BE7: без | BF7: 5.5 | BI7: 962323f0-3814-40f9-ac44-7636d7494b43
A8: 0199098e-96af-7f28-a2d5-aa9d3be7b228 | B8: 962323f0-3814-40f9-ac44-7636d7494b43 | C8: 2025-09-02 11:32:43.000 +0300 | D8: 97997c4a-cf68-41cd-8f79-e418f1942a60 | E8: 2025-09-04 13:52:02.000 +0300 | F8: 6765ade6-7890-4c45-aac0-028256da1e2f | H8: Next Generation Cloud: AMD 2.8 ГГц | I8: AMD 2.8 ГГц | J8: 1 | K8: a28 | L8: iaas.ngc | M8: 2025-09-02 11:32:44.730 +0300 | P8: 4 | Q8: Next Generation Cloud | R8: true | S8: 2 | T8: 962323f0-3814-40f9-ac44-7636d7494b43 | V8: 0 | W8: 19 | Y8: {2ceecf51-2d10-41da-862b-e9f52106afb9} | AA8: true | AB8: 36269 | AC8: 2025-08-01 03:00:00.000 +0300 | AE8: {0197e302-c0a3-732d-bb95-75af7d5a988e} | AF8: false | AG8: 2025-09-30 17:11:27.624 +0300 | AH8: 0199098e-9682-7f28-add8-e936e31c7e7b | AI8: 962323f0-3814-40f9-ac44-7636d7494b43 | AJ8: 2025-09-02 11:32:43.000 +0300 | AK8: 97997c4a-cf68-41cd-8f79-e418f1942a60 | AL8: 2025-09-02 11:45:42.000 +0300 | AM8: 2ceecf51-2d10-41da-862b-e9f52106afb9 | AO8: 2 | AP8: 2.80 | AQ8: iaas.ngc.a28.sata-f | AR8: 44996 | AS8: Дисковое пространство: SATA | AT8: ГБайт | AU8: 29.285714 | AV8: true | AW8: {2ceecf51-2d10-41da-862b-e9f52106afb9} | AY8: {0196f71c-a403-75ff-8216-298c37ab3c37} | AZ8: 0196f71c-a403-75ff-8216-298c37ab3c37 | BA8: 2471 | BB8: 4 | BC8: 29.285714 | BD8: 97515 | BE8: без | BF8: 5.7 | BI8: 962323f0-3814-40f9-ac44-7636d7494b43
A9: 0199098e-96af-7f28-a2d5-aa9d3be7b228 | B9: 962323f0-3814-40f9-ac44-7636d7494b43 | C9: 2025-09-02 11:32:43.000 +0300 | D9: 97997c4a-cf68-41cd-8f79-e418f1942a60 | E9: 2025-09-04 13:52:02.000 +0300 | F9: 6765ade6-7890-4c45-aac0-028256da1e2f | H9: Next Generation Cloud: AMD 2.8 ГГц | I9: AMD 2.8 ГГц | J9: 1 | K9: a28 | L9: iaas.ngc | M9: 2025-09-02 11:32:44.730 +0300 | P9: 4 | Q9: Next Generation Cloud | R9: true | S9: 2 | T9: 962323f0-3814-40f9-ac44-7636d7494b43 | V9: 0 | W9: 19 | Y9: {2ceecf51-2d10-41da-862b-e9f52106afb9} | AA9: true | AB9: 36269 | AC9: 2025-08-01 03:00:00.000 +0300 | AE9: {0197e302-c0a3-732d-bb95-75af7d5a988e} | AF9: false | AG9: 2025-09-30 17:11:27.624 +0300 | AH9: 0199098e-9689-7f28-8d3d-d20e148d70b3 | AI9: 962323f0-3814-40f9-ac44-7636d7494b43 | AJ9: 2025-09-02 11:32:43.000 +0300 | AK9: 97997c4a-cf68-41cd-8f79-e418f1942a60 | AL9: 2025-09-02 11:45:42.000 +0300 | AM9: 2ceecf51-2d10-41da-862b-e9f52106afb9 | AO9: 2 | AP9: 8.90 | AQ9: iaas.ngc.a28.ssd-f | AR9: 8971 | AS9: Дисковое пространство: SSD | AT9: ГБайт | AU9: 46.067416 | AV9: true | AW9: {2ceecf51-2d10-41da-862b-e9f52106afb9} | AY9: {0196f71c-a403-75ff-8216-298c37ab3c37} | AZ9: 0196f71c-a403-75ff-8216-298c37ab3c37 | BA9: 2471 | BB9: 4 | BC9: 46.067416 | BD9: 97516 | BE9: без | BF9: 5.6 | BI9: 962323f0-3814-40f9-ac44-7636d7494b43
A10: 0199098e-96d4-7f29-9ca9-9fff8741c1e5 | B10: 6d67cee2-90bc-4fda-888a-1f4dccb6c21e | C10: 2025-09-02 11:32:43.000 +0300 | D10: 97997c4a-cf68-41cd-8f79-e418f1942a60 | E10: 2025-09-04 13:52:02.000 +0300 | F10: 6765ade6-7890-4c45-aac0-028256da1e2f | H10: Аренда порта под USB токен | J10: 4 | L10: iaas.usb | M10: 2025-09-02 11:32:44.730 +0300 | P10: 4 | Q10: Аренда порта под USB токен | R10: true | S10: 2 | T10: 6d67cee2-90bc-4fda-888a-1f4dccb6c21e | V10: 16.666667 | W10: 19 | Y10: {2ceecf51-2d10-41da-862b-e9f52106afb9} | AA10: true | AB10: 36270 | AC10: 2025-08-01 03:00:00.000 +0300 | AD10: 2025-08-31 03:00:00.000 +0300 | AE10: {0197e302-c0a3-732d-bb95-75af7d5a988e} | AF10: false | AG10: 2025-09-30 17:11:27.624 +0300 | AH10: 0199098e-96ae-7f28-bd66-478f7ae9bf59 | AI10: 6d67cee2-90bc-4fda-888a-1f4dccb6c21e | AJ10: 2025-09-02 11:32:43.000 +0300 | AK10: 97997c4a-cf68-41cd-8f79-e418f1942a60 | AL10: 2025-09-02 11:45:42.000 +0300 | AM10: 2ceecf51-2d10-41da-862b-e9f52106afb9 | AO10: 2 | AP10: 1500.00 | AQ10: iaas.usb.0-f | AR10: 1 | AS10: Аренда порта под USB токен | AT10: шт. | AU10: 0.000000 | AV10: true | AW10: {2ceecf51-2d10-41da-862b-e9f52106afb9} | AY10: {0196f71c-a403-75ff-8216-298c37ab3c37} | AZ10: 0196f71c-a403-75ff-8216-298c37ab3c37 | BA10: 2471 | BB10: 4 | BC10: 16.666667 | BD10: 97517 | BG10: архив | BH10: 1.1 | BI10: 6d67cee2-90bc-4fda-888a-1f4dccb6c21e
A11: 0199098e-9659-7f27-8d9d-17adbe4a3d6f | B11: 6dcf281a-0500-4456-9472-007ec75c6389 | C11: 2025-09-02 11:32:43.000 +0300 | D11: 97997c4a-cf68-41cd-8f79-e418f1942a60 | E11: 2025-09-15 13:59:38.000 +0300 | F11: 6765ade6-7890-4c45-aac0-028256da1e2f | H11: Next Generation Cloud: AMD 2.8 ГГц | I11: AMD 2.8 ГГц | J11: 0 | K11: a28 | L11: iaas.ngc | M11: 2025-09-02 11:32:44.730 +0300 | P11: 4 | Q11: Next Generation Cloud | R11: true | S11: 3 | T11: 6dcf281a-0500-4456-9472-007ec75c6389 | V11: 0 | W11: 19 | Y11: {2ceecf51-2d10-41da-862b-e9f52106afb9} | AA11: true | AB11: 36267 | AC11: 2025-05-01 03:00:00.000 +0300 | AD11: 2025-05-01 03:00:00.000 +0300 | AE11: {0197e302-c0a3-732d-bb95-75af7d5a988e} | AF11: false | AG11: 2025-09-30 17:11:27.624 +0300 | AH11: 0199098e-9633-7f27-bcc2-4833ffdd20f4 | AI11: 6dcf281a-0500-4456-9472-007ec75c6389 | AJ11: 2025-09-02 11:32:43.000 +0300 | AK11: 97997c4a-cf68-41cd-8f79-e418f1942a60 | AL11: 2025-09-02 11:45:42.000 +0300 | AM11: 2ceecf51-2d10-41da-862b-e9f52106afb9 | AO11: 3 | AP11: 17.90 | AQ11: iaas.ngc.a28.vcpu-m | AR11: 1 | AS11: Количество vCPU | AT11: шт. | AU11: 0.000000 | AV11: true | AW11: {2ceecf51-2d10-41da-862b-e9f52106afb9} | AY11: {0196f71c-a403-75ff-8216-298c37ab3c37} | AZ11: 0196f71c-a403-75ff-8216-298c37ab3c37 | BA11: 2471 | BB11: 4 | BC11: 0.000000 | BD11: 97507 | BE11: без | BF11: 0 | BI11: 6dcf281a-0500-4456-9472-007ec75c6389
A12: 0199098e-9681-7f28-9d75-7993f84993bc | B12: 962323f0-3814-40f9-ac44-7636d7494b43 | C12: 2025-09-02 11:32:43.000 +0300 | D12: 97997c4a-cf68-41cd-8f79-e418f1942a60 | E12: 2025-09-04 13:52:02.000 +0300 | F12: 6765ade6-7890-4c45-aac0-028256da1e2f | H12: Next Generation Cloud: AMD 2.8 ГГц | I12: AMD 2.8 ГГц | J12: 1 | K12: a28 | L12: iaas.ngc | M12: 2025-09-02 11:32:44.730 +0300 | P12: 4 | Q12: Next Generation Cloud | R12: true | S12: 3 | T12: 962323f0-3814-40f9-ac44-7636d7494b43 | V12: 0 | W12: 19 | Y12: {2ceecf51-2d10-41da-862b-e9f52106afb9} | AA12: true | AB12: 36268 | AC12: 2025-08-01 03:00:00.000 +0300 | AE12: {0197e302-c0a3-732d-bb95-75af7d5a988e} | AF12: false | AG12: 2025-09-30 17:11:27.624 +0300 | AH12: 0199098e-9656-7f27-9fbf-db5908134d57 | AI12: 962323f0-3814-40f9-ac44-7636d7494b43 | AJ12: 2025-09-02 11:32:43.000 +0300 | AK12: 97997c4a-cf68-41cd-8f79-e418f1942a60 | AL12: 2025-09-02 11:45:42.000 +0300 | AM12: 2ceecf51-2d10-41da-862b-e9f52106afb9 | AO12: 3 | AP12: 228.00 | AQ12: iaas.ngc.a28.ram-m | AR12: 1 | AS12: Объем vRAM | AT12: ГБайт | AU12: 50.000000 | AV12: true | AW12: {2ceecf51-2d10-41da-862b-e9f52106afb9} | AY12: {0196f71c-a403-75ff-8216-298c37ab3c37} | AZ12: 0196f71c-a403-75ff-8216-298c37ab3c37 | BA12: 2471 | BB12: 4 | BC12: 50.000000 | BD12: 97509 | BE12: без | BF12: 0 | BI12: 962323f0-3814-40f9-ac44-7636d7494b43
A13: 0199098e-95e0-7f27-ba54-ce686499f138 | B13: 0b25fd44-2d81-4709-8bae-2f79f9c63266 | C13: 2025-09-02 11:32:43.000 +0300 | D13: 97997c4a-cf68-41cd-8f79-e418f1942a60 | E13: 2025-09-02 11:45:41.000 +0300 | F13: 2ceecf51-2d10-41da-862b-e9f52106afb9 | H13: Next Generation Cloud: AMD 2.8 ГГц | I13: AMD 2.8 ГГц | J13: 1 | K13: a28 | L13: iaas.ngc | M13: 2025-09-02 11:32:44.730 +0300 | P13: 4 | Q13: Next Generation Cloud | R13: true | S13: 3 | T13: 0b25fd44-2d81-4709-8bae-2f79f9c63266 | V13: 0 | W13: 19 | Y13: {2ceecf51-2d10-41da-862b-e9f52106afb9} | AA13: true | AB13: 36264 | AC13: 2025-08-01 03:00:00.000 +0300 | AE13: {0197e302-c0a3-732d-bb95-75af7d5a988e} | AF13: false | AG13: 2025-09-30 17:11:27.624 +0300 | AH13: 0199098e-95b9-7f23-b657-15a80c29df22 | AI13: 0b25fd44-2d81-4709-8bae-2f79f9c63266 | AJ13: 2025-09-02 11:32:43.000 +0300 | AK13: 97997c4a-cf68-41cd-8f79-e418f1942a60 | AL13: 2025-09-02 11:45:42.000 +0300 | AM13: 2ceecf51-2d10-41da-862b-e9f52106afb9 | AO13: 3 | AP13: 2.80 | AQ13: iaas.ngc.a28.ssd-m | AR13: 1 | AS13: Дисковое пространство: SSD | AT13: ГБайт | AU13: 29.400000 | AV13: true | AW13: {2ceecf51-2d10-41da-862b-e9f52106afb9} | AY13: {0196f71c-a403-75ff-8216-298c37ab3c37} | AZ13: 0196f71c-a403-75ff-8216-298c37ab3c37 | BA13: 2471 | BB13: 4 | BC13: 29.400000 | BD13: 97503 | BE13: с вер. | BF13: 0
A14: 0199098e-95e0-7f27-ba54-ce686499f138 | B14: 0b25fd44-2d81-4709-8bae-2f79f9c63266 | C14: 2025-09-02 11:32:43.000 +0300 | D14: 97997c4a-cf68-41cd-8f79-e418f1942a60 | E14: 2025-09-02 11:45:41.000 +0300 | F14: 2ceecf51-2d10-41da-862b-e9f52106afb9 | H14: Next Generation Cloud: AMD 2.8 ГГц | I14: AMD 2.8 ГГц | J14: 1 | K14: a28 | L14: iaas.ngc | M14: 2025-09-02 11:32:44.730 +0300 | P14: 4 | Q14: Next Generation Cloud | R14: true | S14: 3 | T14: 0b25fd44-2d81-4709-8bae-2f79f9c63266 | V14: 0 | W14: 19 | Y14: {2ceecf51-2d10-41da-862b-e9f52106afb9} | AA14: true | AB14: 36264 | AC14: 2025-08-01 03:00:00.000 +0300 | AE14: {0197e302-c0a3-732d-bb95-75af7d5a988e} | AF14: false | AG14: 2025-09-30 17:11:27.624 +0300 | AH14: 0199098e-95b9-7f25-8ca4-1d57529f2acb | AI14: 0b25fd44-2d81-4709-8bae-2f79f9c63266 | AJ14: 2025-09-02 11:32:43.000 +0300 | AK14: 97997c4a-cf68-41cd-8f79-e418f1942a60 | AL14: 2025-09-02 11:45:42.000 +0300 | AM14: 2ceecf51-2d10-41da-862b-e9f52106afb9 | AO14: 3 | AP14: 300.00 | AQ14: iaas.ngc.a28.fstssd-m | AR14: 1 | AS14: Дисковое пространство: Fast SSD | AT14: ГБайт | AU14: 39.200000 | AV14: true | AW14: {2ceecf51-2d10-41da-862b-e9f52106afb9} | AY14: {0196f71c-a403-75ff-8216-298c37ab3c37} | AZ14: 0196f71c-a403-75ff-8216-298c37ab3c37 | BA14: 2471 | BB14: 4 | BC14: 39.200000 | BD14: 97502 | BE14: с вер. | BF14: 0
A15: 0199098e-95e0-7f27-ba54-ce686499f138 | B15: 0b25fd44-2d81-4709-8bae-2f79f9c63266 | C15: 2025-09-02 11:32:43.000 +0300 | D15: 97997c4a-cf68-41cd-8f79-e418f1942a60 | E15: 2025-09-02 11:45:41.000 +0300 | F15: 2ceecf51-2d10-41da-862b-e9f52106afb9 | H15: Next Generation Cloud: AMD 2.8 ГГц | I15: AMD 2.8 ГГц | J15: 1 | K15: a28 | L15: iaas.ngc | M15: 2025-09-02 11:32:44.730 +0300 | P15: 4 | Q15: Next Generation Cloud | R15: true | S15: 3 | T15: 0b25fd44-2d81-4709-8bae-2f79f9c63266 | V15: 0 | W15: 19 | Y15: {2ceecf51-2d10-41da-862b-e9f52106afb9} | AA15: true | AB15: 36264 | AC15: 2025-08-01 03:00:00.000 +0300 | AE15: {0197e302-c0a3-732d-bb95-75af7d5a988e} | AF15: false | AG15: 2025-09-30 17:11:27.624 +0300 | AH15: 0199098e-95b9-7f26-9b87-0aa19ee80984 | AI15: 0b25fd44-2d81-4709-8bae-2f79f9c63266 | AJ15: 2025-09-02 11:32:43.000 +0300 | AK15: 97997c4a-cf68-41cd-8f79-e418f1942a60 | AL15: 2025-09-02 11:45:42.000 +0300 | AM15: 2ceecf51-2d10-41da-862b-e9f52106afb9 | AO15: 3 | AP15: 8.90 | AQ15: iaas.ngc.a28.sata-m | AR15: 1 | AS15: Дисковое пространство: SATA | AT15: ГБайт | AU15: 46.067416 | AV15: true | AW15: {2ceecf51-2d10-41da-862b-e9f52106afb9} | AY15: {0196f71c-a403-75ff-8216-298c37ab3c37} | AZ15: 0196f71c-a403-75ff-8216-298c37ab3c37 | BA15: 2471 | BB15: 4 | BC15: 46.067416 | BD15: 97501 | BE15: с вер. | BF15: 0
A16: 0199098e-97bc-7f2c-8132-87104ea8bd2f | B16: 20240424T120045006 | C16: 2025-09-02 11:32:43.000 +0300 | D16: 97997c4a-cf68-41cd-8f79-e418f1942a60 | E16: 2025-09-04 13:52:02.000 +0300 | F16: 6765ade6-7890-4c45-aac0-028256da1e2f | I16: свыше 100 Мбит/с | J16: 1 | K16: o100m | L16: tc.indp | M16: 2025-09-02 11:32:44.730 +0300 | P16: tc | Q16: Интернет c защитой от DDoS | R16: true | S16: 2 | T16: 20240424T120045006 | V16: 90.166547 | W16: 19 | Y16: {2ceecf51-2d10-41da-862b-e9f52106afb9} | AA16: true | AB16: 36274 | AC16: 2025-08-01 03:00:00.000 +0300 | AE16: {0197e302-c0a3-732d-bb95-75af7d5a988e} | AG16: 2025-09-30 17:11:27.624 +0300 | AH16: 0199098e-9793-7f2c-922f-e10c95093419 | AI16: 20240424T120045006 | AJ16: 2025-09-02 11:32:43.000 +0300 | AK16: 97997c4a-cf68-41cd-8f79-e418f1942a60 | AL16: 2025-09-02 11:45:42.000 +0300 | AM16: 2ceecf51-2d10-41da-862b-e9f52106afb9 | AO16: 2 | AP16: 306.72 | AQ16: tc.indp.o100m-f | AR16: 300 | AS16: Интернет c защитой от DDoS: свыше 100 Мбит/с | AT16: Mбит/с | AU16: 0.000000 | AV16: true | AW16: {2ceecf51-2d10-41da-862b-e9f52106afb9} | AY16: {0196f71c-a403-75ff-8216-298c37ab3c37} | AZ16: 0196f71c-a403-75ff-8216-298c37ab3c37 | BA16: 2471 | BB16: 4 | BC16: 90.166547 | BD16: 97533 | BE16: без | BF16: 6.1 | BI16: 20240424T120045006
A17: 0199098e-9599-7f23-a0b4-200eac2cf360 | B17: 3bc96a49-a641-4fe0-9bf7-cc5343d971d2 | C17: 2025-09-02 11:32:43.000 +0300 | D17: 97997c4a-cf68-41cd-8f79-e418f1942a60 | E17: 2025-09-02 11:45:41.000 +0300 | F17: 2ceecf51-2d10-41da-862b-e9f52106afb9 | J17: 1 | L17: bk.veeam | M17: 2025-09-02 11:32:44.730 +0300 | P17: 7 | Q17: Резервное копирование Veeam | R17: true | S17: 2 | T17: 3bc96a49-a641-4fe0-9bf7-cc5343d971d2 | V17: 0 | W17: 19 | Y17: {2ceecf51-2d10-41da-862b-e9f52106afb9} | AA17: true | AB17: 36262 | AC17: 2025-08-01 03:00:00.000 +0300 | AE17: {0197e302-c0a3-732d-bb95-75af7d5a988e} | AF17: false | AG17: 2025-09-30 17:11:27.624 +0300 | AH17: 0199098e-956d-7f23-a602-7a4484faf90b | AI17: 3bc96a49-a641-4fe0-9bf7-cc5343d971d2 | AJ17: 2025-09-02 11:32:43.000 +0300 | AK17: 97997c4a-cf68-41cd-8f79-e418f1942a60 | AL17: 2025-09-02 11:45:42.000 +0300 | AM17: 2ceecf51-2d10-41da-862b-e9f52106afb9 | AO17: 2 | AP17: 1200.00 | AQ17: bk.veeam.0.vms-f | AR17: 0 | AS17: Резервное копирование Veeam на 1 ВМ: (снапшот) | AT17: шт. | AU17: 0.000000 | AV17: true | AW17: {2ceecf51-2d10-41da-862b-e9f52106afb9} | AY17: {0196f71c-a403-75ff-8216-298c37ab3c37} | AZ17: 0196f71c-a403-75ff-8216-298c37ab3c37 | BA17: 2471 | BB17: 4 | BC17: 0.000000 | BD17: 97495 | BE17: с вер. | BF17: 1.2
A18: 0199098e-9599-7f23-a0b4-200eac2cf360 | B18: 3bc96a49-a641-4fe0-9bf7-cc5343d971d2 | C18: 2025-09-02 11:32:43.000 +0300 | D18: 97997c4a-cf68-41cd-8f79-e418f1942a60 | E18: 2025-09-02 11:45:41.000 +0300 | F18: 2ceecf51-2d10-41da-862b-e9f52106afb9 | J18: 1 | L18: bk.veeam | M18: 2025-09-02 11:32:44.730 +0300 | P18: 7 | Q18: Резервное копирование Veeam | R18: true | S18: 2 | T18: 3bc96a49-a641-4fe0-9bf7-cc5343d971d2 | V18: 0 | W18: 19 | Y18: {2ceecf51-2d10-41da-862b-e9f52106afb9} | AA18: true | AB18: 36262 | AC18: 2025-08-01 03:00:00.000 +0300 | AE18: {0197e302-c0a3-732d-bb95-75af7d5a988e} | AF18: false | AG18: 2025-09-30 17:11:27.624 +0300 | AH18: 0199098e-956e-7f23-9720-708bf9cc1eef | AI18: 3bc96a49-a641-4fe0-9bf7-cc5343d971d2 | AJ18: 2025-09-02 11:32:43.000 +0300 | AK18: 97997c4a-cf68-41cd-8f79-e418f1942a60 | AL18: 2025-09-02 11:45:42.000 +0300 | AM18: 2ceecf51-2d10-41da-862b-e9f52106afb9 | AO18: 2 | AP18: 2.26 | AQ18: bk.veeam.0.vol-f | AR18: 0 | AS18: Дисковое пространство: Объем диска | AT18: ГБайт | AU18: 0.000000 | AV18: true | AW18: {2ceecf51-2d10-41da-862b-e9f52106afb9} | AY18: {0196f71c-a403-75ff-8216-298c37ab3c37} | AZ18: 0196f71c-a403-75ff-8216-298c37ab3c37 | BA18: 2471 | BB18: 4 | BC18: 0.000000 | BD18: 97496 | BE18: с вер. | BF18: 1.3
A19: 0199098e-9599-7f23-a0b4-200eac2cf360 | B19: 3bc96a49-a641-4fe0-9bf7-cc5343d971d2 | C19: 2025-09-02 11:32:43.000 +0300 | D19: 97997c4a-cf68-41cd-8f79-e418f1942a60 | E19: 2025-09-02 11:45:41.000 +0300 | F19: 2ceecf51-2d10-41da-862b-e9f52106afb9 | J19: 1 | L19: bk.veeam | M19: 2025-09-02 11:32:44.730 +0300 | P19: 7 | Q19: Резервное копирование Veeam | R19: true | S19: 2 | T19: 3bc96a49-a641-4fe0-9bf7-cc5343d971d2 | V19: 0 | W19: 19 | Y19: {2ceecf51-2d10-41da-862b-e9f52106afb9} | AA19: true | AB19: 36262 | AC19: 2025-08-01 03:00:00.000 +0300 | AE19: {0197e302-c0a3-732d-bb95-75af7d5a988e} | AF19: false | AG19: 2025-09-30 17:11:27.624 +0300 | AH19: 0199098e-9570-7f23-bc31-10d0e0b23aab | AI19: 3bc96a49-a641-4fe0-9bf7-cc5343d971d2 | AJ19: 2025-09-02 11:32:43.000 +0300 | AK19: 97997c4a-cf68-41cd-8f79-e418f1942a60 | AL19: 2025-09-02 11:45:42.000 +0300 | AM19: 2ceecf51-2d10-41da-862b-e9f52106afb9 | AO19: 2 | AP19: 1200.00 | AQ19: bk.veeam.0.vma-f | AR19: 6 | AS19: Резервное копирование Veeam на 1 ВМ: (агент) | AT19: шт. | AU19: 0.000000 | AV19: true | AW19: {2ceecf51-2d10-41da-862b-e9f52106afb9} | AY19: {0196f71c-a403-75ff-8216-298c37ab3c37} | AZ19: 0196f71c-a403-75ff-8216-298c37ab3c37 | BA19: 2471 | BB19: 4 | BC19: 0.000000 | BD19: 97497 | BE19: с вер. | BF19: 1.1
A20: 0199098e-95b9-7f24-9762-6e8dfc8d15d3 | B20: bb7e032b-b002-497c-96c0-befe84436888 | C20: 2025-09-02 11:32:43.000 +0300 | D20: 97997c4a-cf68-41cd-8f79-e418f1942a60 | E20: 2025-09-02 11:45:41.000 +0300 | F20: 2ceecf51-2d10-41da-862b-e9f52106afb9 | J20: 1 | L20: bk.veeam | M20: 2025-09-02 11:32:44.730 +0300 | P20: 7 | Q20: Резервное копирование Veeam | R20: true | S20: 2 | T20: bb7e032b-b002-497c-96c0-befe84436888 | V20: 0 | W20: 19 | Y20: {2ceecf51-2d10-41da-862b-e9f52106afb9} | AA20: true | AB20: 36263 | AC20: 2025-08-01 03:00:00.000 +0300 | AE20: {0197e302-c0a3-732d-bb95-75af7d5a988e} | AF20: false | AG20: 2025-09-30 17:11:27.624 +0300 | AH20: 0199098e-9595-7f23-bd64-0c5b7a17ed9c | AI20: bb7e032b-b002-497c-96c0-befe84436888 | AJ20: 2025-09-02 11:32:43.000 +0300 | AK20: 97997c4a-cf68-41cd-8f79-e418f1942a60 | AL20: 2025-09-02 11:45:42.000 +0300 | AM20: 2ceecf51-2d10-41da-862b-e9f52106afb9 | AO20: 2 | AP20: 1200.00 | AQ20: bk.veeam.0.vma-f | AR20: 0 | AS20: Резервное копирование Veeam на 1 ВМ: (агент) | AT20: шт. | AU20: 0.000000 | AV20: true | AW20: {2ceecf51-2d10-41da-862b-e9f52106afb9} | AY20: {0196f71c-a403-75ff-8216-298c37ab3c37} | AZ20: 0196f71c-a403-75ff-8216-298c37ab3c37 | BA20: 2471 | BB20: 4 | BC20: 0.000000 | BD20: 97498 | BE20: с вер. | BF20: 2.1
A21: 0199098e-95b9-7f24-9762-6e8dfc8d15d3 | B21: bb7e032b-b002-497c-96c0-befe84436888 | C21: 2025-09-02 11:32:43.000 +0300 | D21: 97997c4a-cf68-41cd-8f79-e418f1942a60 | E21: 2025-09-02 11:45:41.000 +0300 | F21: 2ceecf51-2d10-41da-862b-e9f52106afb9 | J21: 1 | L21: bk.veeam | M21: 2025-09-02 11:32:44.730 +0300 | P21: 7 | Q21: Резервное копирование Veeam | R21: true | S21: 2 | T21: bb7e032b-b002-497c-96c0-befe84436888 | V21: 0 | W21: 19 | Y21: {2ceecf51-2d10-41da-862b-e9f52106afb9} | AA21: true | AB21: 36263 | AC21: 2025-08-01 03:00:00.000 +0300 | AE21: {0197e302-c0a3-732d-bb95-75af7d5a988e} | AF21: false | AG21: 2025-09-30 17:11:27.624 +0300 | AH21: 0199098e-9596-7f23-950b-ac285365d18b | AI21: bb7e032b-b002-497c-96c0-befe84436888 | AJ21: 2025-09-02 11:32:43.000 +0300 | AK21: 97997c4a-cf68-41cd-8f79-e418f1942a60 | AL21: 2025-09-02 11:45:42.000 +0300 | AM21: 2ceecf51-2d10-41da-862b-e9f52106afb9 | AO21: 2 | AP21: 1200.00 | AQ21: bk.veeam.0.vms-f | AR21: 0 | AS21: Резервное копирование Veeam на 1 ВМ: (снапшот) | AT21: шт. | AU21: 0.000000 | AV21: true | AW21: {2ceecf51-2d10-41da-862b-e9f52106afb9} | AY21: {0196f71c-a403-75ff-8216-298c37ab3c37} | AZ21: 0196f71c-a403-75ff-8216-298c37ab3c37 | BA21: 2471 | BB21: 4 | BC21: 0.000000 | BD21: 97499 | BE21: с вер. | BF21: 2.2
A22: 0199098e-95b9-7f24-9762-6e8dfc8d15d3 | B22: bb7e032b-b002-497c-96c0-befe84436888 | C22: 2025-09-02 11:32:43.000 +0300 | D22: 97997c4a-cf68-41cd-8f79-e418f1942a60 | E22: 2025-09-02 11:45:41.000 +0300 | F22: 2ceecf51-2d10-41da-862b-e9f52106afb9 | J22: 1 | L22: bk.veeam | M22: 2025-09-02 11:32:44.730 +0300 | P22: 7 | Q22: Резервное копирование Veeam | R22: true | S22: 2 | T22: bb7e032b-b002-497c-96c0-befe84436888 | V22: 0 | W22: 19 | Y22: {2ceecf51-2d10-41da-862b-e9f52106afb9} | AA22: true | AB22: 36263 | AC22: 2025-08-01 03:00:00.000 +0300 | AE22: {0197e302-c0a3-732d-bb95-75af7d5a988e} | AF22: false | AG22: 2025-09-30 17:11:27.624 +0300 | AH22: 0199098e-9598-7f23-8f8b-e3d5f44f5234 | AI22: bb7e032b-b002-497c-96c0-befe84436888 | AJ22: 2025-09-02 11:32:43.000 +0300 | AK22: 97997c4a-cf68-41cd-8f79-e418f1942a60 | AL22: 2025-09-02 11:45:42.000 +0300 | AM22: 2ceecf51-2d10-41da-862b-e9f52106afb9 | AO22: 2 | AP22: 2.26 | AQ22: bk.veeam.0.vol-f | AR22: 100 | AS22: Дисковое пространство: Объем диска | AT22: ГБайт | AU22: 0.000000 | AV22: true | AW22: {2ceecf51-2d10-41da-862b-e9f52106afb9} | AY22: {0196f71c-a403-75ff-8216-298c37ab3c37} | AZ22: 0196f71c-a403-75ff-8216-298c37ab3c37 | BA22: 2471 | BB22: 4 | BC22: 0.000000 | BD22: 97500 | BE22: с вер. | BF22: 2.3
A23: 0199098e-96f9-7f29-ba5d-7ec6278d4b44 | B23: 324da520-819a-47db-babb-40939e5ea810 | C23: 2025-09-02 11:32:43.000 +0300 | D23: 97997c4a-cf68-41cd-8f79-e418f1942a60 | E23: 2025-09-15 13:59:38.000 +0300 | F23: 6765ade6-7890-4c45-aac0-028256da1e2f | H23: Next Generation Cloud: AMD 2.8 ГГц | I23: AMD 2.8 ГГц | J23: 1 | K23: a28 | L23: iaas.ngc | M23: 2025-09-02 11:32:44.730 +0300 | P23: 4 | Q23: Next Generation Cloud | R23: true | S23: 2 | T23: 324da520-819a-47db-babb-40939e5ea810 | V23: 0 | W23: 19 | Y23: {2ceecf51-2d10-41da-862b-e9f52106afb9} | AA23: true | AB23: 36271 | AC23: 2024-12-01 03:00:00.000 +0300 | AD23: 2024-12-01 03:00:00.000 +0300 | AE23: {0197e302-c0a3-732d-bb95-75af7d5a988e} | AF23: false | AG23: 2025-09-30 17:11:27.624 +0300 | AH23: 0199098e-96cf-7f28-83f8-a53a2133428a | AI23: 324da520-819a-47db-babb-40939e5ea810 | AJ23: 2025-09-02 11:32:43.000 +0300 | AK23: 97997c4a-cf68-41cd-8f79-e418f1942a60 | AL23: 2025-09-02 11:45:42.000 +0300 | AM23: 2ceecf51-2d10-41da-862b-e9f52106afb9 | AO23: 2 | AP23: 0.48 | AQ23: iaas.ngc.a28.fstssd-f | AR23: 0 | AS23: Дисковое пространство: Fast SSD | AT23: ГБайт | AU23: 66.666667 | AV23: true | AW23: {2ceecf51-2d10-41da-862b-e9f52106afb9} | AY23: {0196f71c-a403-75ff-8216-298c37ab3c37} | AZ23: 0196f71c-a403-75ff-8216-298c37ab3c37 | BA23: 2471 | BB23: 4 | BC23: 66.666667 | BD23: 97518 | BG23: архив | BH23: 2.5 | BI23: 324da520-819a-47db-babb-40939e5ea810
A24: 0199098e-96f9-7f29-ba5d-7ec6278d4b44 | B24: 324da520-819a-47db-babb-40939e5ea810 | C24: 2025-09-02 11:32:43.000 +0300 | D24: 97997c4a-cf68-41cd-8f79-e418f1942a60 | E24: 2025-09-15 13:59:38.000 +0300 | F24: 6765ade6-7890-4c45-aac0-028256da1e2f | H24: Next Generation Cloud: AMD 2.8 ГГц | I24: AMD 2.8 ГГц | J24: 1 | K24: a28 | L24: iaas.ngc | M24: 2025-09-02 11:32:44.730 +0300 | P24: 4 | Q24: Next Generation Cloud | R24: true | S24: 2 | T24: 324da520-819a-47db-babb-40939e5ea810 | V24: 0 | W24: 19 | Y24: {2ceecf51-2d10-41da-862b-e9f52106afb9} | AA24: true | AB24: 36271 | AC24: 2024-12-01 03:00:00.000 +0300 | AD24: 2024-12-01 03:00:00.000 +0300 | AE24: {0197e302-c0a3-732d-bb95-75af7d5a988e} | AF24: false | AG24: 2025-09-30 17:11:27.624 +0300 | AH24: 0199098e-96d0-7f28-9409-daf19642dcef | AI24: 324da520-819a-47db-babb-40939e5ea810 | AJ24: 2025-09-02 11:32:43.000 +0300 | AK24: 97997c4a-cf68-41cd-8f79-e418f1942a60 | AL24: 2025-09-02 11:45:42.000 +0300 | AM24: 2ceecf51-2d10-41da-862b-e9f52106afb9 | AO24: 2 | AP24: 0.66 | AQ24: iaas.ngc.a28.ram-f | AR24: 0 | AS24: Объем vRAM | AT24: ГБайт | AU24: 60.606061 | AV24: true | AW24: {2ceecf51-2d10-41da-862b-e9f52106afb9} | AY24: {0196f71c-a403-75ff-8216-298c37ab3c37} | AZ24: 0196f71c-a403-75ff-8216-298c37ab3c37 | BA24: 2471 | BB24: 4 | BC24: 60.606061 | BD24: 97519 | BG24: архив | BH24: 2.2 | BI24: 324da520-819a-47db-babb-40939e5ea810
A25: 0199098e-96f9-7f29-ba5d-7ec6278d4b44 | B25: 324da520-819a-47db-babb-40939e5ea810 | C25: 2025-09-02 11:32:43.000 +0300 | D25: 97997c4a-cf68-41cd-8f79-e418f1942a60 | E25: 2025-09-15 13:59:38.000 +0300 | F25: 6765ade6-7890-4c45-aac0-028256da1e2f | H25: Next Generation Cloud: AMD 2.8 ГГц | I25: AMD 2.8 ГГц | J25: 1 | K25: a28 | L25: iaas.ngc | M25: 2025-09-02 11:32:44.730 +0300 | P25: 4 | Q25: Next Generation Cloud | R25: true | S25: 2 | T25: 324da520-819a-47db-babb-40939e5ea810 | V25: 0 | W25: 19 | Y25: {2ceecf51-2d10-41da-862b-e9f52106afb9} | AA25: true | AB25: 36271 | AC25: 2024-12-01 03:00:00.000 +0300 | AD25: 2024-12-01 03:00:00.000 +0300 | AE25: {0197e302-c0a3-732d-bb95-75af7d5a988e} | AF25: false | AG25: 2025-09-30 17:11:27.624 +0300 | AH25: 0199098e-96d3-7f28-a017-bc9d9447ebeb | AI25: 324da520-819a-47db-babb-40939e5ea810 | AJ25: 2025-09-02 11:32:43.000 +0300 | AK25: 97997c4a-cf68-41cd-8f79-e418f1942a60 | AL25: 2025-09-02 11:45:42.000 +0300 | AM25: 2ceecf51-2d10-41da-862b-e9f52106afb9 | AO25: 2 | AP25: 8.90 | AQ25: iaas.ngc.a28.sata-f | AR25: 0 | AS25: Дисковое пространство: SATA | AT25: ГБайт | AU25: 46.067416 | AV25: true | AW25: {2ceecf51-2d10-41da-862b-e9f52106afb9} | AY25: {0196f71c-a403-75ff-8216-298c37ab3c37} | AZ25: 0196f71c-a403-75ff-8216-298c37ab3c37 | BA25: 2471 | BB25: 4 | BC25: 46.067416 | BD25: 97520 | BG25: архив | BH25: 2.4 | BI25: 324da520-819a-47db-babb-40939e5ea810
A26: 0199098e-96f9-7f29-ba5d-7ec6278d4b44 | B26: 324da520-819a-47db-babb-40939e5ea810 | C26: 2025-09-02 11:32:43.000 +0300 | D26: 97997c4a-cf68-41cd-8f79-e418f1942a60 | E26: 2025-09-15 13:59:38.000 +0300 | F26: 6765ade6-7890-4c45-aac0-028256da1e2f | H26: Next Generation Cloud: AMD 2.8 ГГц | I26: AMD 2.8 ГГц | J26: 1 | K26: a28 | L26: iaas.ngc | M26: 2025-09-02 11:32:44.730 +0300 | P26: 4 | Q26: Next Generation Cloud | R26: true | S26: 2 | T26: 324da520-819a-47db-babb-40939e5ea810 | V26: 0 | W26: 19 | Y26: {2ceecf51-2d10-41da-862b-e9f52106afb9} | AA26: true | AB26: 36271 | AC26: 2024-12-01 03:00:00.000 +0300 | AD26: 2024-12-01 03:00:00.000 +0300 | AE26: {0197e302-c0a3-732d-bb95-75af7d5a988e} | AF26: false | AG26: 2025-09-30 17:11:27.624 +0300 | AH26: 0199098e-96d4-7f28-b136-3477bec1091f | AI26: 324da520-819a-47db-babb-40939e5ea810 | AJ26: 2025-09-02 11:32:43.000 +0300 | AK26: 97997c4a-cf68-41cd-8f79-e418f1942a60 | AL26: 2025-09-02 11:45:42.000 +0300 | AM26: 2ceecf51-2d10-41da-862b-e9f52106afb9 | AO26: 2 | AP26: 17.90 | AQ26: iaas.ngc.a28.vcpu-f | AR26: 0 | AS26: Количество vCPU | AT26: шт. | AU26: 28.491620 | AV26: true | AW26: {2ceecf51-2d10-41da-862b-e9f52106afb9} | AY26: {0196f71c-a403-75ff-8216-298c37ab3c37} | AZ26: 0196f71c-a403-75ff-8216-298c37ab3c37 | BA26: 2471 | BB26: 4 | BC26: 28.491620 | BD26: 97521 | BG26: архив | BH26: 2.1 | BI26: 324da520-819a-47db-babb-40939e5ea810
A27: 0199098e-96f9-7f29-ba5d-7ec6278d4b44 | B27: 324da520-819a-47db-babb-40939e5ea810 | C27: 2025-09-02 11:32:43.000 +0300 | D27: 97997c4a-cf68-41cd-8f79-e418f1942a60 | E27: 2025-09-15 13:59:38.000 +0300 | F27: 6765ade6-7890-4c45-aac0-028256da1e2f | H27: Next Generation Cloud: AMD 2.8 ГГц | I27: AMD 2.8 ГГц | J27: 1 | K27: a28 | L27: iaas.ngc | M27: 2025-09-02 11:32:44.730 +0300 | P27: 4 | Q27: Next Generation Cloud | R27: true | S27: 2 | T27: 324da520-819a-47db-babb-40939e5ea810 | V27: 0 | W27: 19 | Y27: {2ceecf51-2d10-41da-862b-e9f52106afb9} | AA27: true | AB27: 36271 | AC27: 2024-12-01 03:00:00.000 +0300 | AD27: 2024-12-01 03:00:00.000 +0300 | AE27: {0197e302-c0a3-732d-bb95-75af7d5a988e} | AF27: false | AG27: 2025-09-30 17:11:27.624 +0300 | AH27: 0199098e-96d6-7f29-9426-63e322524c30 | AI27: 324da520-819a-47db-babb-40939e5ea810 | AJ27: 2025-09-02 11:32:43.000 +0300 | AK27: 97997c4a-cf68-41cd-8f79-e418f1942a60 | AL27: 2025-09-02 11:45:42.000 +0300 | AM27: 2ceecf51-2d10-41da-862b-e9f52106afb9 | AO27: 2 | AP27: 2.80 | AQ27: iaas.ngc.a28.ssd-f | AR27: 0 | AS27: Дисковое пространство: SSD | AT27: ГБайт | AU27: 29.285714 | AV27: true | AW27: {2ceecf51-2d10-41da-862b-e9f52106afb9} | AY27: {0196f71c-a403-75ff-8216-298c37ab3c37} | AZ27: 0196f71c-a403-75ff-8216-298c37ab3c37 | BA27: 2471 | BB27: 4 | BC27: 29.285714 | BD27: 97522 | BG27: архив | BH27: 2.3 | BI27: 324da520-819a-47db-babb-40939e5ea810
A28: 0199098e-9659-7f27-8d9d-17adbe4a3d6f | B28: 6dcf281a-0500-4456-9472-007ec75c6389 | C28: 2025-09-02 11:32:43.000 +0300 | D28: 97997c4a-cf68-41cd-8f79-e418f1942a60 | E28: 2025-09-15 13:59:38.000 +0300 | F28: 6765ade6-7890-4c45-aac0-028256da1e2f | H28: Next Generation Cloud: AMD 2.8 ГГц | I28: AMD 2.8 ГГц | J28: 0 | K28: a28 | L28: iaas.ngc | M28: 2025-09-02 11:32:44.730 +0300 | P28: 4 | Q28: Next Generation Cloud | R28: true | S28: 3 | T28: 6dcf281a-0500-4456-9472-007ec75c6389 | V28: 0 | W28: 19 | Y28: {2ceecf51-2d10-41da-862b-e9f52106afb9} | AA28: true | AB28: 36267 | AC28: 2025-05-01 03:00:00.000 +0300 | AD28: 2025-05-01 03:00:00.000 +0300 | AE28: {0197e302-c0a3-732d-bb95-75af7d5a988e} | AF28: false | AG28: 2025-09-30 17:11:27.624 +0300 | AH28: 0199098e-9630-7f27-844a-7a3ff55b12aa | AI28: 6dcf281a-0500-4456-9472-007ec75c6389 | AJ28: 2025-09-02 11:32:43.000 +0300 | AK28: 97997c4a-cf68-41cd-8f79-e418f1942a60 | AL28: 2025-09-02 11:45:42.000 +0300 | AM28: 2ceecf51-2d10-41da-862b-e9f52106afb9 | AO28: 3 | AP28: 228.00 | AQ28: iaas.ngc.a28.ram-m | AR28: 1 | AS28: Объем vRAM | AT28: ГБайт | AU28: 50.000000 | AV28: true | AW28: {2ceecf51-2d10-41da-862b-e9f52106afb9} | AY28: {0196f71c-a403-75ff-8216-298c37ab3c37} | AZ28: 0196f71c-a403-75ff-8216-298c37ab3c37 | BA28: 2471 | BB28: 4 | BC28: 50.000000 | BD28: 97506 | BG28: архив | BH28: 0 | BI28: 6dcf281a-0500-4456-9472-007ec75c6389
A29: 0199098e-9745-7f2c-b324-85f6335ce602 | B29: a6354d57-62d2-4f3a-962e-e9cf66c768d2 | C29: 2025-09-02 11:32:43.000 +0300 | D29: 97997c4a-cf68-41cd-8f79-e418f1942a60 | E29: 2025-09-15 13:59:38.000 +0300 | F29: 6765ade6-7890-4c45-aac0-028256da1e2f | H29: Next Generation Cloud: AMD 2.8 ГГц | I29: AMD 2.8 ГГц | J29: 1 | K29: a28 | L29: iaas.ngc | M29: 2025-09-02 11:32:44.730 +0300 | P29: 4 | Q29: Next Generation Cloud | R29: true | S29: 2 | T29: a6354d57-62d2-4f3a-962e-e9cf66c768d2 | V29: 0 | W29: 19 | Y29: {2ceecf51-2d10-41da-862b-e9f52106afb9} | AA29: true | AB29: 36272 | AC29: 2024-11-01 03:00:00.000 +0300 | AD29: 2024-11-01 03:00:00.000 +0300 | AE29: {0197e302-c0a3-732d-bb95-75af7d5a988e} | AF29: false | AG29: 2025-09-30 17:11:27.624 +0300 | AH29: 0199098e-96f7-7f29-9ecb-a9b5bab1c914 | AI29: a6354d57-62d2-4f3a-962e-e9cf66c768d2 | AJ29: 2025-09-02 11:32:43.000 +0300 | AK29: 97997c4a-cf68-41cd-8f79-e418f1942a60 | AL29: 2025-09-02 11:45:42.000 +0300 | AM29: 2ceecf51-2d10-41da-862b-e9f52106afb9 | AO29: 2 | AP29: 2.80 | AQ29: iaas.ngc.a28.ram-f | AR29: 0 | AS29: Объем vRAM | AT29: ГБайт | AU29: 29.400000 | AV29: true | AW29: {2ceecf51-2d10-41da-862b-e9f52106afb9} | AY29: {0196f71c-a403-75ff-8216-298c37ab3c37} | AZ29: 0196f71c-a403-75ff-8216-298c37ab3c37 | BA29: 2471 | BB29: 4 | BC29: 29.400000 | BD29: 97523 | BG29: архив | BH29: 3.2 | BI29: a6354d57-62d2-4f3a-962e-e9cf66c768d2
A30: 0199098e-9745-7f2c-b324-85f6335ce602 | B30: a6354d57-62d2-4f3a-962e-e9cf66c768d2 | C30: 2025-09-02 11:32:43.000 +0300 | D30: 97997c4a-cf68-41cd-8f79-e418f1942a60 | E30: 2025-09-15 13:59:38.000 +0300 | F30: 6765ade6-7890-4c45-aac0-028256da1e2f | H30: Next Generation Cloud: AMD 2.8 ГГц | I30: AMD 2.8 ГГц | J30: 1 | K30: a28 | L30: iaas.ngc | M30: 2025-09-02 11:32:44.730 +0300 | P30: 4 | Q30: Next Generation Cloud | R30: true | S30: 2 | T30: a6354d57-62d2-4f3a-962e-e9cf66c768d2 | V30: 0 | W30: 19 | Y30: {2ceecf51-2d10-41da-862b-e9f52106afb9} | AA30: true | AB30: 36272 | AC30: 2024-11-01 03:00:00.000 +0300 | AD30: 2024-11-01 03:00:00.000 +0300 | AE30: {0197e302-c0a3-732d-bb95-75af7d5a988e} | AF30: false | AG30: 2025-09-30 17:11:27.624 +0300 | AH30: 0199098e-96f9-7f2a-8ff9-8b479624de5a | AI30: a6354d57-62d2-4f3a-962e-e9cf66c768d2 | AJ30: 2025-09-02 11:32:43.000 +0300 | AK30: 97997c4a-cf68-41cd-8f79-e418f1942a60 | AL30: 2025-09-02 11:45:42.000 +0300 | AM30: 2ceecf51-2d10-41da-862b-e9f52106afb9 | AO30: 2 | AP30: 300.00 | AQ30: iaas.ngc.a28.sata-f | AR30: 0 | AS30: Дисковое пространство: SATA | AT30: ГБайт | AU30: 39.200000 | AV30: true | AW30: {2ceecf51-2d10-41da-862b-e9f52106afb9} | AY30: {0196f71c-a403-75ff-8216-298c37ab3c37} | AZ30: 0196f71c-a403-75ff-8216-298c37ab3c37 | BA30: 2471 | BB30: 4 | BC30: 39.200000 | BD30: 97525 | BG30: архив | BH30: 3.4 | BI30: a6354d57-62d2-4f3a-962e-e9cf66c768d2
A31: 0199098e-9745-7f2c-b324-85f6335ce602 | B31: a6354d57-62d2-4f3a-962e-e9cf66c768d2 | C31: 2025-09-02 11:32:43.000 +0300 | D31: 97997c4a-cf68-41cd-8f79-e418f1942a60 | E31: 2025-09-15 13:59:38.000 +0300 | F31: 6765ade6-7890-4c45-aac0-028256da1e2f | H31: Next Generation Cloud: AMD 2.8 ГГц | I31: AMD 2.8 ГГц | J31: 1 | K31: a28 | L31: iaas.ngc | M31: 2025-09-02 11:32:44.730 +0300 | P31: 4 | Q31: Next Generation Cloud | R31: true | S31: 2 | T31: a6354d57-62d2-4f3a-962e-e9cf66c768d2 | V31: 0 | W31: 19 | Y31: {2ceecf51-2d10-41da-862b-e9f52106afb9} | AA31: true | AB31: 36272 | AC31: 2024-11-01 03:00:00.000 +0300 | AD31: 2024-11-01 03:00:00.000 +0300 | AE31: {0197e302-c0a3-732d-bb95-75af7d5a988e} | AF31: false | AG31: 2025-09-30 17:11:27.624 +0300 | AH31: 0199098e-96f9-7f2b-93ba-b5583f495797 | AI31: a6354d57-62d2-4f3a-962e-e9cf66c768d2 | AJ31: 2025-09-02 11:32:43.000 +0300 | AK31: 97997c4a-cf68-41cd-8f79-e418f1942a60 | AL31: 2025-09-02 11:45:42.000 +0300 | AM31: 2ceecf51-2d10-41da-862b-e9f52106afb9 | AO31: 2 | AP31: 17.90 | AQ31: iaas.ngc.a28.vcpu-f | AR31: 0 | AS31: Количество vCPU | AT31: шт. | AU31: 0.000000 | AV31: true | AW31: {2ceecf51-2d10-41da-862b-e9f52106afb9} | AY31: {0196f71c-a403-75ff-8216-298c37ab3c37} | AZ31: 0196f71c-a403-75ff-8216-298c37ab3c37 | BA31: 2471 | BB31: 4 | BC31: 0.000000 | BD31: 97524 | BG31: архив | BH31: 3.1 | BI31: a6354d57-62d2-4f3a-962e-e9cf66c768d2
A32: 0199098e-9745-7f2c-b324-85f6335ce602 | B32: a6354d57-62d2-4f3a-962e-e9cf66c768d2 | C32: 2025-09-02 11:32:43.000 +0300 | D32: 97997c4a-cf68-41cd-8f79-e418f1942a60 | E32: 2025-09-15 13:59:38.000 +0300 | F32: 6765ade6-7890-4c45-aac0-028256da1e2f | H32: Next Generation Cloud: AMD 2.8 ГГц | I32: AMD 2.8 ГГц | J32: 1 | K32: a28 | L32: iaas.ngc | M32: 2025-09-02 11:32:44.730 +0300 | P32: 4 | Q32: Next Generation Cloud | R32: true | S32: 2 | T32: a6354d57-62d2-4f3a-962e-e9cf66c768d2 | V32: 0 | W32: 19 | Y32: {2ceecf51-2d10-41da-862b-e9f52106afb9} | AA32: true | AB32: 36272 | AC32: 2024-11-01 03:00:00.000 +0300 | AD32: 2024-11-01 03:00:00.000 +0300 | AE32: {0197e302-c0a3-732d-bb95-75af7d5a988e} | AF32: false | AG32: 2025-09-30 17:11:27.624 +0300 | AH32: 0199098e-96fa-7f2b-83f0-5cf2747ec4a6 | AI32: a6354d57-62d2-4f3a-962e-e9cf66c768d2 | AJ32: 2025-09-02 11:32:43.000 +0300 | AK32: 97997c4a-cf68-41cd-8f79-e418f1942a60 | AL32: 2025-09-02 11:45:42.000 +0300 | AM32: 2ceecf51-2d10-41da-862b-e9f52106afb9 | AO32: 2 | AP32: 8.90 | AQ32: iaas.ngc.a28.fstssd-f | AR32: 0 | AS32: Дисковое пространство: Fast SSD | AT32: ГБайт | AU32: 46.067416 | AV32: true | AW32: {2ceecf51-2d10-41da-862b-e9f52106afb9} | AY32: {0196f71c-a403-75ff-8216-298c37ab3c37} | AZ32: 0196f71c-a403-75ff-8216-298c37ab3c37 | BA32: 2471 | BB32: 4 | BC32: 46.067416 | BD32: 97526 | BG32: архив | BH32: 3.5 | BI32: a6354d57-62d2-4f3a-962e-e9cf66c768d2
A33: 0199098e-9745-7f2c-b324-85f6335ce602 | B33: a6354d57-62d2-4f3a-962e-e9cf66c768d2 | C33: 2025-09-02 11:32:43.000 +0300 | D33: 97997c4a-cf68-41cd-8f79-e418f1942a60 | E33: 2025-09-15 13:59:38.000 +0300 | F33: 6765ade6-7890-4c45-aac0-028256da1e2f | H33: Next Generation Cloud: AMD 2.8 ГГц | I33: AMD 2.8 ГГц | J33: 1 | K33: a28 | L33: iaas.ngc | M33: 2025-09-02 11:32:44.730 +0300 | P33: 4 | Q33: Next Generation Cloud | R33: true | S33: 2 | T33: a6354d57-62d2-4f3a-962e-e9cf66c768d2 | V33: 0 | W33: 19 | Y33: {2ceecf51-2d10-41da-862b-e9f52106afb9} | AA33: true | AB33: 36272 | AC33: 2024-11-01 03:00:00.000 +0300 | AD33: 2024-11-01 03:00:00.000 +0300 | AE33: {0197e302-c0a3-732d-bb95-75af7d5a988e} | AF33: false | AG33: 2025-09-30 17:11:27.624 +0300 | AH33: 0199098e-96fb-7f2b-a85c-76d3b13014c5 | AI33: a6354d57-62d2-4f3a-962e-e9cf66c768d2 | AJ33: 2025-09-02 11:32:43.000 +0300 | AK33: 97997c4a-cf68-41cd-8f79-e418f1942a60 | AL33: 2025-09-02 11:45:42.000 +0300 | AM33: 2ceecf51-2d10-41da-862b-e9f52106afb9 | AO33: 2 | AP33: 3.95 | AQ33: iaas.ngc.a28.ssd-f | AR33: 0 | AS33: Дисковое пространство: SSD | AT33: ГБайт | AU33: 49.873418 | AV33: true | AW33: {2ceecf51-2d10-41da-862b-e9f52106afb9} | AY33: {0196f71c-a403-75ff-8216-298c37ab3c37} | AZ33: 0196f71c-a403-75ff-8216-298c37ab3c37 | BA33: 2471 | BB33: 4 | BC33: 49.873418 | BD33: 97527 | BG33: архив | BH33: 3.3 | BI33: a6354d57-62d2-4f3a-962e-e9cf66c768d2
A34: 0199098e-9794-7f2c-81f3-9d4ef372c46e | B34: 20241002T122825806 | C34: 2025-09-02 11:32:43.000 +0300 | D34: 97997c4a-cf68-41cd-8f79-e418f1942a60 | E34: 2025-09-15 13:59:38.000 +0300 | F34: 6765ade6-7890-4c45-aac0-028256da1e2f | H34: Next Generation Cloud: AMD 2.8 ГГц | I34: AMD 2.8 ГГц | J34: 1 | K34: a28 | L34: iaas.ngc | M34: 2025-09-02 11:32:44.730 +0300 | P34: 4 | Q34: Next Generation Cloud | R34: true | S34: 2 | T34: 20241002T122825806 | V34: 0 | W34: 19 | Y34: {2ceecf51-2d10-41da-862b-e9f52106afb9} | AA34: true | AB34: 36273 | AC34: 2024-08-01 03:00:00.000 +0300 | AD34: 2024-08-01 03:00:00.000 +0300 | AE34: {0197e302-c0a3-732d-bb95-75af7d5a988e} | AF34: false | AG34: 2025-09-30 17:11:27.624 +0300 | AH34: 0199098e-9722-7f2b-a795-1dd7508606a2 | AI34: 20241002T122825806 | AJ34: 2025-09-02 11:32:43.000 +0300 | AK34: 97997c4a-cf68-41cd-8f79-e418f1942a60 | AL34: 2025-09-02 11:45:42.000 +0300 | AM34: 2ceecf51-2d10-41da-862b-e9f52106afb9 | AO34: 2 | AP34: 300.00 | AQ34: iaas.ngc.a28.sata-f | AR34: 0 | AS34: Дисковое пространство: SATA | AT34: ГБайт | AU34: 39.200000 | AV34: true | AW34: {2ceecf51-2d10-41da-862b-e9f52106afb9} | AY34: {0196f71c-a403-75ff-8216-298c37ab3c37} | AZ34: 0196f71c-a403-75ff-8216-298c37ab3c37 | BA34: 2471 | BB34: 4 | BC34: 39.200000 | BD34: 97528 | BG34: архив | BH34: 4.4 | BI34: 20241002T122825806
A35: 0199098e-9794-7f2c-81f3-9d4ef372c46e | B35: 20241002T122825806 | C35: 2025-09-02 11:32:43.000 +0300 | D35: 97997c4a-cf68-41cd-8f79-e418f1942a60 | E35: 2025-09-15 13:59:38.000 +0300 | F35: 6765ade6-7890-4c45-aac0-028256da1e2f | H35: Next Generation Cloud: AMD 2.8 ГГц | I35: AMD 2.8 ГГц | J35: 1 | K35: a28 | L35: iaas.ngc | M35: 2025-09-02 11:32:44.730 +0300 | P35: 4 | Q35: Next Generation Cloud | R35: true | S35: 2 | T35: 20241002T122825806 | V35: 0 | W35: 19 | Y35: {2ceecf51-2d10-41da-862b-e9f52106afb9} | AA35: true | AB35: 36273 | AC35: 2024-08-01 03:00:00.000 +0300 | AD35: 2024-08-01 03:00:00.000 +0300 | AE35: {0197e302-c0a3-732d-bb95-75af7d5a988e} | AF35: false | AG35: 2025-09-30 17:11:27.624 +0300 | AH35: 0199098e-9723-7f2b-a6b1-552b70c9cabe | AI35: 20241002T122825806 | AJ35: 2025-09-02 11:32:43.000 +0300 | AK35: 97997c4a-cf68-41cd-8f79-e418f1942a60 | AL35: 2025-09-02 11:45:42.000 +0300 | AM35: 2ceecf51-2d10-41da-862b-e9f52106afb9 | AO35: 2 | AP35: 8.90 | AQ35: iaas.ngc.a28.vcpu-f | AR35: 0 | AS35: Количество vCPU | AT35: шт. | AU35: 46.067416 | AV35: true | AW35: {2ceecf51-2d10-41da-862b-e9f52106afb9} | AY35: {0196f71c-a403-75ff-8216-298c37ab3c37} | AZ35: 0196f71c-a403-75ff-8216-298c37ab3c37 | BA35: 2471 | BB35: 4 | BC35: 46.067416 | BD35: 97529 | BG35: архив | BH35: 4.1 | BI35: 20241002T122825806
A36: 0199098e-9794-7f2c-81f3-9d4ef372c46e | B36: 20241002T122825806 | C36: 2025-09-02 11:32:43.000 +0300 | D36: 97997c4a-cf68-41cd-8f79-e418f1942a60 | E36: 2025-09-15 13:59:38.000 +0300 | F36: 6765ade6-7890-4c45-aac0-028256da1e2f | H36: Next Generation Cloud: AMD 2.8 ГГц | I36: AMD 2.8 ГГц | J36: 1 | K36: a28 | L36: iaas.ngc | M36: 2025-09-02 11:32:44.730 +0300 | P36: 4 | Q36: Next Generation Cloud | R36: true | S36: 2 | T36: 20241002T122825806 | V36: 0 | W36: 19 | Y36: {2ceecf51-2d10-41da-862b-e9f52106afb9} | AA36: true | AB36: 36273 | AC36: 2024-08-01 03:00:00.000 +0300 | AD36: 2024-08-01 03:00:00.000 +0300 | AE36: {0197e302-c0a3-732d-bb95-75af7d5a988e} | AF36: false | AG36: 2025-09-30 17:11:27.624 +0300 | AH36: 0199098e-9744-7f2b-9492-333f6d30f474 | AI36: 20241002T122825806 | AJ36: 2025-09-02 11:32:43.000 +0300 | AK36: 97997c4a-cf68-41cd-8f79-e418f1942a60 | AL36: 2025-09-02 11:45:42.000 +0300 | AM36: 2ceecf51-2d10-41da-862b-e9f52106afb9 | AO36: 2 | AP36: 228.00 | AQ36: iaas.ngc.a28.ssd-f | AR36: 0 | AS36: Дисковое пространство: SSD | AT36: ГБайт | AU36: 50.000000 | AV36: true | AW36: {2ceecf51-2d10-41da-862b-e9f52106afb9} | AY36: {0196f71c-a403-75ff-8216-298c37ab3c37} | AZ36: 0196f71c-a403-75ff-8216-298c37ab3c37 | BA36: 2471 | BB36: 4 | BC36: 50.000000 | BD36: 97530 | BG36: архив | BH36: 4.3 | BI36: 20241002T122825806
A37: 0199098e-9794-7f2c-81f3-9d4ef372c46e | B37: 20241002T122825806 | C37: 2025-09-02 11:32:43.000 +0300 | D37: 97997c4a-cf68-41cd-8f79-e418f1942a60 | E37: 2025-09-15 13:59:38.000 +0300 | F37: 6765ade6-7890-4c45-aac0-028256da1e2f | H37: Next Generation Cloud: AMD 2.8 ГГц | I37: AMD 2.8 ГГц | J37: 1 | K37: a28 | L37: iaas.ngc | M37: 2025-09-02 11:32:44.730 +0300 | P37: 4 | Q37: Next Generation Cloud | R37: true | S37: 2 | T37: 20241002T122825806 | V37: 0 | W37: 19 | Y37: {2ceecf51-2d10-41da-862b-e9f52106afb9} | AA37: true | AB37: 36273 | AC37: 2024-08-01 03:00:00.000 +0300 | AD37: 2024-08-01 03:00:00.000 +0300 | AE37: {0197e302-c0a3-732d-bb95-75af7d5a988e} | AF37: false | AG37: 2025-09-30 17:11:27.624 +0300 | AH37: 0199098e-9744-7f2c-a81e-59f32d69ba69 | AI37: 20241002T122825806 | AJ37: 2025-09-02 11:32:43.000 +0300 | AK37: 97997c4a-cf68-41cd-8f79-e418f1942a60 | AL37: 2025-09-02 11:45:42.000 +0300 | AM37: 2ceecf51-2d10-41da-862b-e9f52106afb9 | AO37: 2 | AP37: 17.90 | AQ37: iaas.ngc.a28.ram-f | AR37: 0 | AS37: Объем vRAM | AT37: ГБайт | AU37: 0.000000 | AV37: true | AW37: {2ceecf51-2d10-41da-862b-e9f52106afb9} | AY37: {0196f71c-a403-75ff-8216-298c37ab3c37} | AZ37: 0196f71c-a403-75ff-8216-298c37ab3c37 | BA37: 2471 | BB37: 4 | BC37: 0.000000 | BD37: 97531 | BG37: архив | BH37: 4.2 | BI37: 20241002T122825806
A38: 0199098e-9794-7f2c-81f3-9d4ef372c46e | B38: 20241002T122825806 | C38: 2025-09-02 11:32:43.000 +0300 | D38: 97997c4a-cf68-41cd-8f79-e418f1942a60 | E38: 2025-09-15 13:59:38.000 +0300 | F38: 6765ade6-7890-4c45-aac0-028256da1e2f | H38: Next Generation Cloud: AMD 2.8 ГГц | I38: AMD 2.8 ГГц | J38: 1 | K38: a28 | L38: iaas.ngc | M38: 2025-09-02 11:32:44.730 +0300 | P38: 4 | Q38: Next Generation Cloud | R38: true | S38: 2 | T38: 20241002T122825806 | V38: 0 | W38: 19 | Y38: {2ceecf51-2d10-41da-862b-e9f52106afb9} | AA38: true | AB38: 36273 | AC38: 2024-08-01 03:00:00.000 +0300 | AD38: 2024-08-01 03:00:00.000 +0300 | AE38: {0197e302-c0a3-732d-bb95-75af7d5a988e} | AF38: false | AG38: 2025-09-30 17:11:27.624 +0300 | AH38: 0199098e-9747-7f2c-b8de-2967edf7a59a | AI38: 20241002T122825806 | AJ38: 2025-09-02 11:32:43.000 +0300 | AK38: 97997c4a-cf68-41cd-8f79-e418f1942a60 | AL38: 2025-09-02 11:45:42.000 +0300 | AM38: 2ceecf51-2d10-41da-862b-e9f52106afb9 | AO38: 2 | AP38: 0.66 | AQ38: iaas.ngc.a28.fstssd-f | AR38: 0 | AS38: Дисковое пространство: Fast SSD | AT38: ГБайт | AU38: 60.606061 | AV38: true | AW38: {2ceecf51-2d10-41da-862b-e9f52106afb9} | AY38: {0196f71c-a403-75ff-8216-298c37ab3c37} | AZ38: 0196f71c-a403-75ff-8216-298c37ab3c37 | BA38: 2471 | BB38: 4 | BC38: 60.606061 | BD38: 97532 | BG38: архив | BH38: 4.5 | BI38: 20241002T122825806
A39: 0199098e-9681-7f28-9d75-7993f84993bc | B39: 962323f0-3814-40f9-ac44-7636d7494b43 | C39: 2025-09-02 11:32:43.000 +0300 | D39: 97997c4a-cf68-41cd-8f79-e418f1942a60 | E39: 2025-09-04 13:52:02.000 +0300 | F39: 6765ade6-7890-4c45-aac0-028256da1e2f | H39: Next Generation Cloud: AMD 2.8 ГГц | I39: AMD 2.8 ГГц | J39: 1 | K39: a28 | L39: iaas.ngc | M39: 2025-09-02 11:32:44.730 +0300 | P39: 4 | Q39: Next Generation Cloud | R39: true | S39: 3 | T39: 962323f0-3814-40f9-ac44-7636d7494b43 | V39: 0 | W39: 19 | Y39: {2ceecf51-2d10-41da-862b-e9f52106afb9} | AA39: true | AB39: 36268 | AC39: 2025-08-01 03:00:00.000 +0300 | AE39: {0197e302-c0a3-732d-bb95-75af7d5a988e} | AF39: false | AG39: 2025-09-30 17:11:27.624 +0300 | AH39: 0199098e-9654-7f27-9aed-7e4a566238d7 | AI39: 962323f0-3814-40f9-ac44-7636d7494b43 | AJ39: 2025-09-02 11:32:43.000 +0300 | AK39: 97997c4a-cf68-41cd-8f79-e418f1942a60 | AL39: 2025-09-02 11:45:42.000 +0300 | AM39: 2ceecf51-2d10-41da-862b-e9f52106afb9 | AO39: 3 | AP39: 0.48 | AQ39: iaas.ngc.a28.vcpu-m | AR39: 1 | AS39: Количество vCPU | AT39: шт. | AU39: 66.666667 | AV39: true | AW39: {2ceecf51-2d10-41da-862b-e9f52106afb9} | AY39: {0196f71c-a403-75ff-8216-298c37ab3c37} | AZ39: 0196f71c-a403-75ff-8216-298c37ab3c37 | BA39: 2471 | BB39: 4 | BC39: 66.666667 | BD39: 97508 | BG39: архив | BH39: 0 | BI39: 962323f0-3814-40f9-ac44-7636d7494b43
A40: 0199098e-962f-7f27-9634-00fadc126bd0 | B40: ce6c28e2-1f53-4851-9954-02acaf8aa5b0 | C40: 2025-09-02 11:32:43.000 +0300 | D40: 97997c4a-cf68-41cd-8f79-e418f1942a60 | E40: 2025-09-02 11:45:41.000 +0300 | F40: 2ceecf51-2d10-41da-862b-e9f52106afb9 | J40: 1 | L40: tc.ipv4 | M40: 2025-09-02 11:32:44.730 +0300 | P40: 3 | Q40: Публичный IPv4 адрес | R40: true | S40: 2 | T40: ce6c28e2-1f53-4851-9954-02acaf8aa5b0 | V40: 99.655172 | W40: 19 | Y40: {2ceecf51-2d10-41da-862b-e9f52106afb9} | AA40: true | AB40: 36266 | AC40: 2025-08-01 03:00:00.000 +0300 | AE40: {0197e302-c0a3-732d-bb95-75af7d5a988e} | AF40: true | AG40: 2025-09-30 17:11:27.624 +0300 | AH40: 0199098e-960c-7f27-9f46-d8aefdd11183 | AI40: ce6c28e2-1f53-4851-9954-02acaf8aa5b0 | AJ40: 2025-09-02 11:32:43.000 +0300 | AK40: 97997c4a-cf68-41cd-8f79-e418f1942a60 | AL40: 2025-09-02 11:45:42.000 +0300 | AM40: 2ceecf51-2d10-41da-862b-e9f52106afb9 | AO40: 2 | AP40: 290.00 | AQ40: tc.ipv4.0-f | AR40: 1 | AS40: Публичный IPv4 адрес | AT40: шт. | AU40: 0.000000 | AV40: true | AW40: {2ceecf51-2d10-41da-862b-e9f52106afb9} | AY40: {0196f71c-a403-75ff-8216-298c37ab3c37} | AZ40: 0196f71c-a403-75ff-8216-298c37ab3c37 | BA40: 2471 | BB40: 4 | BC40: 99.655172 | BD40: 97505 | BE40: с вер. | BF40: 4

Sheet 360 - Днепрова
A1: elma.deals | D1: CRM: | E1: https://sd.nubes.ru/_clients/_leads/_funnels/00000000-0000-0000-0000-000000000000(p:item/_clients/_leads/018b195e-3dbf-c719-78e4-24b92f80f54d)
A2: ИП Дмитрова Анна Германовна (номер договора 25102023-03)
A3: __id | B3: __name | C3: __createdAt | D3: __createdBy | E3: __updatedAt | F3: __updatedBy | G3: __deletedAt | H3: _owner | I3: _companies | J3: _contacts | K3: _budget_currency | L3: _budget_cents | M3: razovyi_platezh | N3: _address | O3: _plannedDueDate | P3: __statusComment | Q3: _qualified | R3: _opportunity | S3: areas | T3: sostoyanie_code | U3: sostoyanie_name | V3: kommentarii_k_sdelke | W3: ctatus_sdelki | X3: tip_istochnika | Y3: percent | Z3: cansel_reason | AA3: calc_approve | AB3: _lastActivity | AC3: __index | AD3: __status_status | AE3: __statusChangedAt | AF3: razovyi_platezh2_currency | AG3: razovyi_platezh2_cents | AH3: is_corrective_transaction | AI3: dt_load
A4: 018b195e-3dbf-c719-78e4-24b92f80f54d | B4: №360 GPU для разработчика AI (ИП Дмитрова Анна Германовна) | C4: 2023-10-10 14:34:48.000 +0300 | D4: ddbb73b5-73b6-454b-bc21-3d9e282818ad | E4: 2025-07-29 17:28:55.000 +0300 | F4: 6765ade6-7890-4c45-aac0-028256da1e2f | H4: ddbb73b5-73b6-454b-bc21-3d9e282818ad | I4: e5087657-79c8-4e47-b9fe-375a20c32b7b | J4: 7cdd2c60-e17d-4614-9f5e-ea6fa554849e | K4: RUB | L4: 1571501 | O4: 2023-10-25 03:00:00.000 +0300 | Q4: true | R4: 8d7e1e5c-e1c0-4bab-bcfd-3f84a7f256e4 | S4: {0196aa8e-c204-7f84-9b1c-78ad207b6f18,0196aa8e-b097-7f84-8df2-a87f0d8147b5} | V4: Необходимо GPU. Делает сервис по мониторингу внутренниих конференций. | Y4: 100 | AA4: true | AB4: 2024-11-11 09:05:58.000 +0300 | AC4: 360 | AD4: 6 | AE4: 2024-11-21 14:07:20.997 +0300 | AF4: RUB | AG4: 0 | AI4: 2025-09-08 14:54:27.159 +0300
A6: Дата HEAD | C6: 2023-10-25 03:00:00.000 +0300
A7: Ежемесячные | C7: 1571501
A8: Инсталл | C8: Нет
A9: совпадает со спецификацией (с учётом округления), в спецификации: 15715,00002
A11: СПЕЦИФИКАЦИЯ - deals_services и service_parametrs
A12: 360 | C12: Версия | D12: Модель оплаты | E12: ds_user_description | F12: sp_name | G12: sp_code | H12: date_start | I12: deal_percent_dwh | J12: sp_cnt | K12: sp_measure | L12: sp_price_vat | M12: discount_percent | N12: Сумма без скидки | O12: Величина скидки за единицу | P12: Величина скидки общая | Q12: Сумма со скидкой | R12: start_date_head | S12: srv_start_date | T12: deal_status_code | U12: deal_status_name
A13: 360 | B13: №360 GPU для разработчика AI (ИП Дмитрова Анна Германовна) | C13: 2 | D13: Фиксированная | E13: Next Generation Cloud: Intel 2.9 ГГц | F13: Количество vCPU | G13: iaas.ngc.i29.vcpu-f | H13: 2023-10-25 | I13: 100 | J13: 4 | K13: шт. | L13: 360.000 | M13: 67.483427 | N13: 1440 | O13: 117.0596628 | P13: 971.7613488 | Q13: 468.2386512 | R13: 2023-10-25 | S13: 2023-10-25 | T13: 6 | U13: Закрыта успешно
A14: 360 | B14: №360 GPU для разработчика AI (ИП Дмитрова Анна Германовна) | C14: 2 | D14: Фиксированная | E14: Next Generation Cloud: Intel 2.9 ГГц | F14: Объем vRAM | G14: iaas.ngc.i29.ram-f | H14: 2023-10-25 | I14: 100 | J14: 16 | K14: ГБайт | L14: 228.000 | M14: 67.483427 | N14: 3648 | O14: 74.13778644 | P14: 2461.795417 | Q14: 1186.204583 | R14: 2023-10-25 | S14: 2023-10-25 | T14: 6 | U14: Закрыта успешно
A15: 360 | B15: №360 GPU для разработчика AI (ИП Дмитрова Анна Германовна) | C15: 2 | D15: Фиксированная | E15: Next Generation Cloud: Intel 2.9 ГГц | F15: Дисковое пространство: SSD | G15: iaas.ngc.i29.ssd-f | H15: 2023-10-25 | I15: 100 | J15: 200 | K15: ГБайт | L15: 8.900 | M15: 67.483427 | N15: 1780 | O15: 2.893974997 | P15: 1201.205001 | Q15: 578.7949994 | R15: 2023-10-25 | S15: 2023-10-25 | T15: 6 | U15: Закрыта успешно
A16: 360 | B16: №360 GPU для разработчика AI (ИП Дмитрова Анна Германовна) | C16: 2 | D16: Фиксированная | E16: Next Generation Cloud: Intel 2.9 ГГц | F16: Дисковое пространство: SATA | G16: iaas.ngc.i29.sata-f | H16: 2023-10-25 | I16: 100 | J16: 0 | K16: ГБайт | L16: 3.950 | M16: 67.483427 | N16: 0 | O16: 1.284404633 | P16: 0 | Q16: 0 | R16: 2023-10-25 | S16: 2023-10-25 | T16: 6 | U16: Закрыта успешно
A17: 360 | B17: №360 GPU для разработчика AI (ИП Дмитрова Анна Германовна) | C17: 2 | D17: Фиксированная | E17: Next Generation Cloud: Intel 2.9 ГГц | F17: Дисковое пространство: Fast SSD | G17: iaas.ngc.i29.fstssd-f | H17: 2023-10-25 | I17: 100 | J17: 0 | K17: ГБайт | L17: 17.900 | M17: 67.483427 | N17: 0 | O17: 5.820466567 | P17: 0 | Q17: 0 | R17: 2023-10-25 | S17: 2023-10-25 | T17: 6 | U17: Закрыта успешно
A18: 360 | B18: №360 GPU для разработчика AI (ИП Дмитрова Анна Германовна) | C18: 2 | D18: Фиксированная | E18: Next Generation Cloud: Intel 2.9 ГГц | F18: GPU: 2GB RAM | G18: iaas.ngc.i29.gpu2-f | H18: 2023-10-25 | I18: 100 | J18: 0 | K18: шт. | L18: 5100.000 | M18: 67.483427 | N18: 0 | O18: 1658.345223 | P18: 0 | Q18: 0 | R18: 2023-10-25 | S18: 2023-10-25 | T18: 6 | U18: Закрыта успешно
A19: 360 | B19: №360 GPU для разработчика AI (ИП Дмитрова Анна Германовна) | C19: 2 | D19: Фиксированная | E19: Next Generation Cloud: Intel 2.9 ГГц | F19: GPU: 4GB RAM | G19: iaas.ngc.i29.gpu4-f | H19: 2023-10-25 | I19: 100 | J19: 0 | K19: шт. | L19: 10200.000 | M19: 67.483427 | N19: 0 | O19: 3316.690446 | P19: 0 | Q19: 0 | R19: 2023-10-25 | S19: 2023-10-25 | T19: 6 | U19: Закрыта успешно
A20: 360 | B20: №360 GPU для разработчика AI (ИП Дмитрова Анна Германовна) | C20: 2 | D20: Фиксированная | E20: Next Generation Cloud: Intel 2.9 ГГц | F20: GPU: 8GB RAM | G20: iaas.ngc.i29.gpu8-f | H20: 2023-10-25 | I20: 100 | J20: 0 | K20: шт. | L20: 20400.000 | M20: 67.483427 | N20: 0 | O20: 6633.380892 | P20: 0 | Q20: 0 | R20: 2023-10-25 | S20: 2023-10-25 | T20: 6 | U20: Закрыта успешно
A21: 360 | B21: №360 GPU для разработчика AI (ИП Дмитрова Анна Германовна) | C21: 2 | D21: Фиксированная | E21: Next Generation Cloud: Intel 2.9 ГГц | F21: GPU: 16GB RAM | G21: iaas.ngc.i29.gpu16-f | H21: 2023-10-25 | I21: 100 | J21: 1 | K21: шт. | L21: 40800.000 | M21: 67.483427 | N21: 40800 | O21: 13266.76178 | P21: 27533.23822 | Q21: 13266.76178 | R21: 2023-10-25 | S21: 2023-10-25 | T21: 6 | U21: Закрыта успешно
A22: 360 | B22: №360 GPU для разработчика AI (ИП Дмитрова Анна Германовна) | C22: 2 | D22: Фиксированная | E22: Публичный IPv4 адрес | F22: Публичный IPv4 адрес | G22: tc.ipv4.0-f | H22: 2023-10-25 | I22: 100 | J22: 1 | K22: шт. | L22: 290.000 | M22: 25.862069 | N22: 290 | O22: 214.9999999 | P22: 75.0000001 | Q22: 214.9999999 | R22: 2023-10-25 | S22: 2023-10-25 | T22: 6 | U22: Закрыта успешно
L23: Next Generation Cloud | N23: 47668 | P23: 32167.99998 | Q23: 15500.00002
L24: Публичный IPv4 адрес | N24: 290 | P24: 75.0000001 | Q24: 214.9999999
L25: Совпадает с CRM | P25: ИТОГО | Q25: 15715.00002
L26: Не совпадает с новым скриптом | P26: Если в шапке есть процент (67,48…) скидки, тогда эта скидка распространяется на все позиции услуги
A70: Цифры с округлением
A71: DIFF (deal_diff, deal_diff_item) | M71: мой расчёт | N71: в первоисточнике - округление | P71: мой расчёт | Q71: мой расчёт | R71: мой расчёт
A72: cmp_index | B72: cmp_name | C72: deal_index | D72: deal_name | E72: price_model_name | G72: user_description | I72: prob_dwh | J72: cnt | K72: measure | L72: price_vat | M72: СУММА за всё кол-во | N72: price_vat_discount - цена со скидкой за единицу | O72: Процент скидки | P72: Величина скидки, руб., за единицу | Q72: Цена со скидкой за единицу | R72: Цена со скидкой за все единицы
A73: 309 | B73: ИП Дмитрова Анна Германовна | C73: 360 | D73: №360 GPU для разработчика AI (ИП Дмитрова Анна Германовна) | E73: Периодический (абонентский) | G73: Next Generation Cloud: Intel 2.9 ГГц | I73: 100 | J73: 4 | K73: шт. | L73: 360 | M73: 1440 | N73: 117 | O73: 67.483427 | P73: 242.94034 | Q73: 117.05966 | R73: 468.23865
A74: 309 | B74: ИП Дмитрова Анна Германовна | C74: 360 | D74: №360 GPU для разработчика AI (ИП Дмитрова Анна Германовна) | E74: Периодический (абонентский) | G74: Next Generation Cloud: Intel 2.9 ГГц | I74: 100 | J74: 16 | K74: ГБайт | L74: 228 | M74: 3648 | N74: 74 | O74: 67.483427 | P74: 153.86221 | Q74: 74.13779 | R74: 1,186.20458
A75: 309 | B75: ИП Дмитрова Анна Германовна | C75: 360 | D75: №360 GPU для разработчика AI (ИП Дмитрова Анна Германовна) | E75: Периодический (абонентский) | G75: Next Generation Cloud: Intel 2.9 ГГц | I75: 100 | J75: 200 | K75: ГБайт | L75: 8 | M75: 1600 | N75: 2 | O75: 67.483427 | P75: 5.39867 | Q75: 2.60133 | R75: 520.26517
A76: 309 | B76: ИП Дмитрова Анна Германовна | C76: 360 | D76: №360 GPU для разработчика AI (ИП Дмитрова Анна Германовна) | E76: Периодический (абонентский) | G76: Next Generation Cloud: Intel 2.9 ГГц | I76: 100 | J76: 0 | K76: ГБайт | L76: 3 | M76: 0 | N76: 1 | O76: 67.483427 | P76: 2.02450 | Q76: 0.97550 | R76: 0.00000
A77: 309 | B77: ИП Дмитрова Анна Германовна | C77: 360 | D77: №360 GPU для разработчика AI (ИП Дмитрова Анна Германовна) | E77: Периодический (абонентский) | G77: Next Generation Cloud: Intel 2.9 ГГц | I77: 100 | J77: 0 | K77: ГБайт | L77: 17 | M77: 0 | N77: 5 | O77: 67.483427 | P77: 11.47218 | Q77: 5.52782 | R77: 0.00000
A78: 309 | B78: ИП Дмитрова Анна Германовна | C78: 360 | D78: №360 GPU для разработчика AI (ИП Дмитрова Анна Германовна) | E78: Периодический (абонентский) | G78: Next Generation Cloud: Intel 2.9 ГГц | I78: 100 | J78: 0 | K78: шт. | L78: 5100 | M78: 0 | N78: 1658 | O78: 67.483427 | P78: 3,441.65478 | Q78: 1,658.34522 | R78: 0.00000
A79: 309 | B79: ИП Дмитрова Анна Германовна | C79: 360 | D79: №360 GPU для разработчика AI (ИП Дмитрова Анна Германовна) | E79: Периодический (абонентский) | G79: Next Generation Cloud: Intel 2.9 ГГц | I79: 100 | J79: 0 | K79: шт. | L79: 10200 | M79: 0 | N79: 3316 | O79: 67.483427 | P79: 6,883.30955 | Q79: 3,316.69045 | R79: 0.00000
A80: 309 | B80: ИП Дмитрова Анна Германовна | C80: 360 | D80: №360 GPU для разработчика AI (ИП Дмитрова Анна Германовна) | E80: Периодический (абонентский) | G80: Next Generation Cloud: Intel 2.9 ГГц | I80: 100 | J80: 0 | K80: шт. | L80: 20400 | M80: 0 | N80: 6633 | O80: 67.483427 | P80: 13,766.61911 | Q80: 6,633.38089 | R80: 0.00000
A81: 309 | B81: ИП Дмитрова Анна Германовна | C81: 360 | D81: №360 GPU для разработчика AI (ИП Дмитрова Анна Германовна) | E81: Периодический (абонентский) | G81: Next Generation Cloud: Intel 2.9 ГГц | I81: 100 | J81: 1 | K81: шт. | L81: 40800 | M81: 40800 | N81: 13266 | O81: 67.483427 | P81: 27,533.23822 | Q81: 13,266.76178 | R81: 13,266.76178
A82: 309 | B82: ИП Дмитрова Анна Германовна | C82: 360 | D82: №360 GPU для разработчика AI (ИП Дмитрова Анна Германовна) | E82: Периодический (абонентский) | G82: Публичный IPv4 адрес | I82: 100 | J82: 1 | K82: шт. | L82: 290 | M82: 290 | N82: 214 | O82: 25.862069 | P82: 75.00000 | Q82: 215.00000 | R82: 215.00000
Q83: ИТОГО | R83: 15,441.47019 | S83: совпадает со спецификацией
R84: 215.00000 | S84: совпадает со спецификацией

Sheet install
A1: index | B1: uuid
A2: 610 | B2: 018cf38d-07ca-dfc1-e467-853485768fe4
A3: 676 | B3: 018d40a7-df31-bfc6-3dfb-9f98aff60317
A4: 690 | B4: 018d5433-3a17-6c86-7e0f-5191323e67e3
A5: 791 | B5: 018dcd1c-c4f7-3b9b-80d7-07e2cbf5a530
A6: 794 | B6: 018dd007-29b0-19c8-dba3-5a93a543d597
A7: 796 | B7: 018de1f3-047d-09ff-6ff3-8f21569d995d
A8: 811 | B8: 018df4ea-f952-19d7-c071-12021a2240c6
A9: 825 | B9: 018e0da2-0d0f-d2be-163f-1168c8d673cd
A10: 900 | B10: 018e5f80-fa42-cfc8-5248-a2b5f1c7bc1a
A11: 925 | B11: 018e7b71-c344-e2f2-9a19-8d2a7ae526a0
A12: 927 | B12: 018e84f9-9acc-2c49-9deb-8b0bbe24e013
A13: 935 | B13: 018e9643-2fac-3b0c-afcf-b7910754041a
A14: 936 | B14: 018e964b-62fb-cec3-6f4e-f5a12cbafe22
A15: 943 | B15: 018e98ae-9e81-b67a-8594-d825d62ed5ee
A16: 986 | B16: 018ede2a-94f5-6b0c-8e24-6f1ba33e95d5
A17: 1019 | B17: 018f0265-fa36-d9af-ea9c-950bed3fbafd
A18: 1040 | B18: 018f1596-aa60-f2a4-dfd3-94ec04bcb1b4
A19: 1077 | B19: 018f7c3c-d25c-e88b-6fc1-dffc4e70596c
A20: 1135 | B20: 018fe3b2-a6df-3efb-9787-65cb7e1e7ee6
A21: 2988 | B21: 0199334c-88c4-7130-86ce-99da86f153d7

Sheet Сделки без договоров
A1: cmp_index | B1: cmp_name | C1: wz | D1: inn | E1: deal_index | F1: deal_name | G1: created_at | H1: percent | I1: status_code | J1: deal_uuid | K1: cmp_uuid
A2: 147 | B2: САО "ВСК" | C2: WZ01147 | D2: 7710026574 | E2: 2781 | F2: №2781 САО "ВСК" | G2: 2025-07-14 10:20:00.000 +0300 | H2: 10 | I2: 4 | J2: 019807ce-0c82-745e-b296-a3bcba948ea0 | K2: efd3a07e-d45b-42fc-ba55-c725e2e4657c
A3: 219 | B3: ООО "ВЕЛЕССТРОЙ" | C3: WZ01219 | D3: 7709787790 | E3: 2960 | F3: №2960 Велесстрой | G3: 2025-09-03 10:37:40.000 +0300 | H3: 10 | I3: 4 | J3: 01990e82-8d68-796a-8056-7fa84324c0d4 | K3: 63d4298f-f2ad-4163-8df6-f2fdee145775
A4: 292 | B4: ООО "СНЭМА-СЕРВИС" | C4: WZ01292 | D4: 278088368 | E4: 2983 | F4: №2983 Файлообмен Снема | G4: 2025-09-09 16:09:50.000 +0300 | H4: 10 | I4: 4 | J4: 01992e98-d025-7708-8acf-52872bb4ce7c | K4: e356d953-7059-45fa-bcf3-b6113730f6dd
A5: 342 | B5: ООО "НЕФТЕПРОДУКТ-ЦЕНТР" | C5: WZ01342 | D5: 7731414377 | E5: 2975 | F5: №2975 нефтепродукт | G5: 2025-09-08 16:34:35.000 +0300 | H5: 10 | I5: 4 | J5: 01992989-1cc2-71c2-8e0d-574e437ca244 | K5: b34a58ec-cbaf-4bc0-b94d-141a4f23720d
A6: 392 | B6: ООО "ВОКСИС" | C6: WZ01392 | D6: 6674223607 | E6: 2804 | F6: №2804 Воксис А100 | G6: 2025-07-21 13:19:37.000 +0300 | H6: 10 | I6: 4 | J6: 01982c7f-0186-7396-847c-a1e51e3f1697 | K6: 81e690d2-418e-4f66-a457-6568865e80f3
A7: 431 | B7: АО "КОНТИ-РУС" | C7: WZ01431 | D7: 4629046141 | E7: 2355 | F7: №2355 Конти DR | G7: 2025-04-28 15:59:56.000 +0300 | H7: 10 | I7: 4 | J7: 01967c7b-981a-7d94-a223-2c349497e273 | K7: e631e866-1706-4757-a2df-c3a09b17fef6
A8: 471 | B8: ООО "РАНДЕВУ" | C8: WZ01471 | D8: 7726747130 | E8: 2154 | F8: №2154 Рандеву GPU | G8: 2025-03-18 15:06:03.000 +0300 | H8: 30 | I8: 10 | J8: 0195a925-8771-75f9-b9f5-3cfcd28e7108 | K8: 3939723a-f39d-4067-8123-de35e8693b38
A9: 499 | B9: ООО "МИР ИТ" | C9: WZ01499 | D9: 7719475895 | E9: 2001 | F9: №2001 Iaas Мир ИТ | G9: 2025-02-06 15:10:46.000 +0300 | H9: 30 | I9: 10 | J9: 0194db2b-78b3-7ef3-8c0f-857137a634c0 | K9: 56fbc922-b212-4194-9abf-16bddbd9f3c5
A10: 529 | B10: ООО "КУПИШУЗ" | C10: WZ01529 | D10: 7705935687 | E10: 1585 | F10: №1585 купишуз | G10: 2024-10-16 18:14:30.000 +0300 | H10: 30 | I10: 10 | J10: 019295e5-1144-72ab-9f25-4127c0e16f96 | K10: 9f29874f-b359-4458-867c-63201e65103d
A11: 543 | B11: ООО "ТЕЛА-ТЕЛЕКОМ" | C11: WZ01543 | D11: 7814414109 | E11: 1398 | F11: №1398 2 стойки до 5 кВт Colocation для ООО Тела Телеком | G11: 2024-08-20 12:32:21.000 +0300 | H11: 30 | I11: 10 | J11: 01916f21-5798-70c8-8007-5ba678ec4981 | K11: 62b7d747-3524-4e13-a744-2ca987ab0584
A12: 571 | B12: ООО "ЛАРТА ГЛАСС РАМЕНСКОЕ" | C12: WZ01571 | D12: 5040054932 | E12: 2366 | F12: №2366 ООО "ЛАРТА ГЛАСС РАМЕНСКОЕ" | G12: 2025-04-30 12:16:20.000 +0300 | H12: 10 | I12: 4 | J12: 019685fb-96ae-7c07-a984-1f2f9012cd81 | K12: 0ce4b339-0708-42e5-8dc0-92d429852461
A13: 595 | B13: ООО "МЕДИА БИЗНЕС СОЛЮШЕНС" | C13: WZ01595 | D13: 7714995509 | E13: 97 | F13: №97 Медиа Бизнес Солюшенс | G13: 2023-07-13 16:15:00.000 +0300 | H13: 100 | I13: 6 | J13: e7f1acc7-5f61-41eb-84b4-c7c131708f62 | K13: 9e695985-2201-4d0d-bed9-1219716320a6
A14: 601 | B14: АО "ИНФОРМАТИКА" | C14: WZ01601 | D14: 3731000788 | E14: 2900 | F14: №2900 АО "ИНФОРМАТИКА" | G14: 2025-08-19 17:49:18.000 +0300 | H14: 10 | I14: 4 | J14: 0198c2ce-5392-778f-8e5f-dc8d981438ff | K14: 33cf900d-5cf1-4c64-83a0-03191703f56e
A15: 607 | B15: ООО "МВМ" | C15: WZ01607 | D15: 7707548740 | E15: 2594 | F15: №2594 МВМ мвидео IaaS | G15: 2025-06-04 10:22:22.000 +0300 | H15: 10 | I15: 4 | J15: 019739d1-d5ed-7b98-b29f-1edb55704be1 | K15: 59e07fc7-3141-46ee-acfa-daee54b0c160
A16: 618 | B16: ФГАУ "ФЦПР ИИ" | C16: WZ01618 | D16: 7727009915 | E16: 2181 | F16: №2181 ФГАУ "ФЦПР ИИ" | G16: 2025-03-21 19:21:15.000 +0300 | H16: 30 | I16: 10 | J16: 0195b982-4062-7b29-9215-95f0c45f9d5c | K16: 23d42e4d-2380-45da-813d-ab830887f6ee
A17: 635 | B17: ООО "ПАНАСОНИК РУС" | C17: WZ01635 | D17: 7728524637 | E17: 1821 | F17: №1821 Панасоник стойка | G17: 2024-12-09 11:07:22.000 +0300 | H17: 0 | I17: 1 | J17: 0193aa75-6c1c-7dd4-badf-7968e4077949 | K17: 088fa156-dfb3-40fa-b499-4198c6786153
A18: 666 | B18: ООО "ЭНЕРГОН" | C18: WZ01666 | D18: 7802608879 | E18: 2986 | F18: №2986 Энергон ГК | G18: 2025-09-10 10:50:05.000 +0300 | H18: 10 | I18: 4 | J18: 0199329a-6c21-7c7f-b9dd-3c642ea3eabd | K18: 26538cb5-8e9e-49cb-87a5-44c94c8ec6d2
A19: 694 | B19: ООО "ДОКДОК" | C19: WZ01694 | D19: 9710011437 | E19: 2600 | F19: №2600 Рабочие места VDI | G19: 2025-06-04 14:45:21.000 +0300 | H19: 30 | I19: 10 | J19: 01973ac2-99d6-7427-a33a-6f4ffab88076 | K19: 6e95e762-df53-4ebd-8aaf-582c5ee28cd4
A20: 707 | B20: ООО "РТС-ТЕНДЕР" | C20: WZ01707 | D20: 7710357167 | E20: 835 | F20: №835 РТС - S3 | G20: 2024-03-06 11:56:02.000 +0300 | H20: 10 | I20: 4 | J20: 018e12fa-138e-55df-4da3-499a4c6eb776 | K20: fe4fddc6-f196-45d7-a47b-afe41e1db4bf
A21: 734 | B21: ООО "КОМПЛЕКСНЫЕ ЭНЕРГЕТИЧЕСКИЕ РЕШЕНИЯ" | C21: WZ01734 | D21: 5038057975 | E21: 2712 | F21: №2712 ООО "КОМПЛЕКСНЫЕ ЭНЕРГЕТИЧЕСКИЕ РЕШЕНИЯ" - ВАЛО КЛАУД | G21: 2025-06-26 18:17:40.000 +0300 | H21: 10 | I21: 4 | J21: 0197acd0-e3ba-778d-833e-2d93e7b8a991 | K21: ffc162fb-cfa0-4d35-ac16-40bed95c68fb
A22: 736 | B22: АО ИНГОССТРАХ БАНК | C22: WZ01736 | D22: 7714056040 | E22: 3002 | F22: №3002 Colocation | Nubes11.09.2025 | G22: 2025-09-16 14:30:23.000 +0300 | H22: 10 | I22: 4 | J22: 0199524a-48d3-7eb9-8e32-5b5dbb926f73 | K22: 17c026e5-3609-45aa-8359-f63b363c58a5
A23: 750 | B23: ООО "ИТР" | C23: WZ01750 | D23: 7839039731 | E23: 893 | F23: №893 14.03 ИТР - Вебинар VDI | G23: 2024-03-20 15:53:14.000 +0300 | H23: 0 | I23: 1 | J23: 018e5bec-4403-6abd-d4c7-d11152f9708e | K23: 0129b08c-02f9-401d-8df7-b0f95c84f6b2
A24: 769 | B24: АО "ВЕРТОЛЕТЫ РОССИИ" | C24: WZ01769 | D24: 7731559044 | E24: 2542 | F24: №2542 АО ВЕРТОЛЕТЫ РОССИИ | G24: 2025-05-27 13:16:30.000 +0300 | H24: 10 | I24: 4 | J24: 0197113e-6165-7742-9169-b3b45a12387c | K24: 6e1e04a0-7036-463e-9b41-94fe6b3f37ff
A25: 783 | B25: ООО "ТАЙМЛИСТ" | C25: WZ01783 | D25: 7713498790 | E25: 2859 | F25: №2859 ООО Таймлист - vGPU | G25: 2025-08-08 12:02:36.000 +0300 | H25: 10 | I25: 4 | J25: 019888ea-f413-7076-b98f-e87958a16c6e | K25: d3dc8cb5-5749-40d3-a742-0c943dfa0dd3
A26: 827 | B26: ООО "ОМС-ЦЕНТР" | C26: WZ01827 | D26: 7707649265 | E26: 2903 | F26: №2903 Valo OMC | G26: 2025-08-20 11:03:27.000 +0300 | H26: 10 | I26: 4 | J26: 0198c681-1dd5-7b59-897d-6a530a729dae | K26: 6e59634e-97b0-4bbd-b65d-0346f0ef841c
A27: 840 | B27: АО "ТИНЬКОФФ БАНК" | C27: WZ01840 | D27: 7710140679 | E27: 2320 | F27: №2320 ТБАНК HaaS | G27: 2025-04-21 11:15:42.000 +0300 | H27: 10 | I27: 4 | J27: 0196576a-db6e-7bdf-9a89-42ead320f25f | K27: 9c0578bb-a008-4c29-89fa-ef9af113b7b3
A28: 860 | B28: ООО РусДор Телематика | C28: WZ01860 | D28: 9714036432 | E28: 2072 | F28: №2072 IaaS для РусДор Телематика | G28: 2025-02-25 12:30:07.000 +0300 | H28: 30 | I28: 10 | J28: 01953c71-37ab-7561-90d5-ee5f07659dea | K28: 1da574e5-1097-40b3-9560-1afe8694c31a
A29: 891 | B29: ООО "ЕВРАЗТЕХНИКА ИС" | C29: WZ01891 | D29: 9731074565 | E29: 1612 | F29: №1612 Тарифы для Евраз | G29: 2024-10-23 15:01:56.000 +0300 | H29: 10 | I29: 4 | J29: 0192b941-481b-72b9-b91a-e7a5b1b21a23 | K29: 6ed8f0a0-4ece-4d58-947d-5cf7a88ca78a
A30: 894 | B30: ООО "ГАГАР.ИН" | C30: WZ01894 | D30: 9702008110 | E30: 1081 | F30: №1081 Colo | G30: 2024-05-16 13:51:29.000 +0300 | H30: 10 | I30: 4 | J30: 018f8107-49e8-86a9-5b03-f0f4a86ad1ae | K30: 7f6e96c6-c3c2-410e-b3d8-c572de038fb7
A31: 922 | B31: ООО "ЭКОВЕКТОР" | C31: WZ01922 | D31: 7733355857 | E31: 2853 | F31: №2853 ООО Эковектор - Услуги ИБ | G31: 2025-08-06 16:18:02.000 +0300 | H31: 10 | I31: 4 | J31: 01987f88-1a0d-78d9-a421-b6966f98618f | K31: acfc2520-5a7a-440e-8a20-e99039950101
A32: 931 | B32: Департамент Информационных Технологий Города Москвы | C32: WZ01931 | D32: 7710878000 | E32: 2525 | F32: №2525 Департамент Информационных Технологий Города Москвы | G32: 2025-05-26 16:19:33.000 +0300 | H32: 30 | I32: 10 | J32: 01970cbf-9b15-7710-99d9-9ff18aa2cbb3 | K32: e9c9dca8-c2f1-455c-a49d-75bdd586fa27
A33: 952 | B33: ООО ПК "ЯНУС" | C33: WZ01952 | D33: 7725692351 | E33: 2998 | F33: №2998 ООО ЯНУС Запрос на размещение оборудования в стойке. | G33: 2025-09-16 10:48:39.000 +0300 | H33: 10 | I33: 4 | J33: 0199517f-463f-785c-bf23-b902b46931c4 | K33: 5fedb58f-346f-41d5-855c-4040cedd33fe
A34: 959 | B34: АО "ТАТСПИРТПРОМ" | C34: WZ01959 | D34: 1681000049 | E34: 1843 | F34: №1843 S3 | G34: 2024-12-16 10:33:50.000 +0300 | H34: 10 | I34: 4 | J34: 0193ce63-3cb3-765e-99f4-b05f8ecb065b | K34: 1081f7d8-fd20-4ccd-9c67-d9ff9a2c966c
A35: 983 | B35: ФГАОУ ВО РУТ (МИИТ), РУТ (МИИТ) | C35: WZ01983 | D35: 7715027733 | E35: 2885 | F35: №2885 Пилотирование GPU - РУТ (МИИТ) | G35: 2025-08-18 10:28:04.000 +0300 | H35: 10 | I35: 10 | J35: 0198bc14-0309-7e0c-9019-a7eb938bb8e1 | K35: c6cb78ea-3e0b-44c0-8750-20435e9edf0c
A36: 1021 | B36: ПАО "СИБУР ХОЛДИНГ" | C36: WZ02021 | D36: 7727547261 | E36: 2356 | F36: №2356 сибур суперкомп | G36: 2025-04-28 16:14:03.000 +0300 | H36: 10 | I36: 4 | J36: 01967c88-84cb-745a-8207-4f3148d3b7f4 | K36: 4ce66e3b-5d45-43e5-b9b6-0beacac60d38
A37: 1029 | B37: ООО "ГУНВОР" | C37: WZ02029 | D37: 7707327162 | E37: 1321 | F37: №1321 Гурвор бэкап | G37: 2024-07-24 15:31:31.000 +0300 | H37: 30 | I37: 10 | J37: 0190e4b9-a9de-7bed-bc7a-73d942cb653b | K37: 0b87b743-9b8a-4552-8aca-5d95e5e206b7
A38: 1031 | B38: ПАО "М.ВИДЕО" | C38: WZ02031 | D38: 7707602010 | E38: 2402 | F38: №2402 Мвидео S3 | G38: 2025-05-13 16:52:15.000 +0300 | H38: 10 | I38: 4 | J38: 0196c9ea-df9f-7a3a-a0b0-da77d6bf8a2c | K38: 0270a727-c157-4e51-8d2f-d53d910f76c2
A39: 1034 | B39: ООО "МАЙГРИН МАРКЕТ" | C39: WZ02034 | D39: 5408024286 | E39: 2106 | F39: №2106 гринвей | G39: 2025-03-05 11:51:08.000 +0300 | H39: 30 | I39: 10 | J39: 01956580-67bf-70df-80a0-b6753bf853c5 | K39: dc5443aa-8825-4283-94fb-1a0dd3ee9103
A40: 1045 | B40: АО "ВКУСВИЛЛ" | C40: WZ02045 | D40: 7734443270 | E40: 1563 | F40: №1563 11.10 1С в облаке | G40: 2024-10-11 17:48:00.000 +0300 | H40: 10 | I40: 4 | J40: 01927c0d-0288-729c-9019-3cdb8b4dad27 | K40: 87ab5204-0a12-4b17-a65d-92f3e47d5c8e
A41: 1047 | B41: АО "ЦЕМРОС" | C41: WZ02047 | D41: 7708117908 | E41: 1231 | F41: №1231 Цемрос аудит ИБ | G41: 2024-07-04 16:29:53.000 +0300 | H41: 10 | I41: 4 | J41: 01907def-e978-c3ce-2187-b3d9175a9ed2 | K41: 41055468-1e4f-4360-9420-9d7c5e061472
A42: 1060 | B42: ООО "СП БИЗНЕС КАР" | C42: WZ02060 | D42: 7705040943 | E42: 1353 | F42: №1353 Бизнес Кар 1с | G42: 2024-07-31 14:06:04.000 +0300 | H42: 30 | I42: 10 | J42: 01910877-f1ae-7c05-b0b8-1241d9a43c95 | K42: 3ae465fd-dd23-45f2-84b5-509052292760
A43: 1138 | B43: ООО "СПЕКТР" | C43: WZ02138 | D43: 7751186577 | E43: 2656 | F43: №2656 СПЕКТР защищёееый сервер 1С | G43: 2025-06-16 17:23:43.000 +0300 | H43: 50 | I43: 8 | J43: 0197791f-e96d-77f9-a532-189b3dccaab1 | K43: 0190cb32-099a-7525-9fff-fa6e190911be
A44: 1188 | B44: АО "РН-НЯГАНЬНЕФТЕГАЗ" | C44: WZ02188 | D44: 8610010727 | E44: 1346 | F44: №1346 Закупка лицензий на антивирус Касперского | G44: 2024-07-30 16:12:28.000 +0300 | H44: 30 | I44: 10 | J44: 019103c5-50bf-7c03-99a2-45b6ce6ff51b | K44: 019103c3-838e-7ab3-a3f3-b792bc749ed5
A45: 1200 | B45: ООО "ЕРЦ Г. ТОЛЬЯТТИ" | C45: WZ02200 | D45: 6321427356 | E45: 1305 | F45: №1305 IaaS под 1С | G45: 2024-07-19 15:35:45.000 +0300 | H45: 30 | I45: 10 | J45: 0190cafd-c066-7684-b28b-a93f6e2bffaf | K45: 01910d35-d35f-75d0-b59d-1c0b22c853dc
A46: 1255 | B46: ООО "СБЕР РЕШЕНИЯ" | C46: WZ02255 | D46: 9731053950 | E46: 1393 | F46: №1393 сбер солюшенс IaaS | G46: 2024-08-16 13:16:54.000 +0300 | H46: 10 | I46: 4 | J46: 01915ab0-af05-70b9-9f8a-2102b66d6e30 | K46: 01915ab7-ed9f-735d-82d3-f49cd9d9e795
A47: 1295 | B47: ООО "СБЕРБАНК-ТЕЛЕКОМ" | C47: WZ02295 | D47: 7736264044 | E47: 1670 | F47: №1670 Сбермобайл ЦРТ пилот по распознаванию лиц | G47: 2024-11-01 12:49:56.000 +0300 | H47: 10 | I47: 4 | J47: 0192e721-ab41-7206-a216-dd38e5e1ba6d | K47: 01919d5b-84fd-713a-b056-0fffe1fd4204
A48: 1340 | B48: АО "АЗОТ-ВЗРЫВ" | C48: WZ02340 | D48: 7727218041 | E48: 2168 | F48: №2168 АзотВзрыв | G48: 2025-03-19 18:08:54.000 +0300 | H48: 30 | I48: 10 | J48: 0195aef3-4ad5-7da3-8d5e-39a88ee0f2df | K48: 0191fed6-3f33-7717-a242-f18defdce3e4
A49: 1340 | B49: АО "АЗОТ-ВЗРЫВ" | C49: WZ02340 | D49: 7727218041 | E49: 2955 | F49: №2955 АО "АЗОТ-ВЗРЫВ" | G49: 2025-09-02 15:41:38.000 +0300 | H49: 10 | I49: 37 | J49: 01990a72-785c-7724-895a-00bc563c38c6 | K49: 0191fed6-3f33-7717-a242-f18defdce3e4
A50: 1354 | B50: ООО УК "АЛЬФА-КАПИТАЛ" | C50: WZ02354 | D50: 7728142469 | E50: 1556 | F50: №1556 Альфа-Капитал | G50: 2024-10-11 15:54:45.000 +0300 | H50: 30 | I50: 10 | J50: 01927ba5-535c-729c-90fa-1814d786531c | K50: 0192041d-3b36-7df6-99bc-64bb437a0ed3
A51: 1359 | B51: ООО "МЕДИ РУС" | C51: WZ02359 | D51: 7731536713 | E51: 2849 | F51: №2849 Федор ищет облако по 152фз | G51: 2025-08-05 17:24:46.000 +0300 | H51: 30 | I51: 10 | J51: 01987a9e-d6f7-775b-8e93-c54900607b54 | K51: 0192048a-3ea7-72ee-b430-b4ba2552bf70
A52: 1359 | B52: ООО "МЕДИ РУС" | C52: WZ02359 | D52: 7731536713 | E52: 1993 | F52: №1993 МЕДИ РУС | G52: 2025-02-05 15:55:05.000 +0300 | H52: 30 | I52: 10 | J52: 0194d62d-affe-72cd-b206-6ad92710b853 | K52: 0192048a-3ea7-72ee-b430-b4ba2552bf70
A53: 1359 | B53: ООО "МЕДИ РУС" | C53: WZ02359 | D53: 7731536713 | E53: 2877 | F53: №2877 МЕДИ. DLP (Серчинформ) | G53: 2025-08-14 15:32:50.000 +0300 | H53: 10 | I53: 4 | J53: 0198a891-9734-7f5d-9d8a-c425eafda91f | K53: 0192048a-3ea7-72ee-b430-b4ba2552bf70
A54: 1402 | B54: ООО Альфарм | C54: WZ02402 | D54: 7733727061 | E54: 1452 | F54: №1452 A2 Cloud | G54: 2024-09-09 14:08:38.000 +0300 | H54: 30 | I54: 10 | J54: 0191d678-ae14-70fe-84d0-a4288feb6034 | K54: 0192572d-e85e-737c-88e2-5fb7c34221fb
A55: 1408 | B55: ФИЛИАЛ ОБЩЕСТВА С ОГРАНИЧЕННОЙ ОТВЕТСТВЕННОСТЬЮ "РН-ЭКСПЛОРЕЙШН" В ГОРОДЕ АСТРАХАНИ | C55: WZ02408 | D55: 7706230432 | E55: 1541 | F55: №1541 ООО "РН-Эксплорейшн" | G55: 2024-10-09 11:00:21.000 +0300 | H55: 10 | I55: 4 | J55: 0192704b-12ca-7293-bbce-ee5b3c9f90ed | K55: 01927044-f56f-7753-859a-fb670ad0aceb
A56: 1413 | B56: ООО "ТИЭКСТИ ТЕХ" | C56: WZ02413 | D56: 7730306820 | E56: 1549 | F56: №1549 Тиэксти Тех | G56: 2024-10-10 17:11:25.000 +0300 | H56: 30 | I56: 10 | J56: 019276c5-286c-7296-ac89-e7ea0e75d39d | K56: 019276c4-5efc-7e54-963b-3883fe2d344d
A57: 1435 | B57: ООО "АЙТИ ЛАЙТ" | C57: WZ02435 | D57: 7704773521 | E57: 1578 | F57: №1578 Айти лайт стойки | G57: 2024-10-15 17:12:26.000 +0300 | H57: 30 | I57: 10 | J57: 01929085-e243-72a7-ad09-d7262ea27d33 | K57: 01929084-d2fa-71ee-846e-47190278340e
A58: 1456 | B58: ООО "СОВКОМБАНК ТЕХНОЛОГИИ" | C58: WZ02456 | D58: 4400001172 | E58: 1603 | F58: №1603 21.10 Рассылки Совкомбанк | G58: 2024-10-22 10:37:48.000 +0300 | H58: 30 | I58: 10 | J58: 0192b329-1a49-72b8-9066-2aa4eea2e00b | K58: 0192ae99-ca8e-7743-99ae-ff8c5d3b1b85
A59: 1461 | B59: ИП Власенков Дмитрий Васильевич | C59: WZ02461 | D59: 500509610972 | E59: 1605 | F59: №1605 20.10.2024 Базы данных MS SQL в облаке (DBaaS) | G59: 2024-10-22 11:45:47.000 +0300 | H59: 30 | I59: 10 | J59: 0192b367-5896-72b8-a125-d0bbce3c09c2 | K59: 0192af6f-cceb-7796-8283-b0b1139e8f02
A60: 1464 | B60: ООО "ИНТЕГРА МЕНЕДЖМЕНТ" | C60: WZ02464 | D60: 7725648850 | E60: 2184 | F60: №2184 Интегра менеджмент под АТС | G60: 2025-03-24 11:44:30.000 +0300 | H60: 10 | I60: 4 | J60: 0195c753-25d7-7665-beb1-fb078dbbd72a | K60: 0192b467-5246-7211-8fcc-a683c25af1bc
A61: 1465 | B61: ООО "ВЕБХОСТ" | C61: WZ02465 | D61: 7724877536 | E61: 1725 | F61: №1725 S3 под бэкап | G61: 2024-11-14 15:13:01.000 +0300 | H61: 10 | I61: 4 | J61: 01932a97-55df-709b-9757-f7fb16f11a43 | K61: 0192b48b-b2d8-7a4e-ade4-a4045d98806e
A62: 1465 | B62: ООО "ВЕБХОСТ" | C62: WZ02465 | D62: 7724877536 | E62: 1648 | F62: №1648 Вебхост стойки | G62: 2024-10-25 15:18:11.000 +0300 | H62: 10 | I62: 4 | J62: 0192c39c-e0e8-7504-93b6-7f8b0297db0c | K62: 0192b48b-b2d8-7a4e-ade4-a4045d98806e
A63: 1475 | B63: АО "ГИС-АСУПРОЕКТ" | C63: WZ02475 | D63: 7702284290 | E63: 1620 | F63: №1620 Гис асу проект | G63: 2024-10-24 11:57:20.000 +0300 | H63: 30 | I63: 10 | J63: 0192bdbe-a501-72e0-91d8-ae24944b84c8 | K63: 0192bdbc-94d7-7972-826a-8e1d0d9bbd61
A64: 1476 | B64: ООО "ПИКС РОБОТИКС" | C64: WZ02476 | D64: 9731050726 | E64: 1622 | F64: №1622 Пикс Роботикс/ГК Хайтек | G64: 2024-10-24 14:45:08.000 +0300 | H64: 30 | I64: 10 | J64: 0192be58-430e-72e0-a574-4c839914f010 | K64: 0192be57-e227-7c4b-989c-bba86b2bb1b1
A65: 1484 | B65: ООО "КЛИНИКА №1" | C65: WZ02484 | D65: 5038129154 | E65: 1647 | F65: №1647 Объектное хранилище S3 | Nubes25.10.2024 | G65: 2024-10-25 13:02:31.000 +0300 | H65: 30 | I65: 10 | J65: 0192c320-aeb8-7050-894e-875aa12fc73f | K65: 0192c34f-7dd4-7f15-ba89-456b439005e6
A66: 1495 | B66: ООО "ЦВЕТНОЙ ЦЕНТРАЛ МАРКЕТ" | C66: WZ02495 | D66: 7704697510 | E66: 1656 | F66: №1656 ЦВЕТНОЙ ЦЕНТРАЛ | G66: 2024-10-28 10:34:25.000 +0300 | H66: 10 | I66: 4 | J66: 0192d20c-2a3d-7955-b265-61b518a81622 | K66: 0192d1ff-cbdc-739d-95f7-3afb8d4c17a7
A67: 1495 | B67: ООО "ЦВЕТНОЙ ЦЕНТРАЛ МАРКЕТ" | C67: WZ02495 | D67: 7704697510 | E67: 2822 | F67: №2822 ЦВЕТНОЙ ЦЕНТРАЛ МАРКЕТ | G67: 2025-07-25 20:19:01.000 +0300 | H67: 10 | I67: 4 | J67: 01984298-69f7-7241-a67f-c4f90b032714 | K67: 0192d1ff-cbdc-739d-95f7-3afb8d4c17a7
A68: 1519 | B68: ООО "ЦНИ" | C68: WZ02519 | D68: 2310093827 | E68: 1737 | F68: №1737 18.11 ЦНИ | G68: 2024-11-18 14:22:07.000 +0300 | H68: 30 | I68: 10 | J68: 01933f02-2e04-70ff-8aff-2f9f2c8812fe | K68: 0192ed4a-96f7-76ae-9c91-3a82e4369120
A69: 1524 | B69: ООО "КУГА" | C69: WZ02524 | D69: 5027273773 | E69: 1685 | F69: №1685 06.11.2024 Аренда облачных серверов с GPU | G69: 2024-11-07 11:49:49.000 +0300 | H69: 30 | I69: 10 | J69: 019305d0-c810-7a24-982e-0c19b7adf99c | K69: 019305cc-6015-7c91-b9b3-5bc71e133ce9
A70: 1527 | B70: ООО "РЦ "ПЛИНОР" | C70: WZ02527 | D70: 7820022050 | E70: 2182 | F70: №2182 Плинор новый проект | G70: 2025-03-23 23:45:31.000 +0300 | H70: 10 | I70: 4 | J70: 0195c4c0-e6ba-775c-a204-bf969c518213 | K70: 019306ad-cd60-7319-a7c3-f0eb3aa16a67
A71: 1540 | B71: ООО "ЛАЙФ-ЛИНК" | C71: WZ02540 | D71: 5321165941 | E71: 1713 | F71: №1713 11.11 Лайф Линк | G71: 2024-11-11 17:17:56.000 +0300 | H71: 30 | I71: 10 | J71: 01931b96-9ea7-7ac0-9070-dfc7771aae62 | K71: 01931b92-b815-79c0-958c-24a6ecacda69
A72: 1542 | B72: ООО "РНК-ХОЛДИНГ" | C72: WZ02542 | D72: 3435145462 | E72: 1701 | F72: №1701 08.11 VDI | G72: 2024-11-08 17:44:24.000 +0300 | H72: 30 | I72: 10 | J72: 01930c3b-c64d-7d5b-b943-c225baf3809c | K72: 01931bab-4137-7f47-a1f3-c027e55f4005
A73: 1571 | B73: ООО ТК "ПЕРМСКИЙ" | C73: WZ02571 | D73: 5921034316 | E73: 1748 | F73: №1748 ПОЧТА. МИГРАЦИЯ. | G73: 2024-11-20 15:00:14.000 +0300 | H73: 30 | I73: 10 | J73: 01934971-c99d-7a4a-92bd-d19d526d76c6 | K73: 01934970-438e-776f-8da4-51bacfa11cd7
A74: 1572 | B74: ООО "АЙ МАШИН ТЕХНОЛОДЖИ" | C74: WZ02572 | D74: 7718835552 | E74: 1749 | F74: №1749 20.11.2024 Корпоративная почта CommuniGate Pro | G74: 2024-11-20 15:20:31.000 +0300 | H74: 10 | I74: 4 | J74: 01934984-5cf3-7aa5-8a25-4f20391c1239 | K74: 01934983-4945-7483-a3fa-c73a5e6d8c4f
A75: 1587 | B75: ООО "ВИЭНДЖИ" | C75: WZ02587 | D75: 7719765273 | E75: 2061 | F75: №2061 26.11 Виэнджи | G75: 2025-02-24 11:18:11.000 +0300 | H75: 10 | I75: 4 | J75: 01953708-fffa-79d3-bced-49ea37edd59e | K75: 0193684e-9b3a-734a-b638-e847ef0400e7
A76: 1591 | B76: ООО "ЭМДЖИКОМ" | C76: WZ02591 | D76: 7725560073 | E76: 1780 | F76: №1780 IaaS для ООО Эмджиком | G76: 2024-11-27 16:37:56.000 +0300 | H76: 30 | I76: 10 | J76: 01936dd7-c0c1-7d36-8c2b-b8809836050f | K76: 01936ddd-f2df-78f9-8847-10232f4ed8d9
A77: 1592 | B77: ООО "ЛЕВША ЦИФРОВЫЕ РЕШЕНИЯ" | C77: WZ02592 | D77: 9717131444 | E77: 1783 | F77: №1783 Левша | G77: 2024-11-28 11:31:48.000 +0300 | H77: 30 | I77: 10 | J77: 019371e5-d838-7e9d-a843-2cd9c902f2b0 | K77: 019371e4-b668-7c88-913d-a8c9a296862c
A78: 1593 | B78: ООО "ХОРЭКА-КЛАБ" | C78: WZ02593 | D78: 5032278833 | E78: 1784 | F78: №1784 28.11 Хорэка-Клаб | G78: 2024-11-28 13:12:54.000 +0300 | H78: 30 | I78: 10 | J78: 01937242-6501-7fac-be8b-5495c8d954cd | K78: 01937233-d311-777a-88a5-0b0c2bdfa38f
A79: 1594 | B79: ООО "ИНКАБ" | C79: WZ02594 | D79: 5904199692 | E79: 2268 | F79: №2268 Инкаб инфра с ГПУ | G79: 2025-04-09 16:08:32.000 +0300 | H79: 10 | I79: 4 | J79: 01961aaa-a41c-790a-a1ca-dff4e752a838 | K79: 01937265-bda2-7d00-95ab-562cc2158bac
A80: 1601 | B80: ООО "ЛАБОРАТОРИЯ АНАЛИЗА ДАННЫХ" | C80: WZ02601 | D80: 5001133637 | E80: 1619 | F80: №1619 IAAS ЛАБОРАТОРИЯ | G80: 2024-10-23 17:46:56.000 +0300 | H80: 10 | I80: 4 | J80: 0192b9d8-57b5-72bb-bc7c-34da7e21a56e | K80: 0193864d-6e5f-7121-88d9-2937a97a8663
A81: 1630 | B81: ООО ЭТП ГПБ | C81: WZ02630 | D81: 7724514910 | E81: 1864 | F81: №1864 ЭТП ГПБ ГПУ А100 | G81: 2024-12-19 16:48:20.000 +0300 | H81: 10 | I81: 4 | J81: 0193df2d-2e02-7c4d-bfa1-51bab04f82e2 | K81: 0193aaae-01fd-7bbe-bb5d-f8f32b18305c
A82: 1645 | B82: ООО "РЕГ.РУ" | C82: WZ02645 | D82: 7733568767 | E82: 1861 | F82: №1861 Рег.ру стойки | G82: 2024-12-18 12:37:17.000 +0300 | H82: 10 | I82: 4 | J82: 0193d920-fbe5-7caa-9cf8-2589ca4d7875 | K82: 0193d8f2-17cc-7773-ab9c-41f269d06310
A83: 1651 | B83: ООО "ЛУГАНСКОПТТОРГ" | C83: WZ02651 | D83: 9402003752 | E83: 1877 | F83: №1877 Colocation25.12.2024 | G83: 2024-12-25 14:55:44.000 +0300 | H83: 30 | I83: 10 | J83: 0193fdac-405b-7e94-ae29-738d99c6225a | K83: 0193fdfb-cf00-7339-855b-47bf9fd067e5
A84: 1658 | B84: ООО "АВИЗ" | C84: WZ02658 | D84: 3123387917 | E84: 1882 | F84: №1882 авиз | G84: 2025-01-10 02:22:04.000 +0300 | H84: 10 | I84: 4 | J84: 01944d5f-fe2e-7d18-9831-602106a8bc8f | K84: 01944d5d-a7fe-755d-95d9-6f29f1889bda
A85: 1659 | B85: ООО "БЕРЕНТ" | C85: WZ02659 | D85: 7715920778 | E85: 1884 | F85: №1884 Берент Collo | G85: 2025-01-10 17:42:05.000 +0300 | H85: 10 | I85: 4 | J85: 019450aa-4be2-7b2f-95e2-96aac145315d | K85: 019450a6-475b-7113-bd48-0d963f0c6cd4
A86: 1691 | B86: ООО "ДИРЕКТУМ" | C86: WZ02691 | D86: 1835056809 | E86: 1924 | F86: №1924 Перевод в сделку (Директум ) | G86: 2025-01-20 12:44:26.000 +0300 | H86: 10 | I86: 4 | J86: 01948319-644b-791f-aa3f-264e1f49c060 | K86: 01948346-5902-7dd5-a763-94453ea8c82a
A87: 1702 | B87: ПАО "ЯКОВЛЕВ" | C87: WZ02702 | D87: 3807002509 | E87: 1951 | F87: №1951 ПАО Яковлев | G87: 2025-01-27 11:58:17.000 +0300 | H87: 10 | I87: 4 | J87: 0194a6fb-a832-75f4-9674-75e92ff4d4e1 | K87: 0194a6cc-be99-77cd-94c1-d3e9a963bf08
A88: 1704 | B88: ООО "ИДС БОРЖОМИ" | C88: WZ02704 | D88: 7703599366 | E88: 1956 | F88: №1956 Боржоми облако | G88: 2025-01-27 17:56:44.000 +0300 | H88: 10 | I88: 4 | J88: 0194a843-d094-7026-88f4-b5ff2bfaf528 | K88: 0194a702-6a73-73bc-b3ce-b36b040d5939
A89: 1707 | B89: АО "ЗЕТТА СТРАХОВАНИЕ" | C89: WZ02707 | D89: 7702073683 | E89: 1960 | F89: №1960 Патнер Linx / Клиент АО Зетта Страхование | G89: 2025-01-28 14:56:57.000 +0300 | H89: 30 | I89: 10 | J89: 0194acc5-94b8-7f7e-a05c-f44bfd758f1d | K89: 0194a7c2-1f81-74b8-be54-cfe219493733
A90: 1719 | B90: ООО "УК "ДЕПО" | C90: WZ02719 | D90: 9717101217 | E90: 3013 | F90: №3013 ук депо 1С | G90: 2025-09-19 21:55:56.000 +0300 | H90: 10 | I90: 4 | J90: 01996355-456e-79dd-9354-ea0d3f9d0f80 | K90: 0194b6e7-99bc-73ef-866d-ffaeefdefed2
A91: 1721 | B91: ООО "ИНТЕРНЕТ-КОНСАЛТИНГ" | C91: WZ02721 | D91: 7716541959 | E91: 1981 | F91: №1981 31.01 Интернет консалтинг | G91: 2025-02-01 09:52:50.000 +0300 | H91: 30 | I91: 10 | J91: 0194c048-990c-7fac-88cc-2afa235fb7f1 | K91: 0194bb1d-e2a8-7753-9516-7fe2ea68c656
A92: 1732 | B92: ООО "АТОС АЙТИ СОЛЮШЕНС ЭНД СЕРВИСЕЗ" | C92: WZ02732 | D92: 7725707142 | E92: 1999 | F92: №1999 АТОС АЙТИ СОЛЮШЕНС ЭНД СЕРВИСЕЗ 30 стоек | G92: 2025-02-06 14:37:59.000 +0300 | H92: 10 | I92: 4 | J92: 0194db0d-73d1-7d38-8479-5cc26233c8cd | K92: 0194db12-6b8c-74fb-8ceb-ddcb80c53a52
A93: 1737 | B93: ООО "ВЕКТУ" | C93: WZ02737 | D93: 7107128670 | E93: 2006 | F93: №2006 ВЕКТУ | G93: 2025-02-07 14:32:16.000 +0300 | H93: 10 | I93: 4 | J93: 0194e02e-9445-736e-9608-350a3d5c3e93 | K93: 0194e00f-3fc8-7569-9308-c7daf2c4acef
A94: 1749 | B94: АО "СИТРОНИКС" | C94: WZ02749 | D94: 7735116621 | E94: 2017 | F94: №2017 СИТРОНИКС Collo 10 стоек | G94: 2025-02-11 12:39:44.000 +0300 | H94: 10 | I94: 4 | J94: 0194f460-fbdf-7c4b-a923-c6cc35fb67e1 | K94: 0194f45f-0626-7763-a8cc-c36f8b1ea064
A95: 1762 | B95: АНО ЦЕНТР ЭМАК | C95: WZ02762 | D95: 9709089125 | E95: 2696 | F95: №2696 Оказание услуг по миграции ИТ инфраструктуры | G95: 2025-06-25 11:57:08.000 +0300 | H95: 10 | I95: 4 | J95: 0197a64e-2308-7745-a5e5-dacd0a18391f | K95: 019517fe-5045-75b9-ae53-a2da1e7fc678
A96: 1762 | B96: АНО ЦЕНТР ЭМАК | C96: WZ02762 | D96: 9709089125 | E96: 2041 | F96: №2041 ЭМАК Оказание облачных услуг для нужд АНО ЦЕНТР. | G96: 2025-02-18 10:41:08.000 +0300 | H96: 30 | I96: 10 | J96: 01951800-ecf0-70de-be08-02c12733f65f | K96: 019517fe-5045-75b9-ae53-a2da1e7fc678
A97: 1763 | B97: Гольфстрим тур | C97: WZ02763 | D97: 9709040881 | E97: 2044 | F97: №2044 Гольфстрим тур база данных | G97: 2025-02-18 12:26:27.000 +0300 | H97: 10 | I97: 4 | J97: 01951861-5715-7e19-847e-4e21fd2f2237 | K97: 01951867-f859-720e-92c8-837fa830c0aa
A98: 1781 | B98: ООО "МОЛПРОМКУБАНЬ" | C98: WZ02781 | D98: 2302060916 | E98: 2086 | F98: №2086 Ресурсы 1С 24.02 | G98: 2025-02-27 10:41:17.000 +0300 | H98: 10 | I98: 4 | J98: 0195465a-4b87-722c-9417-8d1e59a570f4 | K98: 0195378f-e71e-72ed-ac6c-b4ccd469a5f9
A99: 1786 | B99: АО "ТЫВАСВЯЗЬИНФОРМ" | C99: WZ02786 | D99: 1701034426 | E99: 2067 | F99: №2067 2ФА АО "ТЫВАСВЯЗЬИНФОРМ" | G99: 2025-02-24 17:43:41.000 +0300 | H99: 10 | I99: 4 | J99: 01953869-ee05-7cde-95e8-72e560c08f0e | K99: 01953868-afbc-7205-abe6-2b8742421e1d
A100: 1813 | B100: ООО "ПРОТОМАЙНД" | C100: WZ02813 | D100: 2014038135 | E100: 2111 | F100: №2111 Протомайнд облачный сервер с GPU | G100: 2025-03-06 12:36:51.000 +0300 | H100: 10 | I100: 4 | J100: 01956ad0-9caf-7f4d-84e7-cad4aa0a59e1 | K100: 01956acb-7014-753a-9527-066d10932793
A101: 1868 | B101: ТСЖ "ФЛАГМАН" | C101: WZ02868 | D101: 5405348557 | E101: 2124 | F101: №2124 12.03 1с + диск | G101: 2025-03-12 14:29:14.000 +0300 | H101: 30 | I101: 10 | J101: 01958a1d-aaae-75d6-a4ea-abfd3fe81d49 | K101: 01958ed5-1f73-7727-ada9-4609780be83f
A102: 1871 | B102: ООО "ВОРОНЕЖСКАЯ БУМАЖНАЯ ФАБРИКА" | C102: WZ02871 | D102: 3662995882 | E102: 2134 | F102: №2134 13.03 Воронежская бумажная фабрика | G102: 2025-03-13 21:03:55.000 +0300 | H102: 30 | I102: 10 | J102: 019590ad-5cc7-7de9-b0a5-5dcf7155ddca | K102: 019590a7-deac-75a7-8844-e8aabc796772
A103: 1874 | B103: Меллинг, Войтишкин и Партнеры ФЗ ЛЛС, Компания с ограниченной ответственностью | C103: WZ02874 | D103: 9909639545 | E103: 1947 | F103: №1947 Бейкер маккензи интерес ГПУ | G103: 2025-01-27 11:02:07.000 +0300 | H103: 10 | I103: 4 | J103: 0194a6c8-3895-743d-b1eb-7f077b562873 | K103: 019594fb-92da-732b-a8b2-22bb0c2ea74b
A104: 1883 | B104: ООО "ВЕЛИКОЛУКСКИЙ МОЛОЧНЫЙ КОМБИНАТ" | C104: WZ02883 | D104: 6025049094 | E104: 2144 | F104: №2144 14.03 Великолукский молочный клмбинат | G104: 2025-03-17 17:12:05.000 +0300 | H104: 10 | I104: 4 | J104: 0195a472-8c11-7b93-b366-e194fbb030fa | K104: 0195a470-5b29-77b2-8778-774f831cfc0d
A105: 1884 | B105: ООО "БУАРОН" | C105: WZ02884 | D105: 7725548693 | E105: 2145 | F105: №2145 14.03 Буарон | G105: 2025-03-17 17:24:57.000 +0300 | H105: 30 | I105: 10 | J105: 0195a47e-564a-7c48-b832-37d050d4765f | K105: 0195a474-b1aa-7053-a4fb-6c4c6a027445
A106: 1904 | B106: ООО "ТЕРРАЛИНК" | C106: WZ02904 | D106: 7729139042 | E106: 2174 | F106: №2174 Терралинк | G106: 2025-03-20 15:01:29.000 +0300 | H106: 30 | I106: 10 | J106: 0195b36e-0f5c-7ed9-b699-793db6b6b8bc | K106: 0195b36c-aa79-753e-9bf6-bb950e41c823
A107: 1919 | B107: АО "ОКБ" | C107: WZ02919 | D107: 7710561081 | E107: 2185 | F107: №2185 24.03 АО "ОКБ" | G107: 2025-03-24 14:41:17.000 +0300 | H107: 30 | I107: 10 | J107: 0195c7f5-00f5-742a-bd01-d8a07ae92089 | K107: 0195c7f2-1cc4-7488-9eb2-22f9c73b2c49
A108: 1922 | B108: ООО "КЛАУД СОЛЮШЕНС" | C108: WZ02922 | D108: 9703050690 | E108: 2514 | F108: №2514 КЛАУД СОЛЮШЕНС администрирование | G108: 2025-05-25 12:01:09.000 +0300 | H108: 10 | I108: 4 | J108: 019706ac-adb2-76c4-bcba-6eee937d9ccc | K108: 0195c818-217e-73ad-823b-e2ac23be36e4
A109: 1930 | B109: ООО "МАНУСКРИПТ-СОЛЮШН" | C109: WZ02930 | D109: 7103054586 | E109: 2202 | F109: №2202 26.03 Мунускипт | G109: 2025-03-26 16:04:23.000 +0300 | H109: 10 | I109: 4 | J109: 0195d28d-ce88-73db-a226-cf9360b6b55f | K109: 0195d28a-d56e-772d-812b-5902f19ff3be
A110: 1934 | B110: ООО "ИНСЕКА" | C110: WZ02934 | D110: 3444279416 | E110: 2213 | F110: №2213 Инсека юниты | G110: 2025-03-28 14:37:59.000 +0300 | H110: 30 | I110: 10 | J110: 0195dc8b-6cb7-741a-95a0-acc0794632f0 | K110: 0195d6ec-e9c1-74b1-b2dd-7b1befb587d6
A111: 1935 | B111: ООО "АЛЬПЕ КОНСАЛТИНГ" | C111: WZ02935 | D111: 7705724020 | E111: 2209 | F111: №2209 27.03 Альпе Консалтинг | G111: 2025-03-27 12:37:29.000 +0300 | H111: 10 | I111: 4 | J111: 0195d6f6-be33-7dc6-96c6-85bc9d30b087 | K111: 0195d6f4-777e-716b-b2c1-17b42b120d35
A112: 1938 | B112: ООО "ИЗТТ" | C112: WZ02938 | D112: 1832058678 | E112: 2379 | F112: №2379 ООО "Ижевский завод тепловой техники" | G112: 2025-05-06 14:45:17.000 +0300 | H112: 10 | I112: 4 | J112: 0196a56a-1df3-7ffa-93e9-32f47fba5afb | K112: 0195dc4b-2085-775c-8714-9468c6432c80
A113: 1955 | B113: ООО "НЭКСТРЕМУМ" | C113: WZ02955 | D113: 9715349300 | E113: 2245 | F113: №2245 03.04 Нэкстремум Телеком-стойка | G113: 2025-04-03 15:47:08.000 +0300 | H113: 10 | I113: 4 | J113: 0195fbb0-e480-71b4-877c-e40548f20691 | K113: 0195fb21-4888-7479-a07b-fa18e3e52d51
A114: 1962 | B114: ООО "ПД ГОРНЫЙ" | C114: WZ02962 | D114: 5410159562 | E114: 1134 | F114: №1134 IaaS+backup | G114: 2024-06-03 15:33:23.000 +0300 | H114: 30 | I114: 10 | J114: 018fde17-0baf-7fee-22ab-3460c8faafe4 | K114: 0196011d-84a9-764c-96bf-9631438ecd96
A115: 1966 | B115: ООО "ПД ИНЖИНИРИНГ" | C115: WZ02966 | D115: 9703064251 | E115: 1721 | F115: №1721 IaaS для ООО ПД ИНЖИНИРИНГ (Холдинг ПНК Груп) | G115: 2024-11-13 12:53:18.000 +0300 | H115: 30 | I115: 10 | J115: 019324f1-11fd-78f3-b225-8cd2867061f3 | K115: 0196021e-5b1f-72f2-8e67-bd8c5224d10a
A116: 1973 | B116: ООО "ДИРЕКТ СТАР" | C116: WZ02973 | D116: 7702231594 | E116: 2262 | F116: №2262 Директ Стар стойки | G116: 2025-04-08 19:37:28.000 +0300 | H116: 10 | I116: 4 | J116: 01961643-8db0-752f-886c-6718515f088b | K116: 0196163b-8d22-736a-a8da-bca70098e114
A117: 1985 | B117: ИП Чвайда Игорь Юрьевич | C117: WZ02985 | D117: 781142407675 | E117: 2970 | F117: №2970 IaaS - ИП Чвайда | G117: 2025-09-05 14:54:13.000 +0300 | H117: 50 | I117: 8 | J117: 019919ba-23e7-764c-b675-a4dfc3212d9c | K117: 01962098-aa47-736f-a838-98884e8f4595
A118: 1988 | B118: ООО "МТ АВТОПАРТС" | C118: WZ02988 | D118: 6154160887 | E118: 2282 | F118: №2282 МТ Автопартс 20U | G118: 2025-04-11 12:25:35.000 +0300 | H118: 30 | I118: 10 | J118: 0196242b-3d8a-79cd-ab17-9cd4855ab874 | K118: 0196242a-5fa7-751a-b6c1-c5c40007c09e
A119: 1990 | B119: ООО «Аудит и право» | C119: WZ02990 | D119: 3666254532 | E119: 2344 | F119: №2344 Миграция iaas+NGFW | G119: 2025-04-25 16:15:57.000 +0300 | H119: 10 | I119: 4 | J119: 01966d17-2b1e-7041-bf82-7b69910b8971 | K119: 0196245b-bf9f-763e-8e38-af363a9a8f4c
A120: 2020 | B120: ООО "КЛЮЧЕВЫЕ ИТ РЕШЕНИЯ" | C120: WZ03020 | D120: 7707659016 | E120: 2833 | F120: №2833 Ключевые ИТ решения 20 U | G120: 2025-07-30 16:01:42.000 +0300 | H120: 10 | I120: 4 | J120: 01985b6c-a14e-75f6-8d52-92143da4d869 | K120: 019643be-264a-7612-8299-aca1d46ac913
A121: 2023 | B121: потенциальный клиент | C121: WZ03023 | D121: 1111111112 | E121: 2811 | F121: №2811 Размещение в ЦОД чат | G121: 2025-07-22 14:47:11.000 +0300 | H121: 10 | I121: 4 | J121: 019831f5-8636-7928-87ff-a46740ac2677 | K121: 019647ea-c983-71e9-b419-44c586b6ea83
A122: 2023 | B122: потенциальный клиент | C122: WZ03023 | D122: 1111111112 | E122: 2314 | F122: №2314 потенциальный клиент стойка 7 кВт | G122: 2025-04-18 10:54:36.000 +0300 | H122: 10 | I122: 4 | J122: 019647e4-7467-79ef-848f-e9562ceb61aa | K122: 019647ea-c983-71e9-b419-44c586b6ea83
A123: 2027 | B123: ООО "ДИАЛОГ-КОНВЕРСИЯ" | C123: WZ03027 | D123: 7706231394 | E123: 2322 | F123: №2322 ДИАЛОГ-КОНВЕРСИЯ облако Collo | G123: 2025-04-21 16:21:07.000 +0300 | H123: 10 | I123: 4 | J123: 01965882-762d-71ba-8280-c380c33a66df | K123: 0196587e-f255-74fa-920c-8b1054c186c7
A124: 2028 | B124: ООО "ВЕНДА ГРУПП" | C124: WZ03028 | D124: 7719819698 | E124: 2323 | F124: №2323 ВЕНДА ГРУПП | G124: 2025-04-21 16:24:22.000 +0300 | H124: 10 | I124: 4 | J124: 01965885-72d8-721d-be2a-48f281be7d41 | K124: 01965884-5ded-723c-9599-4399bc25ea48
A125: 2030 | B125: ООО "БИАЙ ПРО" | C125: WZ03030 | D125: 7725495427 | E125: 2327 | F125: №2327 ООО "БИАЙ ПРО" | G125: 2025-04-23 11:08:16.000 +0300 | H125: 10 | I125: 4 | J125: 019661b0-c3ea-7884-a873-892b6cded4a9 | K125: 019661a4-d69c-73b7-aca9-0a2123ff1e13
A126: 2038 | B126: ООО "САНТЕХНИКА-ОНЛАЙН" | C126: WZ03038 | D126: 5003109855 | E126: 2349 | F126: №2349 Миграция из Яндекс / Частное облако | G126: 2025-04-28 11:46:00.000 +0300 | H126: 30 | I126: 10 | J126: 01967b93-195d-71d4-90a4-f774a7974141 | K126: 01966776-d9fb-737c-9cad-9cc3f460dcb3
A127: 2046 | B127: ИП Ерощенко Лола Азяровна | C127: WZ03046 | D127: 771535362372 | E127: 2351 | F127: №2351 Аренда облачных серверов с GPU для высокопроизводительных вычислений | Nubes27.04.2025 | G127: 2025-04-28 12:45:48.000 +0300 | H127: 50 | I127: 8 | J127: 01967bc9-dbfd-7569-b540-a896b15b5d17 | K127: 01967bc8-a70b-70fb-8344-5f10ec1228df
A128: 2050 | B128: АО "МОСПРОЕКТ-3" | C128: WZ03050 | D128: 7707820890 | E128: 2364 | F128: №2364 МОСПРОЕКТ-3 инфра | G128: 2025-04-29 18:50:53.000 +0300 | H128: 30 | I128: 10 | J128: 0196823e-751d-77f6-9c9d-204b56eb0f8f | K128: 0196823c-f2c9-7144-b759-5b0f9625fb5a
A129: 2057 | B129: ООО "ВЕСТА" | C129: WZ03057 | D129: 5610126902 | E129: 2373 | F129: №2373 Colocation30.04.2025 | G129: 2025-05-05 11:14:45.000 +0300 | H129: 30 | I129: 10 | J129: 01969f83-03c2-7cbc-bdde-06f35d25c3a8 | K129: 01969f85-3612-725a-b02d-60a40ec76bf4
A130: 2060 | B130: Центр поддержки и развития спорта | C130: WZ03060 | D130: 9705135571 | E130: 2384 | F130: №2384 Центр поддержки и развития спорта | G130: 2025-05-07 14:44:00.000 +0300 | H130: 30 | I130: 10 | J130: 0196aa8f-4cc0-7f9f-ad39-2da3a93f6df7 | K130: 0196aa8a-0cef-7116-a3cb-bd1117d22d1d
A131: 2073 | B131: АО "НПО "КАСКАД" | C131: WZ03073 | D131: 2130064584 | E131: 2427 | F131: №2427 Базы данных MS SQL в облаке (DBaaS) | Nubes19.05.2025 | G131: 2025-05-19 15:01:03.000 +0300 | H131: 50 | I131: 8 | J131: 0196e86b-38e6-7e3b-abd1-651ccfe71f61 | K131: 0196e869-6a72-706e-9b16-ba681eafb679
A132: 2076 | B132: ООО "ДИПЛЕЙ" | C132: WZ03076 | D132: 7841089401 | E132: 2467 | F132: №2467 ДИПЛЕЙ | G132: 2025-05-21 14:17:51.000 +0300 | H132: 10 | I132: 4 | J132: 0196f290-661e-7ac7-b8b2-c659a0593c0c | K132: 0196f28d-828f-77ca-8c59-2eb49af4f287
A133: 2077 | B133: ООО "ОБОЗ ДИДЖИТАЛ" | C133: WZ03077 | D133: 7726630679 | E133: 2468 | F133: №2468 Многофакторная аутентификация (MFA) | Nubes21.05.2025 | G133: 2025-05-21 17:39:13.000 +0300 | H133: 10 | I133: 4 | J133: 0196f348-bf8c-7d3f-8cf8-ced0878070c3 | K133: 0196f332-a550-726e-be0e-23f43de0303a
A134: 2079 | B134: Инфопротектор | C134: WZ03079 | D134: 9715361587 | E134: 2473 | F134: №2473 Инфопротектор | G134: 2025-05-22 15:52:10.000 +0300 | H134: 30 | I134: 10 | J134: 0196f80d-1a02-760e-809e-968285d34c14 | K134: 0196f3a8-0562-715d-b7c1-33cb01943cb3
A135: 2115 | B135: ГУИТ ОМСКОЙ ОБЛАСТИ | C135: WZ03115 | D135: 5501196025 | E135: 2509 | F135: №2509 ГУИТ ОМСКОЙ ОБЛАСТИ | G135: 2025-05-23 16:27:02.000 +0300 | H135: 50 | I135: 8 | J135: 0196fd53-62ea-763a-9956-0e15e9dad2c0 | K135: 0196fd52-6364-761b-94f1-4fd164530b4e
A136: 2117 | B136: ИП Никитина Ольга Олеговна | C136: WZ03117 | D136: 263518871060 | E136: 2512 | F136: №2512 ИП Никитина О.О. | G136: 2025-05-24 19:09:53.000 +0300 | H136: 10 | I136: 4 | J136: 0197030e-d69e-769d-a86e-2fb3a3d8e9e9 | K136: 0197030b-804f-761b-87af-dbae62225132
A137: 2118 | B137: ООО "ИТК ТРАНС" | C137: WZ03118 | D137: 3666256681 | E137: 2513 | F137: №2513 ИТК ТРАНС | G137: 2025-05-24 19:28:36.000 +0300 | H137: 10 | I137: 4 | J137: 0197031f-f928-76a1-87f5-cac0a003cb77 | K137: 0197031c-2ee1-73bb-b3f4-3bf9d951346e
A138: 2131 | B138: третье мнение | C138: WZ03131 | D138: 7714426414 | E138: 2552 | F138: №2552 Облако для ПТМ | G138: 2025-05-29 10:27:44.000 +0300 | H138: 10 | I138: 4 | J138: 01971af0-9914-7850-92e6-835ac0d11f3c | K138: 019716ac-5efa-77e8-8552-8382791e1c62
A139: 2136 | B139: ИП Симарчук Анна Сергеевна | C139: WZ03136 | D139: 27702186418 | E139: 2565 | F139: №2565 29.05 Sens облачный сервер | G139: 2025-05-29 18:00:07.000 +0300 | H139: 10 | I139: 4 | J139: 01971c8e-c2d0-78a9-932f-9278fd79205b | K139: 01971c8a-855b-7532-8b4d-025d19bca14f
A140: 2146 | B140: АО "СОВРЕМЕННЫЕ СИСТЕМЫ" | C140: WZ03146 | D140: 5407013919 | E140: 2586 | F140: №2586 Современные системы & НУБЕС | G140: 2025-06-03 17:01:05.000 +0300 | H140: 10 | I140: 4 | J140: 01973618-83a3-7198-b46e-20d17416fe7d | K140: 01973613-495b-72c4-bc93-bdd29c219438
A141: 2148 | B141: Правительство Белгородской области | C141: WZ03148 | D141: 3124016792 | E141: 2592 | F141: №2592 Правительство Белгородской области | G141: 2025-06-03 19:12:57.000 +0300 | H141: 30 | I141: 10 | J141: 01973691-3dd2-76a7-9410-6653492f1920 | K141: 01973692-4322-718c-82f7-8d0f4859a0a7
A142: 2162 | B142: ООО "СПЕКТР" | C142: WZ03162 | D142: 7720905743 | E142: 2882 | F142: №2882 СПЕКТР | G142: 2025-08-15 17:52:02.000 +0300 | H142: 30 | I142: 10 | J142: 0198ae37-6323-7e4a-8e60-5a8990ff366e | K142: 0197791b-39ef-7721-94dc-598b4d1de8ea
A143: 2185 | B143: ИП Кузнецова Анна Александровна | C143: WZ03185 | D143: 232000793277 | E143: 2722 | F143: №2722 Аренда облачных серверов с GPU для высокопроизводительных вычислений | Nubes28.06.2025 | G143: 2025-06-30 12:29:06.000 +0300 | H143: 10 | I143: 4 | J143: 0197c02b-3670-7794-acc2-7fafdd980a5c | K143: 0197c09c-e54f-7495-8565-1d172793b1a6
A144: 2186 | B144: ФГБУ ФНКЦ ФМБА РОССИИ | C144: WZ03186 | D144: 7724044189 | E144: 2727 | F144: №2727 ФГБУ ФНКЦ ФМБА РОССИИ - IaaS | G144: 2025-06-30 16:27:36.000 +0300 | H144: 50 | I144: 8 | J144: 0197c105-9058-7b4e-9aa0-b974656eebc9 | K144: 0197c101-4355-738c-9ff3-7a5615fd0bc9
A145: 2188 | B145: ООО "Аларм-Комтранс" | C145: WZ03188 | D145: 7841380152 | E145: 2730 | F145: №2730 Аларм-Комтранс WAF+DDos | G145: 2025-07-01 13:26:53.000 +0300 | H145: 10 | I145: 4 | J145: 0197c586-7924-731a-850c-5f3071ed0510 | K145: 0197c57f-e675-745f-9613-7f6fcb0d12c8
A146: 2189 | B146: ООО "Аларм Авто сервис" | C146: WZ03189 | D146: 7814534283 | E146: 2731 | F146: №2731 Аларм Авто сервис WAF+DDoS | G146: 2025-07-01 13:33:38.000 +0300 | H146: 10 | I146: 4 | J146: 0197c58c-a5f7-74ab-9515-40055b6ef079 | K146: 0197c589-2525-73b3-8add-ce5ab669d04e
A147: 2190 | B147: ООО "Аларм-моторс Юго-Запад" | C147: WZ03190 | D147: 7802383738 | E147: 2732 | F147: №2732 Аларм-моторс Юго-Запад 2 WAF+DDoS | G147: 2025-07-01 13:39:24.000 +0300 | H147: 10 | I147: 4 | J147: 0197c591-ed83-75db-9f7f-d5579a09de90 | K147: 0197c58e-d93b-707f-84c6-67f6e00f4f74
A148: 2191 | B148: ООО "Аларм Авто Юго-Запад" | C148: WZ03191 | D148: 7807166046 | E148: 2733 | F148: №2733 Аларм Авто Юго-Запад WAF+DDoS | G148: 2025-07-01 14:08:17.000 +0300 | H148: 10 | I148: 4 | J148: 0197c5ac-5d34-7c63-9076-b14c32febf3c | K148: 0197c5a9-f8e4-76ce-aa21-b1023fdf8ba5
A149: 2192 | B149: ООО "Аларм-моторс Лахта" | C149: WZ03192 | D149: 7814367593 | E149: 2734 | F149: №2734 Аларм-моторс Лахта WAF+DDoS | G149: 2025-07-01 14:11:52.000 +0300 | H149: 10 | I149: 4 | J149: 0197c5af-a565-7d51-bfa3-21bc35eeb92c | K149: 0197c5ad-503d-71ca-9da6-3b8a75397444
A150: 2217 | B150: ООО "ГРАФАРТ" | C150: WZ03217 | D150: 7705808022 | E150: 2773 | F150: №2773 Объектное хранилище S3 | Nubes07.07.2025 | G150: 2025-07-09 14:39:23.000 +0300 | H150: 10 | I150: 4 | J150: 0197eefb-b639-7974-b470-bb2cebe3ffb5 | K150: 0197eefa-0e97-75dd-8d1d-28110b597443
A151: 2219 | B151: ООО "ЛЕНТА" | C151: WZ03219 | D151: 7814148471 | E151: 2779 | F151: №2779 ООО "ЛЕНТА" объявляет тендер: Внедрение сервисов канальной защиты от DDOS атак (Внедрение сервисов канальной защиты от DDOS атак) | G151: 2025-07-11 16:55:40.000 +0300 | H151: 0 | I151: 4 | J151: 0197f9c5-36ee-757d-b8b0-faf8d69d8d62 | K151: 0197f9c4-79f4-74dc-81e1-d02fb60fe315
A152: 2220 | B152: ООО "ПЕРВЫЙ КЛИЕНТСКИЙ БАНК" | C152: WZ03220 | D152: 7744003039 | E152: 2780 | F152: №2780 Colocation | Nubes10.07.2025 | G152: 2025-07-11 17:57:25.000 +0300 | H152: 10 | I152: 4 | J152: 0197f9fd-beb1-7818-b3f4-c8bb25def22e | K152: 0197fa02-2ff9-700f-8b9f-8845ff30cbf7
A153: 2224 | B153: Министерство ЖКХ и ТЭК Новгородской области | C153: WZ03224 | D153: 5321109143 | E153: 2782 | F153: №2782 ЖКХ Новгородской области | G153: 2025-07-14 10:22:27.000 +0300 | H153: 30 | I153: 10 | J153: 019807d0-4b13-7590-b16d-acb107fe8f23 | K153: 01980871-55ee-766b-bb1e-7ad8c2ff2e92
A154: 2230 | B154: ООО "ТЕХНОГИГ" | C154: WZ03230 | D154: 7751155586 | E154: 2797 | F154: №2797 Аренда в ЦОДе | G154: 2025-07-16 18:47:40.000 +0300 | H154: 10 | I154: 4 | J154: 019813eb-8a89-7225-8e50-ace7e40b5941 | K154: 019813f5-17d5-77bf-8ea6-83817ae50773
A155: 2233 | B155: ООО "ЦЕНТРОПОЛИМЕР" | C155: WZ03233 | D155: 7719726620 | E155: 2933 | F155: №2933 Valo Cloud для ООО Центрополимер | G155: 2025-08-27 11:22:05.000 +0300 | H155: 50 | I155: 8 | J155: 0198ea9e-b19b-70aa-a17f-fd1951fa8b39 | K155: 01981e2e-f1cb-707e-9193-19e8669fecc0
A156: 2237 | B156: МИНЦИФРАЗВИТИЯ РБ | C156: WZ03237 | D156: 274172001 | E156: 2816 | F156: №2816 МИНЦИФРАЗВИТИЯ РБ | G156: 2025-07-22 17:59:39.000 +0300 | H156: 10 | I156: 4 | J156: 019832a5-bce9-741d-9fdb-1f25450af60a | K156: 019832a2-2633-7336-814e-a3e93a1e6b32
A157: 2238 | B157: ФХР | C157: WZ03238 | D157: 7704031008 | E157: 2817 | F157: №2817 ФХР | G157: 2025-07-22 18:02:54.000 +0300 | H157: 10 | I157: 4 | J157: 019832a8-b62e-74b9-97ab-3f32d6595295 | K157: 019832a7-b81b-774c-8e24-9a169d8c7e66
A158: 2240 | B158: ООО "ПЕГАС-АГРО" | C158: WZ03240 | D158: 6330041285 | E158: 2819 | F158: №2819 ПЕГАС-АГРО MFA | G158: 2025-07-24 16:56:17.000 +0300 | H158: 10 | I158: 4 | J158: 01983cb8-72b6-7ba0-8861-b14f6b7eab7f | K158: 01983cb5-bea0-72d0-88f1-4bec9c1b2ce1
A159: 2241 | B159: ООО "ЛУЧИ ЗДОРОВЬЕ" | C159: WZ03241 | D159: 7106021081 | E159: 2858 | F159: №2858 Запрос цен АЛЬЯНС-КОНСАЛТИНГ | G159: 2025-08-08 11:55:13.000 +0300 | H159: 10 | I159: 4 | J159: 019888e4-3415-7fe0-a1df-85e271e72ca4 | K159: 01984103-8c18-75cc-9050-17b0383160e1
A160: 2242 | B160: АНО "КОРПОРАТИВНАЯ АКАДЕМИЯ РОСАТОМА" | C160: WZ03242 | D160: 7706470787 | E160: 2840 | F160: №2840 «Корпоративная Академия Росатома» | G160: 2025-08-01 16:21:04.000 +0300 | H160: 10 | I160: 4 | J160: 019865cb-12b4-7933-8771-44457a8eb44b | K160: 01984106-2cba-750f-98d0-1d332121cc58
A161: 2247 | B161: ООО "Веста" МСК | C161: WZ03247 | D161: 7720810530 | E161: 2831 | F161: №2831 Запрос кп облако | G161: 2025-07-30 11:23:05.000 +0300 | H161: 10 | I161: 4 | J161: 01985a6d-8d11-73e7-a099-c25770d54ed5 | K161: 01985a0f-31e9-764f-aefb-438decae71ef
A162: 2248 | B162: ООО КА "ИМА-ПРЕСС" | C162: WZ03248 | D162: 7706032102 | E162: 2839 | F162: №2839 ООО КА "ИМА-ПРЕСС" | G162: 2025-07-31 17:25:06.000 +0300 | H162: 10 | I162: 10 | J162: 019860df-567f-721f-ad00-c2d69dcffcae | K162: 019860dd-1e6c-753b-ab47-e1a8ccd6d1d0
A163: 2253 | B163: АО "БАЙЕР" | C163: WZ03253 | D163: 7704017596 | E163: 2845 | F163: №2845 Бэкап для Байер | G163: 2025-08-05 15:10:58.000 +0300 | H163: 10 | I163: 4 | J163: 01987a24-5490-740b-8bf4-01f4604e37c8 | K163: 01987a21-ef31-766d-bf59-bb11d1622d32
A164: 2255 | B164: ООО "НОРМ ПРОДАКШН" | C164: WZ03255 | D164: 9731088053 | E164: 2852 | F164: №2852 ООО "НОРМ ПРОДАКШ" 2FA | G164: 2025-08-06 10:04:04.000 +0300 | H164: 10 | I164: 4 | J164: 01987e31-b93f-7fbf-a747-42d43d8d4b74 | K164: 01987e2f-3bac-739a-a4fe-959349996613
A165: 2267 | B165: ООО "ТАБЛОДЖИКС" | C165: WZ03267 | D165: 5032080978 | E165: 2863 | F165: №2863 ТАБЛОДЖИКС инфра | G165: 2025-08-12 10:28:22.000 +0300 | H165: 10 | I165: 4 | J165: 01989d2e-1e74-7a54-b156-2d6481b39317 | K165: 01989d2a-42f7-721d-9c55-491b7bb313e5
A166: 2268 | B166: АО ТГК "ВЕГА" | C166: WZ03268 | D166: 7719048607 | E166: 2864 | F166: №2864 Гостиница Вега - Аудит ИБ, ФЗ-152, IaaS | G166: 2025-08-12 12:44:18.000 +0300 | H166: 30 | I166: 10 | J166: 01989daa-91f2-71a1-8ed8-a43d5d906f70 | K166: 01989da5-1663-728c-8fa7-1b091693a3c9
A167: 2271 | B167: ООО "ГК ХАЙТЕК" | C167: WZ03271 | D167: 7715990687 | E167: 2869 | F167: №2869 ГК ХАЙТЕК | G167: 2025-08-13 14:11:01.000 +0300 | H167: 10 | I167: 4 | J167: 0198a320-554e-784d-b365-50712024b0df | K167: 0198a31c-ec74-7628-845f-66e64cc731a5
A168: 2273 | B168: ООО ТК "СВЯЗЬ" | C168: WZ03273 | D168: 7717721217 | E168: 2872 | F168: №2872 ТК "СВЯЗЬ | G168: 2025-08-13 23:09:39.000 +0300 | H168: 10 | I168: 4 | J168: 0198a50d-75d2-7bd5-af7c-ada6a259b9d1 | K168: 0198a508-8d82-77eb-8579-6f0788d81fee
A169: 2275 | B169: АО "КОНТУР" | C169: WZ03275 | D169: 5321034434 | E169: 2878 | F169: №2878 АО "Контур" S3 10 tb | G169: 2025-08-14 15:55:59.000 +0300 | H169: 50 | I169: 8 | J169: 0198a8a6-ca10-7263-9764-c7ce658a149e | K169: 0198a8a1-9979-7147-bb7d-98e3dda8f0a5
A170: 2279 | B170: ООО "КАНТ" | C170: WZ03279 | D170: 7726579888 | E170: 2891 | F170: №2891 Кант_Аудит ИБ | G170: 2025-08-19 11:16:05.000 +0300 | H170: 10 | I170: 4 | J170: 0198c166-5299-7fa0-8b07-1df1247de5b3 | K170: 0198c166-cffa-73be-90e0-4e8dd43b2764
A171: 2280 | B171: ООО "ОРТИЗЕЙ" | C171: WZ03280 | D171: 9704217824 | E171: 2892 | F171: №2892 Кофемания_Аудит ИБ | G171: 2025-08-19 11:20:53.000 +0300 | H171: 10 | I171: 4 | J171: 0198c16a-b743-708b-bcff-acff66993c6b | K171: 0198c167-b9f6-71e9-a8c3-704ff3d104e1
A172: 2282 | B172: ООО "ОБЪЕДИНЕНИЕ АГРЕГЕЙТ" | C172: WZ03282 | D172: 6950166982 | E172: 2894 | F172: №2894 Объединение Агрегейт - IaaS | G172: 2025-08-19 14:15:23.000 +0300 | H172: 30 | I172: 10 | J172: 0198c20a-7bf0-7f57-99bb-6a74d6c1b45a | K172: 0198c1f9-124f-7098-a2db-d141ad03db0a
A173: 2285 | B173: ООО "ЭКОНОМНАЯ АПТЕКА" | C173: WZ03285 | D173: 9102236756 | E173: 2904 | F173: №2904 Экономная аптека - IaaS | G173: 2025-08-20 11:47:43.000 +0300 | H173: 10 | I173: 4 | J173: 0198c6a9-a4a6-71ba-9cb1-34225a516d77 | K173: 0198c6a8-f560-752f-aded-2001c5e8f508
A174: 2290 | B174: ООО "МАСТЕРФУД" | C174: WZ03290 | D174: 7737524513 | E174: 2911 | F174: №2911 Коворк на 200 пользователей под МАСТЕРФУД | G174: 2025-08-22 11:01:21.000 +0300 | H174: 10 | I174: 4 | J174: 0198d0cb-eb51-7aa4-a709-5649ccb7602e | K174: 0198d0c6-78d5-7039-b9aa-c10eb43ed98c
A175: 2291 | B175: АНО "ЦЕНТР ПО ВНЕШНЕЙ ТОРГОВЛЕ" | C175: WZ03291 | D175: 7727499152 | E175: 2912 | F175: №2912 аренда сервера | G175: 2025-08-22 11:21:30.000 +0300 | H175: 10 | I175: 4 | J175: 0198d0de-5ca3-7aef-9a64-d282166dc819 | K175: 0198d0d7-559a-7739-a30e-8a23d0915137
A176: 2293 | B176: ООО "ЧАЙНА ТЕЛЕКОМ" | C176: WZ03293 | D176: 7702788642 | E176: 2922 | F176: №2922 ВК под ЧАЙНА ТЕЛЕКОМ облако | G176: 2025-08-25 15:25:32.000 +0300 | H176: 10 | I176: 4 | J176: 0198e130-dc6a-78e4-a2da-42dd34318af3 | K176: 0198e0d5-3c8c-7270-9c51-4885e98690a1
A177: 2296 | B177: ООО "УНИТЕЛ" | C177: WZ03296 | D177: 7814534043 | E177: 2926 | F177: №2926 COLO ООО УНИТЕЛ | G177: 2025-08-26 12:02:00.000 +0300 | H177: 10 | I177: 4 | J177: 0198e59c-e17a-7816-b6a2-de61f773ba74 | K177: 0198e599-1517-7565-b4db-f024d213f7e6
A178: 2300 | B178: ООО "СЕРВИС-ТЕЛЕКОМ" | C178: WZ03300 | D178: 570002835 | E178: 2930 | F178: №2930 СЕРВИС-ТЕЛЕКОМ | G178: 2025-08-27 10:15:43.000 +0300 | H178: 10 | I178: 4 | J178: 0198ea61-ed2b-7e1e-b54f-da591a47d9ed | K178: 0198ea5f-f3c1-7049-9554-06a485631bb3
A179: 2305 | B179: ООО "АРМИДО СМ" | C179: WZ03305 | D179: 7751259659 | E179: 2941 | F179: №2941 Сервер 4,5 -АРМИДО СМ | G179: 2025-08-29 15:01:58.000 +0300 | H179: 50 | I179: 8 | J179: 0198f5b4-b8ba-7729-a672-c409338435f9 | K179: 0198f5b3-49e0-74a0-a81b-517f40e00cc3
A180: 2309 | B180: ООО "Скм.ПРО" | C180: WZ03309 | D180: 7751172077 | E180: 2952 | F180: №2952 Valo cloud - СКМ.Про | G180: 2025-09-01 16:44:35.000 +0300 | H180: 50 | I180: 8 | J180: 01990585-bea3-7357-b2c3-d9b9099a833b | K180: 01990583-9807-74b6-b46d-e88d48674cf2
A181: 2311 | B181: АО "ИНФОСИСТЕМЫ ДЖЕТ" | C181: WZ03311 | D181: 7729058675 | E181: 2962 | F181: №2962 Инфосистемы Джет, стойки | G181: 2025-09-03 14:41:52.000 +0300 | H181: 10 | I181: 4 | J181: 01990f62-1d98-78e7-a4cb-9cd2150d785d | K181: 01990f60-cc88-7598-8725-574e9b0b5408
A182: 2312 | B182: ООО "МИКСИТ" | C182: WZ03312 | D182: 7733333130 | E182: 2963 | F182: №2963 ООО Миксит colocation | G182: 2025-09-03 15:31:38.000 +0300 | H182: 10 | I182: 4 | J182: 01990f8f-ae41-7bb2-aa42-97c02429cec1 | K182: 01990f8d-00cd-7468-963b-fe087e5644d1
A183: 2321 | B183: ООО "ЯММ-ПИЦЦА" | C183: WZ03321 | D183: 7841390249 | E183: 2967 | F183: №2967 облачный диск и почта | G183: 2025-09-05 10:45:08.000 +0300 | H183: 10 | I183: 4 | J183: 019918d6-1b55-7d0f-9269-215f08363c62 | K183: 019918d4-6a08-70f1-bcd1-270a9e13e6d4
A184: 2322 | B184: ФГУП "КРЫЛОВСКИЙ ГОСУДАРСТВЕННЫЙ НАУЧНЫЙ ЦЕНТР" | C184: WZ03322 | D184: 7810213747 | E184: 2972 | F184: №2972 КРЫЛОВСКИЙ ГОСУДАРСТВЕННЫЙ НАУЧНЫЙ ЦЕНТР - ValoCloud | G184: 2025-09-08 10:19:37.000 +0300 | H184: 30 | I184: 10 | J184: 01992831-d0ab-7de6-8569-dda5d4089f01 | K184: 0199194f-9c10-7649-b627-28efbc77bc7c
A185: 2325 | B185: ООО "СОФТВЕЙ" | C185: WZ03325 | D185: 7703743997 | E185: 2971 | F185: №2971 СОФТВЕЙ 10 RPS | G185: 2025-09-06 09:47:45.000 +0300 | H185: 10 | I185: 4 | J185: 01991dc7-ecd2-7b1c-9451-1f5b40f77ee9 | K185: 01991dc5-c5c2-776f-9b71-d209ee71d08b
A186: 2327 | B186: АО "ЦИФРОВОЙ СЕМЕЙНЫЙ ОФИС" | C186: WZ03327 | D186: 7730335860 | E186: 2974 | F186: №2974 ЦИФРОВОЙ СЕМЕЙНЫЙ ОФИС СЗИ | G186: 2025-09-08 14:42:20.000 +0300 | H186: 10 | I186: 4 | J186: 01992922-5836-722f-8ba9-d9a3cc479972 | K186: 0199291d-acb3-71bc-a8ff-84f30676393c
A187: 2330 | B187: ООО "АЗУР ЭЙР" | C187: WZ03330 | D187: 2459007621 | E187: 2976 | F187: №2976 АЗУР ЭЙР переезд | G187: 2025-09-08 17:58:16.000 +0300 | H187: 10 | I187: 4 | J187: 019929d5-baea-7cbb-81c4-dedb6cfe7493 | K187: 019929c8-595b-71d0-a2a2-fd385a281d26
A188: 2334 | B188: ООО "КУСИГМА" | C188: WZ03334 | D188: 7841386651 | E188: 2987 | F188: №2987 Настройка правил NAT и Firewall на NSX-T Edge | Инструкции | Nubes09.09.2025 | G188: 2025-09-10 11:15:39.000 +0300 | H188: 10 | I188: 4 | J188: 019932b1-d71d-7df8-8fbb-3cd3f67de22f | K188: 019932b1-20cb-727f-82e9-43dd46bf6348
A189: 2335 | B189: ООО "КОММ КЛАУД" | C189: WZ03335 | D189: 5029264206 | E189: 2989 | F189: №2989 Сommcloud - IaaS | G189: 2025-09-10 17:28:16.000 +0300 | H189: 10 | I189: 4 | J189: 01993406-fbdf-75bc-a34d-2aee63cf964a | K189: 01993406-379d-727b-9482-d687579e88f9
A190: 2336 | B190: ООО "ИЗИ СОЛЮШНС" | C190: WZ03336 | D190: 7814662341 | E190: 2990 | F190: №2990 виртуалка Изи солюшнс | G190: 2025-09-11 14:48:35.000 +0300 | H190: 10 | I190: 4 | J190: 0199389b-23da-7de3-8ee6-772cb662458e | K190: 01993899-0fa7-7208-a757-1bc4f12deeb2
A191: 2338 | B191: ООО "НОВАМЕДИКА" | C191: WZ03338 | D191: 7718886050 | E191: 2992 | F191: №2992 мфа новомедика чат | G191: 2025-09-12 15:23:55.000 +0300 | H191: 10 | I191: 4 | J191: 01993de1-d9d5-7724-9d26-c0fd293a32b8 | K191: 01993de4-08ea-761f-9fc8-792a3c260a6e
A192: 2340 | B192: ООО "КАМЕРА БИАЙ" | C192: WZ03340 | D192: 7701367377 | E192: 2994 | F192: №2994 ООО "Камера Биай" iaas | G192: 2025-09-15 16:46:05.000 +0300 | H192: 10 | I192: 4 | J192: 01994da0-2745-7afc-b3ec-b8ddfa0c8dd9 | K192: 01994d9f-0b2b-7058-a44b-ce85e7c159ad
A193: 2341 | B193: ООО "ДЭВАР ПРОДАКШН" | C193: WZ03341 | D193: 7106523540 | E193: 2997 | F193: №2997 Облачное хранилище 25ТБ | G193: 2025-09-16 10:22:37.000 +0300 | H193: 30 | I193: 10 | J193: 01995167-7044-74c6-895b-e79651f8069d | K193: 01995197-9a0e-7069-8c7d-2be2ed8c7c43
A194: 2342 | B194: ООО "АВ СОФТ" | C194: WZ03342 | D194: 7729662615 | E194: 2999 | F194: №2999 ООО "АВ Софт" Запрос коммерческого предложения на размещение серверов (Москва) | G194: 2025-09-16 11:59:49.000 +0300 | H194: 10 | I194: 4 | J194: 019951c0-6e8a-72ff-9b2a-af79ed51638d | K194: 019951bf-031c-756b-904e-ba30156bc5e6
A195: 2344 | B195: ООО "АЛЬТА ТЕКНОЛОДЖИ" | C195: WZ03344 | D195: 7715953100 | E195: 3009 | F195: №3009 АЛЬТА ТЕКНОЛОДЖИ 5 юнитов | G195: 2025-09-18 17:01:52.000 +0300 | H195: 10 | I195: 4 | J195: 01995d21-adb5-70f7-8169-45af9df7480a | K195: 01995d11-29ec-729b-a7c0-6e66bf895c8c

Sheet 2875 - Хайвел
B1: скрипт | C1: 2875 (4) | E1: ООО "Автопортрет СПБ-Юг" | I1: 1976 | J1: 7810337380 | K1: WZ02976
B2: сентябрь (30) | C2: 2547.938027 | E2: №2875 ValoCloud - Автопортрет СПБ-Юг
B3: октябрь | C3: 2497.843252
A5: siv_uid | B5: discount | C5: line_pricing_model_id | D5: line_key | E5: siv_is_actual | F5: line_version | G5: deal_index | H5: agreement_version | I5: dt_from | J5: dt_to | K5: is_simple | L5: quantity | M5: probability_pc | N5: agreement_uid | O5: contract_uid | P5: agreement_is_actual | Q5: deal_uid | R5: deal | S5: deal_status_id | T5: user_description | U5: cost | V5: НАДО
A6: 01998a46-a691-7045-903e-02456f0c0a95 | B6: 0 | C6: 2 | D6: 8cdca0dc-f2ec-4ab5-85df-3b762eabd15d | E6: true | F6: 5 | G6: 2875 | H6: 2 | I6: 2025-09-30 | J6: 2025-12-01 00:00:00.000 | K6: true | L6: 1 | M6: 20 | N6: 0198a872-092c-7b16-ad5c-320503fd2d09 | O6: 01961a89-7d0c-71bc-8f28-afdcc462a14f | P6: false | Q6: 0198a872-077a-7b16-b79f-a378d9de374a | R6: №2875 ValoCloud - Автопортрет СПБ-Юг | S6: 10 | T6: Сеть 10Гбит между кластерами | U6: 1,000.00000 | V6: БЕЗ ВЕРОЯТНОСТИ | X6: =U6/0.2 -> 5000
A7: 01998a46-a65e-7044-b0b5-3d71e5b7f7bc | B7: 0 | C7: 2 | D7: 99a343e3-3788-44f4-8d22-36da50a13cc7 | E7: true | F7: 5 | G7: 2875 | H7: 2 | I7: 2025-09-30 | J7: 2025-12-01 00:00:00.000 | K7: true | L7: 2 | M7: 20 | N7: 0198a872-092c-7b16-ad5c-320503fd2d09 | O7: 01961a89-7d0c-71bc-8f28-afdcc462a14f | P7: false | Q7: 0198a872-077a-7b16-b79f-a378d9de374a | R7: №2875 ValoCloud - Автопортрет СПБ-Юг | S7: 10 | U7: 290.00000 | V7: БЕЗ ВЕРОЯТНОСТИ | X7: =U7/0.2 -> 1450
A8: 01998a46-a62d-7044-82bf-ec4025d7fdc2 | B8: 0 | C8: 2 | D8: 04a027b1-b533-4a9d-a8d6-8c1a0b2de767 | E8: true | F8: 5 | G8: 2875 | H8: 2 | I8: 2025-09-30 | J8: 2025-12-01 00:00:00.000 | K8: false | L8: 1 | M8: 20 | N8: 0198a872-092c-7b16-ad5c-320503fd2d09 | O8: 01961a89-7d0c-71bc-8f28-afdcc462a14f | P8: false | Q8: 0198a872-077a-7b16-b79f-a378d9de374a | R8: №2875 ValoCloud - Автопортрет СПБ-Юг | S8: 10 | U8: 36,720.00000 | V8: БЕЗ ВЕРОЯТНОСТИ | X8: 183600
A9: 01998a46-a58d-7040-81ce-c2f7c956a005 | B9: -15.942029 | C9: 2 | D9: 572fda74-eeca-4dbe-9770-c48d0f7d88c9 | E9: true | F9: 5 | G9: 2875 | H9: 2 | I9: 2025-09-30 | J9: 2025-12-01 00:00:00.000 | K9: false | L9: 1 | M9: 20 | N9: 0198a872-092c-7b16-ad5c-320503fd2d09 | O9: 01961a89-7d0c-71bc-8f28-afdcc462a14f | P9: false | Q9: 0198a872-077a-7b16-b79f-a378d9de374a | R9: №2875 ValoCloud - Автопортрет СПБ-Юг | S9: 10 | T9: Защита от DDoS: Qrator (10 мбит/с легитимного трафика) | U9: 27,600.00000 | V9: БЕЗ ВЕРОЯТНОСТИ | X9: 138000 | Z9: посчитано без скидки | AA9: -15.942029 | AB9: д.б. | AC9: 32000
A10: 01998a46-a4d1-7039-afa6-dbbf61291d31 | B10: 0 | C10: 2 | D10: 56d859c7-62b1-46e4-9d56-13e88e7c0712 | E10: true | F10: 5 | G10: 2875 | H10: 2 | I10: 2025-10-01 | J10: 2025-12-01 00:00:00.000 | K10: false | L10: 1 | M10: 20 | N10: 0198a872-092c-7b16-ad5c-320503fd2d09 | O10: 01961a89-7d0c-71bc-8f28-afdcc462a14f | P10: false | Q10: 0198a872-077a-7b16-b79f-a378d9de374a | R10: №2875 ValoCloud - Автопортрет СПБ-Юг | S10: 10 | T10: Облачный диск Valo Cloud | U10: 4,975.00000 | V10: С ВЕРОЯТНОСТЬЮ | X10: =U10 -> 4,975.00000
A11: 01998a46-a5f5-7044-8882-b14c2b97366c | B11: 0 | C11: 2 | D11: e4fa86ee-b0cb-47af-a904-5ad9352ff880 | E11: true | F11: 5 | G11: 2875 | H11: 2 | I11: 2025-09-30 | J11: 2025-12-01 00:00:00.000 | K11: false | L11: 1 | M11: 20 | N11: 0198a872-092c-7b16-ad5c-320503fd2d09 | O11: 01961a89-7d0c-71bc-8f28-afdcc462a14f | P11: false | Q11: 0198a872-077a-7b16-b79f-a378d9de374a | R11: №2875 ValoCloud - Автопортрет СПБ-Юг | S11: 10 | T11: Next Generation Cloud: AMD 2.8 ГГц | U11: 114,379.50000 | V11: БЕЗ ВЕРОЯТНОСТИ | X11: 571897.5
A12: 01998a46-a50a-703b-95bf-928a31ddbddc | B12: 98.550725 | C12: 2 | D12: cef848c2-3962-4570-95b9-98948eebcfc9 | E12: true | F12: 5 | G12: 2875 | H12: 2 | I12: 2025-09-30 | J12: 2025-12-01 00:00:00.000 | K12: false | L12: 10 | M12: 20 | N12: 0198a872-092c-7b16-ad5c-320503fd2d09 | O12: 01961a89-7d0c-71bc-8f28-afdcc462a14f | P12: false | Q12: 0198a872-077a-7b16-b79f-a378d9de374a | R12: №2875 ValoCloud - Автопортрет СПБ-Юг | S12: 10 | T12: Защита от AntiBot: Qrator (1 мбит/с легитимного трафика) | U12: 27,600.00000 | V12: БЕЗ ВЕРОЯТНОСТИ | X12: 138000 | Z12: посчитано без скидки | AA12: 98.550725 | AB12: д.б. | AC12: 4000
A13: 01998a46-a5c3-7044-ada5-94bef78ae164 | B13: 0 | C13: 2 | D13: d8ef4751-9ef7-4121-b784-0f608c0d1365 | E13: true | F13: 5 | G13: 2875 | H13: 2 | I13: 2025-09-30 | J13: 2025-12-01 00:00:00.000 | K13: false | L13: 1 | M13: 20 | N13: 0198a872-092c-7b16-ad5c-320503fd2d09 | O13: 01961a89-7d0c-71bc-8f28-afdcc462a14f | P13: false | Q13: 0198a872-077a-7b16-b79f-a378d9de374a | R13: №2875 ValoCloud - Автопортрет СПБ-Юг | S13: 10 | T13: Выделенный облачный пул: 4.5 ГГц AMD Ryzen 9 7950X 16 ядер 164 ГБ RAM | U13: 101,305.00010 | V13: БЕЗ ВЕРОЯТНОСТИ | X13: 506525.0005
A14: 01998a46-a6d0-7046-aeee-7050f98b1b49 | B14: -1349.275362 | C14: 2 | D14: cbd65df3-5638-453a-b5ff-d416e99d9db1 | E14: true | F14: 5 | G14: 2875 | H14: 2 | I14: 2025-09-30 | J14: 2025-12-01 00:00:00.000 | K14: false | L14: 1 | M14: 20 | N14: 0198a872-092c-7b16-ad5c-320503fd2d09 | O14: 01961a89-7d0c-71bc-8f28-afdcc462a14f | P14: false | Q14: 0198a872-077a-7b16-b79f-a378d9de374a | R14: №2875 ValoCloud - Автопортрет СПБ-Юг | S14: 10 | T14: Интернет канал скорость 500 Мбит\с | U14: 345.00000 | V14: БЕЗ ВЕРОЯТНОСТИ | X14: 1725
A15: 01998a46-a557-7040-8661-e4e7320a90ac | B15: -50 | C15: 2 | D15: aaf5d3fc-38e5-4740-80b5-31281c0ff18b | E15: true | F15: 5 | G15: 2875 | H15: 2 | I15: 2025-09-30 | J15: 2025-12-01 00:00:00.000 | K15: false | L15: 1 | M15: 20 | N15: 0198a872-092c-7b16-ad5c-320503fd2d09 | O15: 01961a89-7d0c-71bc-8f28-afdcc462a14f | P15: false | Q15: 0198a872-077a-7b16-b79f-a378d9de374a | R15: №2875 ValoCloud - Автопортрет СПБ-Юг | S15: 10 | T15: WAF: Positive Technologies | U15: 58,137.47000 | V15: БЕЗ ВЕРОЯТНОСТИ | X15: 290687.35 | Z15: посчитано без скидки | AA15: -50 | AB15: д.б. | AC15: 87,206.20500
T16: Всего: | U16: =SUM(U6:U15) -> 372,351.97010 | X16: =SUM(X6:X15) -> 1841859.851
A17: Факты | C17: f04_2025 | D17: f05_2025 | E17: f06_2025 | F17: f07_2025 | G17: f08_2025 | H17: b09_2025 | T17: Всего с вер.: | U17: =U16*0.2 -> 74,470.39402 | W17: 30 дней | X17: 31 день
B18: Облако | C18: 45512.84 | D18: 195055.01 | E18: 195055.01 | F18: 195055.01 | G18: 318492.25 | H18: 318492.25 | T18: Абонент. | U18: =U10 -> 4,975.00000 | W18: =U18/30 -> 165.8333333 | X18: =U18/31 -> 160.483871
G19: CRM | H19: 382,190.71 | I19: =H19/1.2 -> 318492.2583 | J19: без НДС | T19: По дог. | U19: =SUM(U6:U15) - U18 -> 367,376.97010 | W19: =U19/30 -> 12245.899 | X19: =U19/31 -> 11850.87
T20: Абонент. с вер. | U20: =U18*0.2 -> 995.00000 | W20: 33.16666667 | X20: 32.09677419 | Y20: =W20+W21 -> 2482.346467 | Z20: =X20+X21 -> 2402.270775
K21: 27600 | L21: 98.550725 | M21: =K21*L21/100 -> 27200.0001 | N21: =K21-M21 -> 399.9999 | T21: По дог. с вер. | U21: =U19*0.2 -> 73475.39402 | W21: 2449.179801 | X21: 2370.174001
A23: dt | B23: sum_unbounded | C23: sum_working | E23: sum_bounded
A24: 2025-09-30 | B24: 2449.179801 | C24: 2547.938027 | E24: 2547.938027 | G24: сентябрь - один день, одна строка | T24: Надо | W24: 30 | X24: 31
A25: 2025-10-01 | B25: 2402.270775 | C25: 2497.843252 | E25: 2497.843252 | G25: октябрь - 31 день | U25: Абонент | V25: с вер. | W25: =W20 -> 33.16666667 | X25: =X20 -> 32.09677419
A26: 2025-10-02 | B26: 2402.270775 | C26: 2497.843252 | E26: 2497.843252 | U26: По дог. | V26: без вер. | W26: =W19 -> 12245.899 | X26: =X19 -> 11850.87
A27: 2025-10-03 | B27: 2402.270775 | C27: 2497.843252 | E27: 2497.843252 | W27: =SUM(W25:W26) -> 12279.06567 | X27: =SUM(X25:X26) -> 11882.96678
A28: 2025-10-04 | B28: 2402.270775 | C28: 2497.843252 | E28: 2497.843252
A29: 2025-10-05 | B29: 2402.270775 | C29: 2497.843252 | E29: 2497.843252
A30: 2025-10-06 | B30: 2402.270775 | C30: 2497.843252 | E30: 2497.843252
A31: 2025-10-07 | B31: 2402.270775 | C31: 2497.843252 | E31: 2497.843252
A32: 2025-10-08 | B32: 2402.270775 | C32: 2497.843252 | E32: 2497.843252
A33: 2025-10-09 | B33: 2402.270775 | C33: 2497.843252 | E33: 2497.843252
A34: 2025-10-10 | B34: 2402.270775 | C34: 2497.843252 | E34: 2497.843252
A35: 2025-10-11 | B35: 2402.270775 | C35: 2497.843252 | E35: 2497.843252
A36: 2025-10-12 | B36: 2402.270775 | C36: 2497.843252 | E36: 2497.843252
A37: 2025-10-13 | B37: 2402.270775 | C37: 2497.843252 | E37: 2497.843252
A38: 2025-10-14 | B38: 2402.270775 | C38: 2497.843252 | E38: 2497.843252
A39: 2025-10-15 | B39: 2402.270775 | C39: 2497.843252 | E39: 2497.843252
A40: 2025-10-16 | B40: 2402.270775 | C40: 2497.843252 | E40: 2497.843252
A41: 2025-10-17 | B41: 2402.270775 | C41: 2497.843252 | E41: 2497.843252
A42: 2025-10-18 | B42: 2402.270775 | C42: 2497.843252 | E42: 2497.843252
A43: 2025-10-19 | B43: 2402.270775 | C43: 2497.843252 | E43: 2497.843252
A44: 2025-10-20 | B44: 2402.270775 | C44: 2497.843252 | E44: 2497.843252
A45: 2025-10-21 | B45: 2402.270775 | C45: 2497.843252 | E45: 2497.843252
A46: 2025-10-22 | B46: 2402.270775 | C46: 2497.843252 | E46: 2497.843252
A47: 2025-10-23 | B47: 2402.270775 | C47: 2497.843252 | E47: 2497.843252
A48: 2025-10-24 | B48: 2402.270775 | C48: 2497.843252 | E48: 2497.843252
A49: 2025-10-25 | B49: 2402.270775 | C49: 2497.843252 | E49: 2497.843252
A50: 2025-10-26 | B50: 2402.270775 | C50: 2497.843252 | E50: 2497.843252
A51: 2025-10-27 | B51: 2402.270775 | C51: 2497.843252 | E51: 2497.843252
A52: 2025-10-28 | B52: 2402.270775 | C52: 2497.843252 | E52: 2497.843252
A53: 2025-10-29 | B53: 2402.270775 | C53: 2497.843252 | E53: 2497.843252
A54: 2025-10-30 | B54: 2402.270775 | C54: 2497.843252 | E54: 2497.843252
A55: 2025-10-31 | B55: 2402.270775 | C55: 2497.843252 | E55: 2497.843252
A56: 2025-11-01 | B56: 2482.346467 | C56: 2581.104694 | E56: 2581.104694 | G56: ноябрь - 30 дней
A57: 2025-11-02 | B57: 2482.346467 | C57: 2581.104694 | E57: 2581.104694
A58: 2025-11-03 | B58: 2482.346467 | C58: 2581.104694 | E58: 2581.104694
A59: 2025-11-04 | B59: 2482.346467 | C59: 2581.104694 | E59: 2581.104694
A60: 2025-11-05 | B60: 2482.346467 | C60: 2581.104694 | E60: 2581.104694
A61: 2025-11-06 | B61: 2482.346467 | C61: 2581.104694 | E61: 2581.104694
A62: 2025-11-07 | B62: 2482.346467 | C62: 2581.104694 | E62: 2581.104694
A63: 2025-11-08 | B63: 2482.346467 | C63: 2581.104694 | E63: 2581.104694
A64: 2025-11-09 | B64: 2482.346467 | C64: 2581.104694 | E64: 2581.104694
A65: 2025-11-10 | B65: 2482.346467 | C65: 2581.104694 | E65: 2581.104694
A66: 2025-11-11 | B66: 2482.346467 | C66: 2581.104694 | E66: 2581.104694
A67: 2025-11-12 | B67: 2482.346467 | C67: 2581.104694 | E67: 2581.104694
A68: 2025-11-13 | B68: 2482.346467 | C68: 2581.104694 | E68: 2581.104694
A69: 2025-11-14 | B69: 2482.346467 | C69: 2581.104694 | E69: 2581.104694
A70: 2025-11-15 | B70: 2482.346467 | C70: 2581.104694 | E70: 2581.104694
A71: 2025-11-16 | B71: 2482.346467 | C71: 2581.104694 | E71: 2581.104694
A72: 2025-11-17 | B72: 2482.346467 | C72: 2581.104694 | E72: 2581.104694
A73: 2025-11-18 | B73: 2482.346467 | C73: 2581.104694 | E73: 2581.104694
A74: 2025-11-19 | B74: 2482.346467 | C74: 2581.104694 | E74: 2581.104694
A75: 2025-11-20 | B75: 2482.346467 | C75: 2581.104694 | E75: 2581.104694
A76: 2025-11-21 | B76: 2482.346467 | C76: 2581.104694 | E76: 2581.104694
A77: 2025-11-22 | B77: 2482.346467 | C77: 2581.104694 | E77: 2581.104694
A78: 2025-11-23 | B78: 2482.346467 | C78: 2581.104694 | E78: 2581.104694
A79: 2025-11-24 | B79: 2482.346467 | C79: 2581.104694 | E79: 2581.104694
A80: 2025-11-25 | B80: 2482.346467 | C80: 2581.104694 | E80: 2581.104694
A81: 2025-11-26 | B81: 2482.346467 | C81: 2581.104694 | E81: 2581.104694
A82: 2025-11-27 | B82: 2482.346467 | C82: 2581.104694 | E82: 2581.104694
A83: 2025-11-28 | B83: 2482.346467 | C83: 2581.104694 | E83: 2581.104694
A84: 2025-11-29 | B84: 2482.346467 | C84: 2581.104694 | E84: 2581.104694
A85: 2025-11-30 | B85: 2482.346467 | C85: 2581.104694 | E85: 2581.104694
A86: 2025-12-01 | C86: 0 | E86: 0

Sheet 2812
A1: ds_id | B1: ds_name | C1: ds_created_at | D1: ds_created_by | E1: ds_updated_at | F1: ds_updated_by | G1: ds_deleted_at | H1: user_description | I1: modifier | J1: ds_cnt | K1: modifier_code | L1: abstractive_service_code | M1: date | N1: area_code | O1: area_name | P1: area_id | Q1: abstractive_service | R1: is_actual | S1: ds_type | T1: ds_hash | U1: ds_area | V1: ds_discount | W1: ds_version | X1: name_version | Y1: who_accept | Z1: date_accept | AA1: discount_approve | AB1: ds_index | AC1: date_nop | AD1: date_end | AE1: additional_agreement | AF1: is_easy | AG1: sp_dt_load | AH1: sp_param_uuid | AI1: sp_name | AJ1: sp_created_at | AK1: sp_created_by | AL1: sp_updated_at | AM1: sp_updated_by | AN1: sp_deleted_at | AO1: sp_type | AP1: sp_price | AQ1: sp_code | AR1: sp_cnt | AS1: sp_name | AT1: sp_measure | AU1: sp_discount | AV1: discount_approve | AW1: who_accept | AX1: date_accept | AY1: sp_deal_uuid_array | AZ1: deal_uuid | BA1: array_deal_cnt | BB1: deal_uuid | BC1: deal_index | BD1: status_code | BE1: discount_value | BF1: sp_index | BG1: aa_name | BH1: contract_uid | BI1: aa_is_actual | BJ1: last_aa | BK1: aa_services | BL1: add_agg_app | BM1: base_by | BN1: is_prob | BO1: max | BP1: вер | BQ1: номер | BR1: архив | BS1: ва
A2: 01998656-c9a4-723d-8b19-968b73eca728 | B2: e9264193-b9b1-4df6-9757-4e3d3fab168b | C2: 2025-09-26 17:04:18.000 +0300 | D2: ddbb73b5-73b6-454b-bc21-3d9e282818ad | E2: 2025-09-26 17:04:18.000 +0300 | F2: ddbb73b5-73b6-454b-bc21-3d9e282818ad | H2: NGFW: Sangfor | I2: Sangfor | J2: 1 | K2: sgfr | L2: sec.ngfw | M2: 2025-09-26 17:04:20.646 +0300 | P2: 1 | Q2: NGFW | R2: true | S2: 1 | T2: e9264193-b9b1-4df6-9757-4e3d3fab168b | V2: 0.0 | W2: 4 | Y2: {} | AA2: true | AB2: 40667 | AC2: 2025-10-15 03:00:00.000 +0300 | AE2: {01983205-1215-7b32-bac1-23ca152729fe} | AF2: false | AG2: 2025-09-30 17:11:27.530 +0300 | AH2: 01998656-c962-723d-b214-67e68f6b944b | AI2: e9264193-b9b1-4df6-9757-4e3d3fab168b | AJ2: 2025-09-26 17:04:18.000 +0300 | AK2: ddbb73b5-73b6-454b-bc21-3d9e282818ad | AL2: 2025-09-26 17:04:18.000 +0300 | AM2: ddbb73b5-73b6-454b-bc21-3d9e282818ad | AO2: 1 | AP2: 152000.0 | AQ2: sec.ngfw.sgfr-i | AR2: 1 | AS2: NGFW: Sangfor | AT2: шт. | AU2: 0.0 | AW2: {} | AY2: {01983205-10c9-7b32-ba93-170e56adb060} | AZ2: 01983205-10c9-7b32-ba93-170e56adb060 | BA2: 1 | BB2: 01983205-10c9-7b32-ba93-170e56adb060 | BC2: 2812 | BD2: 12 | BE2: 0.0 | BF2: 110872 | BG2: Доп соглашение 1, к сделке №2812 Cedo\ALP настройка Sangfor | BH2: 018dee64-6bbd-e468-e82f-1856d6716b11 | BI2: false | BJ2: false | BK2: {01998656-c9a4-723d-8b19-968b73eca728,01998656-c9e4-723d-a8a8-d442fe8e94aa,01998656-ca1e-723d-8eeb-83064eeca40d} | BL2: {01998657-cd57-724b-b6d3-369653649eaa} | BM2: {0193bb48-89a1-79ec-ac21-2dbbfe8de9e5} | BN2: false | BO2: 4
A3: 01998656-c9e4-723d-a8a8-d442fe8e94aa | B3: 6d085c4a-d04a-4d5e-a589-8d383b74851c | C3: 2025-09-26 17:04:18.000 +0300 | D3: ddbb73b5-73b6-454b-bc21-3d9e282818ad | E3: 2025-09-26 17:04:18.000 +0300 | F3: ddbb73b5-73b6-454b-bc21-3d9e282818ad | J3: 1 | L3: bk.veeam | M3: 2025-09-26 17:04:20.646 +0300 | P3: 7 | Q3: Резервное копирование Veeam | R3: true | S3: 2 | T3: 6d085c4a-d04a-4d5e-a589-8d383b74851c | V3: 0.0 | W3: 4 | Y3: {} | AA3: true | AB3: 40668 | AC3: 2025-09-30 03:00:00.000 +0300 | AE3: {01983205-1215-7b32-bac1-23ca152729fe} | AF3: false | AG3: 2025-09-30 17:11:27.530 +0300 | AH3: 01998656-c9a6-723d-8130-dc434ba9a709 | AI3: 6d085c4a-d04a-4d5e-a589-8d383b74851c | AJ3: 2025-09-26 17:04:18.000 +0300 | AK3: ddbb73b5-73b6-454b-bc21-3d9e282818ad | AL3: 2025-09-26 17:04:18.000 +0300 | AM3: ddbb73b5-73b6-454b-bc21-3d9e282818ad | AO3: 2 | AP3: 2026-02-01 | AQ3: bk.veeam.0.vol-f | AR3: 0 | AS3: Дисковое пространство: Объем диска | AT3: ГБайт | AU3: 0.0 | AV3: true | AW3: {} | AY3: {01983205-10c9-7b32-ba93-170e56adb060} | AZ3: 01983205-10c9-7b32-ba93-170e56adb060 | BA3: 1 | BB3: 01983205-10c9-7b32-ba93-170e56adb060 | BC3: 2812 | BD3: 12 | BE3: 0.0 | BF3: 110873 | BG3: Доп соглашение 1, к сделке №2812 Cedo\ALP настройка Sangfor | BH3: 018dee64-6bbd-e468-e82f-1856d6716b11 | BI3: false | BJ3: false | BK3: {01998656-c9a4-723d-8b19-968b73eca728,01998656-c9e4-723d-a8a8-d442fe8e94aa,01998656-ca1e-723d-8eeb-83064eeca40d} | BL3: {01998657-cd57-724b-b6d3-369653649eaa} | BM3: {0193bb48-89a1-79ec-ac21-2dbbfe8de9e5} | BN3: false | BO3: 4
A4: 01998656-c9e4-723d-a8a8-d442fe8e94aa | B4: 6d085c4a-d04a-4d5e-a589-8d383b74851c | C4: 2025-09-26 17:04:18.000 +0300 | D4: ddbb73b5-73b6-454b-bc21-3d9e282818ad | E4: 2025-09-26 17:04:18.000 +0300 | F4: ddbb73b5-73b6-454b-bc21-3d9e282818ad | J4: 1 | L4: bk.veeam | M4: 2025-09-26 17:04:20.646 +0300 | P4: 7 | Q4: Резервное копирование Veeam | R4: true | S4: 2 | T4: 6d085c4a-d04a-4d5e-a589-8d383b74851c | V4: 0.0 | W4: 4 | Y4: {} | AA4: true | AB4: 40668 | AC4: 2025-09-30 03:00:00.000 +0300 | AE4: {01983205-1215-7b32-bac1-23ca152729fe} | AF4: false | AG4: 2025-09-30 17:11:27.530 +0300 | AH4: 01998656-c9a7-723d-aa37-7c6c9fb8734d | AI4: 6d085c4a-d04a-4d5e-a589-8d383b74851c | AJ4: 2025-09-26 17:04:18.000 +0300 | AK4: ddbb73b5-73b6-454b-bc21-3d9e282818ad | AL4: 2025-09-26 17:04:18.000 +0300 | AM4: ddbb73b5-73b6-454b-bc21-3d9e282818ad | AO4: 2 | AP4: 1200.0 | AQ4: bk.veeam.0.vma-f | AR4: 0 | AS4: Резервное копирование Veeam на 1 ВМ: (агент) | AT4: шт. | AU4: 0.0 | AV4: true | AW4: {} | AY4: {01983205-10c9-7b32-ba93-170e56adb060} | AZ4: 01983205-10c9-7b32-ba93-170e56adb060 | BA4: 1 | BB4: 01983205-10c9-7b32-ba93-170e56adb060 | BC4: 2812 | BD4: 12 | BE4: 0.0 | BF4: 110874 | BG4: Доп соглашение 1, к сделке №2812 Cedo\ALP настройка Sangfor | BH4: 018dee64-6bbd-e468-e82f-1856d6716b11 | BI4: false | BJ4: false | BK4: {01998656-c9a4-723d-8b19-968b73eca728,01998656-c9e4-723d-a8a8-d442fe8e94aa,01998656-ca1e-723d-8eeb-83064eeca40d} | BL4: {01998657-cd57-724b-b6d3-369653649eaa} | BM4: {0193bb48-89a1-79ec-ac21-2dbbfe8de9e5} | BN4: false | BO4: 4
A5: 01998656-c9e4-723d-a8a8-d442fe8e94aa | B5: 6d085c4a-d04a-4d5e-a589-8d383b74851c | C5: 2025-09-26 17:04:18.000 +0300 | D5: ddbb73b5-73b6-454b-bc21-3d9e282818ad | E5: 2025-09-26 17:04:18.000 +0300 | F5: ddbb73b5-73b6-454b-bc21-3d9e282818ad | J5: 1 | L5: bk.veeam | M5: 2025-09-26 17:04:20.646 +0300 | P5: 7 | Q5: Резервное копирование Veeam | R5: true | S5: 2 | T5: 6d085c4a-d04a-4d5e-a589-8d383b74851c | V5: 0.0 | W5: 4 | Y5: {} | AA5: true | AB5: 40668 | AC5: 2025-09-30 03:00:00.000 +0300 | AE5: {01983205-1215-7b32-bac1-23ca152729fe} | AF5: false | AG5: 2025-09-30 17:11:27.530 +0300 | AH5: 01998656-c9a8-723d-a04a-5aeca9a0ff36 | AI5: 6d085c4a-d04a-4d5e-a589-8d383b74851c | AJ5: 2025-09-26 17:04:18.000 +0300 | AK5: ddbb73b5-73b6-454b-bc21-3d9e282818ad | AL5: 2025-09-26 17:04:18.000 +0300 | AM5: ddbb73b5-73b6-454b-bc21-3d9e282818ad | AO5: 2 | AP5: 1200.0 | AQ5: bk.veeam.0.vms-f | AR5: 9 | AS5: Резервное копирование Veeam на 1 ВМ: (снапшот) | AT5: шт. | AU5: 0.0 | AV5: true | AW5: {} | AY5: {01983205-10c9-7b32-ba93-170e56adb060} | AZ5: 01983205-10c9-7b32-ba93-170e56adb060 | BA5: 1 | BB5: 01983205-10c9-7b32-ba93-170e56adb060 | BC5: 2812 | BD5: 12 | BE5: 0.0 | BF5: 110875 | BG5: Доп соглашение 1, к сделке №2812 Cedo\ALP настройка Sangfor | BH5: 018dee64-6bbd-e468-e82f-1856d6716b11 | BI5: false | BJ5: false | BK5: {01998656-c9a4-723d-8b19-968b73eca728,01998656-c9e4-723d-a8a8-d442fe8e94aa,01998656-ca1e-723d-8eeb-83064eeca40d} | BL5: {01998657-cd57-724b-b6d3-369653649eaa} | BM5: {0193bb48-89a1-79ec-ac21-2dbbfe8de9e5} | BN5: false | BO5: 4
A6: 01998656-ca1e-723d-8eeb-83064eeca40d | B6: a1de06e0-c0da-4176-a418-cebc802d1cb2 | C6: 2025-09-26 17:04:18.000 +0300 | D6: ddbb73b5-73b6-454b-bc21-3d9e282818ad | E6: 2025-09-26 17:04:18.000 +0300 | F6: ddbb73b5-73b6-454b-bc21-3d9e282818ad | H6: Администрирование Veeam | J6: 1 | L6: othr.othr | M6: 2025-09-26 17:04:20.646 +0300 | P6: 10 | Q6: Прочее | R6: true | S6: 2 | T6: a1de06e0-c0da-4176-a418-cebc802d1cb2 | V6: 0.0 | W6: 4 | Y6: {} | AA6: true | AB6: 40669 | AC6: 2025-09-30 03:00:00.000 +0300 | AE6: {01983205-1215-7b32-bac1-23ca152729fe} | AF6: true | AG6: 2025-09-30 17:11:27.530 +0300 | AH6: 01998656-c9e7-723d-9252-9d523076cb03 | AI6: a1de06e0-c0da-4176-a418-cebc802d1cb2 | AJ6: 2025-09-26 17:04:18.000 +0300 | AK6: ddbb73b5-73b6-454b-bc21-3d9e282818ad | AL6: 2025-09-26 17:04:18.000 +0300 | AM6: ddbb73b5-73b6-454b-bc21-3d9e282818ad | AO6: 2 | AP6: 3500.0 | AQ6: othr.othr.0-f | AR6: 1 | AS6: Прочее | AT6: шт. | AU6: 0.0 | AV6: true | AW6: {} | AY6: {01983205-10c9-7b32-ba93-170e56adb060} | AZ6: 01983205-10c9-7b32-ba93-170e56adb060 | BA6: 1 | BB6: 01983205-10c9-7b32-ba93-170e56adb060 | BC6: 2812 | BD6: 12 | BE6: 0.0 | BF6: 110876 | BG6: Доп соглашение 1, к сделке №2812 Cedo\ALP настройка Sangfor | BH6: 018dee64-6bbd-e468-e82f-1856d6716b11 | BI6: false | BJ6: false | BK6: {01998656-c9a4-723d-8b19-968b73eca728,01998656-c9e4-723d-a8a8-d442fe8e94aa,01998656-ca1e-723d-8eeb-83064eeca40d} | BL6: {01998657-cd57-724b-b6d3-369653649eaa} | BM6: {0193bb48-89a1-79ec-ac21-2dbbfe8de9e5} | BN6: false | BO6: 4
A7: 01975f09-45e9-7764-836f-39a2c1caae95 | B7: 20241003T125454369 | C7: 2025-06-11 15:48:52.000 +0300 | D7: 06ea57c2-875e-4cb7-b04e-7106896da71b | E7: 2025-06-11 15:48:52.000 +0300 | F7: 06ea57c2-875e-4cb7-b04e-7106896da71b | H7: Резервное копирование Veeam | J7: 1 | L7: bk.veeam | M7: 2025-06-11 15:48:53.517 +0300 | P7: 7 | Q7: Резервное копирование Veeam | R7: true | S7: 2 | T7: 20241003T125454369 | V7: 0.0 | W7: 193 | Y7: {} | AA7: true | AB7: 28270 | AC7: 2025-03-01 03:00:00.000 +0300 | AE7: {0194823e-2229-7c03-9d25-6bfb154e77fa} | AF7: false | AG7: 2025-09-24 13:12:30.549 +0300 | AH7: 01975f09-4559-7764-b33e-fefb0ef5f1cc | AI7: 20241003T125454369 | AJ7: 2025-06-11 15:48:52.000 +0300 | AK7: 06ea57c2-875e-4cb7-b04e-7106896da71b | AL7: 2025-06-11 15:48:52.000 +0300 | AM7: 06ea57c2-875e-4cb7-b04e-7106896da71b | AO7: 2 | AP7: 1200.0 | AQ7: bk.veeam.0.vma-f | AR7: 6 | AS7: Резервное копирование Veeam на 1 ВМ: (агент) | AT7: шт. | AU7: 0.0 | AV7: true | AW7: {} | AY7: {0194823e-208f-7c03-bc91-3e250ae9eed5} | AZ7: 0194823e-208f-7c03-bc91-3e250ae9eed5 | BA7: 1 | BB7: 0194823e-208f-7c03-bc91-3e250ae9eed5 | BC7: 1919 | BD7: 4 | BE7: 0.0 | BF7: 73986 | BG7: Доп соглашение 2 (200125084457) | BH7: 019251df-2b09-7abf-89c6-dee3e444a33f | BI7: false | BJ7: false | BK7: {01975f09-45e9-7764-836f-39a2c1caae95,01975f09-4670-7764-820a-85412ff07058,01975f09-46d1-7764-be1e-f415ecf20f2e,01975f09-4bf9-7764-afcc-3ed5d5b6a7ea,01975f09-4ddc-7764-b339-a0dfccb1cddf,01975f09-4f81-7764-a6f7-9c24cc944bdb} | BL7: {01975f09-6c4b-7764-9ae8-d6a26f6ead02} | BM7: {0193b50b-68f6-78da-ace6-db10c6e900c9} | BN7: false | BO7: 193
A8: 01975f09-45e9-7764-836f-39a2c1caae95 | B8: 20241003T125454369 | C8: 2025-06-11 15:48:52.000 +0300 | D8: 06ea57c2-875e-4cb7-b04e-7106896da71b | E8: 2025-06-11 15:48:52.000 +0300 | F8: 06ea57c2-875e-4cb7-b04e-7106896da71b | H8: Резервное копирование Veeam | J8: 1 | L8: bk.veeam | M8: 2025-06-11 15:48:53.517 +0300 | P8: 7 | Q8: Резервное копирование Veeam | R8: true | S8: 2 | T8: 20241003T125454369 | V8: 0.0 | W8: 193 | Y8: {} | AA8: true | AB8: 28270 | AC8: 2025-03-01 03:00:00.000 +0300 | AE8: {0194823e-2229-7c03-9d25-6bfb154e77fa} | AF8: false | AG8: 2025-09-24 13:12:30.549 +0300 | AH8: 01975f09-459f-7764-9fd9-9c3e135ed3c1 | AI8: 20241003T125454369 | AJ8: 2025-06-11 15:48:52.000 +0300 | AK8: 06ea57c2-875e-4cb7-b04e-7106896da71b | AL8: 2025-06-11 15:48:52.000 +0300 | AM8: 06ea57c2-875e-4cb7-b04e-7106896da71b | AO8: 2 | AP8: 2026-02-01 | AQ8: bk.veeam.0.vol-f | AR8: 20000 | AS8: Дисковое пространство: Дисковое пространство для резервного копирования | AT8: ГБайт | AU8: 15.044248 | AV8: true | AW8: {} | AY8: {0194823e-208f-7c03-bc91-3e250ae9eed5} | AZ8: 0194823e-208f-7c03-bc91-3e250ae9eed5 | BA8: 1 | BB8: 0194823e-208f-7c03-bc91-3e250ae9eed5 | BC8: 1919 | BD8: 4 | BE8: 15.044248 | BF8: 73987 | BG8: Доп соглашение 2 (200125084457) | BH8: 019251df-2b09-7abf-89c6-dee3e444a33f | BI8: false | BJ8: false | BK8: {01975f09-45e9-7764-836f-39a2c1caae95,01975f09-4670-7764-820a-85412ff07058,01975f09-46d1-7764-be1e-f415ecf20f2e,01975f09-4bf9-7764-afcc-3ed5d5b6a7ea,01975f09-4ddc-7764-b339-a0dfccb1cddf,01975f09-4f81-7764-a6f7-9c24cc944bdb} | BL8: {01975f09-6c4b-7764-9ae8-d6a26f6ead02} | BM8: {0193b50b-68f6-78da-ace6-db10c6e900c9} | BN8: false | BO8: 193
A9: 01975f09-45e9-7764-836f-39a2c1caae95 | B9: 20241003T125454369 | C9: 2025-06-11 15:48:52.000 +0300 | D9: 06ea57c2-875e-4cb7-b04e-7106896da71b | E9: 2025-06-11 15:48:52.000 +0300 | F9: 06ea57c2-875e-4cb7-b04e-7106896da71b | H9: Резервное копирование Veeam | J9: 1 | L9: bk.veeam | M9: 2025-06-11 15:48:53.517 +0300 | P9: 7 | Q9: Резервное копирование Veeam | R9: true | S9: 2 | T9: 20241003T125454369 | V9: 0.0 | W9: 193 | Y9: {} | AA9: true | AB9: 28270 | AC9: 2025-03-01 03:00:00.000 +0300 | AE9: {0194823e-2229-7c03-9d25-6bfb154e77fa} | AF9: false | AG9: 2025-09-24 13:12:30.549 +0300 | AH9: 01975f09-45a2-7764-9ca6-68efa4e7da8e | AI9: 20241003T125454369 | AJ9: 2025-06-11 15:48:52.000 +0300 | AK9: 06ea57c2-875e-4cb7-b04e-7106896da71b | AL9: 2025-06-11 15:48:52.000 +0300 | AM9: 06ea57c2-875e-4cb7-b04e-7106896da71b | AO9: 2 | AP9: 1200.0 | AQ9: bk.veeam.0.vms-f | AR9: 0 | AS9: Резервное копирование Veeam на 1 ВМ: (снапшот) | AT9: шт. | AU9: 0.0 | AV9: true | AW9: {} | AY9: {0194823e-208f-7c03-bc91-3e250ae9eed5} | AZ9: 0194823e-208f-7c03-bc91-3e250ae9eed5 | BA9: 1 | BB9: 0194823e-208f-7c03-bc91-3e250ae9eed5 | BC9: 1919 | BD9: 4 | BE9: 0.0 | BF9: 73988 | BG9: Доп соглашение 2 (200125084457) | BH9: 019251df-2b09-7abf-89c6-dee3e444a33f | BI9: false | BJ9: false | BK9: {01975f09-45e9-7764-836f-39a2c1caae95,01975f09-4670-7764-820a-85412ff07058,01975f09-46d1-7764-be1e-f415ecf20f2e,01975f09-4bf9-7764-afcc-3ed5d5b6a7ea,01975f09-4ddc-7764-b339-a0dfccb1cddf,01975f09-4f81-7764-a6f7-9c24cc944bdb} | BL9: {01975f09-6c4b-7764-9ae8-d6a26f6ead02} | BM9: {0193b50b-68f6-78da-ace6-db10c6e900c9} | BN9: false | BO9: 193
A10: 01975f09-4670-7764-820a-85412ff07058 | B10: 4fdc97c1-f55d-4b1f-bb28-0a49ab181809 | C10: 2025-06-11 15:48:52.000 +0300 | D10: 06ea57c2-875e-4cb7-b04e-7106896da71b | E10: 2025-06-11 15:48:52.000 +0300 | F10: 06ea57c2-875e-4cb7-b04e-7106896da71b | H10: Next Generation Cloud: Intel 3.1 ГГц | I10: Intel 3.1 ГГц | J10: 1 | K10: i31 | L10: iaas.ngc | M10: 2025-06-11 15:48:53.517 +0300 | P10: 4 | Q10: Next Generation Cloud | R10: true | S10: 2 | T10: 4fdc97c1-f55d-4b1f-bb28-0a49ab181809 | V10: 0.0 | W10: 193 | Y10: {} | AA10: true | AB10: 28271 | AC10: 2025-03-01 03:00:00.000 +0300 | AE10: {0194823e-2229-7c03-9d25-6bfb154e77fa} | AF10: false | AG10: 2025-09-24 13:12:30.549 +0300 | AH10: 01975f09-45f6-7764-9eb9-9af60f8ab6a3 | AI10: 4fdc97c1-f55d-4b1f-bb28-0a49ab181809 | AJ10: 2025-06-11 15:48:52.000 +0300 | AK10: 06ea57c2-875e-4cb7-b04e-7106896da71b | AL10: 2025-06-11 15:48:52.000 +0300 | AM10: 06ea57c2-875e-4cb7-b04e-7106896da71b | AO10: 2 | AP10: 380.0 | AQ10: iaas.ngc.i31.vcpu-f | AR10: 544 | AS10: Количество vCPU | AT10: шт. | AU10: -10.655263 | AV10: true | AW10: {} | AY10: {0194823e-208f-7c03-bc91-3e250ae9eed5} | AZ10: 0194823e-208f-7c03-bc91-3e250ae9eed5 | BA10: 1 | BB10: 0194823e-208f-7c03-bc91-3e250ae9eed5 | BC10: 1919 | BD10: 4 | BE10: -10.655263 | BF10: 73989 | BG10: Доп соглашение 2 (200125084457) | BH10: 019251df-2b09-7abf-89c6-dee3e444a33f | BI10: false | BJ10: false | BK10: {01975f09-45e9-7764-836f-39a2c1caae95,01975f09-4670-7764-820a-85412ff07058,01975f09-46d1-7764-be1e-f415ecf20f2e,01975f09-4bf9-7764-afcc-3ed5d5b6a7ea,01975f09-4ddc-7764-b339-a0dfccb1cddf,01975f09-4f81-7764-a6f7-9c24cc944bdb} | BL10: {01975f09-6c4b-7764-9ae8-d6a26f6ead02} | BM10: {0193b50b-68f6-78da-ace6-db10c6e900c9} | BN10: false | BO10: 193
A11: 01975f09-4670-7764-820a-85412ff07058 | B11: 4fdc97c1-f55d-4b1f-bb28-0a49ab181809 | C11: 2025-06-11 15:48:52.000 +0300 | D11: 06ea57c2-875e-4cb7-b04e-7106896da71b | E11: 2025-06-11 15:48:52.000 +0300 | F11: 06ea57c2-875e-4cb7-b04e-7106896da71b | H11: Next Generation Cloud: Intel 3.1 ГГц | I11: Intel 3.1 ГГц | J11: 1 | K11: i31 | L11: iaas.ngc | M11: 2025-06-11 15:48:53.517 +0300 | P11: 4 | Q11: Next Generation Cloud | R11: true | S11: 2 | T11: 4fdc97c1-f55d-4b1f-bb28-0a49ab181809 | V11: 0.0 | W11: 193 | Y11: {} | AA11: true | AB11: 28271 | AC11: 2025-03-01 03:00:00.000 +0300 | AE11: {0194823e-2229-7c03-9d25-6bfb154e77fa} | AF11: false | AG11: 2025-09-24 13:12:30.549 +0300 | AH11: 01975f09-4605-7764-85c7-b4fa9db2f3a8 | AI11: 4fdc97c1-f55d-4b1f-bb28-0a49ab181809 | AJ11: 2025-06-11 15:48:52.000 +0300 | AK11: 06ea57c2-875e-4cb7-b04e-7106896da71b | AL11: 2025-06-11 15:48:52.000 +0300 | AM11: 06ea57c2-875e-4cb7-b04e-7106896da71b | AO11: 2 | AP11: 228.0 | AQ11: iaas.ngc.i31.ram-f | AR11: 3921 | AS11: Объем vRAM | AT11: ГБайт | AU11: 18.824561 | AV11: true | AW11: {} | AY11: {0194823e-208f-7c03-bc91-3e250ae9eed5} | AZ11: 0194823e-208f-7c03-bc91-3e250ae9eed5 | BA11: 1 | BB11: 0194823e-208f-7c03-bc91-3e250ae9eed5 | BC11: 1919 | BD11: 4 | BE11: 18.824561 | BF11: 73990 | BG11: Доп соглашение 2 (200125084457) | BH11: 019251df-2b09-7abf-89c6-dee3e444a33f | BI11: false | BJ11: false | BK11: {01975f09-45e9-7764-836f-39a2c1caae95,01975f09-4670-7764-820a-85412ff07058,01975f09-46d1-7764-be1e-f415ecf20f2e,01975f09-4bf9-7764-afcc-3ed5d5b6a7ea,01975f09-4ddc-7764-b339-a0dfccb1cddf,01975f09-4f81-7764-a6f7-9c24cc944bdb} | BL11: {01975f09-6c4b-7764-9ae8-d6a26f6ead02} | BM11: {0193b50b-68f6-78da-ace6-db10c6e900c9} | BN11: false | BO11: 193
A12: 01975f09-4670-7764-820a-85412ff07058 | B12: 4fdc97c1-f55d-4b1f-bb28-0a49ab181809 | C12: 2025-06-11 15:48:52.000 +0300 | D12: 06ea57c2-875e-4cb7-b04e-7106896da71b | E12: 2025-06-11 15:48:52.000 +0300 | F12: 06ea57c2-875e-4cb7-b04e-7106896da71b | H12: Next Generation Cloud: Intel 3.1 ГГц | I12: Intel 3.1 ГГц | J12: 1 | K12: i31 | L12: iaas.ngc | M12: 2025-06-11 15:48:53.517 +0300 | P12: 4 | Q12: Next Generation Cloud | R12: true | S12: 2 | T12: 4fdc97c1-f55d-4b1f-bb28-0a49ab181809 | V12: 0.0 | W12: 193 | Y12: {} | AA12: true | AB12: 28271 | AC12: 2025-03-01 03:00:00.000 +0300 | AE12: {0194823e-2229-7c03-9d25-6bfb154e77fa} | AF12: false | AG12: 2025-09-24 13:12:30.549 +0300 | AH12: 01975f09-4606-7764-8cd4-54106bec4d8e | AI12: 4fdc97c1-f55d-4b1f-bb28-0a49ab181809 | AJ12: 2025-06-11 15:48:52.000 +0300 | AK12: 06ea57c2-875e-4cb7-b04e-7106896da71b | AL12: 2025-06-11 15:48:52.000 +0300 | AM12: 06ea57c2-875e-4cb7-b04e-7106896da71b | AO12: 2 | AP12: 2025-09-08 | AQ12: iaas.ngc.i31.ssd-f | AR12: 23833 | AS12: Дисковое пространство: SSD | AT12: ГБайт | AU12: 18.876404 | AV12: true | AW12: {} | AY12: {0194823e-208f-7c03-bc91-3e250ae9eed5} | AZ12: 0194823e-208f-7c03-bc91-3e250ae9eed5 | BA12: 1 | BB12: 0194823e-208f-7c03-bc91-3e250ae9eed5 | BC12: 1919 | BD12: 4 | BE12: 18.876404 | BF12: 73991 | BG12: Доп соглашение 2 (200125084457) | BH12: 019251df-2b09-7abf-89c6-dee3e444a33f | BI12: false | BJ12: false | BK12: {01975f09-45e9-7764-836f-39a2c1caae95,01975f09-4670-7764-820a-85412ff07058,01975f09-46d1-7764-be1e-f415ecf20f2e,01975f09-4bf9-7764-afcc-3ed5d5b6a7ea,01975f09-4ddc-7764-b339-a0dfccb1cddf,01975f09-4f81-7764-a6f7-9c24cc944bdb} | BL12: {01975f09-6c4b-7764-9ae8-d6a26f6ead02} | BM12: {0193b50b-68f6-78da-ace6-db10c6e900c9} | BN12: false | BO12: 193
A13: 01975f09-4670-7764-820a-85412ff07058 | B13: 4fdc97c1-f55d-4b1f-bb28-0a49ab181809 | C13: 2025-06-11 15:48:52.000 +0300 | D13: 06ea57c2-875e-4cb7-b04e-7106896da71b | E13: 2025-06-11 15:48:52.000 +0300 | F13: 06ea57c2-875e-4cb7-b04e-7106896da71b | H13: Next Generation Cloud: Intel 3.1 ГГц | I13: Intel 3.1 ГГц | J13: 1 | K13: i31 | L13: iaas.ngc | M13: 2025-06-11 15:48:53.517 +0300 | P13: 4 | Q13: Next Generation Cloud | R13: true | S13: 2 | T13: 4fdc97c1-f55d-4b1f-bb28-0a49ab181809 | V13: 0.0 | W13: 193 | Y13: {} | AA13: true | AB13: 28271 | AC13: 2025-03-01 03:00:00.000 +0300 | AE13: {0194823e-2229-7c03-9d25-6bfb154e77fa} | AF13: false | AG13: 2025-09-24 13:12:30.549 +0300 | AH13: 01975f09-4607-7764-8750-faae66391272 | AI13: 4fdc97c1-f55d-4b1f-bb28-0a49ab181809 | AJ13: 2025-06-11 15:48:52.000 +0300 | AK13: 06ea57c2-875e-4cb7-b04e-7106896da71b | AL13: 2025-06-11 15:48:52.000 +0300 | AM13: 06ea57c2-875e-4cb7-b04e-7106896da71b | AO13: 2 | AP13: 2025-08-02 | AQ13: iaas.ngc.i31.sata-f | AR13: 9120 | AS13: Дисковое пространство: SATA | AT13: ГБайт | AU13: -14.642857 | AV13: true | AW13: {} | AY13: {0194823e-208f-7c03-bc91-3e250ae9eed5} | AZ13: 0194823e-208f-7c03-bc91-3e250ae9eed5 | BA13: 1 | BB13: 0194823e-208f-7c03-bc91-3e250ae9eed5 | BC13: 1919 | BD13: 4 | BE13: -14.642857 | BF13: 73992 | BG13: Доп соглашение 2 (200125084457) | BH13: 019251df-2b09-7abf-89c6-dee3e444a33f | BI13: false | BJ13: false | BK13: {01975f09-45e9-7764-836f-39a2c1caae95,01975f09-4670-7764-820a-85412ff07058,01975f09-46d1-7764-be1e-f415ecf20f2e,01975f09-4bf9-7764-afcc-3ed5d5b6a7ea,01975f09-4ddc-7764-b339-a0dfccb1cddf,01975f09-4f81-7764-a6f7-9c24cc944bdb} | BL13: {01975f09-6c4b-7764-9ae8-d6a26f6ead02} | BM13: {0193b50b-68f6-78da-ace6-db10c6e900c9} | BN13: false | BO13: 193
A14: 01975f09-4670-7764-820a-85412ff07058 | B14: 4fdc97c1-f55d-4b1f-bb28-0a49ab181809 | C14: 2025-06-11 15:48:52.000 +0300 | D14: 06ea57c2-875e-4cb7-b04e-7106896da71b | E14: 2025-06-11 15:48:52.000 +0300 | F14: 06ea57c2-875e-4cb7-b04e-7106896da71b | H14: Next Generation Cloud: Intel 3.1 ГГц | I14: Intel 3.1 ГГц | J14: 1 | K14: i31 | L14: iaas.ngc | M14: 2025-06-11 15:48:53.517 +0300 | P14: 4 | Q14: Next Generation Cloud | R14: true | S14: 2 | T14: 4fdc97c1-f55d-4b1f-bb28-0a49ab181809 | V14: 0.0 | W14: 193 | Y14: {} | AA14: true | AB14: 28271 | AC14: 2025-03-01 03:00:00.000 +0300 | AE14: {0194823e-2229-7c03-9d25-6bfb154e77fa} | AF14: false | AG14: 2025-09-24 13:12:30.549 +0300 | AH14: 01975f09-4622-7764-9b4c-7f7c0cfaa945 | AI14: 4fdc97c1-f55d-4b1f-bb28-0a49ab181809 | AJ14: 2025-06-11 15:48:52.000 +0300 | AK14: 06ea57c2-875e-4cb7-b04e-7106896da71b | AL14: 2025-06-11 15:48:52.000 +0300 | AM14: 06ea57c2-875e-4cb7-b04e-7106896da71b | AO14: 2 | AP14: 2025-09-17 | AQ14: iaas.ngc.i31.fstssd-f | AR14: 0 | AS14: Дисковое пространство: Fast SSD | AT14: ГБайт | AU14: 0.0 | AV14: true | AW14: {} | AY14: {0194823e-208f-7c03-bc91-3e250ae9eed5} | AZ14: 0194823e-208f-7c03-bc91-3e250ae9eed5 | BA14: 1 | BB14: 0194823e-208f-7c03-bc91-3e250ae9eed5 | BC14: 1919 | BD14: 4 | BE14: 0.0 | BF14: 73993 | BG14: Доп соглашение 2 (200125084457) | BH14: 019251df-2b09-7abf-89c6-dee3e444a33f | BI14: false | BJ14: false | BK14: {01975f09-45e9-7764-836f-39a2c1caae95,01975f09-4670-7764-820a-85412ff07058,01975f09-46d1-7764-be1e-f415ecf20f2e,01975f09-4bf9-7764-afcc-3ed5d5b6a7ea,01975f09-4ddc-7764-b339-a0dfccb1cddf,01975f09-4f81-7764-a6f7-9c24cc944bdb} | BL14: {01975f09-6c4b-7764-9ae8-d6a26f6ead02} | BM14: {0193b50b-68f6-78da-ace6-db10c6e900c9} | BN14: false | BO14: 193
A15: 01975f09-4670-7764-820a-85412ff07058 | B15: 4fdc97c1-f55d-4b1f-bb28-0a49ab181809 | C15: 2025-06-11 15:48:52.000 +0300 | D15: 06ea57c2-875e-4cb7-b04e-7106896da71b | E15: 2025-06-11 15:48:52.000 +0300 | F15: 06ea57c2-875e-4cb7-b04e-7106896da71b | H15: Next Generation Cloud: Intel 3.1 ГГц | I15: Intel 3.1 ГГц | J15: 1 | K15: i31 | L15: iaas.ngc | M15: 2025-06-11 15:48:53.517 +0300 | P15: 4 | Q15: Next Generation Cloud | R15: true | S15: 2 | T15: 4fdc97c1-f55d-4b1f-bb28-0a49ab181809 | V15: 0.0 | W15: 193 | Y15: {} | AA15: true | AB15: 28271 | AC15: 2025-03-01 03:00:00.000 +0300 | AE15: {0194823e-2229-7c03-9d25-6bfb154e77fa} | AF15: false | AG15: 2025-09-24 13:12:30.549 +0300 | AH15: 01975f09-4623-7764-9bdf-62d73da02ca6 | AI15: 4fdc97c1-f55d-4b1f-bb28-0a49ab181809 | AJ15: 2025-06-11 15:48:52.000 +0300 | AK15: 06ea57c2-875e-4cb7-b04e-7106896da71b | AL15: 2025-06-11 15:48:52.000 +0300 | AM15: 06ea57c2-875e-4cb7-b04e-7106896da71b | AO15: 2 | AP15: 250000.0 | AQ15: iaas.ngc.i31.gpu80-f | AR15: 0 | AS15: GPU: A100 80GB RAM | AT15: шт. | AU15: 0.0 | AV15: true | AW15: {} | AY15: {0194823e-208f-7c03-bc91-3e250ae9eed5} | AZ15: 0194823e-208f-7c03-bc91-3e250ae9eed5 | BA15: 1 | BB15: 0194823e-208f-7c03-bc91-3e250ae9eed5 | BC15: 1919 | BD15: 4 | BE15: 0.0 | BF15: 73994 | BG15: Доп соглашение 2 (200125084457) | BH15: 019251df-2b09-7abf-89c6-dee3e444a33f | BI15: false | BJ15: false | BK15: {01975f09-45e9-7764-836f-39a2c1caae95,01975f09-4670-7764-820a-85412ff07058,01975f09-46d1-7764-be1e-f415ecf20f2e,01975f09-4bf9-7764-afcc-3ed5d5b6a7ea,01975f09-4ddc-7764-b339-a0dfccb1cddf,01975f09-4f81-7764-a6f7-9c24cc944bdb} | BL15: {01975f09-6c4b-7764-9ae8-d6a26f6ead02} | BM15: {0193b50b-68f6-78da-ace6-db10c6e900c9} | BN15: false | BO15: 193
A16: 01975f09-4bf9-7764-afcc-3ed5d5b6a7ea | B16: 20241003T125708653 | C16: 2025-06-11 15:48:54.000 +0300 | D16: 06ea57c2-875e-4cb7-b04e-7106896da71b | E16: 2025-09-04 13:51:47.000 +0300 | F16: 6765ade6-7890-4c45-aac0-028256da1e2f | H16: Предоставление Public IP адреса | J16: 1 | L16: tc.ipv4 | M16: 2025-06-11 15:48:53.517 +0300 | P16: 3 | Q16: Публичный IPv4 адрес | R16: true | S16: 2 | T16: 20241003T125708653 | V16: 99.655172 | W16: 193 | Y16: {} | AA16: true | AB16: 28273 | AC16: 2025-03-01 03:00:00.000 +0300 | AE16: {0194823e-2229-7c03-9d25-6bfb154e77fa} | AF16: true | AG16: 2025-09-24 13:12:30.549 +0300 | AH16: 01975f09-4825-7764-9013-86102c3a9c3e | AI16: 20241003T125708653 | AJ16: 2025-06-11 15:48:53.000 +0300 | AK16: 06ea57c2-875e-4cb7-b04e-7106896da71b | AL16: 2025-06-11 15:48:53.000 +0300 | AM16: 06ea57c2-875e-4cb7-b04e-7106896da71b | AO16: 2 | AP16: 290.0 | AQ16: tc.ipv4.0-f | AR16: 1 | AS16: Публичный IPv4 адрес | AT16: шт. | AU16: 0.0 | AV16: true | AW16: {} | AY16: {0194823e-208f-7c03-bc91-3e250ae9eed5} | AZ16: 0194823e-208f-7c03-bc91-3e250ae9eed5 | BA16: 1 | BB16: 0194823e-208f-7c03-bc91-3e250ae9eed5 | BC16: 1919 | BD16: 4 | BE16: 99.655172 | BF16: 73996 | BG16: Доп соглашение 2 (200125084457) | BH16: 019251df-2b09-7abf-89c6-dee3e444a33f | BI16: false | BJ16: false | BK16: {01975f09-45e9-7764-836f-39a2c1caae95,01975f09-4670-7764-820a-85412ff07058,01975f09-46d1-7764-be1e-f415ecf20f2e,01975f09-4bf9-7764-afcc-3ed5d5b6a7ea,01975f09-4ddc-7764-b339-a0dfccb1cddf,01975f09-4f81-7764-a6f7-9c24cc944bdb} | BL16: {01975f09-6c4b-7764-9ae8-d6a26f6ead02} | BM16: {0193b50b-68f6-78da-ace6-db10c6e900c9} | BN16: false | BO16: 193
A17: 01975f09-4f81-7764-a6f7-9c24cc944bdb | B17: 20241003T125630963 | C17: 2025-06-11 15:48:55.000 +0300 | D17: 06ea57c2-875e-4cb7-b04e-7106896da71b | E17: 2025-09-04 13:51:47.000 +0300 | F17: 6765ade6-7890-4c45-aac0-028256da1e2f | H17: Предоставление услуги Виртуализация сети NSX с возможностью применения балансировщика нагрузки (<5000 соединений) и поддержкой до 1024 IPsec туннелей) | J17: 1 | L17: othr.othr | M17: 2025-06-11 15:48:53.517 +0300 | P17: 10 | Q17: Прочее | R17: true | S17: 2 | T17: 20241003T125630963 | V17: 0.0 | W17: 193 | Y17: {} | AA17: true | AB17: 28275 | AC17: 2025-03-01 03:00:00.000 +0300 | AE17: {0194823e-2229-7c03-9d25-6bfb154e77fa} | AF17: true | AG17: 2025-09-24 13:12:30.549 +0300 | AH17: 01975f09-4f42-7764-a011-3d25a02a7d52 | AI17: 20241003T125630963 | AJ17: 2025-06-11 15:48:55.000 +0300 | AK17: 06ea57c2-875e-4cb7-b04e-7106896da71b | AL17: 2025-06-11 15:48:55.000 +0300 | AM17: 06ea57c2-875e-4cb7-b04e-7106896da71b | AO17: 2 | AP17: 1.0 | AQ17: othr.othr.0-f | AR17: 1 | AS17: Прочее | AT17: шт. | AU17: 0.0 | AV17: true | AW17: {} | AY17: {0194823e-208f-7c03-bc91-3e250ae9eed5} | AZ17: 0194823e-208f-7c03-bc91-3e250ae9eed5 | BA17: 1 | BB17: 0194823e-208f-7c03-bc91-3e250ae9eed5 | BC17: 1919 | BD17: 4 | BE17: 0.0 | BF17: 73998 | BG17: Доп соглашение 2 (200125084457) | BH17: 019251df-2b09-7abf-89c6-dee3e444a33f | BI17: false | BJ17: false | BK17: {01975f09-45e9-7764-836f-39a2c1caae95,01975f09-4670-7764-820a-85412ff07058,01975f09-46d1-7764-be1e-f415ecf20f2e,01975f09-4bf9-7764-afcc-3ed5d5b6a7ea,01975f09-4ddc-7764-b339-a0dfccb1cddf,01975f09-4f81-7764-a6f7-9c24cc944bdb} | BL17: {01975f09-6c4b-7764-9ae8-d6a26f6ead02} | BM17: {0193b50b-68f6-78da-ace6-db10c6e900c9} | BN17: false | BO17: 193
A18: 01975f09-46d1-7764-be1e-f415ecf20f2e | B18: 20241003T125951296 | C18: 2025-06-11 15:48:52.000 +0300 | D18: 06ea57c2-875e-4cb7-b04e-7106896da71b | E18: 2025-09-04 13:51:47.000 +0300 | F18: 6765ade6-7890-4c45-aac0-028256da1e2f | H18: Предоставление безлимитного доступа в Интернет на гарантированной скорости 100 Мбит/с, включая защиту канала от DDoS-атак на уровне L3/L4 | I18: до 100 Мбит/с | J18: 1 | K18: b100m | L18: tc.indp | M18: 2025-06-11 15:48:53.517 +0300 | P18: 3 | Q18: Интернет c защитой от DDoS | R18: true | S18: 2 | T18: 20241003T125951296 | V18: 15.0 | W18: 193 | Y18: {} | AA18: true | AB18: 28272 | AC18: 2025-03-01 03:00:00.000 +0300 | AE18: {0194823e-2229-7c03-9d25-6bfb154e77fa} | AF18: true | AG18: 2025-09-24 13:12:30.549 +0300 | AH18: 01975f09-4676-7764-b614-ffcca9c1f684 | AI18: 20241003T125951296 | AJ18: 2025-06-11 15:48:52.000 +0300 | AK18: 06ea57c2-875e-4cb7-b04e-7106896da71b | AL18: 2025-06-11 15:48:52.000 +0300 | AM18: 06ea57c2-875e-4cb7-b04e-7106896da71b | AO18: 2 | AP18: 7000.0 | AQ18: tc.indp.b100m-f | AR18: 1 | AS18: Интернет c защитой от DDoS: до 100 Мбит/с | AT18: Mбит/с | AU18: 0.0 | AV18: true | AW18: {} | AY18: {0194823e-208f-7c03-bc91-3e250ae9eed5} | AZ18: 0194823e-208f-7c03-bc91-3e250ae9eed5 | BA18: 1 | BB18: 0194823e-208f-7c03-bc91-3e250ae9eed5 | BC18: 1919 | BD18: 4 | BE18: 15.0 | BF18: 73995 | BG18: Доп соглашение 2 (200125084457) | BH18: 019251df-2b09-7abf-89c6-dee3e444a33f | BI18: false | BJ18: false | BK18: {01975f09-45e9-7764-836f-39a2c1caae95,01975f09-4670-7764-820a-85412ff07058,01975f09-46d1-7764-be1e-f415ecf20f2e,01975f09-4bf9-7764-afcc-3ed5d5b6a7ea,01975f09-4ddc-7764-b339-a0dfccb1cddf,01975f09-4f81-7764-a6f7-9c24cc944bdb} | BL18: {01975f09-6c4b-7764-9ae8-d6a26f6ead02} | BM18: {0193b50b-68f6-78da-ace6-db10c6e900c9} | BN18: false | BO18: 193
